Workbook

Sheet Avropsblankett
B2: Särskild fördelningsnyckel inkl. Kontrakt | D2: =HYPERLINK("https://www.avropa.se/","Uppdaterad 2025-03-10. Kontrollera alltid inför avrop senaste versionen på avropa.se.") -> Uppdaterad 2025-03-10. Kontrollera alltid inför avrop senaste versionen på avropa.se.
B3: Tryckeritjänster Samtliga villkor fastställda | D3: Kundens diarienummer | AKS3: Visitkort | AKT3: Antal | AKU3: Visitkort | AKV3: Kollegieblock | AKW3: Brevpapper | AKX3: Kuvert | AKY3: Säkerhetskuvert | AKZ3: Korrespondenskort | ALA3: Pappersmappar | ALB3: Folders | ALC3: Broschyrer | ALD3: Statligt_tryck | ALE3: Rapport | ALF3: Katalog | ALG3: Roll_up | ALH3: Affischer | ALI3: Ateljétjänster
D4: Datum ÅÅÅÅ-MM-DD | AKS4: Kollegieblock | AKT4: =B28&"_"&AKT3 -> _Antal | AKU4: Mattbestruket | AKV4: Kollegieblock_Variant_1 | AKW4: Brevpapper_Variant_1 | AKX4: Kuvert_Variant_1 | AKY4: Säkerhetskuvert_Variant_1 | AKZ4: Korrespondenskort_Variant_1 | ALA4: Pappersmappar_Variant_1 | ALB4: Folders_Variant_1 | ALC4: Broschyrer_Variant_1 | ALD4: Statligt_tryck_1 | ALE4: Rapport_1 | ALF4: Katalog_1 | ALG4: Roll_up_1 | ALH4: Affischer_1 | ALI4: Bildbearbetning, tex färgjustering och tryckanpassning
B5: Kundens uppgifter | AKS5: Brevpapper | AKU5: Obestruket | AKV5: Kollegieblock_Variant_2 | AKW5: Brevpapper_Variant_2 | AKX5: Kuvert_Variant_2 | AKY5: Säkerhetskuvert_Variant_2 | AKZ5: Korrespondenskort_Variant_2 | ALA5: Pappersmappar_Variant_2 | ALB5: Folders_Variant_2 | ALC5: Broschyrer_Variant_2 | ALD5: Statligt_tryck_2 | ALE5: Rapport_2 | ALF5: Katalog_2 | ALG5: Roll_up_2 | ALH5: Affischer_2 | ALI5: Prepressarbete
B6: Avropsberättigad: | AKS6: Kuvert | AKV6: Kollegieblock_Variant_3 | AKW6: Brevpapper_Variant_3 | AKX6: Kuvert_Variant_3 | AKZ6: Korrespondenskort_Variant_3 | ALA6: Pappersmappar_Variant_3 | ALB6: Folders_Variant_3 | ALC6: Broschyrer_Variant_3 | ALG6: Roll_up_3 | ALH6: Affischer_3 | ALI6: Retusch
B7: Organisationsnr: | AKS7: Säkerhetskuvert | AKV7: Kollegieblock_Variant_4 | AKW7: Brevpapper_Variant_4 | AKX7: Kuvert_Variant_4 | AKZ7: Korrespondenskort_Variant_4 | ALA7: Pappersmappar_Variant_4 | ALG7: Roll_up_4 | ALH7: Affischer_4 | ALI7: Layoutarbete med befintlig grafisk manual som bas
B8: Kontaktperson: | AKS8: Korrespondenskort med kuvert | AKV8: Kollegieblock_Variant_5 | AKW8: Brevpapper_Variant_5 | AKX8: Kuvert_Variant_5 | AKZ8: Korrespondenskort_Variant_5 | ALG8: Roll_up_5 | ALI8: Formgivning
B9: Telefonnummer: | AKS9: Pappersmappar treklaff utan snodd | AKV9: Kollegieblock_Variant_6 | AKW9: Brevpapper_Variant_6 | AKX9: Kuvert_Variant_6 | AKZ9: Korrespondenskort_Variant_6 | ALG9: Roll_up_6
B10: E-postadress: | AKS10: Folders | AKW10: Brevpapper_Variant_7 | AKX10: Kuvert_Variant_7
B11: Fakturaadress: | AKS11: Broschyrer | AKW11: Brevpapper_Variant_8
B12: Standard för e-faktura: | AKS12: Statligt tryck | AKW12: Brevpapper_Variant_9
B13: Fakturareferens: | AKS13: Rapport
B14: Leveransdag: | AKS14: Katalog
B15: Leveransadress: | AKS15: Roll up
AKS16: Affischer
B17: Information till ramavtalsleverantör: | AKS17: Ateljétjänster
B20: Vinnande ramavtalsleverantörs uppgifter | AKS20: Kollegieblock | AKT20: Visitkort | AKU20: Brevpapper | AKV20: Kuvert | AKW20: Säkerhetskuvert | AKX20: Korrespondenskort | AKY20: Pappersmappar | ALA20: Broschyrer | ALB20: Statligt_tryck | ALC20: Rapport | ALD20: Katalog | ALF20: Visitkort | ALG20: Kollegieblock | ALH20: Brevpapper | ALI20: Kuvert | ALJ20: Säkerhetskuvert | ALK20: Korrespondenskort | ALL20: Pappersmappar | ALM20: Folders | ALN20: Broschyrer | ALO20: Statligt_tryck | ALP20: Rapport | ALQ20: Katalog | ALR20: Roll_up | ALS20: Affischer | ALT20: Ateljétjänster
B21: Ramavtalsleverantör: | C21: =Uträkningsblad!E63 -> Ange vilken/vilka produkter och antal samt eventuella tillägg i de ljusgula rutorna som önskas avropas. | AKS21: Antal blad inlaga | AKT21: Tryck | AKU21: Tryck | AKV21: Tryck | AKW21: Tryck | AKX21: Tryck | AKY21: Tryck | ALA21: Beskrivning/omfång (Inlaga mellan 8 och 64 sidor) | ALB21: Beskrivning/omfång (Inlaga mellan 32 och 120 sidor) | ALC21: Beskrivning/omfång (Inlaga mellan 32 och 128 sidor) | ALD21: Beskrivning/omfång (Inlaga mellan 32 och 128 sidor) | ALF21: Antal olika original | ALG21: Antal (Minst antal är 100) | ALH21: Antal ark (Minst antal är 500) | ALI21: Antal (Minst antal är 500) | ALJ21: Antal (Minst antal är 500) | ALK21: Antal (Minst antal är 100) | ALL21: Antal (Minst antal är 100) | ALM21: Antal (Minst antal är 100) | ALN21: Antal (Minst antal är 500) | ALO21: Antal (Minst antal är 250) | ALP21: Antal (Minst antal är 500) | ALQ21: Antal (Minst antal är 500) | ALR21: Antal | ALS21: Antal (Minst antal är 100) | ALT21: Upp till antal hela timmar
B22: Organisationsnummer: | C22: =Uträkningsblad!E64 -> 
B23: Kontaktperson: | C23: =Uträkningsblad!E65 -> 
B24: Telefonnummer: | C24: =Uträkningsblad!E66 -> 
B25: E-postadress för avrop: | C25: =HYPERLINK("Mailto: "&Uträkningsblad!E67) -> Mailto: | AKS25: Visitkort | AKT25: Kollegieblock | AKU25: Brevpapper | AKV25: Kuvert | AKW25: Säkerhetskuvert | AKX25: Korrespondenskort | AKY25: Pappersmappar | AKZ25: Folders | ALA25: Broschyrer | ALB25: Statligt_tryck | ALC25: Rapport | ALD25: Katalog | ALE25: Roll_up | ALF25: Affischer | ALH25: Antal olika original | ALI25: Antal (Minst antal är 100) | ALJ25: Antal (Minst antal är 250) | ALK25: Antal ark (Minst antal är 500) | ALL25: Antal (Minst antal är 500) | ALM25: Upp till antal hela timmar | ALN25: Antal
AKS26: Underlag: | AKT26: Format: | AKU26: Format: | AKV26: Underlag: | AKW26: Underlag: | AKX26: Underlag: | AKY26: Underlag: | AKZ26: Underlag: | ALA26: Underlag: | ALB26: Underlag: | ALC26: Underlag: | ALD26: Underlag: | ALE26: Roll up: | ALF26: Affischer:
B27: Välj Vara/Tjänst 1 | C27: Välj variant | D27: =IF($B$28=$AKS$20,IF($AKS$21="","",$AKS21),IF($B$28=$AKT$20,IF($AKT$21="","",$AKT21),IF($B$28=$AKU$20,IF($AKU$21="","",$AKU21),IF($B$28=$AKV$20,IF($AKV$21="","",$AKV21),IF($B$28=$AKW$20,IF($AKW$21="","",$AKW21),IF($B$28=$AKX$20,IF($AKX$21="","",$AKX21),IF($B$28=$AKY$20,IF($AKY$21="","",$AKY21),""))))))) ->  | E27: =IF($B$28=$ALA$20,IF($ALA$21="","",$ALA21),IF($B$28=$ALB$20,IF($ALB$21="","",$ALB21),IF($B$28=$ALC$20,IF($ALC$21="","",$ALC21),IF($B$28=$ALD$20,IF($ALD$21="","",$ALD21),"")))) ->  | F27: =IF($B$28=$ALF$20,IF($ALF$21="","",$ALF21),IF($B$28=$ALG$20,IF($ALG$21="","",$ALG21),IF($B$28=$ALH$20,IF($ALH$21="","",$ALH21),IF($B$28=$ALI$20,IF($ALI$21="","",$ALI21),IF($B$28=$ALJ$20,IF($ALJ$21="","",$ALJ21),IF($B$28=$ALK$20,IF($ALK$21="","",$ALK21),IF($B$28=$ALL$20,IF($ALL$21="","",$ALL21),IF($B$28=$ALM$20,IF($ALM$21="","",$ALM21),IF($B$28=$ALN$20,IF($ALN$21="","",$ALN21),IF($B$28=$ALO$20,IF($ALO$21="","",$ALO21),IF($B$28=$ALP$20,IF($ALP$21="","",$ALP21),IF($B$28=$ALQ$20,IF($ALQ$21="","",$ALQ21),IF($B$28=$ALR$20,IF($ALR$21="","",$ALR21),IF($B$28=$ALS$20,IF($ALS$21="","",$ALS21),IF($B$28=$ALT$20,IF($ALT$21="","",$ALT21),""))))))))))))))) ->  | G27: =IF($B$28=$AKS$65,IF($AKS66="","",$AKS66),"") ->  | AKS27: Format: | AKT27: Omslag,framsida: | AKU27: Underlag: | AKV27: Binderi: | AKW27: Kuvert: | AKX27: Binderi: | AKY27: Binderi: | AKZ27: Format: | ALA27: Format: | ALB27: Format: | ALC27: Format: | ALD27: Format: | ALE27: Underlag: | ALF27: Underlag:
AKS28: Ytvikt: | AKT28: Omslag, baksida: | AKU28: Bokbinderi: | AKV28: Kuvert | AKW28: Storlek: | AKX28: Korrespondenskort med kuvert: | AKY28: Stansmallar: | AKZ28: Papper: | ALA28: Papper: | ALB28: Papper inlaga: | ALC28: Papper inlaga: | ALD28: Papper inlaga: | ALE28: Höjd: | ALF28: Papper:
B29: =IF($B$28=$AKS$25,IF($AKS26="","",$AKS26),IF($B$28=$AKT$25,IF($AKT26="","",$AKT26),IF($B$28=$AKU$25,IF($AKU26="","",$AKU26),IF($B$28=$AKV$25,IF($AKV26="","",$AKV26),IF($B$28=$AKW$25,IF($AKW26="","",$AKW26),IF($B$28=$AKX$25,IF($AKX26="","",$AKX26),IF($B$28=$AKY$25,IF($AKY26="","",$AKY26),IF($B$28=$AKZ$25,IF($AKZ26="","",$AKZ26),IF($B$28=$ALA$25,IF($ALA26="","",$ALA26),IF($B$28=$ALB$25,IF($ALB26="","",$ALB26),IF($B$28=$ALC$25,IF($ALC26="","",$ALC26),IF($B$28=$ALD$25,IF($ALD26="","",$ALD26),IF($B$28=$ALE$25,IF($ALE26="","",$ALE26),IF($B$28=$ALF$25,IF($ALF26="","",$ALF26),"")))))))))))))) ->  | C29: =IF($C$28=$AKS$39,IF($AKS40="","",$AKS40),IF($C$28=$AKT$39,IF($AKT40="","",$AKT40),IF($C$28=$AKU$39,IF($AKU40="","",$AKU40),IF($C$28=$AKV$39,IF($AKV40="","",$AKV40),IF($C$28=$AKW$39,IF($AKW40="","",$AKW40),IF($C$28=$AKX$39,IF($AKX40="","",$AKX40),IF($C$28=$AKY$39,IF($AKY40="","",$AKY40),IF($C$28=$AKZ$39,IF($AKZ40="","",$AKZ40),IF($C$28=$ALA$39,IF($ALA40="","",$ALA40),IF($C$28=$ALB$39,IF($ALB40="","",$ALB40),IF($C$28=$ALC$39,IF($ALC40="","",$ALC40),IF($C$28=$ALD$39,IF($ALD40="","",$ALD40),IF($C$28=$ALE$39,IF($ALE40="","",$ALE40),IF($C$28=$ALF$39,IF($ALF40="","",$ALF40),IF($C$28=$ALG$39,IF($ALG40="","",$ALG40),IF($C$28=$ALH$39,IF($ALH40="","",$ALH40),IF($C$28=$ALI$39,IF($ALI40="","",$ALI40),IF($C$28=$ALJ$39,IF($ALJ40="","",$ALJ40),IF($C$28=$ALK$39,IF($ALK40="","",$ALK40),IF($C$28=$ALL$39,IF($ALL40="","",$ALL40),IF($C$28=$ALM$39,IF($ALM40="","",$ALM40),IF($C$28=$ALN$39,IF($ALN40="","",$ALN40),IF($C$28=$ALO$39,IF($ALO40="","",$ALO40),IF($C$28=$ALP$39,IF($ALP40="","",$ALP40),IF($C$28=$ALQ$39,IF($ALQ40="","",$ALQ40),IF($C$28=$ALR$39,IF($ALR40="","",$ALR40),IF($C$28=$ALS$39,IF($ALS40="","",$ALS40),IF($C$28=$ALT$39,IF($ALT40="","",$ALT40),IF($C$28=$ALU$39,IF($ALU40="","",$ALU40),IF($C$28=$ALV$39,IF($ALV40="","",$ALV40),IF($C$28=$ALW$39,IF($ALW40="","",$ALW40),IF($C$28=$ALX$39,IF($ALX40="","",$ALX40),IF($C$28=$ALY$39,IF($ALY40="","",$ALY40),IF($C$28=$ALZ$39,IF($ALZ40="","",$ALZ40),IF($C$28=$AMA$39,IF($AMA40="","",$AMA40),IF($C$28=$AMB$39,IF($AMB40="","",$AMB40),IF($C$28=$AMC$39,IF($AMC40="","",$AMC40),IF($C$28=$AMD$39,IF($AMD40="","",$AMD40),IF($C$28=$AME$39,IF($AME40="","",$AME40),IF($C$28=$AMF$39,IF($AMF40="","",$AMF40),IF($C$28=$AMG$39,IF($AMG40="","",$AMG40),IF($C$28=$AMH$39,IF($AMH40="","",$AMH40),IF($C$28=$AMI$39,IF($AMI40="","",$AMI40),IF($C$28=$AMJ$39,IF($AMJ40="","",$AMJ40),IF($C$28=$AMK$39,IF($AMK40="","",$AMK40),IF($C$28=$AML$39,IF($AML40="","",$AML40),IF($C$28=$AMM$39,IF($AMM40="","",$AMM40),IF($C$28=$AMN$39,IF($AMN40="","",$AMN40),IF($C$28=$AMO$39,IF($AMO40="","",$AMO40),IF($C$28=$AMP$39,IF($AMP40="","",$AMP40),IF($C$28=$AMQ$39,IF($AMQ40="","",$AMQ40),IF($C$28=$AMR$39,IF($AMR40="","",$AMR40),IF($C$28=$AMS$39,IF($AMS40="","",$AMS40),IF($C$28=$AMT$39,IF($AMT40="","",$AMT40),IF($C$28=$AMU$39,IF($AMU40="","",$AMU40),IF($C$28=$AMV$39,IF($AMV40="","",$AMV40),IF($C$28=$AMW$39,IF($AMW40="","",$AMW40),IF($C$28=$AMX$39,IF($AMX40="","",$AMX40),"")))))))))))))))))))))))))))))))))))))))))))))))))))))))))) ->  | AKS29: Tryck: | AKT29: Papper, inlaga: | AKU29: Papper: | AKV29: Storlek | AKW29: Packas i kartong: | AKX29: Format: | AKY29: Papper: | AKZ29: Tryck: | ALA29: Tryck: | ALB29: Papper omslag: | ALC29: Papper omslag: | ALD29: Papper omslag: | ALE29: Material: | ALF29: Tryck:
B30: =IF($B$28=$AKS$25,IF($AKS27="","",$AKS27),IF($B$28=$AKT$25,IF($AKT27="","",$AKT27),IF($B$28=$AKU$25,IF($AKU27="","",$AKU27),IF($B$28=$AKV$25,IF($AKV27="","",$AKV27),IF($B$28=$AKW$25,IF($AKW27="","",$AKW27),IF($B$28=$AKX$25,IF($AKX27="","",$AKX27),IF($B$28=$AKY$25,IF($AKY27="","",$AKY27),IF($B$28=$AKZ$25,IF($AKZ27="","",$AKZ27),IF($B$28=$ALA$25,IF($ALA27="","",$ALA27),IF($B$28=$ALB$25,IF($ALB27="","",$ALB27),IF($B$28=$ALC$25,IF($ALC27="","",$ALC27),IF($B$28=$ALD$25,IF($ALD27="","",$ALD27),IF($B$28=$ALE$25,IF($ALE27="","",$ALE27),IF($B$28=$ALF$25,IF($ALF27="","",$ALF27),"")))))))))))))) ->  | C30: =IF($C$28=$AKS$39,IF($AKS41="","",$AKS41),IF($C$28=$AKT$39,IF($AKT41="","",$AKT41),IF($C$28=$AKU$39,IF($AKU41="","",$AKU41),IF($C$28=$AKV$39,IF($AKV41="","",$AKV41),IF($C$28=$AKW$39,IF($AKW41="","",$AKW41),IF($C$28=$AKX$39,IF($AKX41="","",$AKX41),IF($C$28=$AKY$39,IF($AKY41="","",$AKY41),IF($C$28=$AKZ$39,IF($AKZ41="","",$AKZ41),IF($C$28=$ALA$39,IF($ALA41="","",$ALA41),IF($C$28=$ALB$39,IF($ALB41="","",$ALB41),IF($C$28=$ALC$39,IF($ALC41="","",$ALC41),IF($C$28=$ALD$39,IF($ALD41="","",$ALD41),IF($C$28=$ALE$39,IF($ALE41="","",$ALE41),IF($C$28=$ALF$39,IF($ALF41="","",$ALF41),IF($C$28=$ALG$39,IF($ALG41="","",$ALG41),IF($C$28=$ALH$39,IF($ALH41="","",$ALH41),IF($C$28=$ALI$39,IF($ALI41="","",$ALI41),IF($C$28=$ALJ$39,IF($ALJ41="","",$ALJ41),IF($C$28=$ALK$39,IF($ALK41="","",$ALK41),IF($C$28=$ALL$39,IF($ALL41="","",$ALL41),IF($C$28=$ALM$39,IF($ALM41="","",$ALM41),IF($C$28=$ALN$39,IF($ALN41="","",$ALN41),IF($C$28=$ALO$39,IF($ALO41="","",$ALO41),IF($C$28=$ALP$39,IF($ALP41="","",$ALP41),IF($C$28=$ALQ$39,IF($ALQ41="","",$ALQ41),IF($C$28=$ALR$39,IF($ALR41="","",$ALR41),IF($C$28=$ALS$39,IF($ALS41="","",$ALS41),IF($C$28=$ALT$39,IF($ALT41="","",$ALT41),IF($C$28=$ALU$39,IF($ALU41="","",$ALU41),IF($C$28=$ALV$39,IF($ALV41="","",$ALV41),IF($C$28=$ALW$39,IF($ALW41="","",$ALW41),IF($C$28=$ALX$39,IF($ALX41="","",$ALX41),IF($C$28=$ALY$39,IF($ALY41="","",$ALY41),IF($C$28=$ALZ$39,IF($ALZ41="","",$ALZ41),IF($C$28=$AMA$39,IF($AMA41="","",$AMA41),IF($C$28=$AMB$39,IF($AMB41="","",$AMB41),IF($C$28=$AMC$39,IF($AMC41="","",$AMC41),IF($C$28=$AMD$39,IF($AMD41="","",$AMD41),IF($C$28=$AME$39,IF($AME41="","",$AME41),IF($C$28=$AMF$39,IF($AMF41="","",$AMF41),IF($C$28=$AMG$39,IF($AMG41="","",$AMG41),IF($C$28=$AMH$39,IF($AMH41="","",$AMH41),IF($C$28=$AMI$39,IF($AMI41="","",$AMI41),IF($C$28=$AMJ$39,IF($AMJ41="","",$AMJ41),IF($C$28=$AMK$39,IF($AMK41="","",$AMK41),IF($C$28=$AML$39,IF($AML41="","",$AML41),IF($C$28=$AMM$39,IF($AMM41="","",$AMM41),IF($C$28=$AMN$39,IF($AMN41="","",$AMN41),IF($C$28=$AMO$39,IF($AMO41="","",$AMO41),IF($C$28=$AMP$39,IF($AMP41="","",$AMP41),IF($C$28=$AMQ$39,IF($AMQ41="","",$AMQ41),IF($C$28=$AMR$39,IF($AMR41="","",$AMR41),IF($C$28=$AMS$39,IF($AMS41="","",$AMS41),IF($C$28=$AMT$39,IF($AMT41="","",$AMT41),IF($C$28=$AMU$39,IF($AMU41="","",$AMU41),IF($C$28=$AMV$39,IF($AMV41="","",$AMV41),IF($C$28=$AMW$39,IF($AMW41="","",$AMW41),IF($C$28=$AMX$39,IF($AMX41="","",$AMX41),"")))))))))))))))))))))))))))))))))))))))))))))))))))))))))) ->  | AKT30: Binderi: | AKX30: Efterberhandling: | AKY30: Format: | AKZ30: Sidor: | ALA30: Bokbinderi: | ALB30: Tryck: | ALC30: Tryck inlaga: | ALD30: Tryck inlaga: | ALE30: Tryck:
AKT31: Underlag: | AKX31: Kort och kuvert ska matcha varandra | AKY31: Pappersmappar treklaff utan snodd | ALA31: Inlaga: | ALB31: Bokbinderi: | ALC31: Tryck omslag: | ALD31: Tryck omslag:
ALA32: Omslag: | ALB32: Tryck inlaga: | ALC32: Bokbinderi: | ALD32: Bokbinderi:
ALA33: Tryck inlaga: | ALB33: Tryck omslag:
ALA34: Tryck omslag:
B39: Välj Vara/Tjänst 2 | C39: Välj variant | D39: =IF($B$40=$AKS$20,IF($AKS$21="","",$AKS21),IF($B$40=$AKT$20,IF($AKT$21="","",$AKT21),IF($B$40=$AKU$20,IF($AKU$21="","",$AKU21),IF($B$40=$AKV$20,IF($AKV$21="","",$AKV21),IF($B$40=$AKW$20,IF($AKW$21="","",$AKW21),IF($B$40=$AKX$20,IF($AKX$21="","",$AKX21),IF($B$40=$AKY$20,IF($AKY$21="","",$AKY21),""))))))) ->  | E39: =IF($B$40=$ALA$20,IF($ALA$21="","",$ALA21),IF($B$40=$ALB$20,IF($ALB$21="","",$ALB21),IF($B$40=$ALC$20,IF($ALC$21="","",$ALC21),IF($B$40=$ALD$20,IF($ALD$21="","",$ALD21),"")))) ->  | F39: =IF($B$40=$ALF$20,IF($ALF$21="","",$ALF21),IF($B$40=$ALG$20,IF($ALG$21="","",$ALG21),IF($B$40=$ALH$20,IF($ALH$21="","",$ALH21),IF($B$40=$ALI$20,IF($ALI$21="","",$ALI21),IF($B$40=$ALJ$20,IF($ALJ$21="","",$ALJ21),IF($B$40=$ALK$20,IF($ALK$21="","",$ALK21),IF($B$40=$ALL$20,IF($ALL$21="","",$ALL21),IF($B$40=$ALM$20,IF($ALM$21="","",$ALM21),IF($B$40=$ALN$20,IF($ALN$21="","",$ALN21),IF($B$40=$ALO$20,IF($ALO$21="","",$ALO21),IF($B$40=$ALP$20,IF($ALP$21="","",$ALP21),IF($B$40=$ALQ$20,IF($ALQ$21="","",$ALQ21),IF($B$40=$ALR$20,IF($ALR$21="","",$ALR21),IF($B$40=$ALS$20,IF($ALS$21="","",$ALS21),IF($B$40=$ALT$20,IF($ALT$21="","",$ALT21),""))))))))))))))) ->  | G39: =IF($B$40=$AKS$65,IF($AKS66="","",$AKS66),"") ->  | AKS39: Mattbestruket | AKT39: Obestruket | AKU39: Kollegieblock_Variant_1 | AKV39: Kollegieblock_Variant_2 | AKW39: Kollegieblock_Variant_3 | AKX39: Kollegieblock_Variant_4 | AKY39: Kollegieblock_Variant_5 | AKZ39: Kollegieblock_Variant_6 | ALA39: Brevpapper_Variant_1 | ALB39: Brevpapper_Variant_2 | ALC39: Brevpapper_Variant_3 | ALD39: Brevpapper_Variant_4 | ALE39: Brevpapper_Variant_5 | ALF39: Brevpapper_Variant_6 | ALG39: Brevpapper_Variant_7 | ALH39: Brevpapper_Variant_8 | ALI39: Brevpapper_Variant_9 | ALJ39: Kuvert_Variant_1 | ALK39: Kuvert_Variant_2 | ALL39: Kuvert_Variant_3 | ALM39: Kuvert_Variant_4 | ALN39: Kuvert_Variant_5 | ALO39: Kuvert_Variant_6 | ALP39: Kuvert_Variant_7 | ALQ39: Säkerhetskuvert_Variant_1 | ALR39: Säkerhetskuvert_Variant_2 | ALS39: Korrespondenskort_Variant_1 | ALT39: Korrespondenskort_Variant_2 | ALU39: Korrespondenskort_Variant_3 | ALV39: Korrespondenskort_Variant_4 | ALW39: Korrespondenskort_Variant_5 | ALX39: Korrespondenskort_Variant_6 | ALY39: Pappersmappar_Variant_1 | ALZ39: Pappersmappar_Variant_2 | AMA39: Pappersmappar_Variant_3 | AMB39: Pappersmappar_Variant_4 | AMC39: Folders_Variant_1 | AMD39: Folders_Variant_2 | AME39: Folders_Variant_3 | AMF39: Broschyrer_Variant_1 | AMG39: Broschyrer_Variant_2 | AMH39: Broschyrer_Variant_3 | AMI39: Statligt_tryck_1 | AMJ39: Statligt_tryck_2 | AMK39: Rapport_1 | AML39: Rapport_2 | AMM39: Katalog_1 | AMN39: Katalog_2 | AMO39: Roll_up_1 | AMP39: Roll_up_2 | AMQ39: Roll_up_3 | AMR39: Roll_up_4 | AMS39: Roll_up_5 | AMT39: Roll_up_6 | AMU39: Affischer_1 | AMV39: Affischer_2 | AMW39: Affischer_3 | AMX39: Affischer_4
AKS40: A: Öppna filer. B: PDF. C: PDFx enligt gällande ISO-standard. | AKT40: A: Öppna filer. B: PDF. C: PDFx enligt gällande ISO-standard. | AKU40: A4 Inlaga linjerat ´(1+1) | AKV40: A4 Inlaga rutat ´(1+1) | AKW40: A4 Inlaga blankt (ska ej tryckas) | AKX40: A5 Inlaga linjerat ´(1+1) | AKY40: A5 Inlaga rutat ´(1+1) | AKZ40: A5 Inlaga blankt (ska ej tryckas) | ALA40: A4 | ALB40: A4 | ALC40: A4 | ALD40: A4 | ALE40: A4 | ALF40: A4 | ALG40: A4 | ALH40: A4 | ALI40: A4 | ALJ40: A: Öppna filer. B: PDF. C: PDFx enligt gällande ISO-standard. (Avser inte variabeldata) | ALK40: A: Öppna filer. B: PDF. C: PDFx enligt gällande ISO-standard. (Avser inte variabeldata) | ALL40: A: Öppna filer. B: PDF. C: PDFx enligt gällande ISO-standard. (Avser inte variabeldata) | ALM40: A: Öppna filer. B: PDF. C: PDFx enligt gällande ISO-standard. (Avser inte variabeldata) | ALN40: A: Öppna filer. B: PDF. C: PDFx enligt gällande ISO-standard. (Avser inte variabeldata) | ALO40: A: Öppna filer. B: PDF. C: PDFx enligt gällande ISO-standard. (Avser inte variabeldata) | ALP40: A: Öppna filer. B: PDF. C: PDFx enligt gällande ISO-standard. (Avser inte variabeldata) | ALQ40: A: Öppna filer. B: PDF. C: PDFx enligt gällande ISO-standard. (Avser inte variabeldata) | ALR40: A: Öppna filer. B: PDF. C: PDFx enligt gällande ISO-standard. (Avser inte variabeldata) | ALS40: A: Öppna filer. B: PDF. C: PDFx enligt gällande ISO-standard. (Avser inte variabeldata) | ALT40: A: Öppna filer. B: PDF. C: PDFx enligt gällande ISO-standard. (Avser inte variabeldata) | ALU40: A: Öppna filer. B: PDF. C: PDFx enligt gällande ISO-standard. (Avser inte variabeldata) | ALV40: A: Öppna filer. B: PDF. C: PDFx enligt gällande ISO-standard. (Avser inte variabeldata) | ALW40: A: Öppna filer. B: PDF. C: PDFx enligt gällande ISO-standard. (Avser inte variabeldata) | ALX40: A: Öppna filer. B: PDF. C: PDFx enligt gällande ISO-standard. (Avser inte variabeldata) | ALY40: A: Öppna filer. B: PDF. C: PDFx enligt gällande ISO-standard. (Avser inte variabeldata) | ALZ40: A: Öppna filer. B: PDF. C: PDFx enligt gällande ISO-standard. (Avser inte variabeldata) | AMA40: A: Öppna filer. B: PDF. C: PDFx enligt gällande ISO-standard. (Avser inte variabeldata) | AMB40: A: Öppna filer. B: PDF. C: PDFx enligt gällande ISO-standard. (Avser inte variabeldata) | AMC40: C: PDFx enligt gällande ISO-standard. (Avser inte variabeldata) | AMD40: A: Öppna filer. C: PDFx enligt gällande ISO-standard.(Avser inte variabeldata) | AME40: A: Öppna filer. B: PDF. C: PDFx enligt gällande ISO-standard.(Avser inte variabeldata) | AMF40: A: Öppna filer. C: PDFx enligt gällande ISO-standard. (Avser inte variabeldata) | AMG40: A: Öppna filer. B: PDF. C: PDFx enligt gällande ISO-standard. (Avser inte variabeldata) | AMH40: A: Öppna filer. B: PDF. C: PDFx enligt gällande ISO-standard.(Avser inte variabeldata) | AMI40: A: Öppna filer. B: PDF. C: PDFx enligt gällande ISO-standard. (Avser inte variabeldata) | AMJ40: A: Öppna filer. B: PDF. C: PDFx enligt gällande ISO-standard. (Avser inte variabeldata) | AMK40: A: Öppna filer. C: PDFx enligt gällande ISO-standard. (Avser inte variabeldata) | AML40: A: Öppna filer. B: PDF. C: PDFx enligt gällande ISO-standard. (Avser inte variabeldata) | AMM40: A: Öppna filer. B: PDF. C: PDFx enligt gällande ISO-standard. (Avser inte variabeldata) | AMN40: A: Öppna filer. B: PDF. C: PDFx enligt gällande ISO-standard. (Avser inte variabeldata) | AMO40: Roll up inklusive kassett (85 cm) | AMP40: Roll up inklusive kassett (100 cm) | AMQ40: Roll up inklusive kassett (120 cm) | AMR40: Roll up endast bild inklusive montering i befintlig kassett (85 cm) | AMS40: Roll up endast bild inklusive montering i befintlig kassett (100 cm) | AMT40: Roll up endast bild inklusive montering i befintlig kassett (120 cm) | AMU40: 297_x_420_mm | AMV40: 500_x_700_mm | AMW40: 700_x_1000_mm | AMX40: 1000_x_1414_mm
B41: =IF($B$40=$AKS$25,IF($AKS26="","",$AKS26),IF($B$40=$AKT$25,IF($AKT26="","",$AKT26),IF($B$40=$AKU$25,IF($AKU26="","",$AKU26),IF($B$40=$AKV$25,IF($AKV26="","",$AKV26),IF($B$40=$AKW$25,IF($AKW26="","",$AKW26),IF($B$40=$AKX$25,IF($AKX26="","",$AKX26),IF($B$40=$AKY$25,IF($AKY26="","",$AKY26),IF($B$40=$AKZ$25,IF($AKZ26="","",$AKZ26),IF($B$40=$ALA$25,IF($ALA26="","",$ALA26),IF($B$40=$ALB$25,IF($ALB26="","",$ALB26),IF($B$40=$ALC$25,IF($ALC26="","",$ALC26),IF($B$40=$ALD$25,IF($ALD26="","",$ALD26),IF($B$40=$ALE$25,IF($ALE26="","",$ALE26),IF($B$40=$ALF$25,IF($ALF26="","",$ALF26),"")))))))))))))) ->  | C41: =IF($C$40=$AKS$39,IF($AKS40="","",$AKS40),IF($C$40=$AKT$39,IF($AKT40="","",$AKT40),IF($C$40=$AKU$39,IF($AKU40="","",$AKU40),IF($C$40=$AKV$39,IF($AKV40="","",$AKV40),IF($C$40=$AKW$39,IF($AKW40="","",$AKW40),IF($C$40=$AKX$39,IF($AKX40="","",$AKX40),IF($C$40=$AKY$39,IF($AKY40="","",$AKY40),IF($C$40=$AKZ$39,IF($AKZ40="","",$AKZ40),IF($C$40=$ALA$39,IF($ALA40="","",$ALA40),IF($C$40=$ALB$39,IF($ALB40="","",$ALB40),IF($C$40=$ALC$39,IF($ALC40="","",$ALC40),IF($C$40=$ALD$39,IF($ALD40="","",$ALD40),IF($C$40=$ALE$39,IF($ALE40="","",$ALE40),IF($C$40=$ALF$39,IF($ALF40="","",$ALF40),IF($C$40=$ALG$39,IF($ALG40="","",$ALG40),IF($C$40=$ALH$39,IF($ALH40="","",$ALH40),IF($C$40=$ALI$39,IF($ALI40="","",$ALI40),IF($C$40=$ALJ$39,IF($ALJ40="","",$ALJ40),IF($C$40=$ALK$39,IF($ALK40="","",$ALK40),IF($C$40=$ALL$39,IF($ALL40="","",$ALL40),IF($C$40=$ALM$39,IF($ALM40="","",$ALM40),IF($C$40=$ALN$39,IF($ALN40="","",$ALN40),IF($C$40=$ALO$39,IF($ALO40="","",$ALO40),IF($C$40=$ALP$39,IF($ALP40="","",$ALP40),IF($C$40=$ALQ$39,IF($ALQ40="","",$ALQ40),IF($C$40=$ALR$39,IF($ALR40="","",$ALR40),IF($C$40=$ALS$39,IF($ALS40="","",$ALS40),IF($C$40=$ALT$39,IF($ALT40="","",$ALT40),IF($C$40=$ALU$39,IF($ALU40="","",$ALU40),IF($C$40=$ALV$39,IF($ALV40="","",$ALV40),IF($C$40=$ALW$39,IF($ALW40="","",$ALW40),IF($C$40=$ALX$39,IF($ALX40="","",$ALX40),IF($C$40=$ALY$39,IF($ALY40="","",$ALY40),IF($C$40=$ALZ$39,IF($ALZ40="","",$ALZ40),IF($C$40=$AMA$39,IF($AMA40="","",$AMA40),IF($C$40=$AMB$39,IF($AMB40="","",$AMB40),IF($C$40=$AMC$39,IF($AMC40="","",$AMC40),IF($C$40=$AMD$39,IF($AMD40="","",$AMD40),IF($C$40=$AME$39,IF($AME40="","",$AME40),IF($C$40=$AMF$39,IF($AMF40="","",$AMF40),IF($C$40=$AMG$39,IF($AMG40="","",$AMG40),IF($C$40=$AMH$39,IF($AMH40="","",$AMH40),IF($C$40=$AMI$39,IF($AMI40="","",$AMI40),IF($C$40=$AMJ$39,IF($AMJ40="","",$AMJ40),IF($C$40=$AMK$39,IF($AMK40="","",$AMK40),IF($C$40=$AML$39,IF($AML40="","",$AML40),IF($C$40=$AMM$39,IF($AMM40="","",$AMM40),IF($C$40=$AMN$39,IF($AMN40="","",$AMN40),IF($C$40=$AMO$39,IF($AMO40="","",$AMO40),IF($C$40=$AMP$39,IF($AMP40="","",$AMP40),IF($C$40=$AMQ$39,IF($AMQ40="","",$AMQ40),IF($C$40=$AMR$39,IF($AMR40="","",$AMR40),IF($C$40=$AMS$39,IF($AMS40="","",$AMS40),IF($C$40=$AMT$39,IF($AMT40="","",$AMT40),IF($C$40=$AMU$39,IF($AMU40="","",$AMU40),IF($C$40=$AMV$39,IF($AMV40="","",$AMV40),IF($C$40=$AMW$39,IF($AMW40="","",$AMW40),IF($C$40=$AMX$39,IF($AMX40="","",$AMX40),"")))))))))))))))))))))))))))))))))))))))))))))))))))))))))) ->  | AKS41: 90 x 55 mm | AKT41: 90 x 55 mm | AKU41: Oliksidig kartong, högbestruket semimatt framsida och mattbestruken baksida. Ytvikt 250 g. (4+0) | AKV41: Oliksidig kartong, högbestruket semimatt framsida och mattbestruken baksida. Ytvikt 250 g. (4+0) | AKW41: Oliksidig kartong, högbestruket semimatt framsida och mattbestruken baksida. Ytvikt 250 g. (4+0) | AKX41: Oliksidig kartong, högbestruket semimatt framsida och mattbestruken baksida. Ytvikt 250 g. (4+0) | AKY41: Oliksidig kartong, högbestruket semimatt framsida och mattbestruken baksida. Ytvikt 250 g. (4+0) | AKZ41: Oliksidig kartong, högbestruket semimatt framsida och mattbestruken baksida. Ytvikt 250 g. (4+0) | ALA41: A: Öppna filer. B: PDF. C: PDFx enligt gällande ISO-standard. (Avser inte variabeldata) | ALB41: A: Öppna filer. B: PDF. C: PDFx enligt gällande ISO-standard. (Avser inte variabeldata) | ALC41: A: Öppna filer. B: PDF. C: PDFx enligt gällande ISO-standard. (Avser inte variabeldata) | ALD41: A: Öppna filer. B: PDF. C: PDFx enligt gällande ISO-standard. (Avser inte variabeldata) | ALE41: A: Öppna filer. B: PDF. C: PDFx enligt gällande ISO-standard. (Avser inte variabeldata) | ALF41: A: Öppna filer. B: PDF. C: PDFx enligt gällande ISO-standard. (Avser inte variabeldata) | ALG41: A: Öppna filer. B: PDF. C: PDFx enligt gällande ISO-standard. (Avser inte variabeldata) | ALH41: A: Öppna filer. B: PDF. C: PDFx enligt gällande ISO-standard. (Avser inte variabeldata) | ALI41: A: Öppna filer. B: PDF. C: PDFx enligt gällande ISO-standard. (Avser inte variabeldata) | ALJ41: Kuvertet ska kunna tryckas | ALK41: Kuvertet ska kunna tryckas | ALL41: Kuvertet ska kunna tryckas | ALM41: Kuvertet ska kunna tryckas | ALN41: Kuvertet ska kunna tryckas | ALO41: Kuvertet ska kunna tryckas | ALP41: Kuvertet ska kunna tryckas | ALQ41: Säkerhetskuvert (ogenomsynligt, för värdepost och konfidentiellt material etc) minst 130 g. Referensartikel för säkerhetskuvert variant 1 är C4 Securitex Pocket 130g PS NK eller likvärdig. | ALR41: Säkerhetskuvert (ogenomsynligt, för värdepost och konfidentiellt material etc) minst 130 g. Referensartikel för säkerhetskuvert variant 3 är C5 Securitex Pocket 130g PS NK eller likvärdig. | ALS41: Kortet ska kunna användas vidare för utskrift på laserskrivare och kopiatorer. | ALT41: Kortet ska kunna användas vidare för utskrift på laserskrivare och kopiatorer. | ALU41: Kortet ska kunna användas vidare för utskrift på laserskrivare och kopiatorer. | ALV41: Kortet ska kunna användas vidare för utskrift på laserskrivare och kopiatorer. | ALW41: Kortet ska kunna användas vidare för utskrift på laserskrivare och kopiatorer. | ALX41: Kortet ska kunna användas vidare för utskrift på laserskrivare och kopiatorer. | ALY41: Stansas och bigas enligt tryckeriets stansmall. | ALZ41: Stansas och bigas enligt tryckeriets stansmall. | AMA41: Stansas och bigas enligt tryckeriets stansmall. | AMB41: Stansas och bigas enligt tryckeriets stansmall. | AMC41: A4 | AMD41: A5 | AME41: 105 x 297 mm | AMF41: A4 | AMG41: A4 | AMH41: A5 | AMI41: 165 x 242 mm | AMJ41: 165 x 242 mm | AMK41: A4 | AML41: 165 x 242 mm | AMM41: A4 | AMN41: 225 x 270 mm | AMO41: A: Öppna filer. B: PDF. C: PDFx enligt gällande ISO-standard. (Avser inte variabeldata) | AMP41: A: Öppna filer. B: PDF. C: PDFx enligt gällande ISO-standard. (Avser inte variabeldata) | AMQ41: A: Öppna filer. B: PDF. C: PDFx enligt gällande ISO-standard. (Avser inte variabeldata) | AMR41: A: Öppna filer. B: PDF. C: PDFx enligt gällande ISO-standard. (Avser inte variabeldata) | AMS41: A: Öppna filer. B: PDF. C: PDFx enligt gällande ISO-standard. (Avser inte variabeldata) | AMT41: A: Öppna filer. B: PDF. C: PDFx enligt gällande ISO-standard. (Avser inte variabeldata) | AMU41: A: Öppna filer. B: PDF. C: PDFx enligt gällande ISO-standard. (Avser inte variabeldata) | AMV41: A: Öppna filer. B: PDF. C: PDFx enligt gällande ISO-standard. (Avser inte variabeldata) | AMW41: A: Öppna filer. B: PDF. C: PDFx enligt gällande ISO-standard. (Avser inte variabeldata) | AMX41: A: Öppna filer. B: PDF. C: PDFx enligt gällande ISO-standard. (Avser inte variabeldata)
B42: =IF($B$40=$AKS$25,IF($AKS27="","",$AKS27),IF($B$40=$AKT$25,IF($AKT27="","",$AKT27),IF($B$40=$AKU$25,IF($AKU27="","",$AKU27),IF($B$40=$AKV$25,IF($AKV27="","",$AKV27),IF($B$40=$AKW$25,IF($AKW27="","",$AKW27),IF($B$40=$AKX$25,IF($AKX27="","",$AKX27),IF($B$40=$AKY$25,IF($AKY27="","",$AKY27),IF($B$40=$AKZ$25,IF($AKZ27="","",$AKZ27),IF($B$40=$ALA$25,IF($ALA27="","",$ALA27),IF($B$40=$ALB$25,IF($ALB27="","",$ALB27),IF($B$40=$ALC$25,IF($ALC27="","",$ALC27),IF($B$40=$ALD$25,IF($ALD27="","",$ALD27),IF($B$40=$ALE$25,IF($ALE27="","",$ALE27),IF($B$40=$ALF$25,IF($ALF27="","",$ALF27),"")))))))))))))) ->  | C42: =IF($C$40=$AKS$39,IF($AKS41="","",$AKS41),IF($C$40=$AKT$39,IF($AKT41="","",$AKT41),IF($C$40=$AKU$39,IF($AKU41="","",$AKU41),IF($C$40=$AKV$39,IF($AKV41="","",$AKV41),IF($C$40=$AKW$39,IF($AKW41="","",$AKW41),IF($C$40=$AKX$39,IF($AKX41="","",$AKX41),IF($C$40=$AKY$39,IF($AKY41="","",$AKY41),IF($C$40=$AKZ$39,IF($AKZ41="","",$AKZ41),IF($C$40=$ALA$39,IF($ALA41="","",$ALA41),IF($C$40=$ALB$39,IF($ALB41="","",$ALB41),IF($C$40=$ALC$39,IF($ALC41="","",$ALC41),IF($C$40=$ALD$39,IF($ALD41="","",$ALD41),IF($C$40=$ALE$39,IF($ALE41="","",$ALE41),IF($C$40=$ALF$39,IF($ALF41="","",$ALF41),IF($C$40=$ALG$39,IF($ALG41="","",$ALG41),IF($C$40=$ALH$39,IF($ALH41="","",$ALH41),IF($C$40=$ALI$39,IF($ALI41="","",$ALI41),IF($C$40=$ALJ$39,IF($ALJ41="","",$ALJ41),IF($C$40=$ALK$39,IF($ALK41="","",$ALK41),IF($C$40=$ALL$39,IF($ALL41="","",$ALL41),IF($C$40=$ALM$39,IF($ALM41="","",$ALM41),IF($C$40=$ALN$39,IF($ALN41="","",$ALN41),IF($C$40=$ALO$39,IF($ALO41="","",$ALO41),IF($C$40=$ALP$39,IF($ALP41="","",$ALP41),IF($C$40=$ALQ$39,IF($ALQ41="","",$ALQ41),IF($C$40=$ALR$39,IF($ALR41="","",$ALR41),IF($C$40=$ALS$39,IF($ALS41="","",$ALS41),IF($C$40=$ALT$39,IF($ALT41="","",$ALT41),IF($C$40=$ALU$39,IF($ALU41="","",$ALU41),IF($C$40=$ALV$39,IF($ALV41="","",$ALV41),IF($C$40=$ALW$39,IF($ALW41="","",$ALW41),IF($C$40=$ALX$39,IF($ALX41="","",$ALX41),IF($C$40=$ALY$39,IF($ALY41="","",$ALY41),IF($C$40=$ALZ$39,IF($ALZ41="","",$ALZ41),IF($C$40=$AMA$39,IF($AMA41="","",$AMA41),IF($C$40=$AMB$39,IF($AMB41="","",$AMB41),IF($C$40=$AMC$39,IF($AMC41="","",$AMC41),IF($C$40=$AMD$39,IF($AMD41="","",$AMD41),IF($C$40=$AME$39,IF($AME41="","",$AME41),IF($C$40=$AMF$39,IF($AMF41="","",$AMF41),IF($C$40=$AMG$39,IF($AMG41="","",$AMG41),IF($C$40=$AMH$39,IF($AMH41="","",$AMH41),IF($C$40=$AMI$39,IF($AMI41="","",$AMI41),IF($C$40=$AMJ$39,IF($AMJ41="","",$AMJ41),IF($C$40=$AMK$39,IF($AMK41="","",$AMK41),IF($C$40=$AML$39,IF($AML41="","",$AML41),IF($C$40=$AMM$39,IF($AMM41="","",$AMM41),IF($C$40=$AMN$39,IF($AMN41="","",$AMN41),IF($C$40=$AMO$39,IF($AMO41="","",$AMO41),IF($C$40=$AMP$39,IF($AMP41="","",$AMP41),IF($C$40=$AMQ$39,IF($AMQ41="","",$AMQ41),IF($C$40=$AMR$39,IF($AMR41="","",$AMR41),IF($C$40=$AMS$39,IF($AMS41="","",$AMS41),IF($C$40=$AMT$39,IF($AMT41="","",$AMT41),IF($C$40=$AMU$39,IF($AMU41="","",$AMU41),IF($C$40=$AMV$39,IF($AMV41="","",$AMV41),IF($C$40=$AMW$39,IF($AMW41="","",$AMW41),IF($C$40=$AMX$39,IF($AMX41="","",$AMX41),"")))))))))))))))))))))))))))))))))))))))))))))))))))))))))) ->  | AKS42: 300 g | AKT42: 300 g | AKU42: Grå board, returfiber, Ytvikt 300g (ska ej tryckas) | AKV42: Grå board, returfiber, Ytvikt 300g (ska ej tryckas) | AKW42: Grå board, returfiber, Ytvikt 300g (ska ej tryckas) | AKX42: Grå board, returfiber, Ytvikt 300g (ska ej tryckas) | AKY42: Grå board, returfiber, Ytvikt 300g (ska ej tryckas) | AKZ42: Grå board, returfiber, Ytvikt 300g (ska ej tryckas) | ALA42: Tryckta brevpapper (med företagslogotyp etc,) ska kunna användas vidare för utskrift på laserskrivare och kopiatorer. | ALB42: Tryckta brevpapper (med företagslogotyp etc,) ska kunna användas vidare för utskrift på laserskrivare och kopiatorer. | ALC42: Tryckta brevpapper (med företagslogotyp etc,) ska kunna användas vidare för utskrift på laserskrivare och kopiatorer. | ALD42: Tryckta brevpapper (med företagslogotyp etc,) ska kunna användas vidare för utskrift på laserskrivare och kopiatorer. | ALE42: Tryckta brevpapper (med företagslogotyp etc,) ska kunna användas vidare för utskrift på laserskrivare och kopiatorer. | ALF42: Tryckta brevpapper (med företagslogotyp etc,) ska kunna användas vidare för utskrift på laserskrivare och kopiatorer. | ALG42: Tryckta brevpapper (med företagslogotyp etc,) ska kunna användas vidare för utskrift på laserskrivare och kopiatorer. | ALH42: Tryckta brevpapper (med företagslogotyp etc,) ska kunna användas vidare för utskrift på laserskrivare och kopiatorer. | ALI42: Tryckta brevpapper (med företagslogotyp etc,) ska kunna användas vidare för utskrift på laserskrivare och kopiatorer. | ALJ42: Kuvert vitt utan fönster, självhäftande klaff med täckremsa. Klaffen ska vara tryckbar. 90g | ALK42: Kuvert vitt utan fönster, självhäftande klaff med täckremsa. Klaffen ska vara tryckbar. 100g | ALL42: Kuvert vitt fönster stående, självhäftande klaff med täckremsa. Klaffen ska vara tryckbar. 100g | ALM42: Kuvert vitt utan fönster, självhäftande klaff med täckremsa. Klaffen ska vara tryckbar. 90g | ALN42: Kuvert vitt utan fönster, självhäftande klaff med täckremsa. Klaffen ska vara tryckbar. 115g | ALO42: Kuvert vitt fönster, självhäftande klaff med täckremsa. Klaffen ska vara tryckbar. 90g | ALP42: Kuvert vitt fönster, självhäftande klaff med täckremsa. Klaffen ska vara tryckbar. 115g | ALQ42: C4 eller något större | ALR42: C5 eller något större | ALS42: Slät och vit pappersyta,obestruken känsla. 300 g. | ALT42: Vit pappersyta med struktur, obestruken känsla. 300g. | ALU42: Antikrandad, vit pappersyta med struktur, obestruken känsla. 300 g. | ALV42: Slät och vit pappersyta,obestruken känsla. 300 g. | ALW42: Vit pappersyta med struktur, obestruken känsla. 300g. | ALX42: Antikrandad, vit pappersyta med struktur, obestruken känsla. 300 g. | ALY42: Ska kunna tillhandahållas av tryckeriet för egen tillverkning i Indesign för framställning av pdfx-fil | ALZ42: Ska kunna tillhandahållas av tryckeriet för egen tillverkning i Indesign för framställning av pdfx-fil | AMA42: Ska kunna tillhandahållas av tryckeriet för egen tillverkning i Indesign för framställning av pdfx-fil | AMB42: Ska kunna tillhandahållas av tryckeriet för egen tillverkning i Indesign för framställning av pdfx-fil | AMC42: Mattbestruket 130 g | AMD42: Mattbestruket 130 g | AME42: Mattbestruket 130 g | AMF42: 130g obestruket | AMI42: 70g offsettpapper | AMJ42: 70g offsettpapper | AMK42: Obestruket 80 g | AML42: Mattbestruket 100 g | AMM42: Mattbestruket 70 g | AMN42: Mattbestruket 70 g | AMO42: Minst 200 cm | AMP42: Minst 200 cm | AMQ42: Minst 200 cm | AMR42: Minst 200 cm | AMS42: Minst 200 cm | AMT42: Minst 200 cm | AMU42: Bestruket gloss 170 g | AMV42: Bestruket gloss 170 g | AMW42: Bestruket gloss 170 g | AMX42: Bestruket gloss 170 g
AKS43: Enligt valde varianten | AKT43: Enligt valde varianten | AKU43: 80 gr, obestruket. | AKV43: 80 gr, obestruket. | AKW43: 80 gr, obestruket. | AKX43: 80 gr, obestruket. | AKY43: 80 gr, obestruket. | AKZ43: 80 gr, obestruket. | ALA43: Arkivbeständigt (för kontrakt, betyg och finare brev etc), 100 g | ALB43: Åldersbeständigt, gloss, högbestruket, 120 g | ALC43: Åldersbeständigt, obestruket, 90 g | ALD43: Arkivbeständigt (för kontrakt, betyg och finare brev etc), 100 g | ALE43: Åldersbeständigt, gloss, högbestruket, 120 g | ALF43: Åldersbeständigt, obestruket, 90 g | ALG43: Arkivbeständigt (för kontrakt, betyg och finare brev etc), 100 g | ALH43: Åldersbeständigt, gloss, högbestruket, 120 g | ALI43: Åldersbeständigt, obestruket, 90 g | ALJ43: C4 | ALK43: C4 | ALL43: C4 | ALM43: C5 | ALN43: C5 | ALO43: C5 | ALP43: C5 | ALS43: A6 och C6 | ALT43: A6 och C6 | ALU43: A6 och C6 | ALV43: A6 och C6 | ALW43: A6 och C6 | ALX43: A6 och C6 | ALY43: Oliksidigt papper, där mappens insida är otryckt obestruken och utsidan blank (trycksidan). 300 g | ALZ43: Liksidigt papper, silk 300 g | AMA43: Liksidigt papper, matt 300 g | AMB43: Liksidigt papper, obestruket vitt 300 g | AMC43: 4+4 färger | AMD43: 4+4 färger | AME43: 4+4 färger | AMF43: 4+4 färger | AMI43: Omslag samma som inlagan | AMJ43: Omslag: 225 g colorit eller motsvarande 1+1 Svart | AMK43: Bestruket 250 g | AML43: Mattbestruket 150 g | AMM43: Mattbestruket 130 g | AMN43: Mattbestruket 100 g | AMO43: Kassett i aluminium och tyg i polyester eller likvärdigt | AMP43: Kassett i aluminium och tyg i polyester eller likvärdigt | AMQ43: Kassett i aluminium och tyg i polyester eller likvärdigt | AMR43: Kassett i aluminium och tyg i polyester eller likvärdigt | AMS43: Kassett i aluminium och tyg i polyester eller likvärdigt | AMT43: Kassett i aluminium och tyg i polyester eller likvärdigt | AMU43: 4+0 | AMV43: 4+0 | AMW43: 4+0 | AMX43: 4+0
AKU44: Spiralbunden och perforerad t.v. och triohålad | AKV44: Spiralbunden och perforerad t.v. och triohålad | AKW44: Spiralbunden och perforerad t.v. och triohålad | AKX44: Spiralbunden och perforerad t.v. och triohålad | AKY44: Spiralbunden och perforerad t.v. och triohålad | AKZ44: Spiralbunden och perforerad t.v. och triohålad | ALS44: Ingen efterbehandling | ALT44: Ingen efterbehandling | ALU44: Ingen efterbehandling | ALV44: Upphöjd yta under logotyp utfört i efterbehandlingen | ALW44: Upphöjd yta under logotyp utfört i efterbehandlingen | ALX44: Upphöjd yta under logotyp utfört i efterbehandlingen | ALY44: För A4 dokument | ALZ44: För A4 dokument | AMA44: För A4 dokument | AMB44: För A4 dokument | AMC44: 4 stycken | AMD44: 4 stycken | AME44: 4 stycken | AMF44: Klammerhäftning | AMG44: Klammerhäftning | AMH44: Klammerhäftning | AMI44: 1+1 Svart | AMK44: 1+1 | AML44: 1+1 | AMM44: 2+2 färger | AMN44: 2+2 | AMO44: 4+0 | AMP44: 4+0 | AMQ44: 4+0 | AMR44: 4+0 | AMS44: 4+0 | AMT44: 4+0
AKU45: A: Öppna filer. B: PDF. C: PDFx enligt gällande ISO-standard. (Avser inte variabeldata) | AKV45: A: Öppna filer. B: PDF. C: PDFx enligt gällande ISO-standard. (Avser inte variabeldata) | AKW45: A: Öppna filer. B: PDF. C: PDFx enligt gällande ISO-standard. (Avser inte variabeldata) | AKX45: A: Öppna filer. B: PDF. C: PDFx enligt gällande ISO-standard. (Avser inte variabeldata) | AKY45: A: Öppna filer. B: PDF. C: PDFx enligt gällande ISO-standard. (Avser inte variabeldata) | AKZ45: A: Öppna filer. B: PDF. C: PDFx enligt gällande ISO-standard. (Avser inte variabeldata) | ALY45: Klaffarna ska vara tillräckligt breda för att pappersmapparnas funktion ska vara förenlig med vad som är fackmannamässigt i branschen och för att rymma minst 100 stycken A4-ark (80g/m2) på ett funktionsenligt sätt. Två av klaffarna sitter på mappens baksida | ALZ45: Klaffarna ska vara tillräckligt breda för att pappersmapparnas funktion ska vara förenlig med vad som är fackmannamässigt i branschen och för att rymma minst 100 stycken A4-ark (80g/m2) på ett funktionsenligt sätt. Två av klaffarna sitter på mappens baksida | AMA45: Klaffarna ska vara tillräckligt breda för att pappersmapparnas funktion ska vara förenlig med vad som är fackmannamässigt i branschen och för att rymma minst 100 stycken A4-ark (80g/m2) på ett funktionsenligt sätt. Två av klaffarna sitter på mappens baksida | AMB45: Klaffarna ska vara tillräckligt breda för att pappersmapparnas funktion ska vara förenlig med vad som är fackmannamässigt i branschen och för att rymma minst 100 stycken A4-ark (80g/m2) på ett funktionsenligt sätt. Två av klaffarna sitter på mappens baksida | AMG45: Mattbestruket 130 g | AMH45: Mattbestruket 80g | AMI45: Triohålning, klamring. Limbindning vid omfång (inlaga och omslag) 113 sidor eller fler. | AMJ45: Triohålning, klamring. Limbindning vid omfång (inlaga och omslag) 113 sidor eller fler. | AMK45: 4+0 | AML45: 4+0 | AMM45: 4+4 | AMN45: 4+2
AMG46: Mattbestruket 250 g | AMH46: Bestruket 250g | AMJ46: 1+1 Svart | AMK46: Limbindning | AML46: Limbindning | AMM46: Klammerhäftning, men vid omfång (inlaga och omslag) 113 sidor eller fler limbindning. | AMN46: Klammerhäftning, men vid omfång (inlaga och omslag) 113 sidor eller fler limbindning.
AMG47: 4+4 färger | AMH47: 1+1 färger | AMJ47: 1+1 Svart
AMG48: 4+4 färger | AMH48: 4+4 färger
B51: Välj Vara/Tjänst 3 | C51: Välj variant | D51: =IF($B$52=$AKS$20,IF($AKS$21="","",$AKS21),IF($B$52=$AKT$20,IF($AKT$21="","",$AKT21),IF($B$52=$AKU$20,IF($AKU$21="","",$AKU21),IF($B$52=$AKV$20,IF($AKV$21="","",$AKV21),IF($B$52=$AKW$20,IF($AKW$21="","",$AKW21),IF($B$52=$AKX$20,IF($AKX$21="","",$AKX21),IF($B$52=$AKY$20,IF($AKY$21="","",$AKY21),""))))))) ->  | E51: =IF($B$52=$ALA$20,IF($ALA$21="","",$ALA21),IF($B$52=$ALB$20,IF($ALB$21="","",$ALB21),IF($B$52=$ALC$20,IF($ALC$21="","",$ALC21),IF($B$52=$ALD$20,IF($ALD$21="","",$ALD21),"")))) ->  | F51: =IF($B$52=$ALF$20,IF($ALF$21="","",$ALF21),IF($B$52=$ALG$20,IF($ALG$21="","",$ALG21),IF($B$52=$ALH$20,IF($ALH$21="","",$ALH21),IF($B$52=$ALI$20,IF($ALI$21="","",$ALI21),IF($B$52=$ALJ$20,IF($ALJ$21="","",$ALJ21),IF($B$52=$ALK$20,IF($ALK$21="","",$ALK21),IF($B$52=$ALL$20,IF($ALL$21="","",$ALL21),IF($B$52=$ALM$20,IF($ALM$21="","",$ALM21),IF($B$52=$ALN$20,IF($ALN$21="","",$ALN21),IF($B$52=$ALO$20,IF($ALO$21="","",$ALO21),IF($B$52=$ALP$20,IF($ALP$21="","",$ALP21),IF($B$52=$ALQ$20,IF($ALQ$21="","",$ALQ21),IF($B$52=$ALR$20,IF($ALR$21="","",$ALR21),IF($B$52=$ALS$20,IF($ALS$21="","",$ALS21),IF($B$52=$ALT$20,IF($ALT$21="","",$ALT21),""))))))))))))))) ->  | G51: =IF($B$52=$AKS$65,IF($AKS66="","",$AKS66),"") -> 
B53: =IF($B$52=$AKS$25,IF($AKS26="","",$AKS26),IF($B$52=$AKT$25,IF($AKT26="","",$AKT26),IF($B$52=$AKU$25,IF($AKU26="","",$AKU26),IF($B$52=$AKV$25,IF($AKV26="","",$AKV26),IF($B$52=$AKW$25,IF($AKW26="","",$AKW26),IF($B$52=$AKX$25,IF($AKX26="","",$AKX26),IF($B$52=$AKY$25,IF($AKY26="","",$AKY26),IF($B$52=$AKZ$25,IF($AKZ26="","",$AKZ26),IF($B$52=$ALA$25,IF($ALA26="","",$ALA26),IF($B$52=$ALB$25,IF($ALB26="","",$ALB26),IF($B$52=$ALC$25,IF($ALC26="","",$ALC26),IF($B$52=$ALD$25,IF($ALD26="","",$ALD26),IF($B$52=$ALE$25,IF($ALE26="","",$ALE26),IF($B$52=$ALF$25,IF($ALF26="","",$ALF26),"")))))))))))))) ->  | C53: =IF($C$52=$AKS$39,IF($AKS40="","",$AKS40),IF($C$52=$AKT$39,IF($AKT40="","",$AKT40),IF($C$52=$AKU$39,IF($AKU40="","",$AKU40),IF($C$52=$AKV$39,IF($AKV40="","",$AKV40),IF($C$52=$AKW$39,IF($AKW40="","",$AKW40),IF($C$52=$AKX$39,IF($AKX40="","",$AKX40),IF($C$52=$AKY$39,IF($AKY40="","",$AKY40),IF($C$52=$AKZ$39,IF($AKZ40="","",$AKZ40),IF($C$52=$ALA$39,IF($ALA40="","",$ALA40),IF($C$52=$ALB$39,IF($ALB40="","",$ALB40),IF($C$52=$ALC$39,IF($ALC40="","",$ALC40),IF($C$52=$ALD$39,IF($ALD40="","",$ALD40),IF($C$52=$ALE$39,IF($ALE40="","",$ALE40),IF($C$52=$ALF$39,IF($ALF40="","",$ALF40),IF($C$52=$ALG$39,IF($ALG40="","",$ALG40),IF($C$52=$ALH$39,IF($ALH40="","",$ALH40),IF($C$52=$ALI$39,IF($ALI40="","",$ALI40),IF($C$52=$ALJ$39,IF($ALJ40="","",$ALJ40),IF($C$52=$ALK$39,IF($ALK40="","",$ALK40),IF($C$52=$ALL$39,IF($ALL40="","",$ALL40),IF($C$52=$ALM$39,IF($ALM40="","",$ALM40),IF($C$52=$ALN$39,IF($ALN40="","",$ALN40),IF($C$52=$ALO$39,IF($ALO40="","",$ALO40),IF($C$52=$ALP$39,IF($ALP40="","",$ALP40),IF($C$52=$ALQ$39,IF($ALQ40="","",$ALQ40),IF($C$52=$ALR$39,IF($ALR40="","",$ALR40),IF($C$52=$ALS$39,IF($ALS40="","",$ALS40),IF($C$52=$ALT$39,IF($ALT40="","",$ALT40),IF($C$52=$ALU$39,IF($ALU40="","",$ALU40),IF($C$52=$ALV$39,IF($ALV40="","",$ALV40),IF($C$52=$ALW$39,IF($ALW40="","",$ALW40),IF($C$52=$ALX$39,IF($ALX40="","",$ALX40),IF($C$52=$ALY$39,IF($ALY40="","",$ALY40),IF($C$52=$ALZ$39,IF($ALZ40="","",$ALZ40),IF($C$52=$AMA$39,IF($AMA40="","",$AMA40),IF($C$52=$AMB$39,IF($AMB40="","",$AMB40),IF($C$52=$AMC$39,IF($AMC40="","",$AMC40),IF($C$52=$AMD$39,IF($AMD40="","",$AMD40),IF($C$52=$AME$39,IF($AME40="","",$AME40),IF($C$52=$AMF$39,IF($AMF40="","",$AMF40),IF($C$52=$AMG$39,IF($AMG40="","",$AMG40),IF($C$52=$AMH$39,IF($AMH40="","",$AMH40),IF($C$52=$AMI$39,IF($AMI40="","",$AMI40),IF($C$52=$AMJ$39,IF($AMJ40="","",$AMJ40),IF($C$52=$AMK$39,IF($AMK40="","",$AMK40),IF($C$52=$AML$39,IF($AML40="","",$AML40),IF($C$52=$AMM$39,IF($AMM40="","",$AMM40),IF($C$52=$AMN$39,IF($AMN40="","",$AMN40),IF($C$52=$AMO$39,IF($AMO40="","",$AMO40),IF($C$52=$AMP$39,IF($AMP40="","",$AMP40),IF($C$52=$AMQ$39,IF($AMQ40="","",$AMQ40),IF($C$52=$AMR$39,IF($AMR40="","",$AMR40),IF($C$52=$AMS$39,IF($AMS40="","",$AMS40),IF($C$52=$AMT$39,IF($AMT40="","",$AMT40),IF($C$52=$AMU$39,IF($AMU40="","",$AMU40),IF($C$52=$AMV$39,IF($AMV40="","",$AMV40),IF($C$52=$AMW$39,IF($AMW40="","",$AMW40),IF($C$52=$AMX$39,IF($AMX40="","",$AMX40),"")))))))))))))))))))))))))))))))))))))))))))))))))))))))))) -> 
B54: =IF($B$52=$AKS$25,IF($AKS27="","",$AKS27),IF($B$52=$AKT$25,IF($AKT27="","",$AKT27),IF($B$52=$AKU$25,IF($AKU27="","",$AKU27),IF($B$52=$AKV$25,IF($AKV27="","",$AKV27),IF($B$52=$AKW$25,IF($AKW27="","",$AKW27),IF($B$52=$AKX$25,IF($AKX27="","",$AKX27),IF($B$52=$AKY$25,IF($AKY27="","",$AKY27),IF($B$52=$AKZ$25,IF($AKZ27="","",$AKZ27),IF($B$52=$ALA$25,IF($ALA27="","",$ALA27),IF($B$52=$ALB$25,IF($ALB27="","",$ALB27),IF($B$52=$ALC$25,IF($ALC27="","",$ALC27),IF($B$52=$ALD$25,IF($ALD27="","",$ALD27),IF($B$52=$ALE$25,IF($ALE27="","",$ALE27),IF($B$52=$ALF$25,IF($ALF27="","",$ALF27),"")))))))))))))) ->  | C54: =IF($C$52=$AKS$39,IF($AKS41="","",$AKS41),IF($C$52=$AKT$39,IF($AKT41="","",$AKT41),IF($C$52=$AKU$39,IF($AKU41="","",$AKU41),IF($C$52=$AKV$39,IF($AKV41="","",$AKV41),IF($C$52=$AKW$39,IF($AKW41="","",$AKW41),IF($C$52=$AKX$39,IF($AKX41="","",$AKX41),IF($C$52=$AKY$39,IF($AKY41="","",$AKY41),IF($C$52=$AKZ$39,IF($AKZ41="","",$AKZ41),IF($C$52=$ALA$39,IF($ALA41="","",$ALA41),IF($C$52=$ALB$39,IF($ALB41="","",$ALB41),IF($C$52=$ALC$39,IF($ALC41="","",$ALC41),IF($C$52=$ALD$39,IF($ALD41="","",$ALD41),IF($C$52=$ALE$39,IF($ALE41="","",$ALE41),IF($C$52=$ALF$39,IF($ALF41="","",$ALF41),IF($C$52=$ALG$39,IF($ALG41="","",$ALG41),IF($C$52=$ALH$39,IF($ALH41="","",$ALH41),IF($C$52=$ALI$39,IF($ALI41="","",$ALI41),IF($C$52=$ALJ$39,IF($ALJ41="","",$ALJ41),IF($C$52=$ALK$39,IF($ALK41="","",$ALK41),IF($C$52=$ALL$39,IF($ALL41="","",$ALL41),IF($C$52=$ALM$39,IF($ALM41="","",$ALM41),IF($C$52=$ALN$39,IF($ALN41="","",$ALN41),IF($C$52=$ALO$39,IF($ALO41="","",$ALO41),IF($C$52=$ALP$39,IF($ALP41="","",$ALP41),IF($C$52=$ALQ$39,IF($ALQ41="","",$ALQ41),IF($C$52=$ALR$39,IF($ALR41="","",$ALR41),IF($C$52=$ALS$39,IF($ALS41="","",$ALS41),IF($C$52=$ALT$39,IF($ALT41="","",$ALT41),IF($C$52=$ALU$39,IF($ALU41="","",$ALU41),IF($C$52=$ALV$39,IF($ALV41="","",$ALV41),IF($C$52=$ALW$39,IF($ALW41="","",$ALW41),IF($C$52=$ALX$39,IF($ALX41="","",$ALX41),IF($C$52=$ALY$39,IF($ALY41="","",$ALY41),IF($C$52=$ALZ$39,IF($ALZ41="","",$ALZ41),IF($C$52=$AMA$39,IF($AMA41="","",$AMA41),IF($C$52=$AMB$39,IF($AMB41="","",$AMB41),IF($C$52=$AMC$39,IF($AMC41="","",$AMC41),IF($C$52=$AMD$39,IF($AMD41="","",$AMD41),IF($C$52=$AME$39,IF($AME41="","",$AME41),IF($C$52=$AMF$39,IF($AMF41="","",$AMF41),IF($C$52=$AMG$39,IF($AMG41="","",$AMG41),IF($C$52=$AMH$39,IF($AMH41="","",$AMH41),IF($C$52=$AMI$39,IF($AMI41="","",$AMI41),IF($C$52=$AMJ$39,IF($AMJ41="","",$AMJ41),IF($C$52=$AMK$39,IF($AMK41="","",$AMK41),IF($C$52=$AML$39,IF($AML41="","",$AML41),IF($C$52=$AMM$39,IF($AMM41="","",$AMM41),IF($C$52=$AMN$39,IF($AMN41="","",$AMN41),IF($C$52=$AMO$39,IF($AMO41="","",$AMO41),IF($C$52=$AMP$39,IF($AMP41="","",$AMP41),IF($C$52=$AMQ$39,IF($AMQ41="","",$AMQ41),IF($C$52=$AMR$39,IF($AMR41="","",$AMR41),IF($C$52=$AMS$39,IF($AMS41="","",$AMS41),IF($C$52=$AMT$39,IF($AMT41="","",$AMT41),IF($C$52=$AMU$39,IF($AMU41="","",$AMU41),IF($C$52=$AMV$39,IF($AMV41="","",$AMV41),IF($C$52=$AMW$39,IF($AMW41="","",$AMW41),IF($C$52=$AMX$39,IF($AMX41="","",$AMX41),"")))))))))))))))))))))))))))))))))))))))))))))))))))))))))) -> 
AKS55: Mattbestruket | AKT55: Obestruket | AKU55: Kollegieblock_Variant_1 | AKV55: Kollegieblock_Variant_2 | AKW55: Kollegieblock_Variant_3 | AKX55: Kollegieblock_Variant_4 | AKY55: Kollegieblock_Variant_5 | AKZ55: Kollegieblock_Variant_6 | ALA55: Brevpapper_Variant_1 | ALB55: Brevpapper_Variant_2 | ALC55: Brevpapper_Variant_3 | ALD55: Brevpapper_Variant_4 | ALE55: Brevpapper_Variant_5 | ALF55: Brevpapper_Variant_6 | ALG55: Brevpapper_Variant_7 | ALH55: Brevpapper_Variant_8 | ALI55: Brevpapper_Variant_9 | ALJ55: Kuvert_Variant_1 | ALK55: Kuvert_Variant_2 | ALL55: Kuvert_Variant_3 | ALM55: Kuvert_Variant_4 | ALN55: Kuvert_Variant_5 | ALO55: Kuvert_Variant_6 | ALP55: Kuvert_Variant_7 | ALQ55: Kuvert_Variant_8 | ALR55: Säkerhetskuvert_Variant_1 | ALS55: Säkerhetskuvert_Variant_2 | ALT55: Säkerhetskuvert_Variant_3 | ALU55: Säkerhetskuvert_Variant_4 | ALV55: Korrespondenskort_Variant_1 | ALW55: Korrespondenskort_Variant_2 | ALX55: Korrespondenskort_Variant_3 | ALY55: Korrespondenskort_Variant_4 | ALZ55: Korrespondenskort_Variant_5 | AMA55: Korrespondenskort_Variant_6 | AMB55: Pappersmappar_Variant_1 | AMC55: Pappersmappar_Variant_2 | AMD55: Pappersmappar_Variant_3 | AME55: Pappersmappar_Variant_4
AKS56: 1+0 (svart) | AKT56: 1+0 (svart) | AKU56: 70 | AKV56: 70 | AKW56: 70 | AKX56: 70 | AKY56: 70 | AKZ56: 70 | ALA56: ´(4+4) (företagslogotyp och adressinfo etc.) | ALB56: ´(4+4) (företagslogotyp och adressinfo etc.) | ALC56: ´(4+4) (företagslogotyp och adressinfo etc.) | ALD56: ´(4+1) (företagslogotyp och adressinfo etc.) | ALE56: ´(4+1) (företagslogotyp och adressinfo etc.) | ALF56: ´(4+1) (företagslogotyp och adressinfo etc.) | ALG56: ´(1+0) (företagslogotyp och adressinfo etc.) | ALH56: ´(1+0) (företagslogotyp och adressinfo etc.) | ALI56: ´(1+0) (företagslogotyp och adressinfo etc.) | ALJ56: Tryck ´4+4 | ALK56: Tryck ´4+4 | ALL56: Tryck ´4+4 | ALM56: Tryck ´4+4 | ALN56: Tryck ´4+4 | ALO56: Tryck ´4+4 | ALP56: Tryck ´4+4 | ALQ56: Tryck ´4+4 | ALR56: Tryck ´4+4 (företagslogotyp och adressinfo etc.) | ALS56: Tryck ´4+4 (företagslogotyp och adressinfo etc.) | ALT56: Tryck ´4+4 (företagslogotyp och adressinfo etc.) | ALU56: Tryck ´4+4 (företagslogotyp och adressinfo etc.) | ALV56: Tryck ´4+0 (företagslogotyp och adressinfo på kort och kuvert etc.) | ALW56: Tryck ´4+0 (företagslogotyp och adressinfo på kort och kuvert etc.) | ALX56: Tryck ´4+0 (företagslogotyp och adressinfo på kort och kuvert etc.) | ALY56: Tryck ´4+0 (företagslogotyp och adressinfo på kort och kuvert etc.) | ALZ56: Tryck ´4+0 (företagslogotyp och adressinfo på kort och kuvert etc.) | AMA56: Tryck ´4+0 (företagslogotyp och adressinfo på kort och kuvert etc.) | AMB56: Tryck 4+0 | AMC56: Tryck 4+0 | AMD56: Tryck 4+0 | AME56: Tryck 4+0
AKS57: 1+1 (svart) | AKT57: 1+1 (svart) | AKU57: 100 | AKV57: 100 | AKW57: 100 | AKX57: 100 | AKY57: 100 | AKZ57: 100 | ALJ57: Tryck ´4+0 | ALK57: Tryck ´4+0 | ALL57: Tryck ´4+0 | ALM57: Tryck ´4+0 | ALN57: Tryck ´4+0 | ALO57: Tryck ´4+0 | ALP57: Tryck ´4+0 | ALQ57: Tryck ´4+0 | ALR57: Tryck ´4+0 (företagslogotyp och adressinfo etc.) | ALS57: Tryck ´4+0 (företagslogotyp och adressinfo etc.) | ALT57: Tryck ´4+0 (företagslogotyp och adressinfo etc.) | ALU57: Tryck ´4+0 (företagslogotyp och adressinfo etc.) | ALV57: Tryck ´1+0 (företagslogotyp och adressinfo på kort och kuvert etc.) (svart) | ALW57: Tryck ´1+0 (företagslogotyp och adressinfo på kort och kuvert etc.) (svart) | ALX57: Tryck ´1+0 (företagslogotyp och adressinfo på kort och kuvert etc.) (svart) | ALY57: Tryck ´1+0 (företagslogotyp och adressinfo på kort och kuvert etc.) (svart) | ALZ57: Tryck ´1+0 (företagslogotyp och adressinfo på kort och kuvert etc.) (svart) | AMA57: Tryck ´1+0 (företagslogotyp och adressinfo på kort och kuvert etc.) (svart) | AMB57: Tryck 4+1 där budskap placeras på mappens insida | AMC57: Tryck 4+1 där budskap placeras på mappens insida | AMD57: Tryck 4+1 där budskap placeras på mappens insida | AME57: Tryck 4+1 där budskap placeras på mappens insida
AKS58: 4+0 | AKT58: 4+0 | ALJ58: Tryck ´1+0 | ALK58: Tryck ´1+0 | ALL58: Tryck ´1+0 | ALM58: Tryck ´1+0 | ALN58: Tryck ´1+0 | ALO58: Tryck ´1+0 | ALP58: Tryck ´1+0 | ALQ58: Tryck ´1+0
AKS59: 4+4 | AKT59: 4+4
AKS60: 2+0 PMS | AKT60: 2+0 PMS
AKS61: 2+2 PMS | AKT61: 2+2 PMS
B63: Välj Vara/Tjänst 4 | C63: Välj variant | D63: =IF($B$64=$AKS$20,IF($AKS$21="","",$AKS21),IF($B$64=$AKT$20,IF($AKT$21="","",$AKT21),IF($B$64=$AKU$20,IF($AKU$21="","",$AKU21),IF($B$64=$AKV$20,IF($AKV$21="","",$AKV21),IF($B$64=$AKW$20,IF($AKW$21="","",$AKW21),IF($B$64=$AKX$20,IF($AKX$21="","",$AKX21),IF($B$64=$AKY$20,IF($AKY$21="","",$AKY21),""))))))) ->  | E63: =IF($B$64=$ALA$20,IF($ALA$21="","",$ALA21),IF($B$64=$ALB$20,IF($ALB$21="","",$ALB21),IF($B$64=$ALC$20,IF($ALC$21="","",$ALC21),IF($B$64=$ALD$20,IF($ALD$21="","",$ALD21),"")))) ->  | F63: =IF($B$64=$ALF$20,IF($ALF$21="","",$ALF21),IF($B$64=$ALG$20,IF($ALG$21="","",$ALG21),IF($B$64=$ALH$20,IF($ALH$21="","",$ALH21),IF($B$64=$ALI$20,IF($ALI$21="","",$ALI21),IF($B$64=$ALJ$20,IF($ALJ$21="","",$ALJ21),IF($B$64=$ALK$20,IF($ALK$21="","",$ALK21),IF($B$64=$ALL$20,IF($ALL$21="","",$ALL21),IF($B$64=$ALM$20,IF($ALM$21="","",$ALM21),IF($B$64=$ALN$20,IF($ALN$21="","",$ALN21),IF($B$64=$ALO$20,IF($ALO$21="","",$ALO21),IF($B$64=$ALP$20,IF($ALP$21="","",$ALP21),IF($B$64=$ALQ$20,IF($ALQ$21="","",$ALQ21),IF($B$64=$ALR$20,IF($ALR$21="","",$ALR21),IF($B$64=$ALS$20,IF($ALS$21="","",$ALS21),IF($B$64=$ALT$20,IF($ALT$21="","",$ALT21),""))))))))))))))) ->  | G63: =IF($B$64=$AKS$65,IF($AKS66="","",$AKS66),"") -> 
B65: =IF($B$64=$AKS$25,IF($AKS26="","",$AKS26),IF($B$64=$AKT$25,IF($AKT26="","",$AKT26),IF($B$64=$AKU$25,IF($AKU26="","",$AKU26),IF($B$64=$AKV$25,IF($AKV26="","",$AKV26),IF($B$64=$AKW$25,IF($AKW26="","",$AKW26),IF($B$64=$AKX$25,IF($AKX26="","",$AKX26),IF($B$64=$AKY$25,IF($AKY26="","",$AKY26),IF($B$64=$AKZ$25,IF($AKZ26="","",$AKZ26),IF($B$64=$ALA$25,IF($ALA26="","",$ALA26),IF($B$64=$ALB$25,IF($ALB26="","",$ALB26),IF($B$64=$ALC$25,IF($ALC26="","",$ALC26),IF($B$64=$ALD$25,IF($ALD26="","",$ALD26),IF($B$64=$ALE$25,IF($ALE26="","",$ALE26),IF($B$64=$ALF$25,IF($ALF26="","",$ALF26),"")))))))))))))) ->  | C65: =IF($C$64=$AKS$39,IF($AKS40="","",$AKS40),IF($C$64=$AKT$39,IF($AKT40="","",$AKT40),IF($C$64=$AKU$39,IF($AKU40="","",$AKU40),IF($C$64=$AKV$39,IF($AKV40="","",$AKV40),IF($C$64=$AKW$39,IF($AKW40="","",$AKW40),IF($C$64=$AKX$39,IF($AKX40="","",$AKX40),IF($C$64=$AKY$39,IF($AKY40="","",$AKY40),IF($C$64=$AKZ$39,IF($AKZ40="","",$AKZ40),IF($C$64=$ALA$39,IF($ALA40="","",$ALA40),IF($C$64=$ALB$39,IF($ALB40="","",$ALB40),IF($C$64=$ALC$39,IF($ALC40="","",$ALC40),IF($C$64=$ALD$39,IF($ALD40="","",$ALD40),IF($C$64=$ALE$39,IF($ALE40="","",$ALE40),IF($C$64=$ALF$39,IF($ALF40="","",$ALF40),IF($C$64=$ALG$39,IF($ALG40="","",$ALG40),IF($C$64=$ALH$39,IF($ALH40="","",$ALH40),IF($C$64=$ALI$39,IF($ALI40="","",$ALI40),IF($C$64=$ALJ$39,IF($ALJ40="","",$ALJ40),IF($C$64=$ALK$39,IF($ALK40="","",$ALK40),IF($C$64=$ALL$39,IF($ALL40="","",$ALL40),IF($C$64=$ALM$39,IF($ALM40="","",$ALM40),IF($C$64=$ALN$39,IF($ALN40="","",$ALN40),IF($C$64=$ALO$39,IF($ALO40="","",$ALO40),IF($C$64=$ALP$39,IF($ALP40="","",$ALP40),IF($C$64=$ALQ$39,IF($ALQ40="","",$ALQ40),IF($C$64=$ALR$39,IF($ALR40="","",$ALR40),IF($C$64=$ALS$39,IF($ALS40="","",$ALS40),IF($C$64=$ALT$39,IF($ALT40="","",$ALT40),IF($C$64=$ALU$39,IF($ALU40="","",$ALU40),IF($C$64=$ALV$39,IF($ALV40="","",$ALV40),IF($C$64=$ALW$39,IF($ALW40="","",$ALW40),IF($C$64=$ALX$39,IF($ALX40="","",$ALX40),IF($C$64=$ALY$39,IF($ALY40="","",$ALY40),IF($C$64=$ALZ$39,IF($ALZ40="","",$ALZ40),IF($C$64=$AMA$39,IF($AMA40="","",$AMA40),IF($C$64=$AMB$39,IF($AMB40="","",$AMB40),IF($C$64=$AMC$39,IF($AMC40="","",$AMC40),IF($C$64=$AMD$39,IF($AMD40="","",$AMD40),IF($C$64=$AME$39,IF($AME40="","",$AME40),IF($C$64=$AMF$39,IF($AMF40="","",$AMF40),IF($C$64=$AMG$39,IF($AMG40="","",$AMG40),IF($C$64=$AMH$39,IF($AMH40="","",$AMH40),IF($C$64=$AMI$39,IF($AMI40="","",$AMI40),IF($C$64=$AMJ$39,IF($AMJ40="","",$AMJ40),IF($C$64=$AMK$39,IF($AMK40="","",$AMK40),IF($C$64=$AML$39,IF($AML40="","",$AML40),IF($C$64=$AMM$39,IF($AMM40="","",$AMM40),IF($C$64=$AMN$39,IF($AMN40="","",$AMN40),IF($C$64=$AMO$39,IF($AMO40="","",$AMO40),IF($C$64=$AMP$39,IF($AMP40="","",$AMP40),IF($C$64=$AMQ$39,IF($AMQ40="","",$AMQ40),IF($C$64=$AMR$39,IF($AMR40="","",$AMR40),IF($C$64=$AMS$39,IF($AMS40="","",$AMS40),IF($C$64=$AMT$39,IF($AMT40="","",$AMT40),IF($C$64=$AMU$39,IF($AMU40="","",$AMU40),IF($C$64=$AMV$39,IF($AMV40="","",$AMV40),IF($C$64=$AMW$39,IF($AMW40="","",$AMW40),IF($C$64=$AMX$39,IF($AMX40="","",$AMX40),"")))))))))))))))))))))))))))))))))))))))))))))))))))))))))) ->  | AKS65: Visitkort
B66: =IF($B$64=$AKS$25,IF($AKS27="","",$AKS27),IF($B$64=$AKT$25,IF($AKT27="","",$AKT27),IF($B$64=$AKU$25,IF($AKU27="","",$AKU27),IF($B$64=$AKV$25,IF($AKV27="","",$AKV27),IF($B$64=$AKW$25,IF($AKW27="","",$AKW27),IF($B$64=$AKX$25,IF($AKX27="","",$AKX27),IF($B$64=$AKY$25,IF($AKY27="","",$AKY27),IF($B$64=$AKZ$25,IF($AKZ27="","",$AKZ27),IF($B$64=$ALA$25,IF($ALA27="","",$ALA27),IF($B$64=$ALB$25,IF($ALB27="","",$ALB27),IF($B$64=$ALC$25,IF($ALC27="","",$ALC27),IF($B$64=$ALD$25,IF($ALD27="","",$ALD27),IF($B$64=$ALE$25,IF($ALE27="","",$ALE27),IF($B$64=$ALF$25,IF($ALF27="","",$ALF27),"")))))))))))))) ->  | C66: =IF($C$64=$AKS$39,IF($AKS41="","",$AKS41),IF($C$64=$AKT$39,IF($AKT41="","",$AKT41),IF($C$64=$AKU$39,IF($AKU41="","",$AKU41),IF($C$64=$AKV$39,IF($AKV41="","",$AKV41),IF($C$64=$AKW$39,IF($AKW41="","",$AKW41),IF($C$64=$AKX$39,IF($AKX41="","",$AKX41),IF($C$64=$AKY$39,IF($AKY41="","",$AKY41),IF($C$64=$AKZ$39,IF($AKZ41="","",$AKZ41),IF($C$64=$ALA$39,IF($ALA41="","",$ALA41),IF($C$64=$ALB$39,IF($ALB41="","",$ALB41),IF($C$64=$ALC$39,IF($ALC41="","",$ALC41),IF($C$64=$ALD$39,IF($ALD41="","",$ALD41),IF($C$64=$ALE$39,IF($ALE41="","",$ALE41),IF($C$64=$ALF$39,IF($ALF41="","",$ALF41),IF($C$64=$ALG$39,IF($ALG41="","",$ALG41),IF($C$64=$ALH$39,IF($ALH41="","",$ALH41),IF($C$64=$ALI$39,IF($ALI41="","",$ALI41),IF($C$64=$ALJ$39,IF($ALJ41="","",$ALJ41),IF($C$64=$ALK$39,IF($ALK41="","",$ALK41),IF($C$64=$ALL$39,IF($ALL41="","",$ALL41),IF($C$64=$ALM$39,IF($ALM41="","",$ALM41),IF($C$64=$ALN$39,IF($ALN41="","",$ALN41),IF($C$64=$ALO$39,IF($ALO41="","",$ALO41),IF($C$64=$ALP$39,IF($ALP41="","",$ALP41),IF($C$64=$ALQ$39,IF($ALQ41="","",$ALQ41),IF($C$64=$ALR$39,IF($ALR41="","",$ALR41),IF($C$64=$ALS$39,IF($ALS41="","",$ALS41),IF($C$64=$ALT$39,IF($ALT41="","",$ALT41),IF($C$64=$ALU$39,IF($ALU41="","",$ALU41),IF($C$64=$ALV$39,IF($ALV41="","",$ALV41),IF($C$64=$ALW$39,IF($ALW41="","",$ALW41),IF($C$64=$ALX$39,IF($ALX41="","",$ALX41),IF($C$64=$ALY$39,IF($ALY41="","",$ALY41),IF($C$64=$ALZ$39,IF($ALZ41="","",$ALZ41),IF($C$64=$AMA$39,IF($AMA41="","",$AMA41),IF($C$64=$AMB$39,IF($AMB41="","",$AMB41),IF($C$64=$AMC$39,IF($AMC41="","",$AMC41),IF($C$64=$AMD$39,IF($AMD41="","",$AMD41),IF($C$64=$AME$39,IF($AME41="","",$AME41),IF($C$64=$AMF$39,IF($AMF41="","",$AMF41),IF($C$64=$AMG$39,IF($AMG41="","",$AMG41),IF($C$64=$AMH$39,IF($AMH41="","",$AMH41),IF($C$64=$AMI$39,IF($AMI41="","",$AMI41),IF($C$64=$AMJ$39,IF($AMJ41="","",$AMJ41),IF($C$64=$AMK$39,IF($AMK41="","",$AMK41),IF($C$64=$AML$39,IF($AML41="","",$AML41),IF($C$64=$AMM$39,IF($AMM41="","",$AMM41),IF($C$64=$AMN$39,IF($AMN41="","",$AMN41),IF($C$64=$AMO$39,IF($AMO41="","",$AMO41),IF($C$64=$AMP$39,IF($AMP41="","",$AMP41),IF($C$64=$AMQ$39,IF($AMQ41="","",$AMQ41),IF($C$64=$AMR$39,IF($AMR41="","",$AMR41),IF($C$64=$AMS$39,IF($AMS41="","",$AMS41),IF($C$64=$AMT$39,IF($AMT41="","",$AMT41),IF($C$64=$AMU$39,IF($AMU41="","",$AMU41),IF($C$64=$AMV$39,IF($AMV41="","",$AMV41),IF($C$64=$AMW$39,IF($AMW41="","",$AMW41),IF($C$64=$AMX$39,IF($AMX41="","",$AMX41),"")))))))))))))))))))))))))))))))))))))))))))))))))))))))))) ->  | AKS66: Antal
B67: =IF($B$64=$AKS$25,IF($AKS28="","",$AKS28),IF($B$64=$AKT$25,IF($AKT28="","",$AKT28),IF($B$64=$AKU$25,IF($AKU28="","",$AKU28),IF($B$64=$AKV$25,IF($AKV28="","",$AKV28),IF($B$64=$AKW$25,IF($AKW28="","",$AKW28),IF($B$64=$AKX$25,IF($AKX28="","",$AKX28),IF($B$64=$AKY$25,IF($AKY28="","",$AKY28),IF($B$64=$AKZ$25,IF($AKZ28="","",$AKZ28),IF($B$64=$ALA$25,IF($ALA28="","",$ALA28),IF($B$64=$ALB$25,IF($ALB28="","",$ALB28),IF($B$64=$ALC$25,IF($ALC28="","",$ALC28),IF($B$64=$ALD$25,IF($ALD28="","",$ALD28),IF($B$64=$ALE$25,IF($ALE28="","",$ALE28),IF($B$64=$ALF$25,IF($ALF28="","",$ALF28),"")))))))))))))) -> 
B68: =IF($B$64=$AKS$25,IF($AKS29="","",$AKS29),IF($B$64=$AKT$25,IF($AKT29="","",$AKT29),IF($B$64=$AKU$25,IF($AKU29="","",$AKU29),IF($B$64=$AKV$25,IF($AKV29="","",$AKV29),IF($B$64=$AKW$25,IF($AKW29="","",$AKW29),IF($B$64=$AKX$25,IF($AKX29="","",$AKX29),IF($B$64=$AKY$25,IF($AKY29="","",$AKY29),IF($B$64=$AKZ$25,IF($AKZ29="","",$AKZ29),IF($B$64=$ALA$25,IF($ALA29="","",$ALA29),IF($B$64=$ALB$25,IF($ALB29="","",$ALB29),IF($B$64=$ALC$25,IF($ALC29="","",$ALC29),IF($B$64=$ALD$25,IF($ALD29="","",$ALD29),IF($B$64=$ALE$25,IF($ALE30="","",$ALE30),IF($B$64=$ALF$25,IF($ALF29="","",$ALF29),"")))))))))))))) -> 
B69: =IF($B$64=$AKS$25,IF($AKS30="","",$AKS30),IF($B$64=$AKT$25,IF($AKT30="","",$AKT30),IF($B$64=$AKU$25,IF($AKU30="","",$AKU30),IF($B$64=$AKV$25,IF($AKV30="","",$AKV30),IF($B$64=$AKW$25,IF($AKW30="","",$AKW30),IF($B$64=$AKX$25,IF($AKX30="","",$AKX30),IF($B$64=$AKY$25,IF($AKY30="","",$AKY30),IF($B$64=$AKZ$25,IF($AKZ30="","",$AKZ30),IF($B$64=$ALA$25,IF($ALA30="","",$ALA30),IF($B$64=$ALB$25,IF($ALB30="","",$ALB30),IF($B$64=$ALC$25,IF($ALC30="","",$ALC30),IF($B$64=$ALD$25,IF($ALD30="","",$ALD30),IF($B$64=$ALE$25,IF($ALE31="","",$ALE31),IF($B$64=$ALF$25,IF($ALF30="","",$ALF30),"")))))))))))))) ->  | AKS69: Antal
AKS70: 100
AKS71: 250
AKS72: 500
B75: Välj Vara/Tjänst 5 | C75: Välj variant | D75: =IF($B$76=$AKS$20,IF($AKS$21="","",$AKS21),IF($B$76=$AKT$20,IF($AKT$21="","",$AKT21),IF($B$76=$AKU$20,IF($AKU$21="","",$AKU21),IF($B$76=$AKV$20,IF($AKV$21="","",$AKV21),IF($B$76=$AKW$20,IF($AKW$21="","",$AKW21),IF($B$76=$AKX$20,IF($AKX$21="","",$AKX21),IF($B$76=$AKY$20,IF($AKY$21="","",$AKY21),""))))))) ->  | E75: =IF($B$76=$ALA$20,IF($ALA$21="","",$ALA21),IF($B$76=$ALB$20,IF($ALB$21="","",$ALB21),IF($B$76=$ALC$20,IF($ALC$21="","",$ALC21),IF($B$76=$ALD$20,IF($ALD$21="","",$ALD21),"")))) ->  | F75: =IF($B$76=$ALF$20,IF($ALF$21="","",$ALF21),IF($B$76=$ALG$20,IF($ALG$21="","",$ALG21),IF($B$76=$ALH$20,IF($ALH$21="","",$ALH21),IF($B$76=$ALI$20,IF($ALI$21="","",$ALI21),IF($B$76=$ALJ$20,IF($ALJ$21="","",$ALJ21),IF($B$76=$ALK$20,IF($ALK$21="","",$ALK21),IF($B$76=$ALL$20,IF($ALL$21="","",$ALL21),IF($B$76=$ALM$20,IF($ALM$21="","",$ALM21),IF($B$76=$ALN$20,IF($ALN$21="","",$ALN21),IF($B$76=$ALO$20,IF($ALO$21="","",$ALO21),IF($B$76=$ALP$20,IF($ALP$21="","",$ALP21),IF($B$76=$ALQ$20,IF($ALQ$21="","",$ALQ21),IF($B$76=$ALR$20,IF($ALR$21="","",$ALR21),IF($B$76=$ALS$20,IF($ALS$21="","",$ALS21),IF($B$76=$ALT$20,IF($ALT$21="","",$ALT21),""))))))))))))))) ->  | G75: =IF($B$76=$AKS$65,IF($AKS66="","",$AKS66),"") -> 
B77: =IF($B$76=$AKS$25,IF($AKS26="","",$AKS26),IF($B$76=$AKT$25,IF($AKT26="","",$AKT26),IF($B$76=$AKU$25,IF($AKU26="","",$AKU26),IF($B$76=$AKV$25,IF($AKV26="","",$AKV26),IF($B$76=$AKW$25,IF($AKW26="","",$AKW26),IF($B$76=$AKX$25,IF($AKX26="","",$AKX26),IF($B$76=$AKY$25,IF($AKY26="","",$AKY26),IF($B$76=$AKZ$25,IF($AKZ26="","",$AKZ26),IF($B$76=$ALA$25,IF($ALA26="","",$ALA26),IF($B$76=$ALB$25,IF($ALB26="","",$ALB26),IF($B$76=$ALC$25,IF($ALC26="","",$ALC26),IF($B$76=$ALD$25,IF($ALD26="","",$ALD26),IF($B$76=$ALE$25,IF($ALE26="","",$ALE26),IF($B$76=$ALF$25,IF($ALF26="","",$ALF26),"")))))))))))))) ->  | C77: =IF($C$76=$AKS$39,IF($AKS40="","",$AKS40),IF($C$76=$AKT$39,IF($AKT40="","",$AKT40),IF($C$76=$AKU$39,IF($AKU40="","",$AKU40),IF($C$76=$AKV$39,IF($AKV40="","",$AKV40),IF($C$76=$AKW$39,IF($AKW40="","",$AKW40),IF($C$76=$AKX$39,IF($AKX40="","",$AKX40),IF($C$76=$AKY$39,IF($AKY40="","",$AKY40),IF($C$76=$AKZ$39,IF($AKZ40="","",$AKZ40),IF($C$76=$ALA$39,IF($ALA40="","",$ALA40),IF($C$76=$ALB$39,IF($ALB40="","",$ALB40),IF($C$76=$ALC$39,IF($ALC40="","",$ALC40),IF($C$76=$ALD$39,IF($ALD40="","",$ALD40),IF($C$76=$ALE$39,IF($ALE40="","",$ALE40),IF($C$76=$ALF$39,IF($ALF40="","",$ALF40),IF($C$76=$ALG$39,IF($ALG40="","",$ALG40),IF($C$76=$ALH$39,IF($ALH40="","",$ALH40),IF($C$76=$ALI$39,IF($ALI40="","",$ALI40),IF($C$76=$ALJ$39,IF($ALJ40="","",$ALJ40),IF($C$76=$ALK$39,IF($ALK40="","",$ALK40),IF($C$76=$ALL$39,IF($ALL40="","",$ALL40),IF($C$76=$ALM$39,IF($ALM40="","",$ALM40),IF($C$76=$ALN$39,IF($ALN40="","",$ALN40),IF($C$76=$ALO$39,IF($ALO40="","",$ALO40),IF($C$76=$ALP$39,IF($ALP40="","",$ALP40),IF($C$76=$ALQ$39,IF($ALQ40="","",$ALQ40),IF($C$76=$ALR$39,IF($ALR40="","",$ALR40),IF($C$76=$ALS$39,IF($ALS40="","",$ALS40),IF($C$76=$ALT$39,IF($ALT40="","",$ALT40),IF($C$76=$ALU$39,IF($ALU40="","",$ALU40),IF($C$76=$ALV$39,IF($ALV40="","",$ALV40),IF($C$76=$ALW$39,IF($ALW40="","",$ALW40),IF($C$76=$ALX$39,IF($ALX40="","",$ALX40),IF($C$76=$ALY$39,IF($ALY40="","",$ALY40),IF($C$76=$ALZ$39,IF($ALZ40="","",$ALZ40),IF($C$76=$AMA$39,IF($AMA40="","",$AMA40),IF($C$76=$AMB$39,IF($AMB40="","",$AMB40),IF($C$76=$AMC$39,IF($AMC40="","",$AMC40),IF($C$76=$AMD$39,IF($AMD40="","",$AMD40),IF($C$76=$AME$39,IF($AME40="","",$AME40),IF($C$76=$AMF$39,IF($AMF40="","",$AMF40),IF($C$76=$AMG$39,IF($AMG40="","",$AMG40),IF($C$76=$AMH$39,IF($AMH40="","",$AMH40),IF($C$76=$AMI$39,IF($AMI40="","",$AMI40),IF($C$76=$AMJ$39,IF($AMJ40="","",$AMJ40),IF($C$76=$AMK$39,IF($AMK40="","",$AMK40),IF($C$76=$AML$39,IF($AML40="","",$AML40),IF($C$76=$AMM$39,IF($AMM40="","",$AMM40),IF($C$76=$AMN$39,IF($AMN40="","",$AMN40),IF($C$76=$AMO$39,IF($AMO40="","",$AMO40),IF($C$76=$AMP$39,IF($AMP40="","",$AMP40),IF($C$76=$AMQ$39,IF($AMQ40="","",$AMQ40),IF($C$76=$AMR$39,IF($AMR40="","",$AMR40),IF($C$76=$AMS$39,IF($AMS40="","",$AMS40),IF($C$76=$AMT$39,IF($AMT40="","",$AMT40),IF($C$76=$AMU$39,IF($AMU40="","",$AMU40),IF($C$76=$AMV$39,IF($AMV40="","",$AMV40),IF($C$76=$AMW$39,IF($AMW40="","",$AMW40),IF($C$76=$AMX$39,IF($AMX40="","",$AMX40),"")))))))))))))))))))))))))))))))))))))))))))))))))))))))))) -> 
B78: =IF($B$76=$AKS$25,IF($AKS27="","",$AKS27),IF($B$76=$AKT$25,IF($AKT27="","",$AKT27),IF($B$76=$AKU$25,IF($AKU27="","",$AKU27),IF($B$76=$AKV$25,IF($AKV27="","",$AKV27),IF($B$76=$AKW$25,IF($AKW27="","",$AKW27),IF($B$76=$AKX$25,IF($AKX27="","",$AKX27),IF($B$76=$AKY$25,IF($AKY27="","",$AKY27),IF($B$76=$AKZ$25,IF($AKZ27="","",$AKZ27),IF($B$76=$ALA$25,IF($ALA27="","",$ALA27),IF($B$76=$ALB$25,IF($ALB27="","",$ALB27),IF($B$76=$ALC$25,IF($ALC27="","",$ALC27),IF($B$76=$ALD$25,IF($ALD27="","",$ALD27),IF($B$76=$ALE$25,IF($ALE27="","",$ALE27),IF($B$76=$ALF$25,IF($ALF27="","",$ALF27),"")))))))))))))) ->  | C78: =IF($C$76=$AKS$39,IF($AKS41="","",$AKS41),IF($C$76=$AKT$39,IF($AKT41="","",$AKT41),IF($C$76=$AKU$39,IF($AKU41="","",$AKU41),IF($C$76=$AKV$39,IF($AKV41="","",$AKV41),IF($C$76=$AKW$39,IF($AKW41="","",$AKW41),IF($C$76=$AKX$39,IF($AKX41="","",$AKX41),IF($C$76=$AKY$39,IF($AKY41="","",$AKY41),IF($C$76=$AKZ$39,IF($AKZ41="","",$AKZ41),IF($C$76=$ALA$39,IF($ALA41="","",$ALA41),IF($C$76=$ALB$39,IF($ALB41="","",$ALB41),IF($C$76=$ALC$39,IF($ALC41="","",$ALC41),IF($C$76=$ALD$39,IF($ALD41="","",$ALD41),IF($C$76=$ALE$39,IF($ALE41="","",$ALE41),IF($C$76=$ALF$39,IF($ALF41="","",$ALF41),IF($C$76=$ALG$39,IF($ALG41="","",$ALG41),IF($C$76=$ALH$39,IF($ALH41="","",$ALH41),IF($C$76=$ALI$39,IF($ALI41="","",$ALI41),IF($C$76=$ALJ$39,IF($ALJ41="","",$ALJ41),IF($C$76=$ALK$39,IF($ALK41="","",$ALK41),IF($C$76=$ALL$39,IF($ALL41="","",$ALL41),IF($C$76=$ALM$39,IF($ALM41="","",$ALM41),IF($C$76=$ALN$39,IF($ALN41="","",$ALN41),IF($C$76=$ALO$39,IF($ALO41="","",$ALO41),IF($C$76=$ALP$39,IF($ALP41="","",$ALP41),IF($C$76=$ALQ$39,IF($ALQ41="","",$ALQ41),IF($C$76=$ALR$39,IF($ALR41="","",$ALR41),IF($C$76=$ALS$39,IF($ALS41="","",$ALS41),IF($C$76=$ALT$39,IF($ALT41="","",$ALT41),IF($C$76=$ALU$39,IF($ALU41="","",$ALU41),IF($C$76=$ALV$39,IF($ALV41="","",$ALV41),IF($C$76=$ALW$39,IF($ALW41="","",$ALW41),IF($C$76=$ALX$39,IF($ALX41="","",$ALX41),IF($C$76=$ALY$39,IF($ALY41="","",$ALY41),IF($C$76=$ALZ$39,IF($ALZ41="","",$ALZ41),IF($C$76=$AMA$39,IF($AMA41="","",$AMA41),IF($C$76=$AMB$39,IF($AMB41="","",$AMB41),IF($C$76=$AMC$39,IF($AMC41="","",$AMC41),IF($C$76=$AMD$39,IF($AMD41="","",$AMD41),IF($C$76=$AME$39,IF($AME41="","",$AME41),IF($C$76=$AMF$39,IF($AMF41="","",$AMF41),IF($C$76=$AMG$39,IF($AMG41="","",$AMG41),IF($C$76=$AMH$39,IF($AMH41="","",$AMH41),IF($C$76=$AMI$39,IF($AMI41="","",$AMI41),IF($C$76=$AMJ$39,IF($AMJ41="","",$AMJ41),IF($C$76=$AMK$39,IF($AMK41="","",$AMK41),IF($C$76=$AML$39,IF($AML41="","",$AML41),IF($C$76=$AMM$39,IF($AMM41="","",$AMM41),IF($C$76=$AMN$39,IF($AMN41="","",$AMN41),IF($C$76=$AMO$39,IF($AMO41="","",$AMO41),IF($C$76=$AMP$39,IF($AMP41="","",$AMP41),IF($C$76=$AMQ$39,IF($AMQ41="","",$AMQ41),IF($C$76=$AMR$39,IF($AMR41="","",$AMR41),IF($C$76=$AMS$39,IF($AMS41="","",$AMS41),IF($C$76=$AMT$39,IF($AMT41="","",$AMT41),IF($C$76=$AMU$39,IF($AMU41="","",$AMU41),IF($C$76=$AMV$39,IF($AMV41="","",$AMV41),IF($C$76=$AMW$39,IF($AMW41="","",$AMW41),IF($C$76=$AMX$39,IF($AMX41="","",$AMX41),"")))))))))))))))))))))))))))))))))))))))))))))))))))))))))) -> 
B79: =IF($B$76=$AKS$25,IF($AKS28="","",$AKS28),IF($B$76=$AKT$25,IF($AKT28="","",$AKT28),IF($B$76=$AKU$25,IF($AKU28="","",$AKU28),IF($B$76=$AKV$25,IF($AKV28="","",$AKV28),IF($B$76=$AKW$25,IF($AKW28="","",$AKW28),IF($B$76=$AKX$25,IF($AKX28="","",$AKX28),IF($B$76=$AKY$25,IF($AKY28="","",$AKY28),IF($B$76=$AKZ$25,IF($AKZ28="","",$AKZ28),IF($B$76=$ALA$25,IF($ALA28="","",$ALA28),IF($B$76=$ALB$25,IF($ALB28="","",$ALB28),IF($B$76=$ALC$25,IF($ALC28="","",$ALC28),IF($B$76=$ALD$25,IF($ALD28="","",$ALD28),IF($B$76=$ALE$25,IF($ALE28="","",$ALE28),IF($B$76=$ALF$25,IF($ALF28="","",$ALF28),"")))))))))))))) -> 
B80: =IF($B$76=$AKS$25,IF($AKS29="","",$AKS29),IF($B$76=$AKT$25,IF($AKT29="","",$AKT29),IF($B$76=$AKU$25,IF($AKU29="","",$AKU29),IF($B$76=$AKV$25,IF($AKV29="","",$AKV29),IF($B$76=$AKW$25,IF($AKW29="","",$AKW29),IF($B$76=$AKX$25,IF($AKX29="","",$AKX29),IF($B$76=$AKY$25,IF($AKY29="","",$AKY29),IF($B$76=$AKZ$25,IF($AKZ29="","",$AKZ29),IF($B$76=$ALA$25,IF($ALA29="","",$ALA29),IF($B$76=$ALB$25,IF($ALB29="","",$ALB29),IF($B$76=$ALC$25,IF($ALC29="","",$ALC29),IF($B$76=$ALD$25,IF($ALD29="","",$ALD29),IF($B$76=$ALE$25,IF($ALE30="","",$ALE30),IF($B$76=$ALF$25,IF($ALF29="","",$ALF29),"")))))))))))))) -> 
B81: =IF($B$76=$AKS$25,IF($AKS30="","",$AKS30),IF($B$76=$AKT$25,IF($AKT30="","",$AKT30),IF($B$76=$AKU$25,IF($AKU30="","",$AKU30),IF($B$76=$AKV$25,IF($AKV30="","",$AKV30),IF($B$76=$AKW$25,IF($AKW30="","",$AKW30),IF($B$76=$AKX$25,IF($AKX30="","",$AKX30),IF($B$76=$AKY$25,IF($AKY30="","",$AKY30),IF($B$76=$AKZ$25,IF($AKZ30="","",$AKZ30),IF($B$76=$ALA$25,IF($ALA30="","",$ALA30),IF($B$76=$ALB$25,IF($ALB30="","",$ALB30),IF($B$76=$ALC$25,IF($ALC30="","",$ALC30),IF($B$76=$ALD$25,IF($ALD30="","",$ALD30),IF($B$76=$ALE$25,IF($ALE31="","",$ALE31),IF($B$76=$ALF$25,IF($ALF30="","",$ALF30),"")))))))))))))) -> 
D87: Vinnande Ramavtalsleverantör: | F87: =IF(Uträkningsblad!D56>15000,"Avropet överstiger 15 000kr, använd förnyad konkurensutsättning för avrop",IF(Uträkningsblad!D56=0,"Vinnande Ramavtalsleverantör",IF(E108=1,D95,IF(E108=2,D96,IF(E108=3,D97,IF(E108=4,D98,IF(E108=5,D99,""))))))) -> Vinnande Ramavtalsleverantör
C90: =SUM(C87:C88) -> 0
D91: Totalpris exkl frakt: | F91: =Uträkningsblad!D56 -> 0
D92: Fraktkostnad: (Fylls i av ramavtalsleverantör)
D93: Totalsumma: | F93: =SUM(F91:G92) -> 0
C94: Rangordning för avropet
C95: Rangordnad 1:a | D95: =Uträkningsblad!D42 -> Ange vilken/vilka produkter och antal samt eventuella tillägg i de ljusgula rutorna som önskas avropas. | F95: =Uträkningsblad!I42 -> 
C96: Rangordnad 2:a | D96: =Uträkningsblad!D43 ->  | F96: =Uträkningsblad!I43 -> 
C97: Rangordnad 3:a | D97: =Uträkningsblad!D44 ->  | F97: =Uträkningsblad!I44 -> 
C98: Rangordnad 4:a | D98: =Uträkningsblad!D45 ->  | F98: =Uträkningsblad!I45 -> 
C99: Rangordnad 5:a | D99: =Uträkningsblad!D46 ->  | F99: =Uträkningsblad!I46 -> 
C100: Rangordnad 6:a | D100: =Uträkningsblad!D47 ->  | F100: =Uträkningsblad!I47 -> 
C101: Rangordnad 7:a | D101: =Uträkningsblad!D48 ->  | F101: =Uträkningsblad!I48 -> 
C102: Rangordnad 8:a | D102: =Uträkningsblad!D49 ->  | F102: =Uträkningsblad!I49 -> 
C103: Rangordnad 9:a | D103: =Uträkningsblad!D50 ->  | F103: =Uträkningsblad!I50 -> 
C104: Rangordnad 10:a | D104: =Uträkningsblad!D51 ->  | F104: =Uträkningsblad!I51 -> 
C108: Om vinnnande ramavtalsleverantör inte kan leverera, visas nästa ramavtalsleverantör i rangordningen för avropet | E108: 1
B111: Underskrift kund
B114: Datum
B117: Underskrift ramavtalsleverantör
B120: Datum

Sheet Uträkningsblad
B4: Ramavtalsleverantör | C4: Åtta.45 Tryckeri AB | D4: Elanders Sverige AB | E4: Ljungbergs Tryckeri i Klippan AB | F4: Scandinavian Print Group Sweden AB | G4: Taberg Media Group AB | H4: Stema Specialtryck AB | I4: Kalmar Kuvert Sweden AB | K4: Exakta Print AB | L4: Stibo Graphic AS | M4: Arkitektkopia Aktiebolag
B5: Organisationsnr | C5: 5565696068 | D5: 5562621689 | E5: 5568842511 | F5: 5563236776 | G5: 5566006648 | H5: 5562976497 | I5: 5565472726 | K5: 5563641595 | L5: CVR:37120928 | M5: 5560721127
B6: Kontaktperson | C6: Jan Garcia | D6: Tommy Ekström | E6: Carina Nilsson | F6: Mikael Falkbäck | G6: Morgan Abrahamsson | H6: Daniel Larsson | I6: Ulf Andersson | K6: Samir Schultz | L6: Christian Johansson | M6: Ola Salmela
B7: Telefonnummer | C7: 070-854 19 97 | D7: 08-454 68 88/070-5471383 | E7: 070-643 73 13 | F7: 08-554 204 32 | G7: 010-4598301 | H7: 033-480722 | I7: 070-549 19 50 | K7: 040-680 89 89 | L7: 0728-575994 | M7: 08-50607026
B8: E-postadress för avrop | C8: kamm@atta45.se | D8: Kammarkollegiet@elanders.com | E8: avropa@ljungbergs.se | F8: kammarkollegiet@ostertaljetryckeri.se | G8: vhs.tmg@tabergmediagroup.se | H8: kammarkollegiet@stema.nu | I8: avrop@kalmarkuvert.se | K8: kamavrop@exakta.se | L8: avrop@stibo.com | M8: kam@arkitektkopia.se
B9: Varor/tjänster
A10: 1 | B10: Visitkort | C10: =Visitkort!B38 -> 0 | D10: =Visitkort!F38 -> 0 | E10: =Visitkort!J38 -> 0 | F10: =Visitkort!N38 -> 0 | G10: =Visitkort!R38 -> 0 | H10: =Visitkort!V38 -> 0 | I10: =Visitkort!Z38 -> 0 | J10: =Visitkort!AD38 -> 0 | K10: =Visitkort!AH38 -> 0 | L10: =Visitkort!AL38 -> 0 | M10: =Visitkort!AP38 -> 0
A11: 2 | B11: Kollegieblock | C11: =Kollegieblock!E77 -> 0 | D11: =Kollegieblock!J77 -> 0 | E11: =Kollegieblock!O77 -> 0 | F11: =Kollegieblock!T77 -> 0 | G11: =Kollegieblock!Y77 -> 0 | H11: =Kollegieblock!AD77 -> 0 | I11: =Kollegieblock!AI77 -> 0 | J11: =Kollegieblock!AN77 -> 0 | K11: =Kollegieblock!AS77 -> 0 | L11: =Kollegieblock!AX77 -> 0 | M11: =Kollegieblock!BC77 -> 0
A12: 3 | B12: Brevpapper | C12: =Brevpapper!D88 -> 0 | D12: =Brevpapper!I88 -> 0 | E12: =Brevpapper!N88 -> 0 | F12: =Brevpapper!S88 -> 0 | G12: =Brevpapper!X88 -> 0 | H12: =Brevpapper!AC88 -> 0 | I12: =Brevpapper!AH88 -> 0 | J12: =Brevpapper!AM88 -> 0 | K12: =Brevpapper!AR88 -> 0 | L12: =Brevpapper!AW88 -> 0 | M12: =Brevpapper!BB88 -> 0
A13: 4 | B13: Kuvert | C13: =Kuvert!D83 -> 0 | D13: =Kuvert!H83 -> 0 | E13: =Kuvert!L83 -> 0 | F13: =Kuvert!P83 -> 0 | G13: =Kuvert!T83 -> 0 | H13: =Kuvert!X83 -> 0 | I13: =Kuvert!AB83 -> 0 | J13: =Kuvert!AF83 -> 0 | K13: =Kuvert!AJ83 -> 0 | L13: =Kuvert!AN83 -> 0 | M13: =Kuvert!AR83 -> 0
A14: 5 | B14: Säkerhetskuvert | C14: =Säkerhetskuvert!D26 -> 0 | D14: =Säkerhetskuvert!H26 -> 0 | E14: =Säkerhetskuvert!L26 -> 0 | F14: =Säkerhetskuvert!P26 -> 0 | G14: =Säkerhetskuvert!T26 -> 0 | H14: =Säkerhetskuvert!X26 -> 0 | I14: =Säkerhetskuvert!AB26 -> 0 | J14: =Säkerhetskuvert!AF26 -> 0 | K14: =Säkerhetskuvert!AJ26 -> 0 | L14: =Säkerhetskuvert!AN26 -> 0 | M14: =Säkerhetskuvert!AR26 -> 0
A15: 6 | B15: Korrespondenskort med kuvert | C15: =Korrespondenskort!D67 -> 0 | D15: =Korrespondenskort!H67 -> 0 | E15: =Korrespondenskort!L67 -> 0 | F15: =Korrespondenskort!P67 -> 0 | G15: =Korrespondenskort!T67 -> 0 | H15: =Korrespondenskort!X67 -> 0 | I15: =Korrespondenskort!AB67 -> 0 | J15: =Korrespondenskort!AF67 -> 0 | K15: =Korrespondenskort!AJ67 -> 0 | L15: =Korrespondenskort!AN67 -> 0 | M15: =Korrespondenskort!AR67 -> 0
A16: 7 | B16: Pappersmappar treklaff utan snodd | C16: =Pappersmapp!D50 -> 0 | D16: =Pappersmapp!H50 -> 0 | E16: =Pappersmapp!L50 -> 0 | F16: =Pappersmapp!P50 -> 0 | G16: =Pappersmapp!T50 -> 0 | H16: =Pappersmapp!X50 -> 0 | I16: =Pappersmapp!AB50 -> 0 | J16: =Pappersmapp!AF50 -> 0 | K16: =Pappersmapp!AJ50 -> 0 | L16: =Pappersmapp!AN50 -> 0 | M16: =Pappersmapp!AR50 -> 0
A17: 8 | B17: Folders | C17: =Folders!E40 -> 0 | D17: =Folders!J40 -> 0 | E17: =Folders!O40 -> 0 | F17: =Folders!T40 -> 0 | G17: =Folders!Y40 -> 0 | H17: =Folders!AD40 -> 0 | I17: =Folders!AI40 -> 0 | J17: =Folders!AN40 -> 0 | K17: =Folders!AS40 -> 0 | L17: =Folders!AX40 -> 0 | M17: =Folders!BC40 -> 0
A18: 9 | B18: Broschyrer | C18: =Broschyrer!E45 -> 0 | D18: =Broschyrer!J45 -> 0 | E18: =Broschyrer!O45 -> 0 | F18: =Broschyrer!T45 -> 0 | G18: =Broschyrer!Y45 -> 0 | H18: =Broschyrer!AD45 -> 0 | I18: =Broschyrer!AI45 -> 0 | J18: =Broschyrer!AN45 -> 0 | K18: =Broschyrer!AS45 -> 0 | L18: =Broschyrer!AX45 -> 0 | M18: =Broschyrer!BC45 -> 0
A19: 10 | B19: Statligt tryck | C19: ='Statligt tryck'!E31 -> 0 | D19: ='Statligt tryck'!J31 -> 0 | E19: ='Statligt tryck'!O31 -> 0 | F19: ='Statligt tryck'!T31 -> 0 | G19: ='Statligt tryck'!Y31 -> 0 | H19: ='Statligt tryck'!AD31 -> 0 | I19: ='Statligt tryck'!AI31 -> 0 | J19: ='Statligt tryck'!AN31 -> 0 | K19: ='Statligt tryck'!AS31 -> 0 | L19: ='Statligt tryck'!AX31 -> 0 | M19: ='Statligt tryck'!BC31 -> 0
A20: 11 | B20: Rapport | C20: =Rapport!E33 -> 0 | D20: =Rapport!J33 -> 0 | E20: =Rapport!O33 -> 0 | F20: =Rapport!T33 -> 0 | G20: =Rapport!Y33 -> 0 | H20: =Rapport!AD33 -> 0 | I20: =Rapport!AI33 -> 0 | J20: =Rapport!AN33 -> 0 | K20: =Rapport!AS33 -> 0 | L20: =Rapport!AX33 -> 0 | M20: =Rapport!BC33 -> 0
A21: 12 | B21: Katalog | C21: =Katalog!E33 -> 0 | D21: =Katalog!J33 -> 0 | E21: =Katalog!O33 -> 0 | F21: =Katalog!T33 -> 0 | G21: =Katalog!Y33 -> 0 | H21: =Katalog!AD33 -> 0 | I21: =Katalog!AI33 -> 0 | J21: =Katalog!AN33 -> 0 | K21: =Katalog!AS33 -> 0 | L21: =Katalog!AX33 -> 0 | M21: =Katalog!BC33 -> 0
A22: 13 | B22: Roll up | C22: ='Roll up'!D61 -> 0 | D22: ='Roll up'!I61 -> 0 | E22: ='Roll up'!N61 -> 0 | F22: ='Roll up'!S61 -> 0 | G22: ='Roll up'!X61 -> 0 | H22: ='Roll up'!AC61 -> 0 | I22: ='Roll up'!AH61 -> 0 | J22: ='Roll up'!AM61 -> 0 | K22: ='Roll up'!AR61 -> 0 | L22: ='Roll up'!AW61 -> 0 | M22: ='Roll up'!BB61 -> 0
A23: 14 | B23: Affischer | C23: ='Affischer och storformat'!D44 -> 0 | D23: ='Affischer och storformat'!I44 -> 0 | E23: ='Affischer och storformat'!N44 -> 0 | F23: ='Affischer och storformat'!S44 -> 0 | G23: ='Affischer och storformat'!X44 -> 0 | H23: ='Affischer och storformat'!AC44 -> 0 | I23: ='Affischer och storformat'!AH44 -> 0 | J23: ='Affischer och storformat'!AM44 -> 0 | K23: ='Affischer och storformat'!AR44 -> 0 | L23: ='Affischer och storformat'!AW44 -> 0 | M23: ='Affischer och storformat'!BB44 -> 0
A24: 15 | B24: Ateljétjänster | C24: =Ateljétjänster!B15 -> 0 | D24: =Ateljétjänster!D15 -> 0 | E24: =Ateljétjänster!F15 -> 0 | F24: =Ateljétjänster!H15 -> 0 | G24: =Ateljétjänster!J15 -> 0 | H24: =Ateljétjänster!L15 -> 0 | I24: =Ateljétjänster!N15 -> 0 | J24: =Ateljétjänster!P15 -> 0 | K24: =Ateljétjänster!R15 -> 0 | L24: =Ateljétjänster!T15 -> 0 | M24: =Ateljétjänster!V15 -> 0
S25: 2020-04-01 | T25: 2022-04-01
S26: Basmånad | T26: Ny indexmånad
B27: Summa | C27: =SUM(C10:C24) -> 0 | D27: =SUM(D10:D24) -> 0 | E27: 0 | F27: 0 | G27: 0 | H27: 0 | I27: 0 | J27: =SUM(J10:J24+16000) -> 240000 | K27: 0 | L27: 0 | M27: 0 | S27: 119.7 | T27: 134.8 | U27: 25 % AKI, arbetare inom privat sektor, SNI 2007, H+J transportföretag; informations- och kommunikationsföretag (preliminära siffror). April månad 2020 ska utgöra basmånad.
S28: 136 | T28: 151.9 | U28: 25 % AKI, tjänstemän inom privat sektor, SNI 2007, H+J transportföretag; informations- och kommunikationsföretag (preliminära siffror). April månad 2020 ska utgöra basmånad.
B29: Prisjustering enligt ramavtalet | C29: =$P$29 -> 0.2180308918 | D29: =$P$29 -> 0.2180308918 | E29: =$P$29 -> 0.2180308918 | F29: 0.2180308918 | G29: 0.2180308918 | H29: 0.2180308918 | I29: 0.2180308918 | J29: 0.2180308918 | K29: 0.2180308918 | L29: 0.2180308918 | M29: 0.2180308918 | P29: =SUM((T27/S27)*0.25+(T28/S28)*0.25+(T29/S29)*0.5)-1 -> 0.2180308918 | S29: 104.6 | T29: 137.5 | U29: 50 % ITPI, SPIN 2015, 17.1 Massa, papper och papp. April månad 2020 ska utgöra basmånad.
B31: Summa | C31: =SUM(C27*(1+C29)) -> 0 | D31: =SUM(D27*(1+D29)) -> 0 | E31: 0 | F31: 0 | G31: 0 | H31: 0 | I31: 0 | J31: 292327.414 | K31: 0 | L31: 0 | M31: 0
A34: Rangordning | C34: =_xlfn.RANK.EQ(C31,$C$31:$M$31,2) -> 1 | D34: 1 | E34: 1 | F34: 1 | G34: 1 | H34: 1 | I34: 1 | J34: 11 | K34: 1 | L34: 1 | M34: 1
C35: =SUM(C34+0.01) -> 1.01 | D35: =SUM(D34+0.02) -> 1.02 | E35: =SUM(E34+0.03) -> 1.03 | F35: =SUM(F34+0.04) -> 1.04 | G35: =SUM(G34+0.05) -> 1.05 | H35: =SUM(H34+0.06) -> 1.06 | I35: =SUM(I34+0.07) -> 1.07 | J35: =SUM(J34+0.08) -> 11.08 | K35: =SUM(K34+0.09) -> 1.09 | L35: =SUM(L34+0.1) -> 1.1 | M35: =SUM(M34+0.11) -> 1.11
C36: =_xlfn.RANK.EQ(C35,$C$35:$M$35,2) -> 1 | D36: 2 | E36: 3 | F36: 4 | G36: 5 | H36: 6 | I36: 7 | J36: 11 | K36: 8 | L36: 9 | M36: 10
C37: =COUNTIF(C34:M34,1) -> 10
I41: Pris
A42: Rangordning för avropet | C42: 1 | D42: =IF($D$56>15000,"Avropet överstiger 15 000kr, ",IF($D$56=0,"Ange vilken/vilka produkter och antal samt eventuella tillägg i de ljusgula rutorna som önskas avropas.",IF($C$36=K42,$C$4,IF($D$36=K42,$D$4,IF($E$36=K42,$E$4,IF($F$36=K42,$F$4,IF($G$36=K42,$G$4,IF($H$36=K42,$H$4,IF($I$36=K42,$I$4,IF($J$36=K42,$J$4,IF($K$36=K42,$K$4,IF($L$36=K42,$L$4,IF($M$36=K42,$M$4,"Ingen lev"))))))))))))) -> Ange vilken/vilka produkter och antal samt eventuella tillägg i de ljusgula rutorna som önskas avropas. | I42: =IF(D56=0,"",IF(C36=1,C31,IF(D36=1,D31,IF(E36=1,E31,IF(F36=1,F31,IF(G36=1,G31,IF(H36=1,H31,IF(I36=1,I31,IF(J36=1,J31,IF(K36=1,K31,IF(L36=1,L31,IF(M36=1,M31,"")))))))))))) ->  | K42: 1
C43: 2 | D43: =IF($D$56>15000,"använd förnyad konkurensutsättning för avrop",IF($D$56=0,"",IF($C$36=K43,$C$4,IF($D$36=K43,$D$4,IF($E$36=K43,$E$4,IF($F$36=K43,$F$4,IF($G$36=K43,$G$4,IF($H$36=K43,$H$4,IF($I$36=K43,$I$4,IF($J$36=K43,$J$4,IF($K$36=K43,$K$4,IF($L$36=K43,$L$4,IF($M$36=K43,$M$4,"Ingen lev"))))))))))))) ->  | I43: =IF(D56=0,"",IF(C36=2,C31,IF(D36=2,D31,IF(E36=2,E31,IF(F36=2,F31,IF(G36=2,G31,IF(H36=2,H31,IF(I36=2,I31,IF(J36=2,J31,IF(K36=2,K31,IF(L36=2,L31,IF(M36=2,M31,"")))))))))))) ->  | K43: 2
C44: 3 | D44: =IF($D$56>15000," ",IF($D$56=0,"",IF($C$36=K44,$C$4,IF($D$36=K44,$D$4,IF($E$36=K44,$E$4,IF($F$36=K44,$F$4,IF($G$36=K44,$G$4,IF($H$36=K44,$H$4,IF($I$36=K44,$I$4,IF($J$36=K44,$J$4,IF($K$36=K44,$K$4,IF($L$36=K44,$L$4,IF($M$36=K44,$M$4,"Ingen lev"))))))))))))) ->  | I44: =IF(D56=0,"",IF(C36=3,C31,IF(D36=3,D31,IF(E36=3,E31,IF(F36=3,F31,IF(G36=3,G31,IF(H36=3,H31,IF(I36=3,I31,IF(J36=3,J31,IF(K36=3,K31,IF(L36=3,L31,IF(M36=3,M31,"")))))))))))) ->  | K44: 3
C45: 4 | D45: =IF($D$56>15000," ",IF($D$56=0," ",IF($C$36=K45,$C$4,IF($D$36=K45,$D$4,IF($E$36=K45,$E$4,IF($F$36=K45,$F$4,IF($G$36=K45,$G$4,IF($H$36=K45,$H$4,IF($I$36=K45,$I$4,IF($J$36=K45,$J$4,IF($K$36=K45,$K$4,IF($L$36=K45,$L$4,IF($M$36=K45,$M$4,"Ingen lev"))))))))))))) ->  | I45: =IF(D56=0,"",IF(C36=4,C31,IF(D36=4,D31,IF(E36=4,E31,IF(F36=4,F31,IF(G36=4,G31,IF(H36=4,H31,IF(I36=4,I31,IF(J36=4,J31,IF(K36=4,K31,IF(L36=4,L31,IF(M36=4,M31,"")))))))))))) ->  | K45: 4
C46: 5 | I46: =IF(D56=0,"",IF(C36=5,C31,IF(D36=5,D31,IF(E36=5,E31,IF(F36=5,F31,IF(G36=5,G31,IF(H36=5,H31,IF(I36=5,I31,IF(J36=5,J31,IF(K36=5,K31,IF(L36=5,L31,IF(M36=5,M31,"")))))))))))) ->  | K46: 5
C47: 6 | I47: =IF(D56=0,"",IF(C36=6,C31,IF(D36=6,D31,IF(E36=6,E31,IF(F36=6,F31,IF(G36=6,G31,IF(H36=6,H31,IF(I36=6,I31,IF(J36=6,J31,IF(K36=6,K31,IF(L36=6,L31,IF(M36=6,M31,"")))))))))))) ->  | K47: 6
C48: 7 | I48: =IF(D56=0,"",IF(C36=7,C31,IF(D36=7,D31,IF(E36=7,E31,IF(F36=7,F31,IF(G36=7,G31,IF(H36=7,H31,IF(I36=7,I31,IF(J36=7,J31,IF(K36=7,K31,IF(L36=7,L31,IF(M36=7,M31,"")))))))))))) ->  | K48: 7
C49: 8 | I49: =IF(D56=0,"",IF(C36=8,C31,IF(D36=8,D31,IF(E36=8,E31,IF(F36=8,F31,IF(G36=8,G31,IF(H36=8,H31,IF(I36=8,I31,IF(J36=8,J31,IF(K36=8,K31,IF(L36=8,L31,IF(M36=8,M31,"")))))))))))) ->  | K49: 8
C50: 9 | I50: =IF(D56=0,"",IF(C36=9,C31,IF(D36=9,D31,IF(E36=9,E31,IF(F36=9,F31,IF(G36=9,G31,IF(H36=9,H31,IF(I36=9,I31,IF(J36=9,J31,IF(K36=9,K31,IF(L36=9,L31,IF(M36=9,M31,"")))))))))))) ->  | K50: 9
C51: 10 | I51: =IF(D56=0,"",IF(C36=10,C31,IF(D36=10,D31,IF(E36=10,E31,IF(F36=10,F31,IF(G36=10,G31,IF(H36=10,H31,IF(I36=10,I31,IF(J36=10,J31,IF(K36=10,K31,IF(L36=10,L31,IF(M36=10,M31,"")))))))))))) ->  | K51: 10
C52: 11 | I52: =IF(D56=0,"",IF(C36=11,C31,IF(D36=11,D31,IF(E36=11,E31,IF(F36=11,F31,IF(G36=11,G31,IF(H36=11,H31,IF(I36=11,I31,IF(J36=11,J31,IF(K36=11,K31,IF(L36=11,L31,IF(M36=11,M31,"")))))))))))) ->  | K52: 11
D56: =IF(C36=E59,C31,IF(D36=E59,D31,IF(E36=E59,E31,IF(F36=E59,F31,IF(G36=E59,G31,IF(H36=E59,H31,IF(I36=E59,I31,IF(J36=E59,J31,IF(K36=E59,K31,IF(L36=E59,L31,IF(M36=E59,M31,"Ingen lev"))))))))))) -> 0
E59: =Avropsblankett!E108 -> 1
D62: Vinnande ramavtalsleverantörs uppgifter
D63: Ramavtalslev | E63: =IF(E59=K42,D42,IF(E59=K43,D43,IF(E59=K44,D44,IF(E59=K45,D45,IF(E59=K46,D46,IF(E59=K47,D47,IF(E59=K48,D48,IF(E59=K49,D49,IF(E59=K50,D50,IF(E59=K51,D51,IF(E59=K52,D52,""))))))))))) -> Ange vilken/vilka produkter och antal samt eventuella tillägg i de ljusgula rutorna som önskas avropas.
D64: Organisationsnr | E64: =IF(E63=C4,C5,IF(E63=D4,D5,IF(E63=E4,E5,IF(E63=F4,F5,IF(E63=G4,G5,IF(E63=H4,H5,IF(E63=I4,I5,IF(E63=J4,J5,IF(E63=K4,K5,IF(E63=L4,L5,IF(E63=M4,M5,""))))))))))) -> 
D65: Kontaktperson | E65: =IF(E63=C4,C6,IF(E63=D4,D6,IF(E63=E4,E6,IF(E63=F4,F6,IF(E63=G4,G6,IF(E63=H4,H6,IF(E63=I4,I6,IF(E63=J4,J6,IF(E63=K4,K6,IF(E63=L4,L6,IF(E63=M4,M6,""))))))))))) -> 
D66: Telefonnummer | E66: =IF(E63=C4,C7,IF(E63=D4,D7,IF(E63=E4,E7,IF(E63=F4,F7,IF(E63=G4,G7,IF(E63=H4,H7,IF(E63=I4,I7,IF(E63=J4,J7,IF(E63=K4,K7,IF(E63=L4,L7,IF(E63=M4,M7,""))))))))))) -> 
D67: E-postadress för avrop | E67: =IF(E63=C4,C8,IF(E63=D4,D8,IF(E63=E4,E8,IF(E63=F4,F8,IF(E63=G4,G8,IF(E63=H4,H8,IF(E63=I4,I8,IF(E63=J4,J8,IF(E63=K4,K8,IF(E63=L4,L8,IF(E63=M4,M8,""))))))))))) -> 

Sheet Visitkort
A1: Visitkort | B1: =Uträkningsblad!C4 -> Åtta.45 Tryckeri AB | F1: Elanders Sverige AB | J1: Ljungbergs Tryckeri i Klippan AB | N1: =Uträkningsblad!F4 -> Scandinavian Print Group Sweden AB | R1: Taberg Media Group AB | V1: Stema Specialtryck AB | Z1: Kalmar Kuvert Sweden AB | AH1: Exakta Print AB | AL1: Stibo Graphic AS | AP1: Arkitektkopia Aktiebolag
A2: Underlag: | B2: A: Öppna filer. B: PDF. C: PDFx enligt gällande ISO-standard.
A3: Format: | B3: 90 x 55 mm
A4: Ytvikt: | B4: 300 g
A5: Tryck: | B5: Enligt nedan
A6: Variant 1 | B6: Mattbestruket
A7: Variant 2 | B7: Obestruket
B8: Priser lämnas i gulmarkerade fält nedan | F8: Priser lämnas i gulmarkerade fält nedan | J8: Priser lämnas i gulmarkerade fält nedan | N8: Priser lämnas i gulmarkerade fält nedan | R8: Priser lämnas i gulmarkerade fält nedan | V8: Priser lämnas i gulmarkerade fält nedan | Z8: Priser lämnas i gulmarkerade fält nedan | AD8: Priser lämnas i gulmarkerade fält nedan | AH8: Priser lämnas i gulmarkerade fält nedan | AL8: Priser lämnas i gulmarkerade fält nedan | AP8: Priser lämnas i gulmarkerade fält nedan
A9: Variant 1 Mattbestruket | B9: Upplaga | F9: Upplaga | J9: Upplaga | N9: Upplaga | R9: Upplaga | V9: Upplaga | Z9: Upplaga | AD9: Upplaga | AH9: Upplaga | AL9: Upplaga | AP9: Upplaga
B10: 100 | C10: 250 | D10: 500 | F10: 100 | G10: 250 | H10: 500 | J10: 100 | K10: 250 | L10: 500 | N10: 100 | O10: 250 | P10: 500 | R10: 100 | S10: 250 | T10: 500 | V10: 100 | W10: 250 | X10: 500 | Z10: 100 | AA10: 250 | AB10: 500 | AD10: 100 | AE10: 250 | AF10: 500 | AH10: 100 | AI10: 250 | AJ10: 500 | AL10: 100 | AM10: 250 | AN10: 500 | AP10: 100 | AQ10: 250 | AR10: 500
A11: 1+0 (svart) | B11: 100 | C11: 250 | D11: 500 | F11: 100 | G11: 125 | H11: 250 | J11: 95 | K11: 180 | L11: 260 | N11: 35 | O11: 46 | P11: 88 | R11: 220 | S11: 230 | T11: 240 | V11: 280 | W11: 357 | X11: 484 | Z11: 60 | AA11: 120 | AB11: 270 | AD11: 100 | AE11: 125 | AF11: 150 | AH11: 250 | AI11: 350 | AJ11: 450 | AL11: 250 | AM11: 300 | AN11: 400 | AP11: 400 | AQ11: 750 | AR11: 1000
A12: 1+1 (svart) | B12: 130 | C12: 280 | D12: 500 | F12: 125 | G12: 150 | H12: 300 | J12: 95 | K12: 180 | L12: 260 | N12: 35 | O12: 46 | P12: 88 | R12: 245 | S12: 255 | T12: 265 | V12: 306 | W12: 397 | X12: 551 | Z12: 75 | AA12: 150 | AB12: 330 | AD12: 115 | AE12: 145 | AF12: 175 | AH12: 300 | AI12: 400 | AJ12: 500 | AL12: 270 | AM12: 330 | AN12: 450 | AP12: 400 | AQ12: 750 | AR12: 1000
A13: 4+0 | B13: 200 | C13: 350 | D13: 500 | F13: 175 | G13: 200 | H13: 400 | J13: 95 | K13: 180 | L13: 260 | N13: 46 | O13: 46 | P13: 88 | R13: 265 | S13: 280 | T13: 295 | V13: 331 | W13: 423 | X13: 576 | Z13: 75 | AA13: 150 | AB13: 330 | AD13: 150 | AE13: 175 | AF13: 200 | AH13: 300 | AI13: 400 | AJ13: 500 | AL13: 250 | AM13: 300 | AN13: 400 | AP13: 400 | AQ13: 750 | AR13: 1000
A14: 4+4 | B14: 220 | C14: 370 | D14: 500 | F14: 225 | G14: 250 | H14: 500 | J14: 95 | K14: 180 | L14: 260 | N14: 46 | O14: 46 | P14: 88 | R14: 275 | S14: 290 | T14: 305 | V14: 357 | W14: 464 | X14: 642 | Z14: 85 | AA14: 170 | AB14: 360 | AD14: 175 | AE14: 200 | AF14: 225 | AH14: 350 | AI14: 450 | AJ14: 550 | AL14: 270 | AM14: 330 | AN14: 450 | AP14: 500 | AQ14: 850 | AR14: 1100
A15: 2+0 PMS | B15: 200 | C15: 350 | D15: 500 | F15: 350 | G15: 375 | H15: 750 | J15: 95 | K15: 180 | L15: 260 | N15: 119 | O15: 136 | P15: 237 | R15: 265 | S15: 280 | T15: 295 | V15: 765 | W15: 841 | X15: 969 | Z15: 130 | AA15: 160 | AB15: 350 | AD15: 300 | AE15: 325 | AF15: 350 | AH15: 250 | AI15: 300 | AJ15: 350 | AL15: 450 | AM15: 500 | AN15: 600 | AP15: 400 | AQ15: 750 | AR15: 1000
A16: 2+2 PMS | B16: 220 | C16: 370 | D16: 500 | F16: 475 | G16: 500 | H16: 1000 | J16: 95 | K16: 180 | L16: 260 | N16: 119 | O16: 136 | P16: 237 | R16: 275 | S16: 290 | T16: 305 | V16: 867 | W16: 979 | X16: 1173 | Z16: 140 | AA16: 180 | AB16: 380 | AD16: 325 | AE16: 350 | AF16: 375 | AH16: 300 | AI16: 400 | AJ16: 500 | AL16: 500 | AM16: 550 | AN16: 650 | AP16: 400 | AQ16: 750 | AR16: 1000
B17: =Avropsblankett!$F$28*IF(AND(Avropsblankett!$G$28=$B$10,Avropsblankett!$C$28=$B$6,Avropsblankett!$D$28=$A$11),B11,IF(AND(Avropsblankett!$G$28=$B$10,Avropsblankett!$C$28=$B$6,Avropsblankett!$D$28=$A$12),B12,IF(AND(Avropsblankett!$G$28=$B$10,Avropsblankett!$C$28=$B$6,Avropsblankett!$D$28=$A$13),B13,IF(AND(Avropsblankett!$G$28=$B$10,Avropsblankett!$C$28=$B$6,Avropsblankett!$D$28=$A$14),B14,IF(AND(Avropsblankett!$G$28=$B$10,Avropsblankett!$C$28=$B$6,Avropsblankett!$D$28=$A$15),B15,IF(AND(Avropsblankett!$G$28=$B$10,Avropsblankett!$C$28=$B$6,Avropsblankett!$D$28=$A$16),B16,0)))))) -> 0 | C17: =Avropsblankett!$F$28*IF(AND(Avropsblankett!$G$28=$C$10,Avropsblankett!$C$28=$B$6,Avropsblankett!$D$28=$A$11),C11,IF(AND(Avropsblankett!$G$28=$C$10,Avropsblankett!$C$28=$B$6,Avropsblankett!$D$28=$A$12),C12,IF(AND(Avropsblankett!$G$28=$C$10,Avropsblankett!$C$28=$B$6,Avropsblankett!$D$28=$A$13),C13,IF(AND(Avropsblankett!$G$28=$C$10,Avropsblankett!$C$28=$B$6,Avropsblankett!$D$28=$A$14),C14,IF(AND(Avropsblankett!$G$28=$C$10,Avropsblankett!$C$28=$B$6,Avropsblankett!$D$28=$A$15),C15,IF(AND(Avropsblankett!$G$28=$C$10,Avropsblankett!$C$28=$B$6,Avropsblankett!$D$28=$A$16),C16,0)))))) -> 0 | D17: =Avropsblankett!$F$28*IF(AND(Avropsblankett!$G$28=$D$10,Avropsblankett!$C$28=$B$6,Avropsblankett!$D$28=$A$11),D11,IF(AND(Avropsblankett!$G$28=$D$10,Avropsblankett!$C$28=$B$6,Avropsblankett!$D$28=$A$12),D12,IF(AND(Avropsblankett!$G$28=$D$10,Avropsblankett!$C$28=$B$6,Avropsblankett!$D$28=$A$13),D13,IF(AND(Avropsblankett!$G$28=$D$10,Avropsblankett!$C$28=$B$6,Avropsblankett!$D$28=$A$14),D14,IF(AND(Avropsblankett!$G$28=$D$10,Avropsblankett!$C$28=$B$6,Avropsblankett!$D$28=$A$15),D15,IF(AND(Avropsblankett!$G$28=$D$10,Avropsblankett!$C$28=$B$6,Avropsblankett!$D$28=$A$16),D16,0)))))) -> 0 | F17: =Avropsblankett!$F$28*IF(AND(Avropsblankett!$G$28=$B$10,Avropsblankett!$C$28=$B$6,Avropsblankett!$D$28=$A$11),F11,IF(AND(Avropsblankett!$G$28=$B$10,Avropsblankett!$C$28=$B$6,Avropsblankett!$D$28=$A$12),F12,IF(AND(Avropsblankett!$G$28=$B$10,Avropsblankett!$C$28=$B$6,Avropsblankett!$D$28=$A$13),F13,IF(AND(Avropsblankett!$G$28=$B$10,Avropsblankett!$C$28=$B$6,Avropsblankett!$D$28=$A$14),F14,IF(AND(Avropsblankett!$G$28=$B$10,Avropsblankett!$C$28=$B$6,Avropsblankett!$D$28=$A$15),F15,IF(AND(Avropsblankett!$G$28=$B$10,Avropsblankett!$C$28=$B$6,Avropsblankett!$D$28=$A$16),F16,0)))))) -> 0 | G17: =Avropsblankett!$F$28*IF(AND(Avropsblankett!$G$28=$C$10,Avropsblankett!$C$28=$B$6,Avropsblankett!$D$28=$A$11),G11,IF(AND(Avropsblankett!$G$28=$C$10,Avropsblankett!$C$28=$B$6,Avropsblankett!$D$28=$A$12),G12,IF(AND(Avropsblankett!$G$28=$C$10,Avropsblankett!$C$28=$B$6,Avropsblankett!$D$28=$A$13),G13,IF(AND(Avropsblankett!$G$28=$C$10,Avropsblankett!$C$28=$B$6,Avropsblankett!$D$28=$A$14),G14,IF(AND(Avropsblankett!$G$28=$C$10,Avropsblankett!$C$28=$B$6,Avropsblankett!$D$28=$A$15),G15,IF(AND(Avropsblankett!$G$28=$C$10,Avropsblankett!$C$28=$B$6,Avropsblankett!$D$28=$A$16),G16,0)))))) -> 0 | H17: =Avropsblankett!$F$28*IF(AND(Avropsblankett!$G$28=$D$10,Avropsblankett!$C$28=$B$6,Avropsblankett!$D$28=$A$11),H11,IF(AND(Avropsblankett!$G$28=$D$10,Avropsblankett!$C$28=$B$6,Avropsblankett!$D$28=$A$12),H12,IF(AND(Avropsblankett!$G$28=$D$10,Avropsblankett!$C$28=$B$6,Avropsblankett!$D$28=$A$13),H13,IF(AND(Avropsblankett!$G$28=$D$10,Avropsblankett!$C$28=$B$6,Avropsblankett!$D$28=$A$14),H14,IF(AND(Avropsblankett!$G$28=$D$10,Avropsblankett!$C$28=$B$6,Avropsblankett!$D$28=$A$15),H15,IF(AND(Avropsblankett!$G$28=$D$10,Avropsblankett!$C$28=$B$6,Avropsblankett!$D$28=$A$16),H16,0)))))) -> 0 | J17: =Avropsblankett!$F$28*IF(AND(Avropsblankett!$G$28=$B$10,Avropsblankett!$C$28=$B$6,Avropsblankett!$D$28=$A$11),J11,IF(AND(Avropsblankett!$G$28=$B$10,Avropsblankett!$C$28=$B$6,Avropsblankett!$D$28=$A$12),J12,IF(AND(Avropsblankett!$G$28=$B$10,Avropsblankett!$C$28=$B$6,Avropsblankett!$D$28=$A$13),J13,IF(AND(Avropsblankett!$G$28=$B$10,Avropsblankett!$C$28=$B$6,Avropsblankett!$D$28=$A$14),J14,IF(AND(Avropsblankett!$G$28=$B$10,Avropsblankett!$C$28=$B$6,Avropsblankett!$D$28=$A$15),J15,IF(AND(Avropsblankett!$G$28=$B$10,Avropsblankett!$C$28=$B$6,Avropsblankett!$D$28=$A$16),J16,0)))))) -> 0 | K17: =Avropsblankett!$F$28*IF(AND(Avropsblankett!$G$28=$C$10,Avropsblankett!$C$28=$B$6,Avropsblankett!$D$28=$A$11),K11,IF(AND(Avropsblankett!$G$28=$C$10,Avropsblankett!$C$28=$B$6,Avropsblankett!$D$28=$A$12),K12,IF(AND(Avropsblankett!$G$28=$C$10,Avropsblankett!$C$28=$B$6,Avropsblankett!$D$28=$A$13),K13,IF(AND(Avropsblankett!$G$28=$C$10,Avropsblankett!$C$28=$B$6,Avropsblankett!$D$28=$A$14),K14,IF(AND(Avropsblankett!$G$28=$C$10,Avropsblankett!$C$28=$B$6,Avropsblankett!$D$28=$A$15),K15,IF(AND(Avropsblankett!$G$28=$C$10,Avropsblankett!$C$28=$B$6,Avropsblankett!$D$28=$A$16),K16,0)))))) -> 0 | L17: =Avropsblankett!$F$28*IF(AND(Avropsblankett!$G$28=$D$10,Avropsblankett!$C$28=$B$6,Avropsblankett!$D$28=$A$11),L11,IF(AND(Avropsblankett!$G$28=$D$10,Avropsblankett!$C$28=$B$6,Avropsblankett!$D$28=$A$12),L12,IF(AND(Avropsblankett!$G$28=$D$10,Avropsblankett!$C$28=$B$6,Avropsblankett!$D$28=$A$13),L13,IF(AND(Avropsblankett!$G$28=$D$10,Avropsblankett!$C$28=$B$6,Avropsblankett!$D$28=$A$14),L14,IF(AND(Avropsblankett!$G$28=$D$10,Avropsblankett!$C$28=$B$6,Avropsblankett!$D$28=$A$15),L15,IF(AND(Avropsblankett!$G$28=$D$10,Avropsblankett!$C$28=$B$6,Avropsblankett!$D$28=$A$16),L16,0)))))) -> 0 | N17: =Avropsblankett!$F$28*IF(AND(Avropsblankett!$G$28=$B$10,Avropsblankett!$C$28=$B$6,Avropsblankett!$D$28=$A$11),N11,IF(AND(Avropsblankett!$G$28=$B$10,Avropsblankett!$C$28=$B$6,Avropsblankett!$D$28=$A$12),N12,IF(AND(Avropsblankett!$G$28=$B$10,Avropsblankett!$C$28=$B$6,Avropsblankett!$D$28=$A$13),N13,IF(AND(Avropsblankett!$G$28=$B$10,Avropsblankett!$C$28=$B$6,Avropsblankett!$D$28=$A$14),N14,IF(AND(Avropsblankett!$G$28=$B$10,Avropsblankett!$C$28=$B$6,Avropsblankett!$D$28=$A$15),N15,IF(AND(Avropsblankett!$G$28=$B$10,Avropsblankett!$C$28=$B$6,Avropsblankett!$D$28=$A$16),N16,0)))))) -> 0 | O17: =Avropsblankett!$F$28*IF(AND(Avropsblankett!$G$28=$C$10,Avropsblankett!$C$28=$B$6,Avropsblankett!$D$28=$A$11),O11,IF(AND(Avropsblankett!$G$28=$C$10,Avropsblankett!$C$28=$B$6,Avropsblankett!$D$28=$A$12),O12,IF(AND(Avropsblankett!$G$28=$C$10,Avropsblankett!$C$28=$B$6,Avropsblankett!$D$28=$A$13),O13,IF(AND(Avropsblankett!$G$28=$C$10,Avropsblankett!$C$28=$B$6,Avropsblankett!$D$28=$A$14),O14,IF(AND(Avropsblankett!$G$28=$C$10,Avropsblankett!$C$28=$B$6,Avropsblankett!$D$28=$A$15),O15,IF(AND(Avropsblankett!$G$28=$C$10,Avropsblankett!$C$28=$B$6,Avropsblankett!$D$28=$A$16),O16,0)))))) -> 0 | P17: =Avropsblankett!$F$28*IF(AND(Avropsblankett!$G$28=$D$10,Avropsblankett!$C$28=$B$6,Avropsblankett!$D$28=$A$11),P11,IF(AND(Avropsblankett!$G$28=$D$10,Avropsblankett!$C$28=$B$6,Avropsblankett!$D$28=$A$12),P12,IF(AND(Avropsblankett!$G$28=$D$10,Avropsblankett!$C$28=$B$6,Avropsblankett!$D$28=$A$13),P13,IF(AND(Avropsblankett!$G$28=$D$10,Avropsblankett!$C$28=$B$6,Avropsblankett!$D$28=$A$14),P14,IF(AND(Avropsblankett!$G$28=$D$10,Avropsblankett!$C$28=$B$6,Avropsblankett!$D$28=$A$15),P15,IF(AND(Avropsblankett!$G$28=$D$10,Avropsblankett!$C$28=$B$6,Avropsblankett!$D$28=$A$16),P16,0)))))) -> 0 | R17: =Avropsblankett!$F$28*IF(AND(Avropsblankett!$G$28=$B$10,Avropsblankett!$C$28=$B$6,Avropsblankett!$D$28=$A$11),R11,IF(AND(Avropsblankett!$G$28=$B$10,Avropsblankett!$C$28=$B$6,Avropsblankett!$D$28=$A$12),R12,IF(AND(Avropsblankett!$G$28=$B$10,Avropsblankett!$C$28=$B$6,Avropsblankett!$D$28=$A$13),R13,IF(AND(Avropsblankett!$G$28=$B$10,Avropsblankett!$C$28=$B$6,Avropsblankett!$D$28=$A$14),R14,IF(AND(Avropsblankett!$G$28=$B$10,Avropsblankett!$C$28=$B$6,Avropsblankett!$D$28=$A$15),R15,IF(AND(Avropsblankett!$G$28=$B$10,Avropsblankett!$C$28=$B$6,Avropsblankett!$D$28=$A$16),R16,0)))))) -> 0 | S17: =Avropsblankett!$F$28*IF(AND(Avropsblankett!$G$28=$C$10,Avropsblankett!$C$28=$B$6,Avropsblankett!$D$28=$A$11),S11,IF(AND(Avropsblankett!$G$28=$C$10,Avropsblankett!$C$28=$B$6,Avropsblankett!$D$28=$A$12),S12,IF(AND(Avropsblankett!$G$28=$C$10,Avropsblankett!$C$28=$B$6,Avropsblankett!$D$28=$A$13),S13,IF(AND(Avropsblankett!$G$28=$C$10,Avropsblankett!$C$28=$B$6,Avropsblankett!$D$28=$A$14),S14,IF(AND(Avropsblankett!$G$28=$C$10,Avropsblankett!$C$28=$B$6,Avropsblankett!$D$28=$A$15),S15,IF(AND(Avropsblankett!$G$28=$C$10,Avropsblankett!$C$28=$B$6,Avropsblankett!$D$28=$A$16),S16,0)))))) -> 0 | T17: =Avropsblankett!$F$28*IF(AND(Avropsblankett!$G$28=$D$10,Avropsblankett!$C$28=$B$6,Avropsblankett!$D$28=$A$11),T11,IF(AND(Avropsblankett!$G$28=$D$10,Avropsblankett!$C$28=$B$6,Avropsblankett!$D$28=$A$12),T12,IF(AND(Avropsblankett!$G$28=$D$10,Avropsblankett!$C$28=$B$6,Avropsblankett!$D$28=$A$13),T13,IF(AND(Avropsblankett!$G$28=$D$10,Avropsblankett!$C$28=$B$6,Avropsblankett!$D$28=$A$14),T14,IF(AND(Avropsblankett!$G$28=$D$10,Avropsblankett!$C$28=$B$6,Avropsblankett!$D$28=$A$15),T15,IF(AND(Avropsblankett!$G$28=$D$10,Avropsblankett!$C$28=$B$6,Avropsblankett!$D$28=$A$16),T16,0)))))) -> 0 | V17: =Avropsblankett!$F$28*IF(AND(Avropsblankett!$G$28=$B$10,Avropsblankett!$C$28=$B$6,Avropsblankett!$D$28=$A$11),V11,IF(AND(Avropsblankett!$G$28=$B$10,Avropsblankett!$C$28=$B$6,Avropsblankett!$D$28=$A$12),V12,IF(AND(Avropsblankett!$G$28=$B$10,Avropsblankett!$C$28=$B$6,Avropsblankett!$D$28=$A$13),V13,IF(AND(Avropsblankett!$G$28=$B$10,Avropsblankett!$C$28=$B$6,Avropsblankett!$D$28=$A$14),V14,IF(AND(Avropsblankett!$G$28=$B$10,Avropsblankett!$C$28=$B$6,Avropsblankett!$D$28=$A$15),V15,IF(AND(Avropsblankett!$G$28=$B$10,Avropsblankett!$C$28=$B$6,Avropsblankett!$D$28=$A$16),V16,0)))))) -> 0 | W17: =Avropsblankett!$F$28*IF(AND(Avropsblankett!$G$28=$C$10,Avropsblankett!$C$28=$B$6,Avropsblankett!$D$28=$A$11),W11,IF(AND(Avropsblankett!$G$28=$C$10,Avropsblankett!$C$28=$B$6,Avropsblankett!$D$28=$A$12),W12,IF(AND(Avropsblankett!$G$28=$C$10,Avropsblankett!$C$28=$B$6,Avropsblankett!$D$28=$A$13),W13,IF(AND(Avropsblankett!$G$28=$C$10,Avropsblankett!$C$28=$B$6,Avropsblankett!$D$28=$A$14),W14,IF(AND(Avropsblankett!$G$28=$C$10,Avropsblankett!$C$28=$B$6,Avropsblankett!$D$28=$A$15),W15,IF(AND(Avropsblankett!$G$28=$C$10,Avropsblankett!$C$28=$B$6,Avropsblankett!$D$28=$A$16),W16,0)))))) -> 0 | X17: =Avropsblankett!$F$28*IF(AND(Avropsblankett!$G$28=$D$10,Avropsblankett!$C$28=$B$6,Avropsblankett!$D$28=$A$11),X11,IF(AND(Avropsblankett!$G$28=$D$10,Avropsblankett!$C$28=$B$6,Avropsblankett!$D$28=$A$12),X12,IF(AND(Avropsblankett!$G$28=$D$10,Avropsblankett!$C$28=$B$6,Avropsblankett!$D$28=$A$13),X13,IF(AND(Avropsblankett!$G$28=$D$10,Avropsblankett!$C$28=$B$6,Avropsblankett!$D$28=$A$14),X14,IF(AND(Avropsblankett!$G$28=$D$10,Avropsblankett!$C$28=$B$6,Avropsblankett!$D$28=$A$15),X15,IF(AND(Avropsblankett!$G$28=$D$10,Avropsblankett!$C$28=$B$6,Avropsblankett!$D$28=$A$16),X16,0)))))) -> 0 | Z17: =Avropsblankett!$F$28*IF(AND(Avropsblankett!$G$28=$B$10,Avropsblankett!$C$28=$B$6,Avropsblankett!$D$28=$A$11),Z11,IF(AND(Avropsblankett!$G$28=$B$10,Avropsblankett!$C$28=$B$6,Avropsblankett!$D$28=$A$12),Z12,IF(AND(Avropsblankett!$G$28=$B$10,Avropsblankett!$C$28=$B$6,Avropsblankett!$D$28=$A$13),Z13,IF(AND(Avropsblankett!$G$28=$B$10,Avropsblankett!$C$28=$B$6,Avropsblankett!$D$28=$A$14),Z14,IF(AND(Avropsblankett!$G$28=$B$10,Avropsblankett!$C$28=$B$6,Avropsblankett!$D$28=$A$15),Z15,IF(AND(Avropsblankett!$G$28=$B$10,Avropsblankett!$C$28=$B$6,Avropsblankett!$D$28=$A$16),Z16,0)))))) -> 0 | AA17: =Avropsblankett!$F$28*IF(AND(Avropsblankett!$G$28=$C$10,Avropsblankett!$C$28=$B$6,Avropsblankett!$D$28=$A$11),AA11,IF(AND(Avropsblankett!$G$28=$C$10,Avropsblankett!$C$28=$B$6,Avropsblankett!$D$28=$A$12),AA12,IF(AND(Avropsblankett!$G$28=$C$10,Avropsblankett!$C$28=$B$6,Avropsblankett!$D$28=$A$13),AA13,IF(AND(Avropsblankett!$G$28=$C$10,Avropsblankett!$C$28=$B$6,Avropsblankett!$D$28=$A$14),AA14,IF(AND(Avropsblankett!$G$28=$C$10,Avropsblankett!$C$28=$B$6,Avropsblankett!$D$28=$A$15),AA15,IF(AND(Avropsblankett!$G$28=$C$10,Avropsblankett!$C$28=$B$6,Avropsblankett!$D$28=$A$16),AA16,0)))))) -> 0 | AB17: =Avropsblankett!$F$28*IF(AND(Avropsblankett!$G$28=$D$10,Avropsblankett!$C$28=$B$6,Avropsblankett!$D$28=$A$11),AB11,IF(AND(Avropsblankett!$G$28=$D$10,Avropsblankett!$C$28=$B$6,Avropsblankett!$D$28=$A$12),AB12,IF(AND(Avropsblankett!$G$28=$D$10,Avropsblankett!$C$28=$B$6,Avropsblankett!$D$28=$A$13),AB13,IF(AND(Avropsblankett!$G$28=$D$10,Avropsblankett!$C$28=$B$6,Avropsblankett!$D$28=$A$14),AB14,IF(AND(Avropsblankett!$G$28=$D$10,Avropsblankett!$C$28=$B$6,Avropsblankett!$D$28=$A$15),AB15,IF(AND(Avropsblankett!$G$28=$D$10,Avropsblankett!$C$28=$B$6,Avropsblankett!$D$28=$A$16),AB16,0)))))) -> 0 | AD17: =Avropsblankett!$F$28*IF(AND(Avropsblankett!$G$28=$B$10,Avropsblankett!$C$28=$B$6,Avropsblankett!$D$28=$A$11),AD11,IF(AND(Avropsblankett!$G$28=$B$10,Avropsblankett!$C$28=$B$6,Avropsblankett!$D$28=$A$12),AD12,IF(AND(Avropsblankett!$G$28=$B$10,Avropsblankett!$C$28=$B$6,Avropsblankett!$D$28=$A$13),AD13,IF(AND(Avropsblankett!$G$28=$B$10,Avropsblankett!$C$28=$B$6,Avropsblankett!$D$28=$A$14),AD14,IF(AND(Avropsblankett!$G$28=$B$10,Avropsblankett!$C$28=$B$6,Avropsblankett!$D$28=$A$15),AD15,IF(AND(Avropsblankett!$G$28=$B$10,Avropsblankett!$C$28=$B$6,Avropsblankett!$D$28=$A$16),AD16,0)))))) -> 0 | AE17: =Avropsblankett!$F$28*IF(AND(Avropsblankett!$G$28=$C$10,Avropsblankett!$C$28=$B$6,Avropsblankett!$D$28=$A$11),AE11,IF(AND(Avropsblankett!$G$28=$C$10,Avropsblankett!$C$28=$B$6,Avropsblankett!$D$28=$A$12),AE12,IF(AND(Avropsblankett!$G$28=$C$10,Avropsblankett!$C$28=$B$6,Avropsblankett!$D$28=$A$13),AE13,IF(AND(Avropsblankett!$G$28=$C$10,Avropsblankett!$C$28=$B$6,Avropsblankett!$D$28=$A$14),AE14,IF(AND(Avropsblankett!$G$28=$C$10,Avropsblankett!$C$28=$B$6,Avropsblankett!$D$28=$A$15),AE15,IF(AND(Avropsblankett!$G$28=$C$10,Avropsblankett!$C$28=$B$6,Avropsblankett!$D$28=$A$16),AE16,0)))))) -> 0 | AF17: =Avropsblankett!$F$28*IF(AND(Avropsblankett!$G$28=$D$10,Avropsblankett!$C$28=$B$6,Avropsblankett!$D$28=$A$11),AF11,IF(AND(Avropsblankett!$G$28=$D$10,Avropsblankett!$C$28=$B$6,Avropsblankett!$D$28=$A$12),AF12,IF(AND(Avropsblankett!$G$28=$D$10,Avropsblankett!$C$28=$B$6,Avropsblankett!$D$28=$A$13),AF13,IF(AND(Avropsblankett!$G$28=$D$10,Avropsblankett!$C$28=$B$6,Avropsblankett!$D$28=$A$14),AF14,IF(AND(Avropsblankett!$G$28=$D$10,Avropsblankett!$C$28=$B$6,Avropsblankett!$D$28=$A$15),AF15,IF(AND(Avropsblankett!$G$28=$D$10,Avropsblankett!$C$28=$B$6,Avropsblankett!$D$28=$A$16),AF16,0)))))) -> 0 | AH17: =Avropsblankett!$F$28*IF(AND(Avropsblankett!$G$28=$B$10,Avropsblankett!$C$28=$B$6,Avropsblankett!$D$28=$A$11),AH11,IF(AND(Avropsblankett!$G$28=$B$10,Avropsblankett!$C$28=$B$6,Avropsblankett!$D$28=$A$12),AH12,IF(AND(Avropsblankett!$G$28=$B$10,Avropsblankett!$C$28=$B$6,Avropsblankett!$D$28=$A$13),AH13,IF(AND(Avropsblankett!$G$28=$B$10,Avropsblankett!$C$28=$B$6,Avropsblankett!$D$28=$A$14),AH14,IF(AND(Avropsblankett!$G$28=$B$10,Avropsblankett!$C$28=$B$6,Avropsblankett!$D$28=$A$15),AH15,IF(AND(Avropsblankett!$G$28=$B$10,Avropsblankett!$C$28=$B$6,Avropsblankett!$D$28=$A$16),AH16,0)))))) -> 0 | AI17: =Avropsblankett!$F$28*IF(AND(Avropsblankett!$G$28=$C$10,Avropsblankett!$C$28=$B$6,Avropsblankett!$D$28=$A$11),AI11,IF(AND(Avropsblankett!$G$28=$C$10,Avropsblankett!$C$28=$B$6,Avropsblankett!$D$28=$A$12),AI12,IF(AND(Avropsblankett!$G$28=$C$10,Avropsblankett!$C$28=$B$6,Avropsblankett!$D$28=$A$13),AI13,IF(AND(Avropsblankett!$G$28=$C$10,Avropsblankett!$C$28=$B$6,Avropsblankett!$D$28=$A$14),AI14,IF(AND(Avropsblankett!$G$28=$C$10,Avropsblankett!$C$28=$B$6,Avropsblankett!$D$28=$A$15),AI15,IF(AND(Avropsblankett!$G$28=$C$10,Avropsblankett!$C$28=$B$6,Avropsblankett!$D$28=$A$16),AI16,0)))))) -> 0 | AJ17: =Avropsblankett!$F$28*IF(AND(Avropsblankett!$G$28=$D$10,Avropsblankett!$C$28=$B$6,Avropsblankett!$D$28=$A$11),AJ11,IF(AND(Avropsblankett!$G$28=$D$10,Avropsblankett!$C$28=$B$6,Avropsblankett!$D$28=$A$12),AJ12,IF(AND(Avropsblankett!$G$28=$D$10,Avropsblankett!$C$28=$B$6,Avropsblankett!$D$28=$A$13),AJ13,IF(AND(Avropsblankett!$G$28=$D$10,Avropsblankett!$C$28=$B$6,Avropsblankett!$D$28=$A$14),AJ14,IF(AND(Avropsblankett!$G$28=$D$10,Avropsblankett!$C$28=$B$6,Avropsblankett!$D$28=$A$15),AJ15,IF(AND(Avropsblankett!$G$28=$D$10,Avropsblankett!$C$28=$B$6,Avropsblankett!$D$28=$A$16),AJ16,0)))))) -> 0 | AL17: =Avropsblankett!$F$28*IF(AND(Avropsblankett!$G$28=$B$10,Avropsblankett!$C$28=$B$6,Avropsblankett!$D$28=$A$11),AL11,IF(AND(Avropsblankett!$G$28=$B$10,Avropsblankett!$C$28=$B$6,Avropsblankett!$D$28=$A$12),AL12,IF(AND(Avropsblankett!$G$28=$B$10,Avropsblankett!$C$28=$B$6,Avropsblankett!$D$28=$A$13),AL13,IF(AND(Avropsblankett!$G$28=$B$10,Avropsblankett!$C$28=$B$6,Avropsblankett!$D$28=$A$14),AL14,IF(AND(Avropsblankett!$G$28=$B$10,Avropsblankett!$C$28=$B$6,Avropsblankett!$D$28=$A$15),AL15,IF(AND(Avropsblankett!$G$28=$B$10,Avropsblankett!$C$28=$B$6,Avropsblankett!$D$28=$A$16),AL16,0)))))) -> 0 | AM17: =Avropsblankett!$F$28*IF(AND(Avropsblankett!$G$28=$C$10,Avropsblankett!$C$28=$B$6,Avropsblankett!$D$28=$A$11),AM11,IF(AND(Avropsblankett!$G$28=$C$10,Avropsblankett!$C$28=$B$6,Avropsblankett!$D$28=$A$12),AM12,IF(AND(Avropsblankett!$G$28=$C$10,Avropsblankett!$C$28=$B$6,Avropsblankett!$D$28=$A$13),AM13,IF(AND(Avropsblankett!$G$28=$C$10,Avropsblankett!$C$28=$B$6,Avropsblankett!$D$28=$A$14),AM14,IF(AND(Avropsblankett!$G$28=$C$10,Avropsblankett!$C$28=$B$6,Avropsblankett!$D$28=$A$15),AM15,IF(AND(Avropsblankett!$G$28=$C$10,Avropsblankett!$C$28=$B$6,Avropsblankett!$D$28=$A$16),AM16,0)))))) -> 0 | AN17: =Avropsblankett!$F$28*IF(AND(Avropsblankett!$G$28=$D$10,Avropsblankett!$C$28=$B$6,Avropsblankett!$D$28=$A$11),AN11,IF(AND(Avropsblankett!$G$28=$D$10,Avropsblankett!$C$28=$B$6,Avropsblankett!$D$28=$A$12),AN12,IF(AND(Avropsblankett!$G$28=$D$10,Avropsblankett!$C$28=$B$6,Avropsblankett!$D$28=$A$13),AN13,IF(AND(Avropsblankett!$G$28=$D$10,Avropsblankett!$C$28=$B$6,Avropsblankett!$D$28=$A$14),AN14,IF(AND(Avropsblankett!$G$28=$D$10,Avropsblankett!$C$28=$B$6,Avropsblankett!$D$28=$A$15),AN15,IF(AND(Avropsblankett!$G$28=$D$10,Avropsblankett!$C$28=$B$6,Avropsblankett!$D$28=$A$16),AN16,0)))))) -> 0 | AP17: =Avropsblankett!$F$28*IF(AND(Avropsblankett!$G$28=$B$10,Avropsblankett!$C$28=$B$6,Avropsblankett!$D$28=$A$11),AP11,IF(AND(Avropsblankett!$G$28=$B$10,Avropsblankett!$C$28=$B$6,Avropsblankett!$D$28=$A$12),AP12,IF(AND(Avropsblankett!$G$28=$B$10,Avropsblankett!$C$28=$B$6,Avropsblankett!$D$28=$A$13),AP13,IF(AND(Avropsblankett!$G$28=$B$10,Avropsblankett!$C$28=$B$6,Avropsblankett!$D$28=$A$14),AP14,IF(AND(Avropsblankett!$G$28=$B$10,Avropsblankett!$C$28=$B$6,Avropsblankett!$D$28=$A$15),AP15,IF(AND(Avropsblankett!$G$28=$B$10,Avropsblankett!$C$28=$B$6,Avropsblankett!$D$28=$A$16),AP16,0)))))) -> 0 | AQ17: =Avropsblankett!$F$28*IF(AND(Avropsblankett!$G$28=$C$10,Avropsblankett!$C$28=$B$6,Avropsblankett!$D$28=$A$11),AQ11,IF(AND(Avropsblankett!$G$28=$C$10,Avropsblankett!$C$28=$B$6,Avropsblankett!$D$28=$A$12),AQ12,IF(AND(Avropsblankett!$G$28=$C$10,Avropsblankett!$C$28=$B$6,Avropsblankett!$D$28=$A$13),AQ13,IF(AND(Avropsblankett!$G$28=$C$10,Avropsblankett!$C$28=$B$6,Avropsblankett!$D$28=$A$14),AQ14,IF(AND(Avropsblankett!$G$28=$C$10,Avropsblankett!$C$28=$B$6,Avropsblankett!$D$28=$A$15),AQ15,IF(AND(Avropsblankett!$G$28=$C$10,Avropsblankett!$C$28=$B$6,Avropsblankett!$D$28=$A$16),AQ16,0)))))) -> 0 | AR17: =Avropsblankett!$F$28*IF(AND(Avropsblankett!$G$28=$D$10,Avropsblankett!$C$28=$B$6,Avropsblankett!$D$28=$A$11),AR11,IF(AND(Avropsblankett!$G$28=$D$10,Avropsblankett!$C$28=$B$6,Avropsblankett!$D$28=$A$12),AR12,IF(AND(Avropsblankett!$G$28=$D$10,Avropsblankett!$C$28=$B$6,Avropsblankett!$D$28=$A$13),AR13,IF(AND(Avropsblankett!$G$28=$D$10,Avropsblankett!$C$28=$B$6,Avropsblankett!$D$28=$A$14),AR14,IF(AND(Avropsblankett!$G$28=$D$10,Avropsblankett!$C$28=$B$6,Avropsblankett!$D$28=$A$15),AR15,IF(AND(Avropsblankett!$G$28=$D$10,Avropsblankett!$C$28=$B$6,Avropsblankett!$D$28=$A$16),AR16,0)))))) -> 0
B18: =Avropsblankett!$F$40*IF(AND(Avropsblankett!$G$40=$B$10,Avropsblankett!$C$40=$B$6,Avropsblankett!$D$40=$A$11),B11,IF(AND(Avropsblankett!$G$40=$B$10,Avropsblankett!$C$40=$B$6,Avropsblankett!$D$40=$A$12),B12,IF(AND(Avropsblankett!$G$40=$B$10,Avropsblankett!$C$40=$B$6,Avropsblankett!$D$40=$A$13),B13,IF(AND(Avropsblankett!$G$40=$B$10,Avropsblankett!$C$40=$B$6,Avropsblankett!$D$40=$A$14),B14,IF(AND(Avropsblankett!$G$40=$B$10,Avropsblankett!$C$40=$B$6,Avropsblankett!$D$40=$A$15),B15,IF(AND(Avropsblankett!$G$40=$B$10,Avropsblankett!$C$40=$B$6,Avropsblankett!$D$40=$A$16),B16,0)))))) -> 0 | C18: =Avropsblankett!$F$40*IF(AND(Avropsblankett!$G$40=$C$10,Avropsblankett!$C$40=$B$6,Avropsblankett!$D$40=$A$11),C11,IF(AND(Avropsblankett!$G$40=$C$10,Avropsblankett!$C$40=$B$6,Avropsblankett!$D$40=$A$12),C12,IF(AND(Avropsblankett!$G$40=$C$10,Avropsblankett!$C$40=$B$6,Avropsblankett!$D$40=$A$13),C13,IF(AND(Avropsblankett!$G$40=$C$10,Avropsblankett!$C$40=$B$6,Avropsblankett!$D$40=$A$14),C14,IF(AND(Avropsblankett!$G$40=$C$10,Avropsblankett!$C$40=$B$6,Avropsblankett!$D$40=$A$15),C15,IF(AND(Avropsblankett!$G$40=$C$10,Avropsblankett!$C$40=$B$6,Avropsblankett!$D$40=$A$16),C16,0)))))) -> 0 | D18: =Avropsblankett!$F$40*IF(AND(Avropsblankett!$G$40=$D$10,Avropsblankett!$C$40=$B$6,Avropsblankett!$D$40=$A$11),D11,IF(AND(Avropsblankett!$G$40=$D$10,Avropsblankett!$C$40=$B$6,Avropsblankett!$D$40=$A$12),D12,IF(AND(Avropsblankett!$G$40=$D$10,Avropsblankett!$C$40=$B$6,Avropsblankett!$D$40=$A$13),D13,IF(AND(Avropsblankett!$G$40=$D$10,Avropsblankett!$C$40=$B$6,Avropsblankett!$D$40=$A$14),D14,IF(AND(Avropsblankett!$G$40=$D$10,Avropsblankett!$C$40=$B$6,Avropsblankett!$D$40=$A$15),D15,IF(AND(Avropsblankett!$G$40=$D$10,Avropsblankett!$C$40=$B$6,Avropsblankett!$D$40=$A$16),D16,0)))))) -> 0 | F18: =Avropsblankett!$F$40*IF(AND(Avropsblankett!$G$40=$B$10,Avropsblankett!$C$40=$B$6,Avropsblankett!$D$40=$A$11),F11,IF(AND(Avropsblankett!$G$40=$B$10,Avropsblankett!$C$40=$B$6,Avropsblankett!$D$40=$A$12),F12,IF(AND(Avropsblankett!$G$40=$B$10,Avropsblankett!$C$40=$B$6,Avropsblankett!$D$40=$A$13),F13,IF(AND(Avropsblankett!$G$40=$B$10,Avropsblankett!$C$40=$B$6,Avropsblankett!$D$40=$A$14),F14,IF(AND(Avropsblankett!$G$40=$B$10,Avropsblankett!$C$40=$B$6,Avropsblankett!$D$40=$A$15),F15,IF(AND(Avropsblankett!$G$40=$B$10,Avropsblankett!$C$40=$B$6,Avropsblankett!$D$40=$A$16),F16,0)))))) -> 0 | G18: =Avropsblankett!$F$40*IF(AND(Avropsblankett!$G$40=$C$10,Avropsblankett!$C$40=$B$6,Avropsblankett!$D$40=$A$11),G11,IF(AND(Avropsblankett!$G$40=$C$10,Avropsblankett!$C$40=$B$6,Avropsblankett!$D$40=$A$12),G12,IF(AND(Avropsblankett!$G$40=$C$10,Avropsblankett!$C$40=$B$6,Avropsblankett!$D$40=$A$13),G13,IF(AND(Avropsblankett!$G$40=$C$10,Avropsblankett!$C$40=$B$6,Avropsblankett!$D$40=$A$14),G14,IF(AND(Avropsblankett!$G$40=$C$10,Avropsblankett!$C$40=$B$6,Avropsblankett!$D$40=$A$15),G15,IF(AND(Avropsblankett!$G$40=$C$10,Avropsblankett!$C$40=$B$6,Avropsblankett!$D$40=$A$16),G16,0)))))) -> 0 | H18: =Avropsblankett!$F$40*IF(AND(Avropsblankett!$G$40=$D$10,Avropsblankett!$C$40=$B$6,Avropsblankett!$D$40=$A$11),H11,IF(AND(Avropsblankett!$G$40=$D$10,Avropsblankett!$C$40=$B$6,Avropsblankett!$D$40=$A$12),H12,IF(AND(Avropsblankett!$G$40=$D$10,Avropsblankett!$C$40=$B$6,Avropsblankett!$D$40=$A$13),H13,IF(AND(Avropsblankett!$G$40=$D$10,Avropsblankett!$C$40=$B$6,Avropsblankett!$D$40=$A$14),H14,IF(AND(Avropsblankett!$G$40=$D$10,Avropsblankett!$C$40=$B$6,Avropsblankett!$D$40=$A$15),H15,IF(AND(Avropsblankett!$G$40=$D$10,Avropsblankett!$C$40=$B$6,Avropsblankett!$D$40=$A$16),H16,0)))))) -> 0 | J18: =Avropsblankett!$F$40*IF(AND(Avropsblankett!$G$40=$B$10,Avropsblankett!$C$40=$B$6,Avropsblankett!$D$40=$A$11),J11,IF(AND(Avropsblankett!$G$40=$B$10,Avropsblankett!$C$40=$B$6,Avropsblankett!$D$40=$A$12),J12,IF(AND(Avropsblankett!$G$40=$B$10,Avropsblankett!$C$40=$B$6,Avropsblankett!$D$40=$A$13),J13,IF(AND(Avropsblankett!$G$40=$B$10,Avropsblankett!$C$40=$B$6,Avropsblankett!$D$40=$A$14),J14,IF(AND(Avropsblankett!$G$40=$B$10,Avropsblankett!$C$40=$B$6,Avropsblankett!$D$40=$A$15),J15,IF(AND(Avropsblankett!$G$40=$B$10,Avropsblankett!$C$40=$B$6,Avropsblankett!$D$40=$A$16),J16,0)))))) -> 0 | K18: =Avropsblankett!$F$40*IF(AND(Avropsblankett!$G$40=$C$10,Avropsblankett!$C$40=$B$6,Avropsblankett!$D$40=$A$11),K11,IF(AND(Avropsblankett!$G$40=$C$10,Avropsblankett!$C$40=$B$6,Avropsblankett!$D$40=$A$12),K12,IF(AND(Avropsblankett!$G$40=$C$10,Avropsblankett!$C$40=$B$6,Avropsblankett!$D$40=$A$13),K13,IF(AND(Avropsblankett!$G$40=$C$10,Avropsblankett!$C$40=$B$6,Avropsblankett!$D$40=$A$14),K14,IF(AND(Avropsblankett!$G$40=$C$10,Avropsblankett!$C$40=$B$6,Avropsblankett!$D$40=$A$15),K15,IF(AND(Avropsblankett!$G$40=$C$10,Avropsblankett!$C$40=$B$6,Avropsblankett!$D$40=$A$16),K16,0)))))) -> 0 | L18: =Avropsblankett!$F$40*IF(AND(Avropsblankett!$G$40=$D$10,Avropsblankett!$C$40=$B$6,Avropsblankett!$D$40=$A$11),L11,IF(AND(Avropsblankett!$G$40=$D$10,Avropsblankett!$C$40=$B$6,Avropsblankett!$D$40=$A$12),L12,IF(AND(Avropsblankett!$G$40=$D$10,Avropsblankett!$C$40=$B$6,Avropsblankett!$D$40=$A$13),L13,IF(AND(Avropsblankett!$G$40=$D$10,Avropsblankett!$C$40=$B$6,Avropsblankett!$D$40=$A$14),L14,IF(AND(Avropsblankett!$G$40=$D$10,Avropsblankett!$C$40=$B$6,Avropsblankett!$D$40=$A$15),L15,IF(AND(Avropsblankett!$G$40=$D$10,Avropsblankett!$C$40=$B$6,Avropsblankett!$D$40=$A$16),L16,0)))))) -> 0 | N18: =Avropsblankett!$F$40*IF(AND(Avropsblankett!$G$40=$B$10,Avropsblankett!$C$40=$B$6,Avropsblankett!$D$40=$A$11),N11,IF(AND(Avropsblankett!$G$40=$B$10,Avropsblankett!$C$40=$B$6,Avropsblankett!$D$40=$A$12),N12,IF(AND(Avropsblankett!$G$40=$B$10,Avropsblankett!$C$40=$B$6,Avropsblankett!$D$40=$A$13),N13,IF(AND(Avropsblankett!$G$40=$B$10,Avropsblankett!$C$40=$B$6,Avropsblankett!$D$40=$A$14),N14,IF(AND(Avropsblankett!$G$40=$B$10,Avropsblankett!$C$40=$B$6,Avropsblankett!$D$40=$A$15),N15,IF(AND(Avropsblankett!$G$40=$B$10,Avropsblankett!$C$40=$B$6,Avropsblankett!$D$40=$A$16),N16,0)))))) -> 0 | O18: =Avropsblankett!$F$40*IF(AND(Avropsblankett!$G$40=$C$10,Avropsblankett!$C$40=$B$6,Avropsblankett!$D$40=$A$11),O11,IF(AND(Avropsblankett!$G$40=$C$10,Avropsblankett!$C$40=$B$6,Avropsblankett!$D$40=$A$12),O12,IF(AND(Avropsblankett!$G$40=$C$10,Avropsblankett!$C$40=$B$6,Avropsblankett!$D$40=$A$13),O13,IF(AND(Avropsblankett!$G$40=$C$10,Avropsblankett!$C$40=$B$6,Avropsblankett!$D$40=$A$14),O14,IF(AND(Avropsblankett!$G$40=$C$10,Avropsblankett!$C$40=$B$6,Avropsblankett!$D$40=$A$15),O15,IF(AND(Avropsblankett!$G$40=$C$10,Avropsblankett!$C$40=$B$6,Avropsblankett!$D$40=$A$16),O16,0)))))) -> 0 | P18: =Avropsblankett!$F$40*IF(AND(Avropsblankett!$G$40=$D$10,Avropsblankett!$C$40=$B$6,Avropsblankett!$D$40=$A$11),P11,IF(AND(Avropsblankett!$G$40=$D$10,Avropsblankett!$C$40=$B$6,Avropsblankett!$D$40=$A$12),P12,IF(AND(Avropsblankett!$G$40=$D$10,Avropsblankett!$C$40=$B$6,Avropsblankett!$D$40=$A$13),P13,IF(AND(Avropsblankett!$G$40=$D$10,Avropsblankett!$C$40=$B$6,Avropsblankett!$D$40=$A$14),P14,IF(AND(Avropsblankett!$G$40=$D$10,Avropsblankett!$C$40=$B$6,Avropsblankett!$D$40=$A$15),P15,IF(AND(Avropsblankett!$G$40=$D$10,Avropsblankett!$C$40=$B$6,Avropsblankett!$D$40=$A$16),P16,0)))))) -> 0 | R18: =Avropsblankett!$F$40*IF(AND(Avropsblankett!$G$40=$B$10,Avropsblankett!$C$40=$B$6,Avropsblankett!$D$40=$A$11),R11,IF(AND(Avropsblankett!$G$40=$B$10,Avropsblankett!$C$40=$B$6,Avropsblankett!$D$40=$A$12),R12,IF(AND(Avropsblankett!$G$40=$B$10,Avropsblankett!$C$40=$B$6,Avropsblankett!$D$40=$A$13),R13,IF(AND(Avropsblankett!$G$40=$B$10,Avropsblankett!$C$40=$B$6,Avropsblankett!$D$40=$A$14),R14,IF(AND(Avropsblankett!$G$40=$B$10,Avropsblankett!$C$40=$B$6,Avropsblankett!$D$40=$A$15),R15,IF(AND(Avropsblankett!$G$40=$B$10,Avropsblankett!$C$40=$B$6,Avropsblankett!$D$40=$A$16),R16,0)))))) -> 0 | S18: =Avropsblankett!$F$40*IF(AND(Avropsblankett!$G$40=$C$10,Avropsblankett!$C$40=$B$6,Avropsblankett!$D$40=$A$11),S11,IF(AND(Avropsblankett!$G$40=$C$10,Avropsblankett!$C$40=$B$6,Avropsblankett!$D$40=$A$12),S12,IF(AND(Avropsblankett!$G$40=$C$10,Avropsblankett!$C$40=$B$6,Avropsblankett!$D$40=$A$13),S13,IF(AND(Avropsblankett!$G$40=$C$10,Avropsblankett!$C$40=$B$6,Avropsblankett!$D$40=$A$14),S14,IF(AND(Avropsblankett!$G$40=$C$10,Avropsblankett!$C$40=$B$6,Avropsblankett!$D$40=$A$15),S15,IF(AND(Avropsblankett!$G$40=$C$10,Avropsblankett!$C$40=$B$6,Avropsblankett!$D$40=$A$16),S16,0)))))) -> 0 | T18: =Avropsblankett!$F$40*IF(AND(Avropsblankett!$G$40=$D$10,Avropsblankett!$C$40=$B$6,Avropsblankett!$D$40=$A$11),T11,IF(AND(Avropsblankett!$G$40=$D$10,Avropsblankett!$C$40=$B$6,Avropsblankett!$D$40=$A$12),T12,IF(AND(Avropsblankett!$G$40=$D$10,Avropsblankett!$C$40=$B$6,Avropsblankett!$D$40=$A$13),T13,IF(AND(Avropsblankett!$G$40=$D$10,Avropsblankett!$C$40=$B$6,Avropsblankett!$D$40=$A$14),T14,IF(AND(Avropsblankett!$G$40=$D$10,Avropsblankett!$C$40=$B$6,Avropsblankett!$D$40=$A$15),T15,IF(AND(Avropsblankett!$G$40=$D$10,Avropsblankett!$C$40=$B$6,Avropsblankett!$D$40=$A$16),T16,0)))))) -> 0 | V18: =Avropsblankett!$F$40*IF(AND(Avropsblankett!$G$40=$B$10,Avropsblankett!$C$40=$B$6,Avropsblankett!$D$40=$A$11),V11,IF(AND(Avropsblankett!$G$40=$B$10,Avropsblankett!$C$40=$B$6,Avropsblankett!$D$40=$A$12),V12,IF(AND(Avropsblankett!$G$40=$B$10,Avropsblankett!$C$40=$B$6,Avropsblankett!$D$40=$A$13),V13,IF(AND(Avropsblankett!$G$40=$B$10,Avropsblankett!$C$40=$B$6,Avropsblankett!$D$40=$A$14),V14,IF(AND(Avropsblankett!$G$40=$B$10,Avropsblankett!$C$40=$B$6,Avropsblankett!$D$40=$A$15),V15,IF(AND(Avropsblankett!$G$40=$B$10,Avropsblankett!$C$40=$B$6,Avropsblankett!$D$40=$A$16),V16,0)))))) -> 0 | W18: =Avropsblankett!$F$40*IF(AND(Avropsblankett!$G$40=$C$10,Avropsblankett!$C$40=$B$6,Avropsblankett!$D$40=$A$11),W11,IF(AND(Avropsblankett!$G$40=$C$10,Avropsblankett!$C$40=$B$6,Avropsblankett!$D$40=$A$12),W12,IF(AND(Avropsblankett!$G$40=$C$10,Avropsblankett!$C$40=$B$6,Avropsblankett!$D$40=$A$13),W13,IF(AND(Avropsblankett!$G$40=$C$10,Avropsblankett!$C$40=$B$6,Avropsblankett!$D$40=$A$14),W14,IF(AND(Avropsblankett!$G$40=$C$10,Avropsblankett!$C$40=$B$6,Avropsblankett!$D$40=$A$15),W15,IF(AND(Avropsblankett!$G$40=$C$10,Avropsblankett!$C$40=$B$6,Avropsblankett!$D$40=$A$16),W16,0)))))) -> 0 | X18: =Avropsblankett!$F$40*IF(AND(Avropsblankett!$G$40=$D$10,Avropsblankett!$C$40=$B$6,Avropsblankett!$D$40=$A$11),X11,IF(AND(Avropsblankett!$G$40=$D$10,Avropsblankett!$C$40=$B$6,Avropsblankett!$D$40=$A$12),X12,IF(AND(Avropsblankett!$G$40=$D$10,Avropsblankett!$C$40=$B$6,Avropsblankett!$D$40=$A$13),X13,IF(AND(Avropsblankett!$G$40=$D$10,Avropsblankett!$C$40=$B$6,Avropsblankett!$D$40=$A$14),X14,IF(AND(Avropsblankett!$G$40=$D$10,Avropsblankett!$C$40=$B$6,Avropsblankett!$D$40=$A$15),X15,IF(AND(Avropsblankett!$G$40=$D$10,Avropsblankett!$C$40=$B$6,Avropsblankett!$D$40=$A$16),X16,0)))))) -> 0 | Z18: =Avropsblankett!$F$40*IF(AND(Avropsblankett!$G$40=$B$10,Avropsblankett!$C$40=$B$6,Avropsblankett!$D$40=$A$11),Z11,IF(AND(Avropsblankett!$G$40=$B$10,Avropsblankett!$C$40=$B$6,Avropsblankett!$D$40=$A$12),Z12,IF(AND(Avropsblankett!$G$40=$B$10,Avropsblankett!$C$40=$B$6,Avropsblankett!$D$40=$A$13),Z13,IF(AND(Avropsblankett!$G$40=$B$10,Avropsblankett!$C$40=$B$6,Avropsblankett!$D$40=$A$14),Z14,IF(AND(Avropsblankett!$G$40=$B$10,Avropsblankett!$C$40=$B$6,Avropsblankett!$D$40=$A$15),Z15,IF(AND(Avropsblankett!$G$40=$B$10,Avropsblankett!$C$40=$B$6,Avropsblankett!$D$40=$A$16),Z16,0)))))) -> 0 | AA18: =Avropsblankett!$F$40*IF(AND(Avropsblankett!$G$40=$C$10,Avropsblankett!$C$40=$B$6,Avropsblankett!$D$40=$A$11),AA11,IF(AND(Avropsblankett!$G$40=$C$10,Avropsblankett!$C$40=$B$6,Avropsblankett!$D$40=$A$12),AA12,IF(AND(Avropsblankett!$G$40=$C$10,Avropsblankett!$C$40=$B$6,Avropsblankett!$D$40=$A$13),AA13,IF(AND(Avropsblankett!$G$40=$C$10,Avropsblankett!$C$40=$B$6,Avropsblankett!$D$40=$A$14),AA14,IF(AND(Avropsblankett!$G$40=$C$10,Avropsblankett!$C$40=$B$6,Avropsblankett!$D$40=$A$15),AA15,IF(AND(Avropsblankett!$G$40=$C$10,Avropsblankett!$C$40=$B$6,Avropsblankett!$D$40=$A$16),AA16,0)))))) -> 0 | AB18: =Avropsblankett!$F$40*IF(AND(Avropsblankett!$G$40=$D$10,Avropsblankett!$C$40=$B$6,Avropsblankett!$D$40=$A$11),AB11,IF(AND(Avropsblankett!$G$40=$D$10,Avropsblankett!$C$40=$B$6,Avropsblankett!$D$40=$A$12),AB12,IF(AND(Avropsblankett!$G$40=$D$10,Avropsblankett!$C$40=$B$6,Avropsblankett!$D$40=$A$13),AB13,IF(AND(Avropsblankett!$G$40=$D$10,Avropsblankett!$C$40=$B$6,Avropsblankett!$D$40=$A$14),AB14,IF(AND(Avropsblankett!$G$40=$D$10,Avropsblankett!$C$40=$B$6,Avropsblankett!$D$40=$A$15),AB15,IF(AND(Avropsblankett!$G$40=$D$10,Avropsblankett!$C$40=$B$6,Avropsblankett!$D$40=$A$16),AB16,0)))))) -> 0 | AD18: =Avropsblankett!$F$40*IF(AND(Avropsblankett!$G$40=$B$10,Avropsblankett!$C$40=$B$6,Avropsblankett!$D$40=$A$11),AD11,IF(AND(Avropsblankett!$G$40=$B$10,Avropsblankett!$C$40=$B$6,Avropsblankett!$D$40=$A$12),AD12,IF(AND(Avropsblankett!$G$40=$B$10,Avropsblankett!$C$40=$B$6,Avropsblankett!$D$40=$A$13),AD13,IF(AND(Avropsblankett!$G$40=$B$10,Avropsblankett!$C$40=$B$6,Avropsblankett!$D$40=$A$14),AD14,IF(AND(Avropsblankett!$G$40=$B$10,Avropsblankett!$C$40=$B$6,Avropsblankett!$D$40=$A$15),AD15,IF(AND(Avropsblankett!$G$40=$B$10,Avropsblankett!$C$40=$B$6,Avropsblankett!$D$40=$A$16),AD16,0)))))) -> 0 | AE18: =Avropsblankett!$F$40*IF(AND(Avropsblankett!$G$40=$C$10,Avropsblankett!$C$40=$B$6,Avropsblankett!$D$40=$A$11),AE11,IF(AND(Avropsblankett!$G$40=$C$10,Avropsblankett!$C$40=$B$6,Avropsblankett!$D$40=$A$12),AE12,IF(AND(Avropsblankett!$G$40=$C$10,Avropsblankett!$C$40=$B$6,Avropsblankett!$D$40=$A$13),AE13,IF(AND(Avropsblankett!$G$40=$C$10,Avropsblankett!$C$40=$B$6,Avropsblankett!$D$40=$A$14),AE14,IF(AND(Avropsblankett!$G$40=$C$10,Avropsblankett!$C$40=$B$6,Avropsblankett!$D$40=$A$15),AE15,IF(AND(Avropsblankett!$G$40=$C$10,Avropsblankett!$C$40=$B$6,Avropsblankett!$D$40=$A$16),AE16,0)))))) -> 0 | AF18: =Avropsblankett!$F$40*IF(AND(Avropsblankett!$G$40=$D$10,Avropsblankett!$C$40=$B$6,Avropsblankett!$D$40=$A$11),AF11,IF(AND(Avropsblankett!$G$40=$D$10,Avropsblankett!$C$40=$B$6,Avropsblankett!$D$40=$A$12),AF12,IF(AND(Avropsblankett!$G$40=$D$10,Avropsblankett!$C$40=$B$6,Avropsblankett!$D$40=$A$13),AF13,IF(AND(Avropsblankett!$G$40=$D$10,Avropsblankett!$C$40=$B$6,Avropsblankett!$D$40=$A$14),AF14,IF(AND(Avropsblankett!$G$40=$D$10,Avropsblankett!$C$40=$B$6,Avropsblankett!$D$40=$A$15),AF15,IF(AND(Avropsblankett!$G$40=$D$10,Avropsblankett!$C$40=$B$6,Avropsblankett!$D$40=$A$16),AF16,0)))))) -> 0 | AH18: =Avropsblankett!$F$40*IF(AND(Avropsblankett!$G$40=$B$10,Avropsblankett!$C$40=$B$6,Avropsblankett!$D$40=$A$11),AH11,IF(AND(Avropsblankett!$G$40=$B$10,Avropsblankett!$C$40=$B$6,Avropsblankett!$D$40=$A$12),AH12,IF(AND(Avropsblankett!$G$40=$B$10,Avropsblankett!$C$40=$B$6,Avropsblankett!$D$40=$A$13),AH13,IF(AND(Avropsblankett!$G$40=$B$10,Avropsblankett!$C$40=$B$6,Avropsblankett!$D$40=$A$14),AH14,IF(AND(Avropsblankett!$G$40=$B$10,Avropsblankett!$C$40=$B$6,Avropsblankett!$D$40=$A$15),AH15,IF(AND(Avropsblankett!$G$40=$B$10,Avropsblankett!$C$40=$B$6,Avropsblankett!$D$40=$A$16),AH16,0)))))) -> 0 | AI18: =Avropsblankett!$F$40*IF(AND(Avropsblankett!$G$40=$C$10,Avropsblankett!$C$40=$B$6,Avropsblankett!$D$40=$A$11),AI11,IF(AND(Avropsblankett!$G$40=$C$10,Avropsblankett!$C$40=$B$6,Avropsblankett!$D$40=$A$12),AI12,IF(AND(Avropsblankett!$G$40=$C$10,Avropsblankett!$C$40=$B$6,Avropsblankett!$D$40=$A$13),AI13,IF(AND(Avropsblankett!$G$40=$C$10,Avropsblankett!$C$40=$B$6,Avropsblankett!$D$40=$A$14),AI14,IF(AND(Avropsblankett!$G$40=$C$10,Avropsblankett!$C$40=$B$6,Avropsblankett!$D$40=$A$15),AI15,IF(AND(Avropsblankett!$G$40=$C$10,Avropsblankett!$C$40=$B$6,Avropsblankett!$D$40=$A$16),AI16,0)))))) -> 0 | AJ18: =Avropsblankett!$F$40*IF(AND(Avropsblankett!$G$40=$D$10,Avropsblankett!$C$40=$B$6,Avropsblankett!$D$40=$A$11),AJ11,IF(AND(Avropsblankett!$G$40=$D$10,Avropsblankett!$C$40=$B$6,Avropsblankett!$D$40=$A$12),AJ12,IF(AND(Avropsblankett!$G$40=$D$10,Avropsblankett!$C$40=$B$6,Avropsblankett!$D$40=$A$13),AJ13,IF(AND(Avropsblankett!$G$40=$D$10,Avropsblankett!$C$40=$B$6,Avropsblankett!$D$40=$A$14),AJ14,IF(AND(Avropsblankett!$G$40=$D$10,Avropsblankett!$C$40=$B$6,Avropsblankett!$D$40=$A$15),AJ15,IF(AND(Avropsblankett!$G$40=$D$10,Avropsblankett!$C$40=$B$6,Avropsblankett!$D$40=$A$16),AJ16,0)))))) -> 0 | AL18: =Avropsblankett!$F$40*IF(AND(Avropsblankett!$G$40=$B$10,Avropsblankett!$C$40=$B$6,Avropsblankett!$D$40=$A$11),AL11,IF(AND(Avropsblankett!$G$40=$B$10,Avropsblankett!$C$40=$B$6,Avropsblankett!$D$40=$A$12),AL12,IF(AND(Avropsblankett!$G$40=$B$10,Avropsblankett!$C$40=$B$6,Avropsblankett!$D$40=$A$13),AL13,IF(AND(Avropsblankett!$G$40=$B$10,Avropsblankett!$C$40=$B$6,Avropsblankett!$D$40=$A$14),AL14,IF(AND(Avropsblankett!$G$40=$B$10,Avropsblankett!$C$40=$B$6,Avropsblankett!$D$40=$A$15),AL15,IF(AND(Avropsblankett!$G$40=$B$10,Avropsblankett!$C$40=$B$6,Avropsblankett!$D$40=$A$16),AL16,0)))))) -> 0 | AM18: =Avropsblankett!$F$40*IF(AND(Avropsblankett!$G$40=$C$10,Avropsblankett!$C$40=$B$6,Avropsblankett!$D$40=$A$11),AM11,IF(AND(Avropsblankett!$G$40=$C$10,Avropsblankett!$C$40=$B$6,Avropsblankett!$D$40=$A$12),AM12,IF(AND(Avropsblankett!$G$40=$C$10,Avropsblankett!$C$40=$B$6,Avropsblankett!$D$40=$A$13),AM13,IF(AND(Avropsblankett!$G$40=$C$10,Avropsblankett!$C$40=$B$6,Avropsblankett!$D$40=$A$14),AM14,IF(AND(Avropsblankett!$G$40=$C$10,Avropsblankett!$C$40=$B$6,Avropsblankett!$D$40=$A$15),AM15,IF(AND(Avropsblankett!$G$40=$C$10,Avropsblankett!$C$40=$B$6,Avropsblankett!$D$40=$A$16),AM16,0)))))) -> 0 | AN18: =Avropsblankett!$F$40*IF(AND(Avropsblankett!$G$40=$D$10,Avropsblankett!$C$40=$B$6,Avropsblankett!$D$40=$A$11),AN11,IF(AND(Avropsblankett!$G$40=$D$10,Avropsblankett!$C$40=$B$6,Avropsblankett!$D$40=$A$12),AN12,IF(AND(Avropsblankett!$G$40=$D$10,Avropsblankett!$C$40=$B$6,Avropsblankett!$D$40=$A$13),AN13,IF(AND(Avropsblankett!$G$40=$D$10,Avropsblankett!$C$40=$B$6,Avropsblankett!$D$40=$A$14),AN14,IF(AND(Avropsblankett!$G$40=$D$10,Avropsblankett!$C$40=$B$6,Avropsblankett!$D$40=$A$15),AN15,IF(AND(Avropsblankett!$G$40=$D$10,Avropsblankett!$C$40=$B$6,Avropsblankett!$D$40=$A$16),AN16,0)))))) -> 0 | AP18: =Avropsblankett!$F$40*IF(AND(Avropsblankett!$G$40=$B$10,Avropsblankett!$C$40=$B$6,Avropsblankett!$D$40=$A$11),AP11,IF(AND(Avropsblankett!$G$40=$B$10,Avropsblankett!$C$40=$B$6,Avropsblankett!$D$40=$A$12),AP12,IF(AND(Avropsblankett!$G$40=$B$10,Avropsblankett!$C$40=$B$6,Avropsblankett!$D$40=$A$13),AP13,IF(AND(Avropsblankett!$G$40=$B$10,Avropsblankett!$C$40=$B$6,Avropsblankett!$D$40=$A$14),AP14,IF(AND(Avropsblankett!$G$40=$B$10,Avropsblankett!$C$40=$B$6,Avropsblankett!$D$40=$A$15),AP15,IF(AND(Avropsblankett!$G$40=$B$10,Avropsblankett!$C$40=$B$6,Avropsblankett!$D$40=$A$16),AP16,0)))))) -> 0 | AQ18: =Avropsblankett!$F$40*IF(AND(Avropsblankett!$G$40=$C$10,Avropsblankett!$C$40=$B$6,Avropsblankett!$D$40=$A$11),AQ11,IF(AND(Avropsblankett!$G$40=$C$10,Avropsblankett!$C$40=$B$6,Avropsblankett!$D$40=$A$12),AQ12,IF(AND(Avropsblankett!$G$40=$C$10,Avropsblankett!$C$40=$B$6,Avropsblankett!$D$40=$A$13),AQ13,IF(AND(Avropsblankett!$G$40=$C$10,Avropsblankett!$C$40=$B$6,Avropsblankett!$D$40=$A$14),AQ14,IF(AND(Avropsblankett!$G$40=$C$10,Avropsblankett!$C$40=$B$6,Avropsblankett!$D$40=$A$15),AQ15,IF(AND(Avropsblankett!$G$40=$C$10,Avropsblankett!$C$40=$B$6,Avropsblankett!$D$40=$A$16),AQ16,0)))))) -> 0 | AR18: =Avropsblankett!$F$40*IF(AND(Avropsblankett!$G$40=$D$10,Avropsblankett!$C$40=$B$6,Avropsblankett!$D$40=$A$11),AR11,IF(AND(Avropsblankett!$G$40=$D$10,Avropsblankett!$C$40=$B$6,Avropsblankett!$D$40=$A$12),AR12,IF(AND(Avropsblankett!$G$40=$D$10,Avropsblankett!$C$40=$B$6,Avropsblankett!$D$40=$A$13),AR13,IF(AND(Avropsblankett!$G$40=$D$10,Avropsblankett!$C$40=$B$6,Avropsblankett!$D$40=$A$14),AR14,IF(AND(Avropsblankett!$G$40=$D$10,Avropsblankett!$C$40=$B$6,Avropsblankett!$D$40=$A$15),AR15,IF(AND(Avropsblankett!$G$40=$D$10,Avropsblankett!$C$40=$B$6,Avropsblankett!$D$40=$A$16),AR16,0)))))) -> 0
B19: =Avropsblankett!$F$52*IF(AND(Avropsblankett!$G$52=$B$10,Avropsblankett!$C$52=$B$6,Avropsblankett!$D$52=$A$11),B11,IF(AND(Avropsblankett!$G$52=$B$10,Avropsblankett!$C$52=$B$6,Avropsblankett!$D$52=$A$12),B12,IF(AND(Avropsblankett!$G$52=$B$10,Avropsblankett!$C$52=$B$6,Avropsblankett!$D$52=$A$13),B13,IF(AND(Avropsblankett!$G$52=$B$10,Avropsblankett!$C$52=$B$6,Avropsblankett!$D$52=$A$14),B14,IF(AND(Avropsblankett!$G$52=$B$10,Avropsblankett!$C$52=$B$6,Avropsblankett!$D$52=$A$15),B15,IF(AND(Avropsblankett!$G$52=$B$10,Avropsblankett!$C$52=$B$6,Avropsblankett!$D$52=$A$16),B16,0)))))) -> 0 | C19: =Avropsblankett!$F$52*IF(AND(Avropsblankett!$G$52=$C$10,Avropsblankett!$C$52=$B$6,Avropsblankett!$D$52=$A$11),C11,IF(AND(Avropsblankett!$G$52=$C$10,Avropsblankett!$C$52=$B$6,Avropsblankett!$D$52=$A$12),C12,IF(AND(Avropsblankett!$G$52=$C$10,Avropsblankett!$C$52=$B$6,Avropsblankett!$D$52=$A$13),C13,IF(AND(Avropsblankett!$G$52=$C$10,Avropsblankett!$C$52=$B$6,Avropsblankett!$D$52=$A$14),C14,IF(AND(Avropsblankett!$G$52=$C$10,Avropsblankett!$C$52=$B$6,Avropsblankett!$D$52=$A$15),C15,IF(AND(Avropsblankett!$G$52=$C$10,Avropsblankett!$C$52=$B$6,Avropsblankett!$D$52=$A$16),C16,0)))))) -> 0 | D19: =Avropsblankett!$F$52*IF(AND(Avropsblankett!$G$52=$D$10,Avropsblankett!$C$52=$B$6,Avropsblankett!$D$52=$A$11),D11,IF(AND(Avropsblankett!$G$52=$D$10,Avropsblankett!$C$52=$B$6,Avropsblankett!$D$52=$A$12),D12,IF(AND(Avropsblankett!$G$52=$D$10,Avropsblankett!$C$52=$B$6,Avropsblankett!$D$52=$A$13),D13,IF(AND(Avropsblankett!$G$52=$D$10,Avropsblankett!$C$52=$B$6,Avropsblankett!$D$52=$A$14),D14,IF(AND(Avropsblankett!$G$52=$D$10,Avropsblankett!$C$52=$B$6,Avropsblankett!$D$52=$A$15),D15,IF(AND(Avropsblankett!$G$52=$D$10,Avropsblankett!$C$52=$B$6,Avropsblankett!$D$52=$A$16),D16,0)))))) -> 0 | F19: =Avropsblankett!$F$52*IF(AND(Avropsblankett!$G$52=$B$10,Avropsblankett!$C$52=$B$6,Avropsblankett!$D$52=$A$11),F11,IF(AND(Avropsblankett!$G$52=$B$10,Avropsblankett!$C$52=$B$6,Avropsblankett!$D$52=$A$12),F12,IF(AND(Avropsblankett!$G$52=$B$10,Avropsblankett!$C$52=$B$6,Avropsblankett!$D$52=$A$13),F13,IF(AND(Avropsblankett!$G$52=$B$10,Avropsblankett!$C$52=$B$6,Avropsblankett!$D$52=$A$14),F14,IF(AND(Avropsblankett!$G$52=$B$10,Avropsblankett!$C$52=$B$6,Avropsblankett!$D$52=$A$15),F15,IF(AND(Avropsblankett!$G$52=$B$10,Avropsblankett!$C$52=$B$6,Avropsblankett!$D$52=$A$16),F16,0)))))) -> 0 | G19: =Avropsblankett!$F$52*IF(AND(Avropsblankett!$G$52=$C$10,Avropsblankett!$C$52=$B$6,Avropsblankett!$D$52=$A$11),G11,IF(AND(Avropsblankett!$G$52=$C$10,Avropsblankett!$C$52=$B$6,Avropsblankett!$D$52=$A$12),G12,IF(AND(Avropsblankett!$G$52=$C$10,Avropsblankett!$C$52=$B$6,Avropsblankett!$D$52=$A$13),G13,IF(AND(Avropsblankett!$G$52=$C$10,Avropsblankett!$C$52=$B$6,Avropsblankett!$D$52=$A$14),G14,IF(AND(Avropsblankett!$G$52=$C$10,Avropsblankett!$C$52=$B$6,Avropsblankett!$D$52=$A$15),G15,IF(AND(Avropsblankett!$G$52=$C$10,Avropsblankett!$C$52=$B$6,Avropsblankett!$D$52=$A$16),G16,0)))))) -> 0 | H19: =Avropsblankett!$F$52*IF(AND(Avropsblankett!$G$52=$D$10,Avropsblankett!$C$52=$B$6,Avropsblankett!$D$52=$A$11),H11,IF(AND(Avropsblankett!$G$52=$D$10,Avropsblankett!$C$52=$B$6,Avropsblankett!$D$52=$A$12),H12,IF(AND(Avropsblankett!$G$52=$D$10,Avropsblankett!$C$52=$B$6,Avropsblankett!$D$52=$A$13),H13,IF(AND(Avropsblankett!$G$52=$D$10,Avropsblankett!$C$52=$B$6,Avropsblankett!$D$52=$A$14),H14,IF(AND(Avropsblankett!$G$52=$D$10,Avropsblankett!$C$52=$B$6,Avropsblankett!$D$52=$A$15),H15,IF(AND(Avropsblankett!$G$52=$D$10,Avropsblankett!$C$52=$B$6,Avropsblankett!$D$52=$A$16),H16,0)))))) -> 0 | J19: =Avropsblankett!$F$52*IF(AND(Avropsblankett!$G$52=$B$10,Avropsblankett!$C$52=$B$6,Avropsblankett!$D$52=$A$11),J11,IF(AND(Avropsblankett!$G$52=$B$10,Avropsblankett!$C$52=$B$6,Avropsblankett!$D$52=$A$12),J12,IF(AND(Avropsblankett!$G$52=$B$10,Avropsblankett!$C$52=$B$6,Avropsblankett!$D$52=$A$13),J13,IF(AND(Avropsblankett!$G$52=$B$10,Avropsblankett!$C$52=$B$6,Avropsblankett!$D$52=$A$14),J14,IF(AND(Avropsblankett!$G$52=$B$10,Avropsblankett!$C$52=$B$6,Avropsblankett!$D$52=$A$15),J15,IF(AND(Avropsblankett!$G$52=$B$10,Avropsblankett!$C$52=$B$6,Avropsblankett!$D$52=$A$16),J16,0)))))) -> 0 | K19: =Avropsblankett!$F$52*IF(AND(Avropsblankett!$G$52=$C$10,Avropsblankett!$C$52=$B$6,Avropsblankett!$D$52=$A$11),K11,IF(AND(Avropsblankett!$G$52=$C$10,Avropsblankett!$C$52=$B$6,Avropsblankett!$D$52=$A$12),K12,IF(AND(Avropsblankett!$G$52=$C$10,Avropsblankett!$C$52=$B$6,Avropsblankett!$D$52=$A$13),K13,IF(AND(Avropsblankett!$G$52=$C$10,Avropsblankett!$C$52=$B$6,Avropsblankett!$D$52=$A$14),K14,IF(AND(Avropsblankett!$G$52=$C$10,Avropsblankett!$C$52=$B$6,Avropsblankett!$D$52=$A$15),K15,IF(AND(Avropsblankett!$G$52=$C$10,Avropsblankett!$C$52=$B$6,Avropsblankett!$D$52=$A$16),K16,0)))))) -> 0 | L19: =Avropsblankett!$F$52*IF(AND(Avropsblankett!$G$52=$D$10,Avropsblankett!$C$52=$B$6,Avropsblankett!$D$52=$A$11),L11,IF(AND(Avropsblankett!$G$52=$D$10,Avropsblankett!$C$52=$B$6,Avropsblankett!$D$52=$A$12),L12,IF(AND(Avropsblankett!$G$52=$D$10,Avropsblankett!$C$52=$B$6,Avropsblankett!$D$52=$A$13),L13,IF(AND(Avropsblankett!$G$52=$D$10,Avropsblankett!$C$52=$B$6,Avropsblankett!$D$52=$A$14),L14,IF(AND(Avropsblankett!$G$52=$D$10,Avropsblankett!$C$52=$B$6,Avropsblankett!$D$52=$A$15),L15,IF(AND(Avropsblankett!$G$52=$D$10,Avropsblankett!$C$52=$B$6,Avropsblankett!$D$52=$A$16),L16,0)))))) -> 0 | N19: =Avropsblankett!$F$52*IF(AND(Avropsblankett!$G$52=$B$10,Avropsblankett!$C$52=$B$6,Avropsblankett!$D$52=$A$11),N11,IF(AND(Avropsblankett!$G$52=$B$10,Avropsblankett!$C$52=$B$6,Avropsblankett!$D$52=$A$12),N12,IF(AND(Avropsblankett!$G$52=$B$10,Avropsblankett!$C$52=$B$6,Avropsblankett!$D$52=$A$13),N13,IF(AND(Avropsblankett!$G$52=$B$10,Avropsblankett!$C$52=$B$6,Avropsblankett!$D$52=$A$14),N14,IF(AND(Avropsblankett!$G$52=$B$10,Avropsblankett!$C$52=$B$6,Avropsblankett!$D$52=$A$15),N15,IF(AND(Avropsblankett!$G$52=$B$10,Avropsblankett!$C$52=$B$6,Avropsblankett!$D$52=$A$16),N16,0)))))) -> 0 | O19: =Avropsblankett!$F$52*IF(AND(Avropsblankett!$G$52=$C$10,Avropsblankett!$C$52=$B$6,Avropsblankett!$D$52=$A$11),O11,IF(AND(Avropsblankett!$G$52=$C$10,Avropsblankett!$C$52=$B$6,Avropsblankett!$D$52=$A$12),O12,IF(AND(Avropsblankett!$G$52=$C$10,Avropsblankett!$C$52=$B$6,Avropsblankett!$D$52=$A$13),O13,IF(AND(Avropsblankett!$G$52=$C$10,Avropsblankett!$C$52=$B$6,Avropsblankett!$D$52=$A$14),O14,IF(AND(Avropsblankett!$G$52=$C$10,Avropsblankett!$C$52=$B$6,Avropsblankett!$D$52=$A$15),O15,IF(AND(Avropsblankett!$G$52=$C$10,Avropsblankett!$C$52=$B$6,Avropsblankett!$D$52=$A$16),O16,0)))))) -> 0 | P19: =Avropsblankett!$F$52*IF(AND(Avropsblankett!$G$52=$D$10,Avropsblankett!$C$52=$B$6,Avropsblankett!$D$52=$A$11),P11,IF(AND(Avropsblankett!$G$52=$D$10,Avropsblankett!$C$52=$B$6,Avropsblankett!$D$52=$A$12),P12,IF(AND(Avropsblankett!$G$52=$D$10,Avropsblankett!$C$52=$B$6,Avropsblankett!$D$52=$A$13),P13,IF(AND(Avropsblankett!$G$52=$D$10,Avropsblankett!$C$52=$B$6,Avropsblankett!$D$52=$A$14),P14,IF(AND(Avropsblankett!$G$52=$D$10,Avropsblankett!$C$52=$B$6,Avropsblankett!$D$52=$A$15),P15,IF(AND(Avropsblankett!$G$52=$D$10,Avropsblankett!$C$52=$B$6,Avropsblankett!$D$52=$A$16),P16,0)))))) -> 0 | R19: =Avropsblankett!$F$52*IF(AND(Avropsblankett!$G$52=$B$10,Avropsblankett!$C$52=$B$6,Avropsblankett!$D$52=$A$11),R11,IF(AND(Avropsblankett!$G$52=$B$10,Avropsblankett!$C$52=$B$6,Avropsblankett!$D$52=$A$12),R12,IF(AND(Avropsblankett!$G$52=$B$10,Avropsblankett!$C$52=$B$6,Avropsblankett!$D$52=$A$13),R13,IF(AND(Avropsblankett!$G$52=$B$10,Avropsblankett!$C$52=$B$6,Avropsblankett!$D$52=$A$14),R14,IF(AND(Avropsblankett!$G$52=$B$10,Avropsblankett!$C$52=$B$6,Avropsblankett!$D$52=$A$15),R15,IF(AND(Avropsblankett!$G$52=$B$10,Avropsblankett!$C$52=$B$6,Avropsblankett!$D$52=$A$16),R16,0)))))) -> 0 | S19: =Avropsblankett!$F$52*IF(AND(Avropsblankett!$G$52=$C$10,Avropsblankett!$C$52=$B$6,Avropsblankett!$D$52=$A$11),S11,IF(AND(Avropsblankett!$G$52=$C$10,Avropsblankett!$C$52=$B$6,Avropsblankett!$D$52=$A$12),S12,IF(AND(Avropsblankett!$G$52=$C$10,Avropsblankett!$C$52=$B$6,Avropsblankett!$D$52=$A$13),S13,IF(AND(Avropsblankett!$G$52=$C$10,Avropsblankett!$C$52=$B$6,Avropsblankett!$D$52=$A$14),S14,IF(AND(Avropsblankett!$G$52=$C$10,Avropsblankett!$C$52=$B$6,Avropsblankett!$D$52=$A$15),S15,IF(AND(Avropsblankett!$G$52=$C$10,Avropsblankett!$C$52=$B$6,Avropsblankett!$D$52=$A$16),S16,0)))))) -> 0 | T19: =Avropsblankett!$F$52*IF(AND(Avropsblankett!$G$52=$D$10,Avropsblankett!$C$52=$B$6,Avropsblankett!$D$52=$A$11),T11,IF(AND(Avropsblankett!$G$52=$D$10,Avropsblankett!$C$52=$B$6,Avropsblankett!$D$52=$A$12),T12,IF(AND(Avropsblankett!$G$52=$D$10,Avropsblankett!$C$52=$B$6,Avropsblankett!$D$52=$A$13),T13,IF(AND(Avropsblankett!$G$52=$D$10,Avropsblankett!$C$52=$B$6,Avropsblankett!$D$52=$A$14),T14,IF(AND(Avropsblankett!$G$52=$D$10,Avropsblankett!$C$52=$B$6,Avropsblankett!$D$52=$A$15),T15,IF(AND(Avropsblankett!$G$52=$D$10,Avropsblankett!$C$52=$B$6,Avropsblankett!$D$52=$A$16),T16,0)))))) -> 0 | V19: =Avropsblankett!$F$52*IF(AND(Avropsblankett!$G$52=$B$10,Avropsblankett!$C$52=$B$6,Avropsblankett!$D$52=$A$11),V11,IF(AND(Avropsblankett!$G$52=$B$10,Avropsblankett!$C$52=$B$6,Avropsblankett!$D$52=$A$12),V12,IF(AND(Avropsblankett!$G$52=$B$10,Avropsblankett!$C$52=$B$6,Avropsblankett!$D$52=$A$13),V13,IF(AND(Avropsblankett!$G$52=$B$10,Avropsblankett!$C$52=$B$6,Avropsblankett!$D$52=$A$14),V14,IF(AND(Avropsblankett!$G$52=$B$10,Avropsblankett!$C$52=$B$6,Avropsblankett!$D$52=$A$15),V15,IF(AND(Avropsblankett!$G$52=$B$10,Avropsblankett!$C$52=$B$6,Avropsblankett!$D$52=$A$16),V16,0)))))) -> 0 | W19: =Avropsblankett!$F$52*IF(AND(Avropsblankett!$G$52=$C$10,Avropsblankett!$C$52=$B$6,Avropsblankett!$D$52=$A$11),W11,IF(AND(Avropsblankett!$G$52=$C$10,Avropsblankett!$C$52=$B$6,Avropsblankett!$D$52=$A$12),W12,IF(AND(Avropsblankett!$G$52=$C$10,Avropsblankett!$C$52=$B$6,Avropsblankett!$D$52=$A$13),W13,IF(AND(Avropsblankett!$G$52=$C$10,Avropsblankett!$C$52=$B$6,Avropsblankett!$D$52=$A$14),W14,IF(AND(Avropsblankett!$G$52=$C$10,Avropsblankett!$C$52=$B$6,Avropsblankett!$D$52=$A$15),W15,IF(AND(Avropsblankett!$G$52=$C$10,Avropsblankett!$C$52=$B$6,Avropsblankett!$D$52=$A$16),W16,0)))))) -> 0 | X19: =Avropsblankett!$F$52*IF(AND(Avropsblankett!$G$52=$D$10,Avropsblankett!$C$52=$B$6,Avropsblankett!$D$52=$A$11),X11,IF(AND(Avropsblankett!$G$52=$D$10,Avropsblankett!$C$52=$B$6,Avropsblankett!$D$52=$A$12),X12,IF(AND(Avropsblankett!$G$52=$D$10,Avropsblankett!$C$52=$B$6,Avropsblankett!$D$52=$A$13),X13,IF(AND(Avropsblankett!$G$52=$D$10,Avropsblankett!$C$52=$B$6,Avropsblankett!$D$52=$A$14),X14,IF(AND(Avropsblankett!$G$52=$D$10,Avropsblankett!$C$52=$B$6,Avropsblankett!$D$52=$A$15),X15,IF(AND(Avropsblankett!$G$52=$D$10,Avropsblankett!$C$52=$B$6,Avropsblankett!$D$52=$A$16),X16,0)))))) -> 0 | Z19: =Avropsblankett!$F$52*IF(AND(Avropsblankett!$G$52=$B$10,Avropsblankett!$C$52=$B$6,Avropsblankett!$D$52=$A$11),Z11,IF(AND(Avropsblankett!$G$52=$B$10,Avropsblankett!$C$52=$B$6,Avropsblankett!$D$52=$A$12),Z12,IF(AND(Avropsblankett!$G$52=$B$10,Avropsblankett!$C$52=$B$6,Avropsblankett!$D$52=$A$13),Z13,IF(AND(Avropsblankett!$G$52=$B$10,Avropsblankett!$C$52=$B$6,Avropsblankett!$D$52=$A$14),Z14,IF(AND(Avropsblankett!$G$52=$B$10,Avropsblankett!$C$52=$B$6,Avropsblankett!$D$52=$A$15),Z15,IF(AND(Avropsblankett!$G$52=$B$10,Avropsblankett!$C$52=$B$6,Avropsblankett!$D$52=$A$16),Z16,0)))))) -> 0 | AA19: =Avropsblankett!$F$52*IF(AND(Avropsblankett!$G$52=$C$10,Avropsblankett!$C$52=$B$6,Avropsblankett!$D$52=$A$11),AA11,IF(AND(Avropsblankett!$G$52=$C$10,Avropsblankett!$C$52=$B$6,Avropsblankett!$D$52=$A$12),AA12,IF(AND(Avropsblankett!$G$52=$C$10,Avropsblankett!$C$52=$B$6,Avropsblankett!$D$52=$A$13),AA13,IF(AND(Avropsblankett!$G$52=$C$10,Avropsblankett!$C$52=$B$6,Avropsblankett!$D$52=$A$14),AA14,IF(AND(Avropsblankett!$G$52=$C$10,Avropsblankett!$C$52=$B$6,Avropsblankett!$D$52=$A$15),AA15,IF(AND(Avropsblankett!$G$52=$C$10,Avropsblankett!$C$52=$B$6,Avropsblankett!$D$52=$A$16),AA16,0)))))) -> 0 | AB19: =Avropsblankett!$F$52*IF(AND(Avropsblankett!$G$52=$D$10,Avropsblankett!$C$52=$B$6,Avropsblankett!$D$52=$A$11),AB11,IF(AND(Avropsblankett!$G$52=$D$10,Avropsblankett!$C$52=$B$6,Avropsblankett!$D$52=$A$12),AB12,IF(AND(Avropsblankett!$G$52=$D$10,Avropsblankett!$C$52=$B$6,Avropsblankett!$D$52=$A$13),AB13,IF(AND(Avropsblankett!$G$52=$D$10,Avropsblankett!$C$52=$B$6,Avropsblankett!$D$52=$A$14),AB14,IF(AND(Avropsblankett!$G$52=$D$10,Avropsblankett!$C$52=$B$6,Avropsblankett!$D$52=$A$15),AB15,IF(AND(Avropsblankett!$G$52=$D$10,Avropsblankett!$C$52=$B$6,Avropsblankett!$D$52=$A$16),AB16,0)))))) -> 0 | AD19: =Avropsblankett!$F$52*IF(AND(Avropsblankett!$G$52=$B$10,Avropsblankett!$C$52=$B$6,Avropsblankett!$D$52=$A$11),AD11,IF(AND(Avropsblankett!$G$52=$B$10,Avropsblankett!$C$52=$B$6,Avropsblankett!$D$52=$A$12),AD12,IF(AND(Avropsblankett!$G$52=$B$10,Avropsblankett!$C$52=$B$6,Avropsblankett!$D$52=$A$13),AD13,IF(AND(Avropsblankett!$G$52=$B$10,Avropsblankett!$C$52=$B$6,Avropsblankett!$D$52=$A$14),AD14,IF(AND(Avropsblankett!$G$52=$B$10,Avropsblankett!$C$52=$B$6,Avropsblankett!$D$52=$A$15),AD15,IF(AND(Avropsblankett!$G$52=$B$10,Avropsblankett!$C$52=$B$6,Avropsblankett!$D$52=$A$16),AD16,0)))))) -> 0 | AE19: =Avropsblankett!$F$52*IF(AND(Avropsblankett!$G$52=$C$10,Avropsblankett!$C$52=$B$6,Avropsblankett!$D$52=$A$11),AE11,IF(AND(Avropsblankett!$G$52=$C$10,Avropsblankett!$C$52=$B$6,Avropsblankett!$D$52=$A$12),AE12,IF(AND(Avropsblankett!$G$52=$C$10,Avropsblankett!$C$52=$B$6,Avropsblankett!$D$52=$A$13),AE13,IF(AND(Avropsblankett!$G$52=$C$10,Avropsblankett!$C$52=$B$6,Avropsblankett!$D$52=$A$14),AE14,IF(AND(Avropsblankett!$G$52=$C$10,Avropsblankett!$C$52=$B$6,Avropsblankett!$D$52=$A$15),AE15,IF(AND(Avropsblankett!$G$52=$C$10,Avropsblankett!$C$52=$B$6,Avropsblankett!$D$52=$A$16),AE16,0)))))) -> 0 | AF19: =Avropsblankett!$F$52*IF(AND(Avropsblankett!$G$52=$D$10,Avropsblankett!$C$52=$B$6,Avropsblankett!$D$52=$A$11),AF11,IF(AND(Avropsblankett!$G$52=$D$10,Avropsblankett!$C$52=$B$6,Avropsblankett!$D$52=$A$12),AF12,IF(AND(Avropsblankett!$G$52=$D$10,Avropsblankett!$C$52=$B$6,Avropsblankett!$D$52=$A$13),AF13,IF(AND(Avropsblankett!$G$52=$D$10,Avropsblankett!$C$52=$B$6,Avropsblankett!$D$52=$A$14),AF14,IF(AND(Avropsblankett!$G$52=$D$10,Avropsblankett!$C$52=$B$6,Avropsblankett!$D$52=$A$15),AF15,IF(AND(Avropsblankett!$G$52=$D$10,Avropsblankett!$C$52=$B$6,Avropsblankett!$D$52=$A$16),AF16,0)))))) -> 0 | AH19: =Avropsblankett!$F$52*IF(AND(Avropsblankett!$G$52=$B$10,Avropsblankett!$C$52=$B$6,Avropsblankett!$D$52=$A$11),AH11,IF(AND(Avropsblankett!$G$52=$B$10,Avropsblankett!$C$52=$B$6,Avropsblankett!$D$52=$A$12),AH12,IF(AND(Avropsblankett!$G$52=$B$10,Avropsblankett!$C$52=$B$6,Avropsblankett!$D$52=$A$13),AH13,IF(AND(Avropsblankett!$G$52=$B$10,Avropsblankett!$C$52=$B$6,Avropsblankett!$D$52=$A$14),AH14,IF(AND(Avropsblankett!$G$52=$B$10,Avropsblankett!$C$52=$B$6,Avropsblankett!$D$52=$A$15),AH15,IF(AND(Avropsblankett!$G$52=$B$10,Avropsblankett!$C$52=$B$6,Avropsblankett!$D$52=$A$16),AH16,0)))))) -> 0 | AI19: =Avropsblankett!$F$52*IF(AND(Avropsblankett!$G$52=$C$10,Avropsblankett!$C$52=$B$6,Avropsblankett!$D$52=$A$11),AI11,IF(AND(Avropsblankett!$G$52=$C$10,Avropsblankett!$C$52=$B$6,Avropsblankett!$D$52=$A$12),AI12,IF(AND(Avropsblankett!$G$52=$C$10,Avropsblankett!$C$52=$B$6,Avropsblankett!$D$52=$A$13),AI13,IF(AND(Avropsblankett!$G$52=$C$10,Avropsblankett!$C$52=$B$6,Avropsblankett!$D$52=$A$14),AI14,IF(AND(Avropsblankett!$G$52=$C$10,Avropsblankett!$C$52=$B$6,Avropsblankett!$D$52=$A$15),AI15,IF(AND(Avropsblankett!$G$52=$C$10,Avropsblankett!$C$52=$B$6,Avropsblankett!$D$52=$A$16),AI16,0)))))) -> 0 | AJ19: =Avropsblankett!$F$52*IF(AND(Avropsblankett!$G$52=$D$10,Avropsblankett!$C$52=$B$6,Avropsblankett!$D$52=$A$11),AJ11,IF(AND(Avropsblankett!$G$52=$D$10,Avropsblankett!$C$52=$B$6,Avropsblankett!$D$52=$A$12),AJ12,IF(AND(Avropsblankett!$G$52=$D$10,Avropsblankett!$C$52=$B$6,Avropsblankett!$D$52=$A$13),AJ13,IF(AND(Avropsblankett!$G$52=$D$10,Avropsblankett!$C$52=$B$6,Avropsblankett!$D$52=$A$14),AJ14,IF(AND(Avropsblankett!$G$52=$D$10,Avropsblankett!$C$52=$B$6,Avropsblankett!$D$52=$A$15),AJ15,IF(AND(Avropsblankett!$G$52=$D$10,Avropsblankett!$C$52=$B$6,Avropsblankett!$D$52=$A$16),AJ16,0)))))) -> 0 | AL19: =Avropsblankett!$F$52*IF(AND(Avropsblankett!$G$52=$B$10,Avropsblankett!$C$52=$B$6,Avropsblankett!$D$52=$A$11),AL11,IF(AND(Avropsblankett!$G$52=$B$10,Avropsblankett!$C$52=$B$6,Avropsblankett!$D$52=$A$12),AL12,IF(AND(Avropsblankett!$G$52=$B$10,Avropsblankett!$C$52=$B$6,Avropsblankett!$D$52=$A$13),AL13,IF(AND(Avropsblankett!$G$52=$B$10,Avropsblankett!$C$52=$B$6,Avropsblankett!$D$52=$A$14),AL14,IF(AND(Avropsblankett!$G$52=$B$10,Avropsblankett!$C$52=$B$6,Avropsblankett!$D$52=$A$15),AL15,IF(AND(Avropsblankett!$G$52=$B$10,Avropsblankett!$C$52=$B$6,Avropsblankett!$D$52=$A$16),AL16,0)))))) -> 0 | AM19: =Avropsblankett!$F$52*IF(AND(Avropsblankett!$G$52=$C$10,Avropsblankett!$C$52=$B$6,Avropsblankett!$D$52=$A$11),AM11,IF(AND(Avropsblankett!$G$52=$C$10,Avropsblankett!$C$52=$B$6,Avropsblankett!$D$52=$A$12),AM12,IF(AND(Avropsblankett!$G$52=$C$10,Avropsblankett!$C$52=$B$6,Avropsblankett!$D$52=$A$13),AM13,IF(AND(Avropsblankett!$G$52=$C$10,Avropsblankett!$C$52=$B$6,Avropsblankett!$D$52=$A$14),AM14,IF(AND(Avropsblankett!$G$52=$C$10,Avropsblankett!$C$52=$B$6,Avropsblankett!$D$52=$A$15),AM15,IF(AND(Avropsblankett!$G$52=$C$10,Avropsblankett!$C$52=$B$6,Avropsblankett!$D$52=$A$16),AM16,0)))))) -> 0 | AN19: =Avropsblankett!$F$52*IF(AND(Avropsblankett!$G$52=$D$10,Avropsblankett!$C$52=$B$6,Avropsblankett!$D$52=$A$11),AN11,IF(AND(Avropsblankett!$G$52=$D$10,Avropsblankett!$C$52=$B$6,Avropsblankett!$D$52=$A$12),AN12,IF(AND(Avropsblankett!$G$52=$D$10,Avropsblankett!$C$52=$B$6,Avropsblankett!$D$52=$A$13),AN13,IF(AND(Avropsblankett!$G$52=$D$10,Avropsblankett!$C$52=$B$6,Avropsblankett!$D$52=$A$14),AN14,IF(AND(Avropsblankett!$G$52=$D$10,Avropsblankett!$C$52=$B$6,Avropsblankett!$D$52=$A$15),AN15,IF(AND(Avropsblankett!$G$52=$D$10,Avropsblankett!$C$52=$B$6,Avropsblankett!$D$52=$A$16),AN16,0)))))) -> 0 | AP19: =Avropsblankett!$F$52*IF(AND(Avropsblankett!$G$52=$B$10,Avropsblankett!$C$52=$B$6,Avropsblankett!$D$52=$A$11),AP11,IF(AND(Avropsblankett!$G$52=$B$10,Avropsblankett!$C$52=$B$6,Avropsblankett!$D$52=$A$12),AP12,IF(AND(Avropsblankett!$G$52=$B$10,Avropsblankett!$C$52=$B$6,Avropsblankett!$D$52=$A$13),AP13,IF(AND(Avropsblankett!$G$52=$B$10,Avropsblankett!$C$52=$B$6,Avropsblankett!$D$52=$A$14),AP14,IF(AND(Avropsblankett!$G$52=$B$10,Avropsblankett!$C$52=$B$6,Avropsblankett!$D$52=$A$15),AP15,IF(AND(Avropsblankett!$G$52=$B$10,Avropsblankett!$C$52=$B$6,Avropsblankett!$D$52=$A$16),AP16,0)))))) -> 0 | AQ19: =Avropsblankett!$F$52*IF(AND(Avropsblankett!$G$52=$C$10,Avropsblankett!$C$52=$B$6,Avropsblankett!$D$52=$A$11),AQ11,IF(AND(Avropsblankett!$G$52=$C$10,Avropsblankett!$C$52=$B$6,Avropsblankett!$D$52=$A$12),AQ12,IF(AND(Avropsblankett!$G$52=$C$10,Avropsblankett!$C$52=$B$6,Avropsblankett!$D$52=$A$13),AQ13,IF(AND(Avropsblankett!$G$52=$C$10,Avropsblankett!$C$52=$B$6,Avropsblankett!$D$52=$A$14),AQ14,IF(AND(Avropsblankett!$G$52=$C$10,Avropsblankett!$C$52=$B$6,Avropsblankett!$D$52=$A$15),AQ15,IF(AND(Avropsblankett!$G$52=$C$10,Avropsblankett!$C$52=$B$6,Avropsblankett!$D$52=$A$16),AQ16,0)))))) -> 0 | AR19: =Avropsblankett!$F$52*IF(AND(Avropsblankett!$G$52=$D$10,Avropsblankett!$C$52=$B$6,Avropsblankett!$D$52=$A$11),AR11,IF(AND(Avropsblankett!$G$52=$D$10,Avropsblankett!$C$52=$B$6,Avropsblankett!$D$52=$A$12),AR12,IF(AND(Avropsblankett!$G$52=$D$10,Avropsblankett!$C$52=$B$6,Avropsblankett!$D$52=$A$13),AR13,IF(AND(Avropsblankett!$G$52=$D$10,Avropsblankett!$C$52=$B$6,Avropsblankett!$D$52=$A$14),AR14,IF(AND(Avropsblankett!$G$52=$D$10,Avropsblankett!$C$52=$B$6,Avropsblankett!$D$52=$A$15),AR15,IF(AND(Avropsblankett!$G$52=$D$10,Avropsblankett!$C$52=$B$6,Avropsblankett!$D$52=$A$16),AR16,0)))))) -> 0
B20: =Avropsblankett!$H$64*IF(AND(Avropsblankett!$G$64=$B$10,Avropsblankett!$C$64=$B$6,Avropsblankett!$D$64=$A$11),B11,IF(AND(Avropsblankett!$G$64=$B$10,Avropsblankett!$C$64=$B$6,Avropsblankett!$D$64=$A$12),B12,IF(AND(Avropsblankett!$G$64=$B$10,Avropsblankett!$C$64=$B$6,Avropsblankett!$D$64=$A$13),B13,IF(AND(Avropsblankett!$G$64=$B$10,Avropsblankett!$C$64=$B$6,Avropsblankett!$D$64=$A$14),B14,IF(AND(Avropsblankett!$G$64=$B$10,Avropsblankett!$C$64=$B$6,Avropsblankett!$D$64=$A$15),B15,IF(AND(Avropsblankett!$G$64=$B$10,Avropsblankett!$C$64=$B$6,Avropsblankett!$D$64=$A$16),B16,0)))))) -> 0 | C20: =Avropsblankett!$F$64*IF(AND(Avropsblankett!$G$64=$C$10,Avropsblankett!$C$64=$B$6,Avropsblankett!$D$64=$A$11),C11,IF(AND(Avropsblankett!$G$64=$C$10,Avropsblankett!$C$64=$B$6,Avropsblankett!$D$64=$A$12),C12,IF(AND(Avropsblankett!$G$64=$C$10,Avropsblankett!$C$64=$B$6,Avropsblankett!$D$64=$A$13),C13,IF(AND(Avropsblankett!$G$64=$C$10,Avropsblankett!$C$64=$B$6,Avropsblankett!$D$64=$A$14),C14,IF(AND(Avropsblankett!$G$64=$C$10,Avropsblankett!$C$64=$B$6,Avropsblankett!$D$64=$A$15),C15,IF(AND(Avropsblankett!$G$64=$C$10,Avropsblankett!$C$64=$B$6,Avropsblankett!$D$64=$A$16),C16,0)))))) -> 0 | D20: =Avropsblankett!$F$64*IF(AND(Avropsblankett!$G$64=$D$10,Avropsblankett!$C$64=$B$6,Avropsblankett!$D$64=$A$11),D11,IF(AND(Avropsblankett!$G$64=$D$10,Avropsblankett!$C$64=$B$6,Avropsblankett!$D$64=$A$12),D12,IF(AND(Avropsblankett!$G$64=$D$10,Avropsblankett!$C$64=$B$6,Avropsblankett!$D$64=$A$13),D13,IF(AND(Avropsblankett!$G$64=$D$10,Avropsblankett!$C$64=$B$6,Avropsblankett!$D$64=$A$14),D14,IF(AND(Avropsblankett!$G$64=$D$10,Avropsblankett!$C$64=$B$6,Avropsblankett!$D$64=$A$15),D15,IF(AND(Avropsblankett!$G$64=$D$10,Avropsblankett!$C$64=$B$6,Avropsblankett!$D$64=$A$16),D16,0)))))) -> 0 | F20: =Avropsblankett!$H$64*IF(AND(Avropsblankett!$G$64=$B$10,Avropsblankett!$C$64=$B$6,Avropsblankett!$D$64=$A$11),F11,IF(AND(Avropsblankett!$G$64=$B$10,Avropsblankett!$C$64=$B$6,Avropsblankett!$D$64=$A$12),F12,IF(AND(Avropsblankett!$G$64=$B$10,Avropsblankett!$C$64=$B$6,Avropsblankett!$D$64=$A$13),F13,IF(AND(Avropsblankett!$G$64=$B$10,Avropsblankett!$C$64=$B$6,Avropsblankett!$D$64=$A$14),F14,IF(AND(Avropsblankett!$G$64=$B$10,Avropsblankett!$C$64=$B$6,Avropsblankett!$D$64=$A$15),F15,IF(AND(Avropsblankett!$G$64=$B$10,Avropsblankett!$C$64=$B$6,Avropsblankett!$D$64=$A$16),F16,0)))))) -> 0 | G20: =Avropsblankett!$F$64*IF(AND(Avropsblankett!$G$64=$C$10,Avropsblankett!$C$64=$B$6,Avropsblankett!$D$64=$A$11),G11,IF(AND(Avropsblankett!$G$64=$C$10,Avropsblankett!$C$64=$B$6,Avropsblankett!$D$64=$A$12),G12,IF(AND(Avropsblankett!$G$64=$C$10,Avropsblankett!$C$64=$B$6,Avropsblankett!$D$64=$A$13),G13,IF(AND(Avropsblankett!$G$64=$C$10,Avropsblankett!$C$64=$B$6,Avropsblankett!$D$64=$A$14),G14,IF(AND(Avropsblankett!$G$64=$C$10,Avropsblankett!$C$64=$B$6,Avropsblankett!$D$64=$A$15),G15,IF(AND(Avropsblankett!$G$64=$C$10,Avropsblankett!$C$64=$B$6,Avropsblankett!$D$64=$A$16),G16,0)))))) -> 0 | H20: =Avropsblankett!$F$64*IF(AND(Avropsblankett!$G$64=$D$10,Avropsblankett!$C$64=$B$6,Avropsblankett!$D$64=$A$11),H11,IF(AND(Avropsblankett!$G$64=$D$10,Avropsblankett!$C$64=$B$6,Avropsblankett!$D$64=$A$12),H12,IF(AND(Avropsblankett!$G$64=$D$10,Avropsblankett!$C$64=$B$6,Avropsblankett!$D$64=$A$13),H13,IF(AND(Avropsblankett!$G$64=$D$10,Avropsblankett!$C$64=$B$6,Avropsblankett!$D$64=$A$14),H14,IF(AND(Avropsblankett!$G$64=$D$10,Avropsblankett!$C$64=$B$6,Avropsblankett!$D$64=$A$15),H15,IF(AND(Avropsblankett!$G$64=$D$10,Avropsblankett!$C$64=$B$6,Avropsblankett!$D$64=$A$16),H16,0)))))) -> 0 | J20: =Avropsblankett!$H$64*IF(AND(Avropsblankett!$G$64=$B$10,Avropsblankett!$C$64=$B$6,Avropsblankett!$D$64=$A$11),J11,IF(AND(Avropsblankett!$G$64=$B$10,Avropsblankett!$C$64=$B$6,Avropsblankett!$D$64=$A$12),J12,IF(AND(Avropsblankett!$G$64=$B$10,Avropsblankett!$C$64=$B$6,Avropsblankett!$D$64=$A$13),J13,IF(AND(Avropsblankett!$G$64=$B$10,Avropsblankett!$C$64=$B$6,Avropsblankett!$D$64=$A$14),J14,IF(AND(Avropsblankett!$G$64=$B$10,Avropsblankett!$C$64=$B$6,Avropsblankett!$D$64=$A$15),J15,IF(AND(Avropsblankett!$G$64=$B$10,Avropsblankett!$C$64=$B$6,Avropsblankett!$D$64=$A$16),J16,0)))))) -> 0 | K20: =Avropsblankett!$F$64*IF(AND(Avropsblankett!$G$64=$C$10,Avropsblankett!$C$64=$B$6,Avropsblankett!$D$64=$A$11),K11,IF(AND(Avropsblankett!$G$64=$C$10,Avropsblankett!$C$64=$B$6,Avropsblankett!$D$64=$A$12),K12,IF(AND(Avropsblankett!$G$64=$C$10,Avropsblankett!$C$64=$B$6,Avropsblankett!$D$64=$A$13),K13,IF(AND(Avropsblankett!$G$64=$C$10,Avropsblankett!$C$64=$B$6,Avropsblankett!$D$64=$A$14),K14,IF(AND(Avropsblankett!$G$64=$C$10,Avropsblankett!$C$64=$B$6,Avropsblankett!$D$64=$A$15),K15,IF(AND(Avropsblankett!$G$64=$C$10,Avropsblankett!$C$64=$B$6,Avropsblankett!$D$64=$A$16),K16,0)))))) -> 0 | L20: =Avropsblankett!$F$64*IF(AND(Avropsblankett!$G$64=$D$10,Avropsblankett!$C$64=$B$6,Avropsblankett!$D$64=$A$11),L11,IF(AND(Avropsblankett!$G$64=$D$10,Avropsblankett!$C$64=$B$6,Avropsblankett!$D$64=$A$12),L12,IF(AND(Avropsblankett!$G$64=$D$10,Avropsblankett!$C$64=$B$6,Avropsblankett!$D$64=$A$13),L13,IF(AND(Avropsblankett!$G$64=$D$10,Avropsblankett!$C$64=$B$6,Avropsblankett!$D$64=$A$14),L14,IF(AND(Avropsblankett!$G$64=$D$10,Avropsblankett!$C$64=$B$6,Avropsblankett!$D$64=$A$15),L15,IF(AND(Avropsblankett!$G$64=$D$10,Avropsblankett!$C$64=$B$6,Avropsblankett!$D$64=$A$16),L16,0)))))) -> 0 | N20: =Avropsblankett!$H$64*IF(AND(Avropsblankett!$G$64=$B$10,Avropsblankett!$C$64=$B$6,Avropsblankett!$D$64=$A$11),N11,IF(AND(Avropsblankett!$G$64=$B$10,Avropsblankett!$C$64=$B$6,Avropsblankett!$D$64=$A$12),N12,IF(AND(Avropsblankett!$G$64=$B$10,Avropsblankett!$C$64=$B$6,Avropsblankett!$D$64=$A$13),N13,IF(AND(Avropsblankett!$G$64=$B$10,Avropsblankett!$C$64=$B$6,Avropsblankett!$D$64=$A$14),N14,IF(AND(Avropsblankett!$G$64=$B$10,Avropsblankett!$C$64=$B$6,Avropsblankett!$D$64=$A$15),N15,IF(AND(Avropsblankett!$G$64=$B$10,Avropsblankett!$C$64=$B$6,Avropsblankett!$D$64=$A$16),N16,0)))))) -> 0 | O20: =Avropsblankett!$F$64*IF(AND(Avropsblankett!$G$64=$C$10,Avropsblankett!$C$64=$B$6,Avropsblankett!$D$64=$A$11),O11,IF(AND(Avropsblankett!$G$64=$C$10,Avropsblankett!$C$64=$B$6,Avropsblankett!$D$64=$A$12),O12,IF(AND(Avropsblankett!$G$64=$C$10,Avropsblankett!$C$64=$B$6,Avropsblankett!$D$64=$A$13),O13,IF(AND(Avropsblankett!$G$64=$C$10,Avropsblankett!$C$64=$B$6,Avropsblankett!$D$64=$A$14),O14,IF(AND(Avropsblankett!$G$64=$C$10,Avropsblankett!$C$64=$B$6,Avropsblankett!$D$64=$A$15),O15,IF(AND(Avropsblankett!$G$64=$C$10,Avropsblankett!$C$64=$B$6,Avropsblankett!$D$64=$A$16),O16,0)))))) -> 0 | P20: =Avropsblankett!$F$64*IF(AND(Avropsblankett!$G$64=$D$10,Avropsblankett!$C$64=$B$6,Avropsblankett!$D$64=$A$11),P11,IF(AND(Avropsblankett!$G$64=$D$10,Avropsblankett!$C$64=$B$6,Avropsblankett!$D$64=$A$12),P12,IF(AND(Avropsblankett!$G$64=$D$10,Avropsblankett!$C$64=$B$6,Avropsblankett!$D$64=$A$13),P13,IF(AND(Avropsblankett!$G$64=$D$10,Avropsblankett!$C$64=$B$6,Avropsblankett!$D$64=$A$14),P14,IF(AND(Avropsblankett!$G$64=$D$10,Avropsblankett!$C$64=$B$6,Avropsblankett!$D$64=$A$15),P15,IF(AND(Avropsblankett!$G$64=$D$10,Avropsblankett!$C$64=$B$6,Avropsblankett!$D$64=$A$16),P16,0)))))) -> 0 | R20: =Avropsblankett!$H$64*IF(AND(Avropsblankett!$G$64=$B$10,Avropsblankett!$C$64=$B$6,Avropsblankett!$D$64=$A$11),R11,IF(AND(Avropsblankett!$G$64=$B$10,Avropsblankett!$C$64=$B$6,Avropsblankett!$D$64=$A$12),R12,IF(AND(Avropsblankett!$G$64=$B$10,Avropsblankett!$C$64=$B$6,Avropsblankett!$D$64=$A$13),R13,IF(AND(Avropsblankett!$G$64=$B$10,Avropsblankett!$C$64=$B$6,Avropsblankett!$D$64=$A$14),R14,IF(AND(Avropsblankett!$G$64=$B$10,Avropsblankett!$C$64=$B$6,Avropsblankett!$D$64=$A$15),R15,IF(AND(Avropsblankett!$G$64=$B$10,Avropsblankett!$C$64=$B$6,Avropsblankett!$D$64=$A$16),R16,0)))))) -> 0 | S20: =Avropsblankett!$F$64*IF(AND(Avropsblankett!$G$64=$C$10,Avropsblankett!$C$64=$B$6,Avropsblankett!$D$64=$A$11),S11,IF(AND(Avropsblankett!$G$64=$C$10,Avropsblankett!$C$64=$B$6,Avropsblankett!$D$64=$A$12),S12,IF(AND(Avropsblankett!$G$64=$C$10,Avropsblankett!$C$64=$B$6,Avropsblankett!$D$64=$A$13),S13,IF(AND(Avropsblankett!$G$64=$C$10,Avropsblankett!$C$64=$B$6,Avropsblankett!$D$64=$A$14),S14,IF(AND(Avropsblankett!$G$64=$C$10,Avropsblankett!$C$64=$B$6,Avropsblankett!$D$64=$A$15),S15,IF(AND(Avropsblankett!$G$64=$C$10,Avropsblankett!$C$64=$B$6,Avropsblankett!$D$64=$A$16),S16,0)))))) -> 0 | T20: =Avropsblankett!$F$64*IF(AND(Avropsblankett!$G$64=$D$10,Avropsblankett!$C$64=$B$6,Avropsblankett!$D$64=$A$11),T11,IF(AND(Avropsblankett!$G$64=$D$10,Avropsblankett!$C$64=$B$6,Avropsblankett!$D$64=$A$12),T12,IF(AND(Avropsblankett!$G$64=$D$10,Avropsblankett!$C$64=$B$6,Avropsblankett!$D$64=$A$13),T13,IF(AND(Avropsblankett!$G$64=$D$10,Avropsblankett!$C$64=$B$6,Avropsblankett!$D$64=$A$14),T14,IF(AND(Avropsblankett!$G$64=$D$10,Avropsblankett!$C$64=$B$6,Avropsblankett!$D$64=$A$15),T15,IF(AND(Avropsblankett!$G$64=$D$10,Avropsblankett!$C$64=$B$6,Avropsblankett!$D$64=$A$16),T16,0)))))) -> 0 | V20: =Avropsblankett!$H$64*IF(AND(Avropsblankett!$G$64=$B$10,Avropsblankett!$C$64=$B$6,Avropsblankett!$D$64=$A$11),V11,IF(AND(Avropsblankett!$G$64=$B$10,Avropsblankett!$C$64=$B$6,Avropsblankett!$D$64=$A$12),V12,IF(AND(Avropsblankett!$G$64=$B$10,Avropsblankett!$C$64=$B$6,Avropsblankett!$D$64=$A$13),V13,IF(AND(Avropsblankett!$G$64=$B$10,Avropsblankett!$C$64=$B$6,Avropsblankett!$D$64=$A$14),V14,IF(AND(Avropsblankett!$G$64=$B$10,Avropsblankett!$C$64=$B$6,Avropsblankett!$D$64=$A$15),V15,IF(AND(Avropsblankett!$G$64=$B$10,Avropsblankett!$C$64=$B$6,Avropsblankett!$D$64=$A$16),V16,0)))))) -> 0 | W20: =Avropsblankett!$F$64*IF(AND(Avropsblankett!$G$64=$C$10,Avropsblankett!$C$64=$B$6,Avropsblankett!$D$64=$A$11),W11,IF(AND(Avropsblankett!$G$64=$C$10,Avropsblankett!$C$64=$B$6,Avropsblankett!$D$64=$A$12),W12,IF(AND(Avropsblankett!$G$64=$C$10,Avropsblankett!$C$64=$B$6,Avropsblankett!$D$64=$A$13),W13,IF(AND(Avropsblankett!$G$64=$C$10,Avropsblankett!$C$64=$B$6,Avropsblankett!$D$64=$A$14),W14,IF(AND(Avropsblankett!$G$64=$C$10,Avropsblankett!$C$64=$B$6,Avropsblankett!$D$64=$A$15),W15,IF(AND(Avropsblankett!$G$64=$C$10,Avropsblankett!$C$64=$B$6,Avropsblankett!$D$64=$A$16),W16,0)))))) -> 0 | X20: =Avropsblankett!$F$64*IF(AND(Avropsblankett!$G$64=$D$10,Avropsblankett!$C$64=$B$6,Avropsblankett!$D$64=$A$11),X11,IF(AND(Avropsblankett!$G$64=$D$10,Avropsblankett!$C$64=$B$6,Avropsblankett!$D$64=$A$12),X12,IF(AND(Avropsblankett!$G$64=$D$10,Avropsblankett!$C$64=$B$6,Avropsblankett!$D$64=$A$13),X13,IF(AND(Avropsblankett!$G$64=$D$10,Avropsblankett!$C$64=$B$6,Avropsblankett!$D$64=$A$14),X14,IF(AND(Avropsblankett!$G$64=$D$10,Avropsblankett!$C$64=$B$6,Avropsblankett!$D$64=$A$15),X15,IF(AND(Avropsblankett!$G$64=$D$10,Avropsblankett!$C$64=$B$6,Avropsblankett!$D$64=$A$16),X16,0)))))) -> 0 | Z20: =Avropsblankett!$H$64*IF(AND(Avropsblankett!$G$64=$B$10,Avropsblankett!$C$64=$B$6,Avropsblankett!$D$64=$A$11),Z11,IF(AND(Avropsblankett!$G$64=$B$10,Avropsblankett!$C$64=$B$6,Avropsblankett!$D$64=$A$12),Z12,IF(AND(Avropsblankett!$G$64=$B$10,Avropsblankett!$C$64=$B$6,Avropsblankett!$D$64=$A$13),Z13,IF(AND(Avropsblankett!$G$64=$B$10,Avropsblankett!$C$64=$B$6,Avropsblankett!$D$64=$A$14),Z14,IF(AND(Avropsblankett!$G$64=$B$10,Avropsblankett!$C$64=$B$6,Avropsblankett!$D$64=$A$15),Z15,IF(AND(Avropsblankett!$G$64=$B$10,Avropsblankett!$C$64=$B$6,Avropsblankett!$D$64=$A$16),Z16,0)))))) -> 0 | AA20: =Avropsblankett!$F$64*IF(AND(Avropsblankett!$G$64=$C$10,Avropsblankett!$C$64=$B$6,Avropsblankett!$D$64=$A$11),AA11,IF(AND(Avropsblankett!$G$64=$C$10,Avropsblankett!$C$64=$B$6,Avropsblankett!$D$64=$A$12),AA12,IF(AND(Avropsblankett!$G$64=$C$10,Avropsblankett!$C$64=$B$6,Avropsblankett!$D$64=$A$13),AA13,IF(AND(Avropsblankett!$G$64=$C$10,Avropsblankett!$C$64=$B$6,Avropsblankett!$D$64=$A$14),AA14,IF(AND(Avropsblankett!$G$64=$C$10,Avropsblankett!$C$64=$B$6,Avropsblankett!$D$64=$A$15),AA15,IF(AND(Avropsblankett!$G$64=$C$10,Avropsblankett!$C$64=$B$6,Avropsblankett!$D$64=$A$16),AA16,0)))))) -> 0 | AB20: =Avropsblankett!$F$64*IF(AND(Avropsblankett!$G$64=$D$10,Avropsblankett!$C$64=$B$6,Avropsblankett!$D$64=$A$11),AB11,IF(AND(Avropsblankett!$G$64=$D$10,Avropsblankett!$C$64=$B$6,Avropsblankett!$D$64=$A$12),AB12,IF(AND(Avropsblankett!$G$64=$D$10,Avropsblankett!$C$64=$B$6,Avropsblankett!$D$64=$A$13),AB13,IF(AND(Avropsblankett!$G$64=$D$10,Avropsblankett!$C$64=$B$6,Avropsblankett!$D$64=$A$14),AB14,IF(AND(Avropsblankett!$G$64=$D$10,Avropsblankett!$C$64=$B$6,Avropsblankett!$D$64=$A$15),AB15,IF(AND(Avropsblankett!$G$64=$D$10,Avropsblankett!$C$64=$B$6,Avropsblankett!$D$64=$A$16),AB16,0)))))) -> 0 | AD20: =Avropsblankett!$H$64*IF(AND(Avropsblankett!$G$64=$B$10,Avropsblankett!$C$64=$B$6,Avropsblankett!$D$64=$A$11),AD11,IF(AND(Avropsblankett!$G$64=$B$10,Avropsblankett!$C$64=$B$6,Avropsblankett!$D$64=$A$12),AD12,IF(AND(Avropsblankett!$G$64=$B$10,Avropsblankett!$C$64=$B$6,Avropsblankett!$D$64=$A$13),AD13,IF(AND(Avropsblankett!$G$64=$B$10,Avropsblankett!$C$64=$B$6,Avropsblankett!$D$64=$A$14),AD14,IF(AND(Avropsblankett!$G$64=$B$10,Avropsblankett!$C$64=$B$6,Avropsblankett!$D$64=$A$15),AD15,IF(AND(Avropsblankett!$G$64=$B$10,Avropsblankett!$C$64=$B$6,Avropsblankett!$D$64=$A$16),AD16,0)))))) -> 0 | AE20: =Avropsblankett!$F$64*IF(AND(Avropsblankett!$G$64=$C$10,Avropsblankett!$C$64=$B$6,Avropsblankett!$D$64=$A$11),AE11,IF(AND(Avropsblankett!$G$64=$C$10,Avropsblankett!$C$64=$B$6,Avropsblankett!$D$64=$A$12),AE12,IF(AND(Avropsblankett!$G$64=$C$10,Avropsblankett!$C$64=$B$6,Avropsblankett!$D$64=$A$13),AE13,IF(AND(Avropsblankett!$G$64=$C$10,Avropsblankett!$C$64=$B$6,Avropsblankett!$D$64=$A$14),AE14,IF(AND(Avropsblankett!$G$64=$C$10,Avropsblankett!$C$64=$B$6,Avropsblankett!$D$64=$A$15),AE15,IF(AND(Avropsblankett!$G$64=$C$10,Avropsblankett!$C$64=$B$6,Avropsblankett!$D$64=$A$16),AE16,0)))))) -> 0 | AF20: =Avropsblankett!$F$64*IF(AND(Avropsblankett!$G$64=$D$10,Avropsblankett!$C$64=$B$6,Avropsblankett!$D$64=$A$11),AF11,IF(AND(Avropsblankett!$G$64=$D$10,Avropsblankett!$C$64=$B$6,Avropsblankett!$D$64=$A$12),AF12,IF(AND(Avropsblankett!$G$64=$D$10,Avropsblankett!$C$64=$B$6,Avropsblankett!$D$64=$A$13),AF13,IF(AND(Avropsblankett!$G$64=$D$10,Avropsblankett!$C$64=$B$6,Avropsblankett!$D$64=$A$14),AF14,IF(AND(Avropsblankett!$G$64=$D$10,Avropsblankett!$C$64=$B$6,Avropsblankett!$D$64=$A$15),AF15,IF(AND(Avropsblankett!$G$64=$D$10,Avropsblankett!$C$64=$B$6,Avropsblankett!$D$64=$A$16),AF16,0)))))) -> 0 | AH20: =Avropsblankett!$H$64*IF(AND(Avropsblankett!$G$64=$B$10,Avropsblankett!$C$64=$B$6,Avropsblankett!$D$64=$A$11),AH11,IF(AND(Avropsblankett!$G$64=$B$10,Avropsblankett!$C$64=$B$6,Avropsblankett!$D$64=$A$12),AH12,IF(AND(Avropsblankett!$G$64=$B$10,Avropsblankett!$C$64=$B$6,Avropsblankett!$D$64=$A$13),AH13,IF(AND(Avropsblankett!$G$64=$B$10,Avropsblankett!$C$64=$B$6,Avropsblankett!$D$64=$A$14),AH14,IF(AND(Avropsblankett!$G$64=$B$10,Avropsblankett!$C$64=$B$6,Avropsblankett!$D$64=$A$15),AH15,IF(AND(Avropsblankett!$G$64=$B$10,Avropsblankett!$C$64=$B$6,Avropsblankett!$D$64=$A$16),AH16,0)))))) -> 0 | AI20: =Avropsblankett!$F$64*IF(AND(Avropsblankett!$G$64=$C$10,Avropsblankett!$C$64=$B$6,Avropsblankett!$D$64=$A$11),AI11,IF(AND(Avropsblankett!$G$64=$C$10,Avropsblankett!$C$64=$B$6,Avropsblankett!$D$64=$A$12),AI12,IF(AND(Avropsblankett!$G$64=$C$10,Avropsblankett!$C$64=$B$6,Avropsblankett!$D$64=$A$13),AI13,IF(AND(Avropsblankett!$G$64=$C$10,Avropsblankett!$C$64=$B$6,Avropsblankett!$D$64=$A$14),AI14,IF(AND(Avropsblankett!$G$64=$C$10,Avropsblankett!$C$64=$B$6,Avropsblankett!$D$64=$A$15),AI15,IF(AND(Avropsblankett!$G$64=$C$10,Avropsblankett!$C$64=$B$6,Avropsblankett!$D$64=$A$16),AI16,0)))))) -> 0 | AJ20: =Avropsblankett!$F$64*IF(AND(Avropsblankett!$G$64=$D$10,Avropsblankett!$C$64=$B$6,Avropsblankett!$D$64=$A$11),AJ11,IF(AND(Avropsblankett!$G$64=$D$10,Avropsblankett!$C$64=$B$6,Avropsblankett!$D$64=$A$12),AJ12,IF(AND(Avropsblankett!$G$64=$D$10,Avropsblankett!$C$64=$B$6,Avropsblankett!$D$64=$A$13),AJ13,IF(AND(Avropsblankett!$G$64=$D$10,Avropsblankett!$C$64=$B$6,Avropsblankett!$D$64=$A$14),AJ14,IF(AND(Avropsblankett!$G$64=$D$10,Avropsblankett!$C$64=$B$6,Avropsblankett!$D$64=$A$15),AJ15,IF(AND(Avropsblankett!$G$64=$D$10,Avropsblankett!$C$64=$B$6,Avropsblankett!$D$64=$A$16),AJ16,0)))))) -> 0 | AL20: =Avropsblankett!$H$64*IF(AND(Avropsblankett!$G$64=$B$10,Avropsblankett!$C$64=$B$6,Avropsblankett!$D$64=$A$11),AL11,IF(AND(Avropsblankett!$G$64=$B$10,Avropsblankett!$C$64=$B$6,Avropsblankett!$D$64=$A$12),AL12,IF(AND(Avropsblankett!$G$64=$B$10,Avropsblankett!$C$64=$B$6,Avropsblankett!$D$64=$A$13),AL13,IF(AND(Avropsblankett!$G$64=$B$10,Avropsblankett!$C$64=$B$6,Avropsblankett!$D$64=$A$14),AL14,IF(AND(Avropsblankett!$G$64=$B$10,Avropsblankett!$C$64=$B$6,Avropsblankett!$D$64=$A$15),AL15,IF(AND(Avropsblankett!$G$64=$B$10,Avropsblankett!$C$64=$B$6,Avropsblankett!$D$64=$A$16),AL16,0)))))) -> 0 | AM20: =Avropsblankett!$F$64*IF(AND(Avropsblankett!$G$64=$C$10,Avropsblankett!$C$64=$B$6,Avropsblankett!$D$64=$A$11),AM11,IF(AND(Avropsblankett!$G$64=$C$10,Avropsblankett!$C$64=$B$6,Avropsblankett!$D$64=$A$12),AM12,IF(AND(Avropsblankett!$G$64=$C$10,Avropsblankett!$C$64=$B$6,Avropsblankett!$D$64=$A$13),AM13,IF(AND(Avropsblankett!$G$64=$C$10,Avropsblankett!$C$64=$B$6,Avropsblankett!$D$64=$A$14),AM14,IF(AND(Avropsblankett!$G$64=$C$10,Avropsblankett!$C$64=$B$6,Avropsblankett!$D$64=$A$15),AM15,IF(AND(Avropsblankett!$G$64=$C$10,Avropsblankett!$C$64=$B$6,Avropsblankett!$D$64=$A$16),AM16,0)))))) -> 0 | AN20: =Avropsblankett!$F$64*IF(AND(Avropsblankett!$G$64=$D$10,Avropsblankett!$C$64=$B$6,Avropsblankett!$D$64=$A$11),AN11,IF(AND(Avropsblankett!$G$64=$D$10,Avropsblankett!$C$64=$B$6,Avropsblankett!$D$64=$A$12),AN12,IF(AND(Avropsblankett!$G$64=$D$10,Avropsblankett!$C$64=$B$6,Avropsblankett!$D$64=$A$13),AN13,IF(AND(Avropsblankett!$G$64=$D$10,Avropsblankett!$C$64=$B$6,Avropsblankett!$D$64=$A$14),AN14,IF(AND(Avropsblankett!$G$64=$D$10,Avropsblankett!$C$64=$B$6,Avropsblankett!$D$64=$A$15),AN15,IF(AND(Avropsblankett!$G$64=$D$10,Avropsblankett!$C$64=$B$6,Avropsblankett!$D$64=$A$16),AN16,0)))))) -> 0 | AP20: =Avropsblankett!$H$64*IF(AND(Avropsblankett!$G$64=$B$10,Avropsblankett!$C$64=$B$6,Avropsblankett!$D$64=$A$11),AP11,IF(AND(Avropsblankett!$G$64=$B$10,Avropsblankett!$C$64=$B$6,Avropsblankett!$D$64=$A$12),AP12,IF(AND(Avropsblankett!$G$64=$B$10,Avropsblankett!$C$64=$B$6,Avropsblankett!$D$64=$A$13),AP13,IF(AND(Avropsblankett!$G$64=$B$10,Avropsblankett!$C$64=$B$6,Avropsblankett!$D$64=$A$14),AP14,IF(AND(Avropsblankett!$G$64=$B$10,Avropsblankett!$C$64=$B$6,Avropsblankett!$D$64=$A$15),AP15,IF(AND(Avropsblankett!$G$64=$B$10,Avropsblankett!$C$64=$B$6,Avropsblankett!$D$64=$A$16),AP16,0)))))) -> 0 | AQ20: =Avropsblankett!$F$64*IF(AND(Avropsblankett!$G$64=$C$10,Avropsblankett!$C$64=$B$6,Avropsblankett!$D$64=$A$11),AQ11,IF(AND(Avropsblankett!$G$64=$C$10,Avropsblankett!$C$64=$B$6,Avropsblankett!$D$64=$A$12),AQ12,IF(AND(Avropsblankett!$G$64=$C$10,Avropsblankett!$C$64=$B$6,Avropsblankett!$D$64=$A$13),AQ13,IF(AND(Avropsblankett!$G$64=$C$10,Avropsblankett!$C$64=$B$6,Avropsblankett!$D$64=$A$14),AQ14,IF(AND(Avropsblankett!$G$64=$C$10,Avropsblankett!$C$64=$B$6,Avropsblankett!$D$64=$A$15),AQ15,IF(AND(Avropsblankett!$G$64=$C$10,Avropsblankett!$C$64=$B$6,Avropsblankett!$D$64=$A$16),AQ16,0)))))) -> 0 | AR20: =Avropsblankett!$F$64*IF(AND(Avropsblankett!$G$64=$D$10,Avropsblankett!$C$64=$B$6,Avropsblankett!$D$64=$A$11),AR11,IF(AND(Avropsblankett!$G$64=$D$10,Avropsblankett!$C$64=$B$6,Avropsblankett!$D$64=$A$12),AR12,IF(AND(Avropsblankett!$G$64=$D$10,Avropsblankett!$C$64=$B$6,Avropsblankett!$D$64=$A$13),AR13,IF(AND(Avropsblankett!$G$64=$D$10,Avropsblankett!$C$64=$B$6,Avropsblankett!$D$64=$A$14),AR14,IF(AND(Avropsblankett!$G$64=$D$10,Avropsblankett!$C$64=$B$6,Avropsblankett!$D$64=$A$15),AR15,IF(AND(Avropsblankett!$G$64=$D$10,Avropsblankett!$C$64=$B$6,Avropsblankett!$D$64=$A$16),AR16,0)))))) -> 0
B21: =Avropsblankett!$F$76*IF(AND(Avropsblankett!$G$76=$B$10,Avropsblankett!$C$76=$B$6,Avropsblankett!$D$76=$A$11),B11,IF(AND(Avropsblankett!$G$76=$B$10,Avropsblankett!$C$76=$B$6,Avropsblankett!$D$76=$A$12),B12,IF(AND(Avropsblankett!$G$76=$B$10,Avropsblankett!$C$76=$B$6,Avropsblankett!$D$76=$A$13),B13,IF(AND(Avropsblankett!$G$76=$B$10,Avropsblankett!$C$76=$B$6,Avropsblankett!$D$76=$A$14),B14,IF(AND(Avropsblankett!$G$76=$B$10,Avropsblankett!$C$76=$B$6,Avropsblankett!$D$76=$A$15),B15,IF(AND(Avropsblankett!$G$76=$B$10,Avropsblankett!$C$76=$B$6,Avropsblankett!$D$76=$A$16),B16,0)))))) -> 0 | C21: =Avropsblankett!$F$76*IF(AND(Avropsblankett!$G$76=$C$10,Avropsblankett!$C$76=$B$6,Avropsblankett!$D$76=$A$11),C11,IF(AND(Avropsblankett!$G$76=$C$10,Avropsblankett!$C$76=$B$6,Avropsblankett!$D$76=$A$12),C12,IF(AND(Avropsblankett!$G$76=$C$10,Avropsblankett!$C$76=$B$6,Avropsblankett!$D$76=$A$13),C13,IF(AND(Avropsblankett!$G$76=$C$10,Avropsblankett!$C$76=$B$6,Avropsblankett!$D$76=$A$14),C14,IF(AND(Avropsblankett!$G$76=$C$10,Avropsblankett!$C$76=$B$6,Avropsblankett!$D$76=$A$15),C15,IF(AND(Avropsblankett!$G$76=$C$10,Avropsblankett!$C$76=$B$6,Avropsblankett!$D$76=$A$16),C16,0)))))) -> 0 | D21: =Avropsblankett!$F$76*IF(AND(Avropsblankett!$G$76=$D$10,Avropsblankett!$C$76=$B$6,Avropsblankett!$D$76=$A$11),D11,IF(AND(Avropsblankett!$G$76=$D$10,Avropsblankett!$C$76=$B$6,Avropsblankett!$D$76=$A$12),D12,IF(AND(Avropsblankett!$G$76=$D$10,Avropsblankett!$C$76=$B$6,Avropsblankett!$D$76=$A$13),D13,IF(AND(Avropsblankett!$G$76=$D$10,Avropsblankett!$C$76=$B$6,Avropsblankett!$D$76=$A$14),D14,IF(AND(Avropsblankett!$G$76=$D$10,Avropsblankett!$C$76=$B$6,Avropsblankett!$D$76=$A$15),D15,IF(AND(Avropsblankett!$G$76=$D$10,Avropsblankett!$C$76=$B$6,Avropsblankett!$D$76=$A$16),D16,0)))))) -> 0 | F21: =Avropsblankett!$F$76*IF(AND(Avropsblankett!$G$76=$B$10,Avropsblankett!$C$76=$B$6,Avropsblankett!$D$76=$A$11),F11,IF(AND(Avropsblankett!$G$76=$B$10,Avropsblankett!$C$76=$B$6,Avropsblankett!$D$76=$A$12),F12,IF(AND(Avropsblankett!$G$76=$B$10,Avropsblankett!$C$76=$B$6,Avropsblankett!$D$76=$A$13),F13,IF(AND(Avropsblankett!$G$76=$B$10,Avropsblankett!$C$76=$B$6,Avropsblankett!$D$76=$A$14),F14,IF(AND(Avropsblankett!$G$76=$B$10,Avropsblankett!$C$76=$B$6,Avropsblankett!$D$76=$A$15),F15,IF(AND(Avropsblankett!$G$76=$B$10,Avropsblankett!$C$76=$B$6,Avropsblankett!$D$76=$A$16),F16,0)))))) -> 0 | G21: =Avropsblankett!$F$76*IF(AND(Avropsblankett!$G$76=$C$10,Avropsblankett!$C$76=$B$6,Avropsblankett!$D$76=$A$11),G11,IF(AND(Avropsblankett!$G$76=$C$10,Avropsblankett!$C$76=$B$6,Avropsblankett!$D$76=$A$12),G12,IF(AND(Avropsblankett!$G$76=$C$10,Avropsblankett!$C$76=$B$6,Avropsblankett!$D$76=$A$13),G13,IF(AND(Avropsblankett!$G$76=$C$10,Avropsblankett!$C$76=$B$6,Avropsblankett!$D$76=$A$14),G14,IF(AND(Avropsblankett!$G$76=$C$10,Avropsblankett!$C$76=$B$6,Avropsblankett!$D$76=$A$15),G15,IF(AND(Avropsblankett!$G$76=$C$10,Avropsblankett!$C$76=$B$6,Avropsblankett!$D$76=$A$16),G16,0)))))) -> 0 | H21: =Avropsblankett!$F$76*IF(AND(Avropsblankett!$G$76=$D$10,Avropsblankett!$C$76=$B$6,Avropsblankett!$D$76=$A$11),H11,IF(AND(Avropsblankett!$G$76=$D$10,Avropsblankett!$C$76=$B$6,Avropsblankett!$D$76=$A$12),H12,IF(AND(Avropsblankett!$G$76=$D$10,Avropsblankett!$C$76=$B$6,Avropsblankett!$D$76=$A$13),H13,IF(AND(Avropsblankett!$G$76=$D$10,Avropsblankett!$C$76=$B$6,Avropsblankett!$D$76=$A$14),H14,IF(AND(Avropsblankett!$G$76=$D$10,Avropsblankett!$C$76=$B$6,Avropsblankett!$D$76=$A$15),H15,IF(AND(Avropsblankett!$G$76=$D$10,Avropsblankett!$C$76=$B$6,Avropsblankett!$D$76=$A$16),H16,0)))))) -> 0 | J21: =Avropsblankett!$F$76*IF(AND(Avropsblankett!$G$76=$B$10,Avropsblankett!$C$76=$B$6,Avropsblankett!$D$76=$A$11),J11,IF(AND(Avropsblankett!$G$76=$B$10,Avropsblankett!$C$76=$B$6,Avropsblankett!$D$76=$A$12),J12,IF(AND(Avropsblankett!$G$76=$B$10,Avropsblankett!$C$76=$B$6,Avropsblankett!$D$76=$A$13),J13,IF(AND(Avropsblankett!$G$76=$B$10,Avropsblankett!$C$76=$B$6,Avropsblankett!$D$76=$A$14),J14,IF(AND(Avropsblankett!$G$76=$B$10,Avropsblankett!$C$76=$B$6,Avropsblankett!$D$76=$A$15),J15,IF(AND(Avropsblankett!$G$76=$B$10,Avropsblankett!$C$76=$B$6,Avropsblankett!$D$76=$A$16),J16,0)))))) -> 0 | K21: =Avropsblankett!$F$76*IF(AND(Avropsblankett!$G$76=$C$10,Avropsblankett!$C$76=$B$6,Avropsblankett!$D$76=$A$11),K11,IF(AND(Avropsblankett!$G$76=$C$10,Avropsblankett!$C$76=$B$6,Avropsblankett!$D$76=$A$12),K12,IF(AND(Avropsblankett!$G$76=$C$10,Avropsblankett!$C$76=$B$6,Avropsblankett!$D$76=$A$13),K13,IF(AND(Avropsblankett!$G$76=$C$10,Avropsblankett!$C$76=$B$6,Avropsblankett!$D$76=$A$14),K14,IF(AND(Avropsblankett!$G$76=$C$10,Avropsblankett!$C$76=$B$6,Avropsblankett!$D$76=$A$15),K15,IF(AND(Avropsblankett!$G$76=$C$10,Avropsblankett!$C$76=$B$6,Avropsblankett!$D$76=$A$16),K16,0)))))) -> 0 | L21: =Avropsblankett!$F$76*IF(AND(Avropsblankett!$G$76=$D$10,Avropsblankett!$C$76=$B$6,Avropsblankett!$D$76=$A$11),L11,IF(AND(Avropsblankett!$G$76=$D$10,Avropsblankett!$C$76=$B$6,Avropsblankett!$D$76=$A$12),L12,IF(AND(Avropsblankett!$G$76=$D$10,Avropsblankett!$C$76=$B$6,Avropsblankett!$D$76=$A$13),L13,IF(AND(Avropsblankett!$G$76=$D$10,Avropsblankett!$C$76=$B$6,Avropsblankett!$D$76=$A$14),L14,IF(AND(Avropsblankett!$G$76=$D$10,Avropsblankett!$C$76=$B$6,Avropsblankett!$D$76=$A$15),L15,IF(AND(Avropsblankett!$G$76=$D$10,Avropsblankett!$C$76=$B$6,Avropsblankett!$D$76=$A$16),L16,0)))))) -> 0 | N21: =Avropsblankett!$F$76*IF(AND(Avropsblankett!$G$76=$B$10,Avropsblankett!$C$76=$B$6,Avropsblankett!$D$76=$A$11),N11,IF(AND(Avropsblankett!$G$76=$B$10,Avropsblankett!$C$76=$B$6,Avropsblankett!$D$76=$A$12),N12,IF(AND(Avropsblankett!$G$76=$B$10,Avropsblankett!$C$76=$B$6,Avropsblankett!$D$76=$A$13),N13,IF(AND(Avropsblankett!$G$76=$B$10,Avropsblankett!$C$76=$B$6,Avropsblankett!$D$76=$A$14),N14,IF(AND(Avropsblankett!$G$76=$B$10,Avropsblankett!$C$76=$B$6,Avropsblankett!$D$76=$A$15),N15,IF(AND(Avropsblankett!$G$76=$B$10,Avropsblankett!$C$76=$B$6,Avropsblankett!$D$76=$A$16),N16,0)))))) -> 0 | O21: =Avropsblankett!$F$76*IF(AND(Avropsblankett!$G$76=$C$10,Avropsblankett!$C$76=$B$6,Avropsblankett!$D$76=$A$11),O11,IF(AND(Avropsblankett!$G$76=$C$10,Avropsblankett!$C$76=$B$6,Avropsblankett!$D$76=$A$12),O12,IF(AND(Avropsblankett!$G$76=$C$10,Avropsblankett!$C$76=$B$6,Avropsblankett!$D$76=$A$13),O13,IF(AND(Avropsblankett!$G$76=$C$10,Avropsblankett!$C$76=$B$6,Avropsblankett!$D$76=$A$14),O14,IF(AND(Avropsblankett!$G$76=$C$10,Avropsblankett!$C$76=$B$6,Avropsblankett!$D$76=$A$15),O15,IF(AND(Avropsblankett!$G$76=$C$10,Avropsblankett!$C$76=$B$6,Avropsblankett!$D$76=$A$16),O16,0)))))) -> 0 | P21: =Avropsblankett!$F$76*IF(AND(Avropsblankett!$G$76=$D$10,Avropsblankett!$C$76=$B$6,Avropsblankett!$D$76=$A$11),P11,IF(AND(Avropsblankett!$G$76=$D$10,Avropsblankett!$C$76=$B$6,Avropsblankett!$D$76=$A$12),P12,IF(AND(Avropsblankett!$G$76=$D$10,Avropsblankett!$C$76=$B$6,Avropsblankett!$D$76=$A$13),P13,IF(AND(Avropsblankett!$G$76=$D$10,Avropsblankett!$C$76=$B$6,Avropsblankett!$D$76=$A$14),P14,IF(AND(Avropsblankett!$G$76=$D$10,Avropsblankett!$C$76=$B$6,Avropsblankett!$D$76=$A$15),P15,IF(AND(Avropsblankett!$G$76=$D$10,Avropsblankett!$C$76=$B$6,Avropsblankett!$D$76=$A$16),P16,0)))))) -> 0 | R21: =Avropsblankett!$F$76*IF(AND(Avropsblankett!$G$76=$B$10,Avropsblankett!$C$76=$B$6,Avropsblankett!$D$76=$A$11),R11,IF(AND(Avropsblankett!$G$76=$B$10,Avropsblankett!$C$76=$B$6,Avropsblankett!$D$76=$A$12),R12,IF(AND(Avropsblankett!$G$76=$B$10,Avropsblankett!$C$76=$B$6,Avropsblankett!$D$76=$A$13),R13,IF(AND(Avropsblankett!$G$76=$B$10,Avropsblankett!$C$76=$B$6,Avropsblankett!$D$76=$A$14),R14,IF(AND(Avropsblankett!$G$76=$B$10,Avropsblankett!$C$76=$B$6,Avropsblankett!$D$76=$A$15),R15,IF(AND(Avropsblankett!$G$76=$B$10,Avropsblankett!$C$76=$B$6,Avropsblankett!$D$76=$A$16),R16,0)))))) -> 0 | S21: =Avropsblankett!$F$76*IF(AND(Avropsblankett!$G$76=$C$10,Avropsblankett!$C$76=$B$6,Avropsblankett!$D$76=$A$11),S11,IF(AND(Avropsblankett!$G$76=$C$10,Avropsblankett!$C$76=$B$6,Avropsblankett!$D$76=$A$12),S12,IF(AND(Avropsblankett!$G$76=$C$10,Avropsblankett!$C$76=$B$6,Avropsblankett!$D$76=$A$13),S13,IF(AND(Avropsblankett!$G$76=$C$10,Avropsblankett!$C$76=$B$6,Avropsblankett!$D$76=$A$14),S14,IF(AND(Avropsblankett!$G$76=$C$10,Avropsblankett!$C$76=$B$6,Avropsblankett!$D$76=$A$15),S15,IF(AND(Avropsblankett!$G$76=$C$10,Avropsblankett!$C$76=$B$6,Avropsblankett!$D$76=$A$16),S16,0)))))) -> 0 | T21: =Avropsblankett!$F$76*IF(AND(Avropsblankett!$G$76=$D$10,Avropsblankett!$C$76=$B$6,Avropsblankett!$D$76=$A$11),T11,IF(AND(Avropsblankett!$G$76=$D$10,Avropsblankett!$C$76=$B$6,Avropsblankett!$D$76=$A$12),T12,IF(AND(Avropsblankett!$G$76=$D$10,Avropsblankett!$C$76=$B$6,Avropsblankett!$D$76=$A$13),T13,IF(AND(Avropsblankett!$G$76=$D$10,Avropsblankett!$C$76=$B$6,Avropsblankett!$D$76=$A$14),T14,IF(AND(Avropsblankett!$G$76=$D$10,Avropsblankett!$C$76=$B$6,Avropsblankett!$D$76=$A$15),T15,IF(AND(Avropsblankett!$G$76=$D$10,Avropsblankett!$C$76=$B$6,Avropsblankett!$D$76=$A$16),T16,0)))))) -> 0 | V21: =Avropsblankett!$F$76*IF(AND(Avropsblankett!$G$76=$B$10,Avropsblankett!$C$76=$B$6,Avropsblankett!$D$76=$A$11),V11,IF(AND(Avropsblankett!$G$76=$B$10,Avropsblankett!$C$76=$B$6,Avropsblankett!$D$76=$A$12),V12,IF(AND(Avropsblankett!$G$76=$B$10,Avropsblankett!$C$76=$B$6,Avropsblankett!$D$76=$A$13),V13,IF(AND(Avropsblankett!$G$76=$B$10,Avropsblankett!$C$76=$B$6,Avropsblankett!$D$76=$A$14),V14,IF(AND(Avropsblankett!$G$76=$B$10,Avropsblankett!$C$76=$B$6,Avropsblankett!$D$76=$A$15),V15,IF(AND(Avropsblankett!$G$76=$B$10,Avropsblankett!$C$76=$B$6,Avropsblankett!$D$76=$A$16),V16,0)))))) -> 0 | W21: =Avropsblankett!$F$76*IF(AND(Avropsblankett!$G$76=$C$10,Avropsblankett!$C$76=$B$6,Avropsblankett!$D$76=$A$11),W11,IF(AND(Avropsblankett!$G$76=$C$10,Avropsblankett!$C$76=$B$6,Avropsblankett!$D$76=$A$12),W12,IF(AND(Avropsblankett!$G$76=$C$10,Avropsblankett!$C$76=$B$6,Avropsblankett!$D$76=$A$13),W13,IF(AND(Avropsblankett!$G$76=$C$10,Avropsblankett!$C$76=$B$6,Avropsblankett!$D$76=$A$14),W14,IF(AND(Avropsblankett!$G$76=$C$10,Avropsblankett!$C$76=$B$6,Avropsblankett!$D$76=$A$15),W15,IF(AND(Avropsblankett!$G$76=$C$10,Avropsblankett!$C$76=$B$6,Avropsblankett!$D$76=$A$16),W16,0)))))) -> 0 | X21: =Avropsblankett!$F$76*IF(AND(Avropsblankett!$G$76=$D$10,Avropsblankett!$C$76=$B$6,Avropsblankett!$D$76=$A$11),X11,IF(AND(Avropsblankett!$G$76=$D$10,Avropsblankett!$C$76=$B$6,Avropsblankett!$D$76=$A$12),X12,IF(AND(Avropsblankett!$G$76=$D$10,Avropsblankett!$C$76=$B$6,Avropsblankett!$D$76=$A$13),X13,IF(AND(Avropsblankett!$G$76=$D$10,Avropsblankett!$C$76=$B$6,Avropsblankett!$D$76=$A$14),X14,IF(AND(Avropsblankett!$G$76=$D$10,Avropsblankett!$C$76=$B$6,Avropsblankett!$D$76=$A$15),X15,IF(AND(Avropsblankett!$G$76=$D$10,Avropsblankett!$C$76=$B$6,Avropsblankett!$D$76=$A$16),X16,0)))))) -> 0 | Z21: =Avropsblankett!$F$76*IF(AND(Avropsblankett!$G$76=$B$10,Avropsblankett!$C$76=$B$6,Avropsblankett!$D$76=$A$11),Z11,IF(AND(Avropsblankett!$G$76=$B$10,Avropsblankett!$C$76=$B$6,Avropsblankett!$D$76=$A$12),Z12,IF(AND(Avropsblankett!$G$76=$B$10,Avropsblankett!$C$76=$B$6,Avropsblankett!$D$76=$A$13),Z13,IF(AND(Avropsblankett!$G$76=$B$10,Avropsblankett!$C$76=$B$6,Avropsblankett!$D$76=$A$14),Z14,IF(AND(Avropsblankett!$G$76=$B$10,Avropsblankett!$C$76=$B$6,Avropsblankett!$D$76=$A$15),Z15,IF(AND(Avropsblankett!$G$76=$B$10,Avropsblankett!$C$76=$B$6,Avropsblankett!$D$76=$A$16),Z16,0)))))) -> 0 | AA21: =Avropsblankett!$F$76*IF(AND(Avropsblankett!$G$76=$C$10,Avropsblankett!$C$76=$B$6,Avropsblankett!$D$76=$A$11),AA11,IF(AND(Avropsblankett!$G$76=$C$10,Avropsblankett!$C$76=$B$6,Avropsblankett!$D$76=$A$12),AA12,IF(AND(Avropsblankett!$G$76=$C$10,Avropsblankett!$C$76=$B$6,Avropsblankett!$D$76=$A$13),AA13,IF(AND(Avropsblankett!$G$76=$C$10,Avropsblankett!$C$76=$B$6,Avropsblankett!$D$76=$A$14),AA14,IF(AND(Avropsblankett!$G$76=$C$10,Avropsblankett!$C$76=$B$6,Avropsblankett!$D$76=$A$15),AA15,IF(AND(Avropsblankett!$G$76=$C$10,Avropsblankett!$C$76=$B$6,Avropsblankett!$D$76=$A$16),AA16,0)))))) -> 0 | AB21: =Avropsblankett!$F$76*IF(AND(Avropsblankett!$G$76=$D$10,Avropsblankett!$C$76=$B$6,Avropsblankett!$D$76=$A$11),AB11,IF(AND(Avropsblankett!$G$76=$D$10,Avropsblankett!$C$76=$B$6,Avropsblankett!$D$76=$A$12),AB12,IF(AND(Avropsblankett!$G$76=$D$10,Avropsblankett!$C$76=$B$6,Avropsblankett!$D$76=$A$13),AB13,IF(AND(Avropsblankett!$G$76=$D$10,Avropsblankett!$C$76=$B$6,Avropsblankett!$D$76=$A$14),AB14,IF(AND(Avropsblankett!$G$76=$D$10,Avropsblankett!$C$76=$B$6,Avropsblankett!$D$76=$A$15),AB15,IF(AND(Avropsblankett!$G$76=$D$10,Avropsblankett!$C$76=$B$6,Avropsblankett!$D$76=$A$16),AB16,0)))))) -> 0 | AD21: =Avropsblankett!$F$76*IF(AND(Avropsblankett!$G$76=$B$10,Avropsblankett!$C$76=$B$6,Avropsblankett!$D$76=$A$11),AD11,IF(AND(Avropsblankett!$G$76=$B$10,Avropsblankett!$C$76=$B$6,Avropsblankett!$D$76=$A$12),AD12,IF(AND(Avropsblankett!$G$76=$B$10,Avropsblankett!$C$76=$B$6,Avropsblankett!$D$76=$A$13),AD13,IF(AND(Avropsblankett!$G$76=$B$10,Avropsblankett!$C$76=$B$6,Avropsblankett!$D$76=$A$14),AD14,IF(AND(Avropsblankett!$G$76=$B$10,Avropsblankett!$C$76=$B$6,Avropsblankett!$D$76=$A$15),AD15,IF(AND(Avropsblankett!$G$76=$B$10,Avropsblankett!$C$76=$B$6,Avropsblankett!$D$76=$A$16),AD16,0)))))) -> 0 | AE21: =Avropsblankett!$F$76*IF(AND(Avropsblankett!$G$76=$C$10,Avropsblankett!$C$76=$B$6,Avropsblankett!$D$76=$A$11),AE11,IF(AND(Avropsblankett!$G$76=$C$10,Avropsblankett!$C$76=$B$6,Avropsblankett!$D$76=$A$12),AE12,IF(AND(Avropsblankett!$G$76=$C$10,Avropsblankett!$C$76=$B$6,Avropsblankett!$D$76=$A$13),AE13,IF(AND(Avropsblankett!$G$76=$C$10,Avropsblankett!$C$76=$B$6,Avropsblankett!$D$76=$A$14),AE14,IF(AND(Avropsblankett!$G$76=$C$10,Avropsblankett!$C$76=$B$6,Avropsblankett!$D$76=$A$15),AE15,IF(AND(Avropsblankett!$G$76=$C$10,Avropsblankett!$C$76=$B$6,Avropsblankett!$D$76=$A$16),AE16,0)))))) -> 0 | AF21: =Avropsblankett!$F$76*IF(AND(Avropsblankett!$G$76=$D$10,Avropsblankett!$C$76=$B$6,Avropsblankett!$D$76=$A$11),AF11,IF(AND(Avropsblankett!$G$76=$D$10,Avropsblankett!$C$76=$B$6,Avropsblankett!$D$76=$A$12),AF12,IF(AND(Avropsblankett!$G$76=$D$10,Avropsblankett!$C$76=$B$6,Avropsblankett!$D$76=$A$13),AF13,IF(AND(Avropsblankett!$G$76=$D$10,Avropsblankett!$C$76=$B$6,Avropsblankett!$D$76=$A$14),AF14,IF(AND(Avropsblankett!$G$76=$D$10,Avropsblankett!$C$76=$B$6,Avropsblankett!$D$76=$A$15),AF15,IF(AND(Avropsblankett!$G$76=$D$10,Avropsblankett!$C$76=$B$6,Avropsblankett!$D$76=$A$16),AF16,0)))))) -> 0 | AH21: =Avropsblankett!$F$76*IF(AND(Avropsblankett!$G$76=$B$10,Avropsblankett!$C$76=$B$6,Avropsblankett!$D$76=$A$11),AH11,IF(AND(Avropsblankett!$G$76=$B$10,Avropsblankett!$C$76=$B$6,Avropsblankett!$D$76=$A$12),AH12,IF(AND(Avropsblankett!$G$76=$B$10,Avropsblankett!$C$76=$B$6,Avropsblankett!$D$76=$A$13),AH13,IF(AND(Avropsblankett!$G$76=$B$10,Avropsblankett!$C$76=$B$6,Avropsblankett!$D$76=$A$14),AH14,IF(AND(Avropsblankett!$G$76=$B$10,Avropsblankett!$C$76=$B$6,Avropsblankett!$D$76=$A$15),AH15,IF(AND(Avropsblankett!$G$76=$B$10,Avropsblankett!$C$76=$B$6,Avropsblankett!$D$76=$A$16),AH16,0)))))) -> 0 | AI21: =Avropsblankett!$F$76*IF(AND(Avropsblankett!$G$76=$C$10,Avropsblankett!$C$76=$B$6,Avropsblankett!$D$76=$A$11),AI11,IF(AND(Avropsblankett!$G$76=$C$10,Avropsblankett!$C$76=$B$6,Avropsblankett!$D$76=$A$12),AI12,IF(AND(Avropsblankett!$G$76=$C$10,Avropsblankett!$C$76=$B$6,Avropsblankett!$D$76=$A$13),AI13,IF(AND(Avropsblankett!$G$76=$C$10,Avropsblankett!$C$76=$B$6,Avropsblankett!$D$76=$A$14),AI14,IF(AND(Avropsblankett!$G$76=$C$10,Avropsblankett!$C$76=$B$6,Avropsblankett!$D$76=$A$15),AI15,IF(AND(Avropsblankett!$G$76=$C$10,Avropsblankett!$C$76=$B$6,Avropsblankett!$D$76=$A$16),AI16,0)))))) -> 0 | AJ21: =Avropsblankett!$F$76*IF(AND(Avropsblankett!$G$76=$D$10,Avropsblankett!$C$76=$B$6,Avropsblankett!$D$76=$A$11),AJ11,IF(AND(Avropsblankett!$G$76=$D$10,Avropsblankett!$C$76=$B$6,Avropsblankett!$D$76=$A$12),AJ12,IF(AND(Avropsblankett!$G$76=$D$10,Avropsblankett!$C$76=$B$6,Avropsblankett!$D$76=$A$13),AJ13,IF(AND(Avropsblankett!$G$76=$D$10,Avropsblankett!$C$76=$B$6,Avropsblankett!$D$76=$A$14),AJ14,IF(AND(Avropsblankett!$G$76=$D$10,Avropsblankett!$C$76=$B$6,Avropsblankett!$D$76=$A$15),AJ15,IF(AND(Avropsblankett!$G$76=$D$10,Avropsblankett!$C$76=$B$6,Avropsblankett!$D$76=$A$16),AJ16,0)))))) -> 0 | AL21: =Avropsblankett!$F$76*IF(AND(Avropsblankett!$G$76=$B$10,Avropsblankett!$C$76=$B$6,Avropsblankett!$D$76=$A$11),AL11,IF(AND(Avropsblankett!$G$76=$B$10,Avropsblankett!$C$76=$B$6,Avropsblankett!$D$76=$A$12),AL12,IF(AND(Avropsblankett!$G$76=$B$10,Avropsblankett!$C$76=$B$6,Avropsblankett!$D$76=$A$13),AL13,IF(AND(Avropsblankett!$G$76=$B$10,Avropsblankett!$C$76=$B$6,Avropsblankett!$D$76=$A$14),AL14,IF(AND(Avropsblankett!$G$76=$B$10,Avropsblankett!$C$76=$B$6,Avropsblankett!$D$76=$A$15),AL15,IF(AND(Avropsblankett!$G$76=$B$10,Avropsblankett!$C$76=$B$6,Avropsblankett!$D$76=$A$16),AL16,0)))))) -> 0 | AM21: =Avropsblankett!$F$76*IF(AND(Avropsblankett!$G$76=$C$10,Avropsblankett!$C$76=$B$6,Avropsblankett!$D$76=$A$11),AM11,IF(AND(Avropsblankett!$G$76=$C$10,Avropsblankett!$C$76=$B$6,Avropsblankett!$D$76=$A$12),AM12,IF(AND(Avropsblankett!$G$76=$C$10,Avropsblankett!$C$76=$B$6,Avropsblankett!$D$76=$A$13),AM13,IF(AND(Avropsblankett!$G$76=$C$10,Avropsblankett!$C$76=$B$6,Avropsblankett!$D$76=$A$14),AM14,IF(AND(Avropsblankett!$G$76=$C$10,Avropsblankett!$C$76=$B$6,Avropsblankett!$D$76=$A$15),AM15,IF(AND(Avropsblankett!$G$76=$C$10,Avropsblankett!$C$76=$B$6,Avropsblankett!$D$76=$A$16),AM16,0)))))) -> 0 | AN21: =Avropsblankett!$F$76*IF(AND(Avropsblankett!$G$76=$D$10,Avropsblankett!$C$76=$B$6,Avropsblankett!$D$76=$A$11),AN11,IF(AND(Avropsblankett!$G$76=$D$10,Avropsblankett!$C$76=$B$6,Avropsblankett!$D$76=$A$12),AN12,IF(AND(Avropsblankett!$G$76=$D$10,Avropsblankett!$C$76=$B$6,Avropsblankett!$D$76=$A$13),AN13,IF(AND(Avropsblankett!$G$76=$D$10,Avropsblankett!$C$76=$B$6,Avropsblankett!$D$76=$A$14),AN14,IF(AND(Avropsblankett!$G$76=$D$10,Avropsblankett!$C$76=$B$6,Avropsblankett!$D$76=$A$15),AN15,IF(AND(Avropsblankett!$G$76=$D$10,Avropsblankett!$C$76=$B$6,Avropsblankett!$D$76=$A$16),AN16,0)))))) -> 0 | AP21: =Avropsblankett!$F$76*IF(AND(Avropsblankett!$G$76=$B$10,Avropsblankett!$C$76=$B$6,Avropsblankett!$D$76=$A$11),AP11,IF(AND(Avropsblankett!$G$76=$B$10,Avropsblankett!$C$76=$B$6,Avropsblankett!$D$76=$A$12),AP12,IF(AND(Avropsblankett!$G$76=$B$10,Avropsblankett!$C$76=$B$6,Avropsblankett!$D$76=$A$13),AP13,IF(AND(Avropsblankett!$G$76=$B$10,Avropsblankett!$C$76=$B$6,Avropsblankett!$D$76=$A$14),AP14,IF(AND(Avropsblankett!$G$76=$B$10,Avropsblankett!$C$76=$B$6,Avropsblankett!$D$76=$A$15),AP15,IF(AND(Avropsblankett!$G$76=$B$10,Avropsblankett!$C$76=$B$6,Avropsblankett!$D$76=$A$16),AP16,0)))))) -> 0 | AQ21: =Avropsblankett!$F$76*IF(AND(Avropsblankett!$G$76=$C$10,Avropsblankett!$C$76=$B$6,Avropsblankett!$D$76=$A$11),AQ11,IF(AND(Avropsblankett!$G$76=$C$10,Avropsblankett!$C$76=$B$6,Avropsblankett!$D$76=$A$12),AQ12,IF(AND(Avropsblankett!$G$76=$C$10,Avropsblankett!$C$76=$B$6,Avropsblankett!$D$76=$A$13),AQ13,IF(AND(Avropsblankett!$G$76=$C$10,Avropsblankett!$C$76=$B$6,Avropsblankett!$D$76=$A$14),AQ14,IF(AND(Avropsblankett!$G$76=$C$10,Avropsblankett!$C$76=$B$6,Avropsblankett!$D$76=$A$15),AQ15,IF(AND(Avropsblankett!$G$76=$C$10,Avropsblankett!$C$76=$B$6,Avropsblankett!$D$76=$A$16),AQ16,0)))))) -> 0 | AR21: =Avropsblankett!$F$76*IF(AND(Avropsblankett!$G$76=$D$10,Avropsblankett!$C$76=$B$6,Avropsblankett!$D$76=$A$11),AR11,IF(AND(Avropsblankett!$G$76=$D$10,Avropsblankett!$C$76=$B$6,Avropsblankett!$D$76=$A$12),AR12,IF(AND(Avropsblankett!$G$76=$D$10,Avropsblankett!$C$76=$B$6,Avropsblankett!$D$76=$A$13),AR13,IF(AND(Avropsblankett!$G$76=$D$10,Avropsblankett!$C$76=$B$6,Avropsblankett!$D$76=$A$14),AR14,IF(AND(Avropsblankett!$G$76=$D$10,Avropsblankett!$C$76=$B$6,Avropsblankett!$D$76=$A$15),AR15,IF(AND(Avropsblankett!$G$76=$D$10,Avropsblankett!$C$76=$B$6,Avropsblankett!$D$76=$A$16),AR16,0)))))) -> 0
B22: =SUM(B17:B21) -> 0 | C22: =SUM(C17:C21) -> 0 | D22: =SUM(D17:D21) -> 0 | F22: =SUM(F17:F21) -> 0 | G22: =SUM(G17:G21) -> 0 | H22: =SUM(H17:H21) -> 0 | J22: =SUM(J17:J21) -> 0 | K22: =SUM(K17:K21) -> 0 | L22: =SUM(L17:L21) -> 0 | N22: =SUM(N17:N21) -> 0 | O22: =SUM(O17:O21) -> 0 | P22: =SUM(P17:P21) -> 0 | R22: =SUM(R17:R21) -> 0 | S22: =SUM(S17:S21) -> 0 | T22: =SUM(T17:T21) -> 0 | V22: =SUM(V17:V21) -> 0 | W22: =SUM(W17:W21) -> 0 | X22: =SUM(X17:X21) -> 0 | Z22: =SUM(Z17:Z21) -> 0 | AA22: =SUM(AA17:AA21) -> 0 | AB22: =SUM(AB17:AB21) -> 0 | AD22: =SUM(AD17:AD21) -> 0 | AE22: =SUM(AE17:AE21) -> 0 | AF22: =SUM(AF17:AF21) -> 0 | AH22: =SUM(AH17:AH21) -> 0 | AI22: =SUM(AI17:AI21) -> 0 | AJ22: =SUM(AJ17:AJ21) -> 0 | AL22: =SUM(AL17:AL21) -> 0 | AM22: =SUM(AM17:AM21) -> 0 | AN22: =SUM(AN17:AN21) -> 0 | AP22: =SUM(AP17:AP21) -> 0 | AQ22: =SUM(AQ17:AQ21) -> 0 | AR22: =SUM(AR17:AR21) -> 0
A23: Variant 2 Obestruket | B23: Upplaga | F23: Upplaga | J23: Upplaga | N23: Upplaga | R23: Upplaga | V23: Upplaga | Z23: Upplaga | AD23: Upplaga | AH23: Upplaga | AL23: Upplaga | AP23: Upplaga
B24: 100 | C24: 250 | D24: 500 | F24: 100 | G24: 250 | H24: 500 | J24: 100 | K24: 250 | L24: 500 | N24: 100 | O24: 250 | P24: 500 | R24: 100 | S24: 250 | T24: 500 | V24: 100 | W24: 250 | X24: 500 | Z24: 100 | AA24: 250 | AB24: 500 | AD24: 100 | AE24: 250 | AF24: 500 | AH24: 100 | AI24: 250 | AJ24: 500 | AL24: 100 | AM24: 250 | AN24: 500 | AP24: 100 | AQ24: 250 | AR24: 500
A25: 1+0 (svart) | B25: 100 | C25: 250 | D25: 500 | F25: 100 | G25: 125 | H25: 250 | J25: 95 | K25: 180 | L25: 260 | N25: 35 | O25: 46 | P25: 88 | R25: 220 | S25: 230 | T25: 240 | V25: 280 | W25: 357 | X25: 484 | Z25: 60 | AA25: 120 | AB25: 270 | AD25: 100 | AE25: 125 | AF25: 150 | AH25: 250 | AI25: 350 | AJ25: 450 | AL25: 250 | AM25: 300 | AN25: 400 | AP25: 400 | AQ25: 750 | AR25: 1000
A26: 1+1 (svart) | B26: 130 | C26: 280 | D26: 500 | F26: 125 | G26: 150 | H26: 300 | J26: 95 | K26: 180 | L26: 260 | N26: 35 | O26: 46 | P26: 88 | R26: 245 | S26: 255 | T26: 265 | V26: 306 | W26: 397 | X26: 551 | Z26: 75 | AA26: 150 | AB26: 330 | AD26: 115 | AE26: 145 | AF26: 175 | AH26: 300 | AI26: 400 | AJ26: 500 | AL26: 270 | AM26: 330 | AN26: 450 | AP26: 400 | AQ26: 750 | AR26: 1000
A27: 4+0 | B27: 200 | C27: 350 | D27: 500 | F27: 175 | G27: 200 | H27: 400 | J27: 95 | K27: 180 | L27: 260 | N27: 46 | O27: 46 | P27: 88 | R27: 265 | S27: 280 | T27: 295 | V27: 331 | W27: 423 | X27: 576 | Z27: 75 | AA27: 150 | AB27: 330 | AD27: 150 | AE27: 175 | AF27: 200 | AH27: 300 | AI27: 400 | AJ27: 500 | AL27: 250 | AM27: 300 | AN27: 400 | AP27: 400 | AQ27: 750 | AR27: 1000
A28: 4+4 | B28: 220 | C28: 370 | D28: 500 | F28: 225 | G28: 250 | H28: 500 | J28: 95 | K28: 180 | L28: 260 | N28: 46 | O28: 46 | P28: 88 | R28: 275 | S28: 290 | T28: 305 | V28: 357 | W28: 464 | X28: 642 | Z28: 85 | AA28: 170 | AB28: 360 | AD28: 175 | AE28: 200 | AF28: 225 | AH28: 350 | AI28: 450 | AJ28: 550 | AL28: 270 | AM28: 330 | AN28: 450 | AP28: 500 | AQ28: 850 | AR28: 1100
A29: 2+0 PMS | B29: 200 | C29: 350 | D29: 500 | F29: 350 | G29: 375 | H29: 750 | J29: 95 | K29: 180 | L29: 260 | N29: 111 | O29: 155 | P29: 253 | R29: 265 | S29: 280 | T29: 295 | V29: 765 | W29: 841 | X29: 969 | Z29: 130 | AA29: 160 | AB29: 350 | AD29: 300 | AE29: 325 | AF29: 350 | AH29: 250 | AI29: 300 | AJ29: 350 | AL29: 450 | AM29: 500 | AN29: 600 | AP29: 400 | AQ29: 750 | AR29: 1000
A30: 2+2 PMS | B30: 220 | C30: 370 | D30: 500 | F30: 475 | G30: 500 | H30: 1000 | J30: 95 | K30: 180 | L30: 260 | N30: 111 | O30: 155 | P30: 253 | R30: 275 | S30: 290 | T30: 305 | V30: 867 | W30: 979 | X30: 1173 | Z30: 140 | AA30: 180 | AB30: 380 | AD30: 325 | AE30: 350 | AF30: 375 | AH30: 300 | AI30: 400 | AJ30: 500 | AL30: 500 | AM30: 550 | AN30: 650 | AP30: 400 | AQ30: 750 | AR30: 1000
B31: =Avropsblankett!$F$28*IF(AND(Avropsblankett!$G$28=$B$10,Avropsblankett!$C$28=$B$7,Avropsblankett!$D$28=$A$11),B25,IF(AND(Avropsblankett!$G$28=$B$10,Avropsblankett!$C$28=$B$7,Avropsblankett!$D$28=$A$12),B26,IF(AND(Avropsblankett!$G$28=$B$10,Avropsblankett!$C$28=$B$7,Avropsblankett!$D$28=$A$13),B27,IF(AND(Avropsblankett!$G$28=$B$10,Avropsblankett!$C$28=$B$7,Avropsblankett!$D$28=$A$14),B28,IF(AND(Avropsblankett!$G$28=$B$10,Avropsblankett!$C$28=$B$7,Avropsblankett!$D$28=$A$15),B29,IF(AND(Avropsblankett!$G$28=$B$10,Avropsblankett!$C$28=$B$7,Avropsblankett!$D$28=$A$16),B30,0)))))) -> 0 | C31: =Avropsblankett!$F$28*IF(AND(Avropsblankett!$G$28=$C$10,Avropsblankett!$C$28=$B$7,Avropsblankett!$D$28=$A$11),C25,IF(AND(Avropsblankett!$G$28=$C$10,Avropsblankett!$C$28=$B$7,Avropsblankett!$D$28=$A$12),C26,IF(AND(Avropsblankett!$G$28=$C$10,Avropsblankett!$C$28=$B$7,Avropsblankett!$D$28=$A$13),C27,IF(AND(Avropsblankett!$G$28=$C$10,Avropsblankett!$C$28=$B$7,Avropsblankett!$D$28=$A$14),C28,IF(AND(Avropsblankett!$G$28=$C$10,Avropsblankett!$C$28=$B$7,Avropsblankett!$D$28=$A$15),C29,IF(AND(Avropsblankett!$G$28=$C$10,Avropsblankett!$C$28=$B$7,Avropsblankett!$D$28=$A$16),C30,0)))))) -> 0 | D31: =Avropsblankett!$F$28*IF(AND(Avropsblankett!$G$28=$D$10,Avropsblankett!$C$28=$B$7,Avropsblankett!$D$28=$A$11),D25,IF(AND(Avropsblankett!$G$28=$D$10,Avropsblankett!$C$28=$B$7,Avropsblankett!$D$28=$A$12),D26,IF(AND(Avropsblankett!$G$28=$D$10,Avropsblankett!$C$28=$B$7,Avropsblankett!$D$28=$A$13),D27,IF(AND(Avropsblankett!$G$28=$D$10,Avropsblankett!$C$28=$B$7,Avropsblankett!$D$28=$A$14),D28,IF(AND(Avropsblankett!$G$28=$D$10,Avropsblankett!$C$28=$B$7,Avropsblankett!$D$28=$A$15),D29,IF(AND(Avropsblankett!$G$28=$D$10,Avropsblankett!$C$28=$B$7,Avropsblankett!$D$28=$A$16),D30,0)))))) -> 0 | F31: =Avropsblankett!$F$28*IF(AND(Avropsblankett!$G$28=$B$10,Avropsblankett!$C$28=$B$7,Avropsblankett!$D$28=$A$11),F25,IF(AND(Avropsblankett!$G$28=$B$10,Avropsblankett!$C$28=$B$7,Avropsblankett!$D$28=$A$12),F26,IF(AND(Avropsblankett!$G$28=$B$10,Avropsblankett!$C$28=$B$7,Avropsblankett!$D$28=$A$13),F27,IF(AND(Avropsblankett!$G$28=$B$10,Avropsblankett!$C$28=$B$7,Avropsblankett!$D$28=$A$14),F28,IF(AND(Avropsblankett!$G$28=$B$10,Avropsblankett!$C$28=$B$7,Avropsblankett!$D$28=$A$15),F29,IF(AND(Avropsblankett!$G$28=$B$10,Avropsblankett!$C$28=$B$7,Avropsblankett!$D$28=$A$16),F30,0)))))) -> 0 | G31: =Avropsblankett!$F$28*IF(AND(Avropsblankett!$G$28=$C$10,Avropsblankett!$C$28=$B$7,Avropsblankett!$D$28=$A$11),G25,IF(AND(Avropsblankett!$G$28=$C$10,Avropsblankett!$C$28=$B$7,Avropsblankett!$D$28=$A$12),G26,IF(AND(Avropsblankett!$G$28=$C$10,Avropsblankett!$C$28=$B$7,Avropsblankett!$D$28=$A$13),G27,IF(AND(Avropsblankett!$G$28=$C$10,Avropsblankett!$C$28=$B$7,Avropsblankett!$D$28=$A$14),G28,IF(AND(Avropsblankett!$G$28=$C$10,Avropsblankett!$C$28=$B$7,Avropsblankett!$D$28=$A$15),G29,IF(AND(Avropsblankett!$G$28=$C$10,Avropsblankett!$C$28=$B$7,Avropsblankett!$D$28=$A$16),G30,0)))))) -> 0 | H31: =Avropsblankett!$F$28*IF(AND(Avropsblankett!$G$28=$D$10,Avropsblankett!$C$28=$B$7,Avropsblankett!$D$28=$A$11),H25,IF(AND(Avropsblankett!$G$28=$D$10,Avropsblankett!$C$28=$B$7,Avropsblankett!$D$28=$A$12),H26,IF(AND(Avropsblankett!$G$28=$D$10,Avropsblankett!$C$28=$B$7,Avropsblankett!$D$28=$A$13),H27,IF(AND(Avropsblankett!$G$28=$D$10,Avropsblankett!$C$28=$B$7,Avropsblankett!$D$28=$A$14),H28,IF(AND(Avropsblankett!$G$28=$D$10,Avropsblankett!$C$28=$B$7,Avropsblankett!$D$28=$A$15),H29,IF(AND(Avropsblankett!$G$28=$D$10,Avropsblankett!$C$28=$B$7,Avropsblankett!$D$28=$A$16),H30,0)))))) -> 0 | J31: =Avropsblankett!$F$28*IF(AND(Avropsblankett!$G$28=$B$10,Avropsblankett!$C$28=$B$7,Avropsblankett!$D$28=$A$11),J25,IF(AND(Avropsblankett!$G$28=$B$10,Avropsblankett!$C$28=$B$7,Avropsblankett!$D$28=$A$12),J26,IF(AND(Avropsblankett!$G$28=$B$10,Avropsblankett!$C$28=$B$7,Avropsblankett!$D$28=$A$13),J27,IF(AND(Avropsblankett!$G$28=$B$10,Avropsblankett!$C$28=$B$7,Avropsblankett!$D$28=$A$14),J28,IF(AND(Avropsblankett!$G$28=$B$10,Avropsblankett!$C$28=$B$7,Avropsblankett!$D$28=$A$15),J29,IF(AND(Avropsblankett!$G$28=$B$10,Avropsblankett!$C$28=$B$7,Avropsblankett!$D$28=$A$16),J30,0)))))) -> 0 | K31: =Avropsblankett!$F$28*IF(AND(Avropsblankett!$G$28=$C$10,Avropsblankett!$C$28=$B$7,Avropsblankett!$D$28=$A$11),K25,IF(AND(Avropsblankett!$G$28=$C$10,Avropsblankett!$C$28=$B$7,Avropsblankett!$D$28=$A$12),K26,IF(AND(Avropsblankett!$G$28=$C$10,Avropsblankett!$C$28=$B$7,Avropsblankett!$D$28=$A$13),K27,IF(AND(Avropsblankett!$G$28=$C$10,Avropsblankett!$C$28=$B$7,Avropsblankett!$D$28=$A$14),K28,IF(AND(Avropsblankett!$G$28=$C$10,Avropsblankett!$C$28=$B$7,Avropsblankett!$D$28=$A$15),K29,IF(AND(Avropsblankett!$G$28=$C$10,Avropsblankett!$C$28=$B$7,Avropsblankett!$D$28=$A$16),K30,0)))))) -> 0 | L31: =Avropsblankett!$F$28*IF(AND(Avropsblankett!$G$28=$D$10,Avropsblankett!$C$28=$B$7,Avropsblankett!$D$28=$A$11),L25,IF(AND(Avropsblankett!$G$28=$D$10,Avropsblankett!$C$28=$B$7,Avropsblankett!$D$28=$A$12),L26,IF(AND(Avropsblankett!$G$28=$D$10,Avropsblankett!$C$28=$B$7,Avropsblankett!$D$28=$A$13),L27,IF(AND(Avropsblankett!$G$28=$D$10,Avropsblankett!$C$28=$B$7,Avropsblankett!$D$28=$A$14),L28,IF(AND(Avropsblankett!$G$28=$D$10,Avropsblankett!$C$28=$B$7,Avropsblankett!$D$28=$A$15),L29,IF(AND(Avropsblankett!$G$28=$D$10,Avropsblankett!$C$28=$B$7,Avropsblankett!$D$28=$A$16),L30,0)))))) -> 0 | N31: =Avropsblankett!$F$28*IF(AND(Avropsblankett!$G$28=$B$10,Avropsblankett!$C$28=$B$7,Avropsblankett!$D$28=$A$11),N25,IF(AND(Avropsblankett!$G$28=$B$10,Avropsblankett!$C$28=$B$7,Avropsblankett!$D$28=$A$12),N26,IF(AND(Avropsblankett!$G$28=$B$10,Avropsblankett!$C$28=$B$7,Avropsblankett!$D$28=$A$13),N27,IF(AND(Avropsblankett!$G$28=$B$10,Avropsblankett!$C$28=$B$7,Avropsblankett!$D$28=$A$14),N28,IF(AND(Avropsblankett!$G$28=$B$10,Avropsblankett!$C$28=$B$7,Avropsblankett!$D$28=$A$15),N29,IF(AND(Avropsblankett!$G$28=$B$10,Avropsblankett!$C$28=$B$7,Avropsblankett!$D$28=$A$16),N30,0)))))) -> 0 | O31: =Avropsblankett!$F$28*IF(AND(Avropsblankett!$G$28=$C$10,Avropsblankett!$C$28=$B$7,Avropsblankett!$D$28=$A$11),O25,IF(AND(Avropsblankett!$G$28=$C$10,Avropsblankett!$C$28=$B$7,Avropsblankett!$D$28=$A$12),O26,IF(AND(Avropsblankett!$G$28=$C$10,Avropsblankett!$C$28=$B$7,Avropsblankett!$D$28=$A$13),O27,IF(AND(Avropsblankett!$G$28=$C$10,Avropsblankett!$C$28=$B$7,Avropsblankett!$D$28=$A$14),O28,IF(AND(Avropsblankett!$G$28=$C$10,Avropsblankett!$C$28=$B$7,Avropsblankett!$D$28=$A$15),O29,IF(AND(Avropsblankett!$G$28=$C$10,Avropsblankett!$C$28=$B$7,Avropsblankett!$D$28=$A$16),O30,0)))))) -> 0 | P31: =Avropsblankett!$F$28*IF(AND(Avropsblankett!$G$28=$D$10,Avropsblankett!$C$28=$B$7,Avropsblankett!$D$28=$A$11),P25,IF(AND(Avropsblankett!$G$28=$D$10,Avropsblankett!$C$28=$B$7,Avropsblankett!$D$28=$A$12),P26,IF(AND(Avropsblankett!$G$28=$D$10,Avropsblankett!$C$28=$B$7,Avropsblankett!$D$28=$A$13),P27,IF(AND(Avropsblankett!$G$28=$D$10,Avropsblankett!$C$28=$B$7,Avropsblankett!$D$28=$A$14),P28,IF(AND(Avropsblankett!$G$28=$D$10,Avropsblankett!$C$28=$B$7,Avropsblankett!$D$28=$A$15),P29,IF(AND(Avropsblankett!$G$28=$D$10,Avropsblankett!$C$28=$B$7,Avropsblankett!$D$28=$A$16),P30,0)))))) -> 0 | R31: =Avropsblankett!$F$28*IF(AND(Avropsblankett!$G$28=$B$10,Avropsblankett!$C$28=$B$7,Avropsblankett!$D$28=$A$11),R25,IF(AND(Avropsblankett!$G$28=$B$10,Avropsblankett!$C$28=$B$7,Avropsblankett!$D$28=$A$12),R26,IF(AND(Avropsblankett!$G$28=$B$10,Avropsblankett!$C$28=$B$7,Avropsblankett!$D$28=$A$13),R27,IF(AND(Avropsblankett!$G$28=$B$10,Avropsblankett!$C$28=$B$7,Avropsblankett!$D$28=$A$14),R28,IF(AND(Avropsblankett!$G$28=$B$10,Avropsblankett!$C$28=$B$7,Avropsblankett!$D$28=$A$15),R29,IF(AND(Avropsblankett!$G$28=$B$10,Avropsblankett!$C$28=$B$7,Avropsblankett!$D$28=$A$16),R30,0)))))) -> 0 | S31: =Avropsblankett!$F$28*IF(AND(Avropsblankett!$G$28=$C$10,Avropsblankett!$C$28=$B$7,Avropsblankett!$D$28=$A$11),S25,IF(AND(Avropsblankett!$G$28=$C$10,Avropsblankett!$C$28=$B$7,Avropsblankett!$D$28=$A$12),S26,IF(AND(Avropsblankett!$G$28=$C$10,Avropsblankett!$C$28=$B$7,Avropsblankett!$D$28=$A$13),S27,IF(AND(Avropsblankett!$G$28=$C$10,Avropsblankett!$C$28=$B$7,Avropsblankett!$D$28=$A$14),S28,IF(AND(Avropsblankett!$G$28=$C$10,Avropsblankett!$C$28=$B$7,Avropsblankett!$D$28=$A$15),S29,IF(AND(Avropsblankett!$G$28=$C$10,Avropsblankett!$C$28=$B$7,Avropsblankett!$D$28=$A$16),S30,0)))))) -> 0 | T31: =Avropsblankett!$F$28*IF(AND(Avropsblankett!$G$28=$D$10,Avropsblankett!$C$28=$B$7,Avropsblankett!$D$28=$A$11),T25,IF(AND(Avropsblankett!$G$28=$D$10,Avropsblankett!$C$28=$B$7,Avropsblankett!$D$28=$A$12),T26,IF(AND(Avropsblankett!$G$28=$D$10,Avropsblankett!$C$28=$B$7,Avropsblankett!$D$28=$A$13),T27,IF(AND(Avropsblankett!$G$28=$D$10,Avropsblankett!$C$28=$B$7,Avropsblankett!$D$28=$A$14),T28,IF(AND(Avropsblankett!$G$28=$D$10,Avropsblankett!$C$28=$B$7,Avropsblankett!$D$28=$A$15),T29,IF(AND(Avropsblankett!$G$28=$D$10,Avropsblankett!$C$28=$B$7,Avropsblankett!$D$28=$A$16),T30,0)))))) -> 0 | V31: =Avropsblankett!$F$28*IF(AND(Avropsblankett!$G$28=$B$10,Avropsblankett!$C$28=$B$7,Avropsblankett!$D$28=$A$11),V25,IF(AND(Avropsblankett!$G$28=$B$10,Avropsblankett!$C$28=$B$7,Avropsblankett!$D$28=$A$12),V26,IF(AND(Avropsblankett!$G$28=$B$10,Avropsblankett!$C$28=$B$7,Avropsblankett!$D$28=$A$13),V27,IF(AND(Avropsblankett!$G$28=$B$10,Avropsblankett!$C$28=$B$7,Avropsblankett!$D$28=$A$14),V28,IF(AND(Avropsblankett!$G$28=$B$10,Avropsblankett!$C$28=$B$7,Avropsblankett!$D$28=$A$15),V29,IF(AND(Avropsblankett!$G$28=$B$10,Avropsblankett!$C$28=$B$7,Avropsblankett!$D$28=$A$16),V30,0)))))) -> 0 | W31: =Avropsblankett!$F$28*IF(AND(Avropsblankett!$G$28=$C$10,Avropsblankett!$C$28=$B$7,Avropsblankett!$D$28=$A$11),W25,IF(AND(Avropsblankett!$G$28=$C$10,Avropsblankett!$C$28=$B$7,Avropsblankett!$D$28=$A$12),W26,IF(AND(Avropsblankett!$G$28=$C$10,Avropsblankett!$C$28=$B$7,Avropsblankett!$D$28=$A$13),W27,IF(AND(Avropsblankett!$G$28=$C$10,Avropsblankett!$C$28=$B$7,Avropsblankett!$D$28=$A$14),W28,IF(AND(Avropsblankett!$G$28=$C$10,Avropsblankett!$C$28=$B$7,Avropsblankett!$D$28=$A$15),W29,IF(AND(Avropsblankett!$G$28=$C$10,Avropsblankett!$C$28=$B$7,Avropsblankett!$D$28=$A$16),W30,0)))))) -> 0 | X31: =Avropsblankett!$F$28*IF(AND(Avropsblankett!$G$28=$D$10,Avropsblankett!$C$28=$B$7,Avropsblankett!$D$28=$A$11),X25,IF(AND(Avropsblankett!$G$28=$D$10,Avropsblankett!$C$28=$B$7,Avropsblankett!$D$28=$A$12),X26,IF(AND(Avropsblankett!$G$28=$D$10,Avropsblankett!$C$28=$B$7,Avropsblankett!$D$28=$A$13),X27,IF(AND(Avropsblankett!$G$28=$D$10,Avropsblankett!$C$28=$B$7,Avropsblankett!$D$28=$A$14),X28,IF(AND(Avropsblankett!$G$28=$D$10,Avropsblankett!$C$28=$B$7,Avropsblankett!$D$28=$A$15),X29,IF(AND(Avropsblankett!$G$28=$D$10,Avropsblankett!$C$28=$B$7,Avropsblankett!$D$28=$A$16),X30,0)))))) -> 0 | Z31: =Avropsblankett!$F$28*IF(AND(Avropsblankett!$G$28=$B$10,Avropsblankett!$C$28=$B$7,Avropsblankett!$D$28=$A$11),Z25,IF(AND(Avropsblankett!$G$28=$B$10,Avropsblankett!$C$28=$B$7,Avropsblankett!$D$28=$A$12),Z26,IF(AND(Avropsblankett!$G$28=$B$10,Avropsblankett!$C$28=$B$7,Avropsblankett!$D$28=$A$13),Z27,IF(AND(Avropsblankett!$G$28=$B$10,Avropsblankett!$C$28=$B$7,Avropsblankett!$D$28=$A$14),Z28,IF(AND(Avropsblankett!$G$28=$B$10,Avropsblankett!$C$28=$B$7,Avropsblankett!$D$28=$A$15),Z29,IF(AND(Avropsblankett!$G$28=$B$10,Avropsblankett!$C$28=$B$7,Avropsblankett!$D$28=$A$16),Z30,0)))))) -> 0 | AA31: =Avropsblankett!$F$28*IF(AND(Avropsblankett!$G$28=$C$10,Avropsblankett!$C$28=$B$7,Avropsblankett!$D$28=$A$11),AA25,IF(AND(Avropsblankett!$G$28=$C$10,Avropsblankett!$C$28=$B$7,Avropsblankett!$D$28=$A$12),AA26,IF(AND(Avropsblankett!$G$28=$C$10,Avropsblankett!$C$28=$B$7,Avropsblankett!$D$28=$A$13),AA27,IF(AND(Avropsblankett!$G$28=$C$10,Avropsblankett!$C$28=$B$7,Avropsblankett!$D$28=$A$14),AA28,IF(AND(Avropsblankett!$G$28=$C$10,Avropsblankett!$C$28=$B$7,Avropsblankett!$D$28=$A$15),AA29,IF(AND(Avropsblankett!$G$28=$C$10,Avropsblankett!$C$28=$B$7,Avropsblankett!$D$28=$A$16),AA30,0)))))) -> 0 | AB31: =Avropsblankett!$F$28*IF(AND(Avropsblankett!$G$28=$D$10,Avropsblankett!$C$28=$B$7,Avropsblankett!$D$28=$A$11),AB25,IF(AND(Avropsblankett!$G$28=$D$10,Avropsblankett!$C$28=$B$7,Avropsblankett!$D$28=$A$12),AB26,IF(AND(Avropsblankett!$G$28=$D$10,Avropsblankett!$C$28=$B$7,Avropsblankett!$D$28=$A$13),AB27,IF(AND(Avropsblankett!$G$28=$D$10,Avropsblankett!$C$28=$B$7,Avropsblankett!$D$28=$A$14),AB28,IF(AND(Avropsblankett!$G$28=$D$10,Avropsblankett!$C$28=$B$7,Avropsblankett!$D$28=$A$15),AB29,IF(AND(Avropsblankett!$G$28=$D$10,Avropsblankett!$C$28=$B$7,Avropsblankett!$D$28=$A$16),AB30,0)))))) -> 0 | AD31: =Avropsblankett!$F$28*IF(AND(Avropsblankett!$G$28=$B$10,Avropsblankett!$C$28=$B$7,Avropsblankett!$D$28=$A$11),AD25,IF(AND(Avropsblankett!$G$28=$B$10,Avropsblankett!$C$28=$B$7,Avropsblankett!$D$28=$A$12),AD26,IF(AND(Avropsblankett!$G$28=$B$10,Avropsblankett!$C$28=$B$7,Avropsblankett!$D$28=$A$13),AD27,IF(AND(Avropsblankett!$G$28=$B$10,Avropsblankett!$C$28=$B$7,Avropsblankett!$D$28=$A$14),AD28,IF(AND(Avropsblankett!$G$28=$B$10,Avropsblankett!$C$28=$B$7,Avropsblankett!$D$28=$A$15),AD29,IF(AND(Avropsblankett!$G$28=$B$10,Avropsblankett!$C$28=$B$7,Avropsblankett!$D$28=$A$16),AD30,0)))))) -> 0 | AE31: =Avropsblankett!$F$28*IF(AND(Avropsblankett!$G$28=$C$10,Avropsblankett!$C$28=$B$7,Avropsblankett!$D$28=$A$11),AE25,IF(AND(Avropsblankett!$G$28=$C$10,Avropsblankett!$C$28=$B$7,Avropsblankett!$D$28=$A$12),AE26,IF(AND(Avropsblankett!$G$28=$C$10,Avropsblankett!$C$28=$B$7,Avropsblankett!$D$28=$A$13),AE27,IF(AND(Avropsblankett!$G$28=$C$10,Avropsblankett!$C$28=$B$7,Avropsblankett!$D$28=$A$14),AE28,IF(AND(Avropsblankett!$G$28=$C$10,Avropsblankett!$C$28=$B$7,Avropsblankett!$D$28=$A$15),AE29,IF(AND(Avropsblankett!$G$28=$C$10,Avropsblankett!$C$28=$B$7,Avropsblankett!$D$28=$A$16),AE30,0)))))) -> 0 | AF31: =Avropsblankett!$F$28*IF(AND(Avropsblankett!$G$28=$D$10,Avropsblankett!$C$28=$B$7,Avropsblankett!$D$28=$A$11),AF25,IF(AND(Avropsblankett!$G$28=$D$10,Avropsblankett!$C$28=$B$7,Avropsblankett!$D$28=$A$12),AF26,IF(AND(Avropsblankett!$G$28=$D$10,Avropsblankett!$C$28=$B$7,Avropsblankett!$D$28=$A$13),AF27,IF(AND(Avropsblankett!$G$28=$D$10,Avropsblankett!$C$28=$B$7,Avropsblankett!$D$28=$A$14),AF28,IF(AND(Avropsblankett!$G$28=$D$10,Avropsblankett!$C$28=$B$7,Avropsblankett!$D$28=$A$15),AF29,IF(AND(Avropsblankett!$G$28=$D$10,Avropsblankett!$C$28=$B$7,Avropsblankett!$D$28=$A$16),AF30,0)))))) -> 0 | AH31: =Avropsblankett!$F$28*IF(AND(Avropsblankett!$G$28=$B$10,Avropsblankett!$C$28=$B$7,Avropsblankett!$D$28=$A$11),AH25,IF(AND(Avropsblankett!$G$28=$B$10,Avropsblankett!$C$28=$B$7,Avropsblankett!$D$28=$A$12),AH26,IF(AND(Avropsblankett!$G$28=$B$10,Avropsblankett!$C$28=$B$7,Avropsblankett!$D$28=$A$13),AH27,IF(AND(Avropsblankett!$G$28=$B$10,Avropsblankett!$C$28=$B$7,Avropsblankett!$D$28=$A$14),AH28,IF(AND(Avropsblankett!$G$28=$B$10,Avropsblankett!$C$28=$B$7,Avropsblankett!$D$28=$A$15),AH29,IF(AND(Avropsblankett!$G$28=$B$10,Avropsblankett!$C$28=$B$7,Avropsblankett!$D$28=$A$16),AH30,0)))))) -> 0 | AI31: =Avropsblankett!$F$28*IF(AND(Avropsblankett!$G$28=$C$10,Avropsblankett!$C$28=$B$7,Avropsblankett!$D$28=$A$11),AI25,IF(AND(Avropsblankett!$G$28=$C$10,Avropsblankett!$C$28=$B$7,Avropsblankett!$D$28=$A$12),AI26,IF(AND(Avropsblankett!$G$28=$C$10,Avropsblankett!$C$28=$B$7,Avropsblankett!$D$28=$A$13),AI27,IF(AND(Avropsblankett!$G$28=$C$10,Avropsblankett!$C$28=$B$7,Avropsblankett!$D$28=$A$14),AI28,IF(AND(Avropsblankett!$G$28=$C$10,Avropsblankett!$C$28=$B$7,Avropsblankett!$D$28=$A$15),AI29,IF(AND(Avropsblankett!$G$28=$C$10,Avropsblankett!$C$28=$B$7,Avropsblankett!$D$28=$A$16),AI30,0)))))) -> 0 | AJ31: =Avropsblankett!$F$28*IF(AND(Avropsblankett!$G$28=$D$10,Avropsblankett!$C$28=$B$7,Avropsblankett!$D$28=$A$11),AJ25,IF(AND(Avropsblankett!$G$28=$D$10,Avropsblankett!$C$28=$B$7,Avropsblankett!$D$28=$A$12),AJ26,IF(AND(Avropsblankett!$G$28=$D$10,Avropsblankett!$C$28=$B$7,Avropsblankett!$D$28=$A$13),AJ27,IF(AND(Avropsblankett!$G$28=$D$10,Avropsblankett!$C$28=$B$7,Avropsblankett!$D$28=$A$14),AJ28,IF(AND(Avropsblankett!$G$28=$D$10,Avropsblankett!$C$28=$B$7,Avropsblankett!$D$28=$A$15),AJ29,IF(AND(Avropsblankett!$G$28=$D$10,Avropsblankett!$C$28=$B$7,Avropsblankett!$D$28=$A$16),AJ30,0)))))) -> 0 | AL31: =Avropsblankett!$F$28*IF(AND(Avropsblankett!$G$28=$B$10,Avropsblankett!$C$28=$B$7,Avropsblankett!$D$28=$A$11),AL25,IF(AND(Avropsblankett!$G$28=$B$10,Avropsblankett!$C$28=$B$7,Avropsblankett!$D$28=$A$12),AL26,IF(AND(Avropsblankett!$G$28=$B$10,Avropsblankett!$C$28=$B$7,Avropsblankett!$D$28=$A$13),AL27,IF(AND(Avropsblankett!$G$28=$B$10,Avropsblankett!$C$28=$B$7,Avropsblankett!$D$28=$A$14),AL28,IF(AND(Avropsblankett!$G$28=$B$10,Avropsblankett!$C$28=$B$7,Avropsblankett!$D$28=$A$15),AL29,IF(AND(Avropsblankett!$G$28=$B$10,Avropsblankett!$C$28=$B$7,Avropsblankett!$D$28=$A$16),AL30,0)))))) -> 0 | AM31: =Avropsblankett!$F$28*IF(AND(Avropsblankett!$G$28=$C$10,Avropsblankett!$C$28=$B$7,Avropsblankett!$D$28=$A$11),AM25,IF(AND(Avropsblankett!$G$28=$C$10,Avropsblankett!$C$28=$B$7,Avropsblankett!$D$28=$A$12),AM26,IF(AND(Avropsblankett!$G$28=$C$10,Avropsblankett!$C$28=$B$7,Avropsblankett!$D$28=$A$13),AM27,IF(AND(Avropsblankett!$G$28=$C$10,Avropsblankett!$C$28=$B$7,Avropsblankett!$D$28=$A$14),AM28,IF(AND(Avropsblankett!$G$28=$C$10,Avropsblankett!$C$28=$B$7,Avropsblankett!$D$28=$A$15),AM29,IF(AND(Avropsblankett!$G$28=$C$10,Avropsblankett!$C$28=$B$7,Avropsblankett!$D$28=$A$16),AM30,0)))))) -> 0 | AN31: =Avropsblankett!$F$28*IF(AND(Avropsblankett!$G$28=$D$10,Avropsblankett!$C$28=$B$7,Avropsblankett!$D$28=$A$11),AN25,IF(AND(Avropsblankett!$G$28=$D$10,Avropsblankett!$C$28=$B$7,Avropsblankett!$D$28=$A$12),AN26,IF(AND(Avropsblankett!$G$28=$D$10,Avropsblankett!$C$28=$B$7,Avropsblankett!$D$28=$A$13),AN27,IF(AND(Avropsblankett!$G$28=$D$10,Avropsblankett!$C$28=$B$7,Avropsblankett!$D$28=$A$14),AN28,IF(AND(Avropsblankett!$G$28=$D$10,Avropsblankett!$C$28=$B$7,Avropsblankett!$D$28=$A$15),AN29,IF(AND(Avropsblankett!$G$28=$D$10,Avropsblankett!$C$28=$B$7,Avropsblankett!$D$28=$A$16),AN30,0)))))) -> 0 | AP31: =Avropsblankett!$F$28*IF(AND(Avropsblankett!$G$28=$B$10,Avropsblankett!$C$28=$B$7,Avropsblankett!$D$28=$A$11),AP25,IF(AND(Avropsblankett!$G$28=$B$10,Avropsblankett!$C$28=$B$7,Avropsblankett!$D$28=$A$12),AP26,IF(AND(Avropsblankett!$G$28=$B$10,Avropsblankett!$C$28=$B$7,Avropsblankett!$D$28=$A$13),AP27,IF(AND(Avropsblankett!$G$28=$B$10,Avropsblankett!$C$28=$B$7,Avropsblankett!$D$28=$A$14),AP28,IF(AND(Avropsblankett!$G$28=$B$10,Avropsblankett!$C$28=$B$7,Avropsblankett!$D$28=$A$15),AP29,IF(AND(Avropsblankett!$G$28=$B$10,Avropsblankett!$C$28=$B$7,Avropsblankett!$D$28=$A$16),AP30,0)))))) -> 0 | AQ31: =Avropsblankett!$F$28*IF(AND(Avropsblankett!$G$28=$C$10,Avropsblankett!$C$28=$B$7,Avropsblankett!$D$28=$A$11),AQ25,IF(AND(Avropsblankett!$G$28=$C$10,Avropsblankett!$C$28=$B$7,Avropsblankett!$D$28=$A$12),AQ26,IF(AND(Avropsblankett!$G$28=$C$10,Avropsblankett!$C$28=$B$7,Avropsblankett!$D$28=$A$13),AQ27,IF(AND(Avropsblankett!$G$28=$C$10,Avropsblankett!$C$28=$B$7,Avropsblankett!$D$28=$A$14),AQ28,IF(AND(Avropsblankett!$G$28=$C$10,Avropsblankett!$C$28=$B$7,Avropsblankett!$D$28=$A$15),AQ29,IF(AND(Avropsblankett!$G$28=$C$10,Avropsblankett!$C$28=$B$7,Avropsblankett!$D$28=$A$16),AQ30,0)))))) -> 0 | AR31: =Avropsblankett!$F$28*IF(AND(Avropsblankett!$G$28=$D$10,Avropsblankett!$C$28=$B$7,Avropsblankett!$D$28=$A$11),AR25,IF(AND(Avropsblankett!$G$28=$D$10,Avropsblankett!$C$28=$B$7,Avropsblankett!$D$28=$A$12),AR26,IF(AND(Avropsblankett!$G$28=$D$10,Avropsblankett!$C$28=$B$7,Avropsblankett!$D$28=$A$13),AR27,IF(AND(Avropsblankett!$G$28=$D$10,Avropsblankett!$C$28=$B$7,Avropsblankett!$D$28=$A$14),AR28,IF(AND(Avropsblankett!$G$28=$D$10,Avropsblankett!$C$28=$B$7,Avropsblankett!$D$28=$A$15),AR29,IF(AND(Avropsblankett!$G$28=$D$10,Avropsblankett!$C$28=$B$7,Avropsblankett!$D$28=$A$16),AR30,0)))))) -> 0
B32: =Avropsblankett!$F$40*IF(AND(Avropsblankett!$G$40=$B$10,Avropsblankett!$C$40=$B$7,Avropsblankett!$D$40=$A$11),B25,IF(AND(Avropsblankett!$G$40=$B$10,Avropsblankett!$C$40=$B$7,Avropsblankett!$D$40=$A$12),B26,IF(AND(Avropsblankett!$G$40=$B$10,Avropsblankett!$C$40=$B$7,Avropsblankett!$D$40=$A$13),B27,IF(AND(Avropsblankett!$G$40=$B$10,Avropsblankett!$C$40=$B$7,Avropsblankett!$D$40=$A$14),B28,IF(AND(Avropsblankett!$G$40=$B$10,Avropsblankett!$C$40=$B$7,Avropsblankett!$D$40=$A$15),B29,IF(AND(Avropsblankett!$G$40=$B$10,Avropsblankett!$C$40=$B$7,Avropsblankett!$D$40=$A$16),B30,0)))))) -> 0 | C32: =Avropsblankett!$F$40*IF(AND(Avropsblankett!$G$40=$C$10,Avropsblankett!$C$40=$B$7,Avropsblankett!$D$40=$A$11),C25,IF(AND(Avropsblankett!$G$40=$C$10,Avropsblankett!$C$40=$B$7,Avropsblankett!$D$40=$A$12),C26,IF(AND(Avropsblankett!$G$40=$C$10,Avropsblankett!$C$40=$B$7,Avropsblankett!$D$40=$A$13),C27,IF(AND(Avropsblankett!$G$40=$C$10,Avropsblankett!$C$40=$B$7,Avropsblankett!$D$40=$A$14),C28,IF(AND(Avropsblankett!$G$40=$C$10,Avropsblankett!$C$40=$B$7,Avropsblankett!$D$40=$A$15),C29,IF(AND(Avropsblankett!$G$40=$C$10,Avropsblankett!$C$40=$B$7,Avropsblankett!$D$40=$A$16),C30,0)))))) -> 0 | D32: =Avropsblankett!$F$40*IF(AND(Avropsblankett!$G$40=$D$10,Avropsblankett!$C$40=$B$7,Avropsblankett!$D$40=$A$11),D25,IF(AND(Avropsblankett!$G$40=$D$10,Avropsblankett!$C$40=$B$7,Avropsblankett!$D$40=$A$12),D26,IF(AND(Avropsblankett!$G$40=$D$10,Avropsblankett!$C$40=$B$7,Avropsblankett!$D$40=$A$13),D27,IF(AND(Avropsblankett!$G$40=$D$10,Avropsblankett!$C$40=$B$7,Avropsblankett!$D$40=$A$14),D28,IF(AND(Avropsblankett!$G$40=$D$10,Avropsblankett!$C$40=$B$7,Avropsblankett!$D$40=$A$15),D29,IF(AND(Avropsblankett!$G$40=$D$10,Avropsblankett!$C$40=$B$7,Avropsblankett!$D$40=$A$16),D30,0)))))) -> 0 | F32: =Avropsblankett!$F$40*IF(AND(Avropsblankett!$G$40=$B$10,Avropsblankett!$C$40=$B$7,Avropsblankett!$D$40=$A$11),F25,IF(AND(Avropsblankett!$G$40=$B$10,Avropsblankett!$C$40=$B$7,Avropsblankett!$D$40=$A$12),F26,IF(AND(Avropsblankett!$G$40=$B$10,Avropsblankett!$C$40=$B$7,Avropsblankett!$D$40=$A$13),F27,IF(AND(Avropsblankett!$G$40=$B$10,Avropsblankett!$C$40=$B$7,Avropsblankett!$D$40=$A$14),F28,IF(AND(Avropsblankett!$G$40=$B$10,Avropsblankett!$C$40=$B$7,Avropsblankett!$D$40=$A$15),F29,IF(AND(Avropsblankett!$G$40=$B$10,Avropsblankett!$C$40=$B$7,Avropsblankett!$D$40=$A$16),F30,0)))))) -> 0 | G32: =Avropsblankett!$F$40*IF(AND(Avropsblankett!$G$40=$C$10,Avropsblankett!$C$40=$B$7,Avropsblankett!$D$40=$A$11),G25,IF(AND(Avropsblankett!$G$40=$C$10,Avropsblankett!$C$40=$B$7,Avropsblankett!$D$40=$A$12),G26,IF(AND(Avropsblankett!$G$40=$C$10,Avropsblankett!$C$40=$B$7,Avropsblankett!$D$40=$A$13),G27,IF(AND(Avropsblankett!$G$40=$C$10,Avropsblankett!$C$40=$B$7,Avropsblankett!$D$40=$A$14),G28,IF(AND(Avropsblankett!$G$40=$C$10,Avropsblankett!$C$40=$B$7,Avropsblankett!$D$40=$A$15),G29,IF(AND(Avropsblankett!$G$40=$C$10,Avropsblankett!$C$40=$B$7,Avropsblankett!$D$40=$A$16),G30,0)))))) -> 0 | H32: =Avropsblankett!$F$40*IF(AND(Avropsblankett!$G$40=$D$10,Avropsblankett!$C$40=$B$7,Avropsblankett!$D$40=$A$11),H25,IF(AND(Avropsblankett!$G$40=$D$10,Avropsblankett!$C$40=$B$7,Avropsblankett!$D$40=$A$12),H26,IF(AND(Avropsblankett!$G$40=$D$10,Avropsblankett!$C$40=$B$7,Avropsblankett!$D$40=$A$13),H27,IF(AND(Avropsblankett!$G$40=$D$10,Avropsblankett!$C$40=$B$7,Avropsblankett!$D$40=$A$14),H28,IF(AND(Avropsblankett!$G$40=$D$10,Avropsblankett!$C$40=$B$7,Avropsblankett!$D$40=$A$15),H29,IF(AND(Avropsblankett!$G$40=$D$10,Avropsblankett!$C$40=$B$7,Avropsblankett!$D$40=$A$16),H30,0)))))) -> 0 | J32: =Avropsblankett!$F$40*IF(AND(Avropsblankett!$G$40=$B$10,Avropsblankett!$C$40=$B$7,Avropsblankett!$D$40=$A$11),J25,IF(AND(Avropsblankett!$G$40=$B$10,Avropsblankett!$C$40=$B$7,Avropsblankett!$D$40=$A$12),J26,IF(AND(Avropsblankett!$G$40=$B$10,Avropsblankett!$C$40=$B$7,Avropsblankett!$D$40=$A$13),J27,IF(AND(Avropsblankett!$G$40=$B$10,Avropsblankett!$C$40=$B$7,Avropsblankett!$D$40=$A$14),J28,IF(AND(Avropsblankett!$G$40=$B$10,Avropsblankett!$C$40=$B$7,Avropsblankett!$D$40=$A$15),J29,IF(AND(Avropsblankett!$G$40=$B$10,Avropsblankett!$C$40=$B$7,Avropsblankett!$D$40=$A$16),J30,0)))))) -> 0 | K32: =Avropsblankett!$F$40*IF(AND(Avropsblankett!$G$40=$C$10,Avropsblankett!$C$40=$B$7,Avropsblankett!$D$40=$A$11),K25,IF(AND(Avropsblankett!$G$40=$C$10,Avropsblankett!$C$40=$B$7,Avropsblankett!$D$40=$A$12),K26,IF(AND(Avropsblankett!$G$40=$C$10,Avropsblankett!$C$40=$B$7,Avropsblankett!$D$40=$A$13),K27,IF(AND(Avropsblankett!$G$40=$C$10,Avropsblankett!$C$40=$B$7,Avropsblankett!$D$40=$A$14),K28,IF(AND(Avropsblankett!$G$40=$C$10,Avropsblankett!$C$40=$B$7,Avropsblankett!$D$40=$A$15),K29,IF(AND(Avropsblankett!$G$40=$C$10,Avropsblankett!$C$40=$B$7,Avropsblankett!$D$40=$A$16),K30,0)))))) -> 0 | L32: =Avropsblankett!$F$40*IF(AND(Avropsblankett!$G$40=$D$10,Avropsblankett!$C$40=$B$7,Avropsblankett!$D$40=$A$11),L25,IF(AND(Avropsblankett!$G$40=$D$10,Avropsblankett!$C$40=$B$7,Avropsblankett!$D$40=$A$12),L26,IF(AND(Avropsblankett!$G$40=$D$10,Avropsblankett!$C$40=$B$7,Avropsblankett!$D$40=$A$13),L27,IF(AND(Avropsblankett!$G$40=$D$10,Avropsblankett!$C$40=$B$7,Avropsblankett!$D$40=$A$14),L28,IF(AND(Avropsblankett!$G$40=$D$10,Avropsblankett!$C$40=$B$7,Avropsblankett!$D$40=$A$15),L29,IF(AND(Avropsblankett!$G$40=$D$10,Avropsblankett!$C$40=$B$7,Avropsblankett!$D$40=$A$16),L30,0)))))) -> 0 | N32: =Avropsblankett!$F$40*IF(AND(Avropsblankett!$G$40=$B$10,Avropsblankett!$C$40=$B$7,Avropsblankett!$D$40=$A$11),N25,IF(AND(Avropsblankett!$G$40=$B$10,Avropsblankett!$C$40=$B$7,Avropsblankett!$D$40=$A$12),N26,IF(AND(Avropsblankett!$G$40=$B$10,Avropsblankett!$C$40=$B$7,Avropsblankett!$D$40=$A$13),N27,IF(AND(Avropsblankett!$G$40=$B$10,Avropsblankett!$C$40=$B$7,Avropsblankett!$D$40=$A$14),N28,IF(AND(Avropsblankett!$G$40=$B$10,Avropsblankett!$C$40=$B$7,Avropsblankett!$D$40=$A$15),N29,IF(AND(Avropsblankett!$G$40=$B$10,Avropsblankett!$C$40=$B$7,Avropsblankett!$D$40=$A$16),N30,0)))))) -> 0 | O32: =Avropsblankett!$F$40*IF(AND(Avropsblankett!$G$40=$C$10,Avropsblankett!$C$40=$B$7,Avropsblankett!$D$40=$A$11),O25,IF(AND(Avropsblankett!$G$40=$C$10,Avropsblankett!$C$40=$B$7,Avropsblankett!$D$40=$A$12),O26,IF(AND(Avropsblankett!$G$40=$C$10,Avropsblankett!$C$40=$B$7,Avropsblankett!$D$40=$A$13),O27,IF(AND(Avropsblankett!$G$40=$C$10,Avropsblankett!$C$40=$B$7,Avropsblankett!$D$40=$A$14),O28,IF(AND(Avropsblankett!$G$40=$C$10,Avropsblankett!$C$40=$B$7,Avropsblankett!$D$40=$A$15),O29,IF(AND(Avropsblankett!$G$40=$C$10,Avropsblankett!$C$40=$B$7,Avropsblankett!$D$40=$A$16),O30,0)))))) -> 0 | P32: =Avropsblankett!$F$40*IF(AND(Avropsblankett!$G$40=$D$10,Avropsblankett!$C$40=$B$7,Avropsblankett!$D$40=$A$11),P25,IF(AND(Avropsblankett!$G$40=$D$10,Avropsblankett!$C$40=$B$7,Avropsblankett!$D$40=$A$12),P26,IF(AND(Avropsblankett!$G$40=$D$10,Avropsblankett!$C$40=$B$7,Avropsblankett!$D$40=$A$13),P27,IF(AND(Avropsblankett!$G$40=$D$10,Avropsblankett!$C$40=$B$7,Avropsblankett!$D$40=$A$14),P28,IF(AND(Avropsblankett!$G$40=$D$10,Avropsblankett!$C$40=$B$7,Avropsblankett!$D$40=$A$15),P29,IF(AND(Avropsblankett!$G$40=$D$10,Avropsblankett!$C$40=$B$7,Avropsblankett!$D$40=$A$16),P30,0)))))) -> 0 | R32: =Avropsblankett!$F$40*IF(AND(Avropsblankett!$G$40=$B$10,Avropsblankett!$C$40=$B$7,Avropsblankett!$D$40=$A$11),R25,IF(AND(Avropsblankett!$G$40=$B$10,Avropsblankett!$C$40=$B$7,Avropsblankett!$D$40=$A$12),R26,IF(AND(Avropsblankett!$G$40=$B$10,Avropsblankett!$C$40=$B$7,Avropsblankett!$D$40=$A$13),R27,IF(AND(Avropsblankett!$G$40=$B$10,Avropsblankett!$C$40=$B$7,Avropsblankett!$D$40=$A$14),R28,IF(AND(Avropsblankett!$G$40=$B$10,Avropsblankett!$C$40=$B$7,Avropsblankett!$D$40=$A$15),R29,IF(AND(Avropsblankett!$G$40=$B$10,Avropsblankett!$C$40=$B$7,Avropsblankett!$D$40=$A$16),R30,0)))))) -> 0 | S32: =Avropsblankett!$F$40*IF(AND(Avropsblankett!$G$40=$C$10,Avropsblankett!$C$40=$B$7,Avropsblankett!$D$40=$A$11),S25,IF(AND(Avropsblankett!$G$40=$C$10,Avropsblankett!$C$40=$B$7,Avropsblankett!$D$40=$A$12),S26,IF(AND(Avropsblankett!$G$40=$C$10,Avropsblankett!$C$40=$B$7,Avropsblankett!$D$40=$A$13),S27,IF(AND(Avropsblankett!$G$40=$C$10,Avropsblankett!$C$40=$B$7,Avropsblankett!$D$40=$A$14),S28,IF(AND(Avropsblankett!$G$40=$C$10,Avropsblankett!$C$40=$B$7,Avropsblankett!$D$40=$A$15),S29,IF(AND(Avropsblankett!$G$40=$C$10,Avropsblankett!$C$40=$B$7,Avropsblankett!$D$40=$A$16),S30,0)))))) -> 0 | T32: =Avropsblankett!$F$40*IF(AND(Avropsblankett!$G$40=$D$10,Avropsblankett!$C$40=$B$7,Avropsblankett!$D$40=$A$11),T25,IF(AND(Avropsblankett!$G$40=$D$10,Avropsblankett!$C$40=$B$7,Avropsblankett!$D$40=$A$12),T26,IF(AND(Avropsblankett!$G$40=$D$10,Avropsblankett!$C$40=$B$7,Avropsblankett!$D$40=$A$13),T27,IF(AND(Avropsblankett!$G$40=$D$10,Avropsblankett!$C$40=$B$7,Avropsblankett!$D$40=$A$14),T28,IF(AND(Avropsblankett!$G$40=$D$10,Avropsblankett!$C$40=$B$7,Avropsblankett!$D$40=$A$15),T29,IF(AND(Avropsblankett!$G$40=$D$10,Avropsblankett!$C$40=$B$7,Avropsblankett!$D$40=$A$16),T30,0)))))) -> 0 | V32: =Avropsblankett!$F$40*IF(AND(Avropsblankett!$G$40=$B$10,Avropsblankett!$C$40=$B$7,Avropsblankett!$D$40=$A$11),V25,IF(AND(Avropsblankett!$G$40=$B$10,Avropsblankett!$C$40=$B$7,Avropsblankett!$D$40=$A$12),V26,IF(AND(Avropsblankett!$G$40=$B$10,Avropsblankett!$C$40=$B$7,Avropsblankett!$D$40=$A$13),V27,IF(AND(Avropsblankett!$G$40=$B$10,Avropsblankett!$C$40=$B$7,Avropsblankett!$D$40=$A$14),V28,IF(AND(Avropsblankett!$G$40=$B$10,Avropsblankett!$C$40=$B$7,Avropsblankett!$D$40=$A$15),V29,IF(AND(Avropsblankett!$G$40=$B$10,Avropsblankett!$C$40=$B$7,Avropsblankett!$D$40=$A$16),V30,0)))))) -> 0 | W32: =Avropsblankett!$F$40*IF(AND(Avropsblankett!$G$40=$C$10,Avropsblankett!$C$40=$B$7,Avropsblankett!$D$40=$A$11),W25,IF(AND(Avropsblankett!$G$40=$C$10,Avropsblankett!$C$40=$B$7,Avropsblankett!$D$40=$A$12),W26,IF(AND(Avropsblankett!$G$40=$C$10,Avropsblankett!$C$40=$B$7,Avropsblankett!$D$40=$A$13),W27,IF(AND(Avropsblankett!$G$40=$C$10,Avropsblankett!$C$40=$B$7,Avropsblankett!$D$40=$A$14),W28,IF(AND(Avropsblankett!$G$40=$C$10,Avropsblankett!$C$40=$B$7,Avropsblankett!$D$40=$A$15),W29,IF(AND(Avropsblankett!$G$40=$C$10,Avropsblankett!$C$40=$B$7,Avropsblankett!$D$40=$A$16),W30,0)))))) -> 0 | X32: =Avropsblankett!$F$40*IF(AND(Avropsblankett!$G$40=$D$10,Avropsblankett!$C$40=$B$7,Avropsblankett!$D$40=$A$11),X25,IF(AND(Avropsblankett!$G$40=$D$10,Avropsblankett!$C$40=$B$7,Avropsblankett!$D$40=$A$12),X26,IF(AND(Avropsblankett!$G$40=$D$10,Avropsblankett!$C$40=$B$7,Avropsblankett!$D$40=$A$13),X27,IF(AND(Avropsblankett!$G$40=$D$10,Avropsblankett!$C$40=$B$7,Avropsblankett!$D$40=$A$14),X28,IF(AND(Avropsblankett!$G$40=$D$10,Avropsblankett!$C$40=$B$7,Avropsblankett!$D$40=$A$15),X29,IF(AND(Avropsblankett!$G$40=$D$10,Avropsblankett!$C$40=$B$7,Avropsblankett!$D$40=$A$16),X30,0)))))) -> 0 | Z32: =Avropsblankett!$F$40*IF(AND(Avropsblankett!$G$40=$B$10,Avropsblankett!$C$40=$B$7,Avropsblankett!$D$40=$A$11),Z25,IF(AND(Avropsblankett!$G$40=$B$10,Avropsblankett!$C$40=$B$7,Avropsblankett!$D$40=$A$12),Z26,IF(AND(Avropsblankett!$G$40=$B$10,Avropsblankett!$C$40=$B$7,Avropsblankett!$D$40=$A$13),Z27,IF(AND(Avropsblankett!$G$40=$B$10,Avropsblankett!$C$40=$B$7,Avropsblankett!$D$40=$A$14),Z28,IF(AND(Avropsblankett!$G$40=$B$10,Avropsblankett!$C$40=$B$7,Avropsblankett!$D$40=$A$15),Z29,IF(AND(Avropsblankett!$G$40=$B$10,Avropsblankett!$C$40=$B$7,Avropsblankett!$D$40=$A$16),Z30,0)))))) -> 0 | AA32: =Avropsblankett!$F$40*IF(AND(Avropsblankett!$G$40=$C$10,Avropsblankett!$C$40=$B$7,Avropsblankett!$D$40=$A$11),AA25,IF(AND(Avropsblankett!$G$40=$C$10,Avropsblankett!$C$40=$B$7,Avropsblankett!$D$40=$A$12),AA26,IF(AND(Avropsblankett!$G$40=$C$10,Avropsblankett!$C$40=$B$7,Avropsblankett!$D$40=$A$13),AA27,IF(AND(Avropsblankett!$G$40=$C$10,Avropsblankett!$C$40=$B$7,Avropsblankett!$D$40=$A$14),AA28,IF(AND(Avropsblankett!$G$40=$C$10,Avropsblankett!$C$40=$B$7,Avropsblankett!$D$40=$A$15),AA29,IF(AND(Avropsblankett!$G$40=$C$10,Avropsblankett!$C$40=$B$7,Avropsblankett!$D$40=$A$16),AA30,0)))))) -> 0 | AB32: =Avropsblankett!$F$40*IF(AND(Avropsblankett!$G$40=$D$10,Avropsblankett!$C$40=$B$7,Avropsblankett!$D$40=$A$11),AB25,IF(AND(Avropsblankett!$G$40=$D$10,Avropsblankett!$C$40=$B$7,Avropsblankett!$D$40=$A$12),AB26,IF(AND(Avropsblankett!$G$40=$D$10,Avropsblankett!$C$40=$B$7,Avropsblankett!$D$40=$A$13),AB27,IF(AND(Avropsblankett!$G$40=$D$10,Avropsblankett!$C$40=$B$7,Avropsblankett!$D$40=$A$14),AB28,IF(AND(Avropsblankett!$G$40=$D$10,Avropsblankett!$C$40=$B$7,Avropsblankett!$D$40=$A$15),AB29,IF(AND(Avropsblankett!$G$40=$D$10,Avropsblankett!$C$40=$B$7,Avropsblankett!$D$40=$A$16),AB30,0)))))) -> 0 | AD32: =Avropsblankett!$F$40*IF(AND(Avropsblankett!$G$40=$B$10,Avropsblankett!$C$40=$B$7,Avropsblankett!$D$40=$A$11),AD25,IF(AND(Avropsblankett!$G$40=$B$10,Avropsblankett!$C$40=$B$7,Avropsblankett!$D$40=$A$12),AD26,IF(AND(Avropsblankett!$G$40=$B$10,Avropsblankett!$C$40=$B$7,Avropsblankett!$D$40=$A$13),AD27,IF(AND(Avropsblankett!$G$40=$B$10,Avropsblankett!$C$40=$B$7,Avropsblankett!$D$40=$A$14),AD28,IF(AND(Avropsblankett!$G$40=$B$10,Avropsblankett!$C$40=$B$7,Avropsblankett!$D$40=$A$15),AD29,IF(AND(Avropsblankett!$G$40=$B$10,Avropsblankett!$C$40=$B$7,Avropsblankett!$D$40=$A$16),AD30,0)))))) -> 0 | AE32: =Avropsblankett!$F$40*IF(AND(Avropsblankett!$G$40=$C$10,Avropsblankett!$C$40=$B$7,Avropsblankett!$D$40=$A$11),AE25,IF(AND(Avropsblankett!$G$40=$C$10,Avropsblankett!$C$40=$B$7,Avropsblankett!$D$40=$A$12),AE26,IF(AND(Avropsblankett!$G$40=$C$10,Avropsblankett!$C$40=$B$7,Avropsblankett!$D$40=$A$13),AE27,IF(AND(Avropsblankett!$G$40=$C$10,Avropsblankett!$C$40=$B$7,Avropsblankett!$D$40=$A$14),AE28,IF(AND(Avropsblankett!$G$40=$C$10,Avropsblankett!$C$40=$B$7,Avropsblankett!$D$40=$A$15),AE29,IF(AND(Avropsblankett!$G$40=$C$10,Avropsblankett!$C$40=$B$7,Avropsblankett!$D$40=$A$16),AE30,0)))))) -> 0 | AF32: =Avropsblankett!$F$40*IF(AND(Avropsblankett!$G$40=$D$10,Avropsblankett!$C$40=$B$7,Avropsblankett!$D$40=$A$11),AF25,IF(AND(Avropsblankett!$G$40=$D$10,Avropsblankett!$C$40=$B$7,Avropsblankett!$D$40=$A$12),AF26,IF(AND(Avropsblankett!$G$40=$D$10,Avropsblankett!$C$40=$B$7,Avropsblankett!$D$40=$A$13),AF27,IF(AND(Avropsblankett!$G$40=$D$10,Avropsblankett!$C$40=$B$7,Avropsblankett!$D$40=$A$14),AF28,IF(AND(Avropsblankett!$G$40=$D$10,Avropsblankett!$C$40=$B$7,Avropsblankett!$D$40=$A$15),AF29,IF(AND(Avropsblankett!$G$40=$D$10,Avropsblankett!$C$40=$B$7,Avropsblankett!$D$40=$A$16),AF30,0)))))) -> 0 | AH32: =Avropsblankett!$F$40*IF(AND(Avropsblankett!$G$40=$B$10,Avropsblankett!$C$40=$B$7,Avropsblankett!$D$40=$A$11),AH25,IF(AND(Avropsblankett!$G$40=$B$10,Avropsblankett!$C$40=$B$7,Avropsblankett!$D$40=$A$12),AH26,IF(AND(Avropsblankett!$G$40=$B$10,Avropsblankett!$C$40=$B$7,Avropsblankett!$D$40=$A$13),AH27,IF(AND(Avropsblankett!$G$40=$B$10,Avropsblankett!$C$40=$B$7,Avropsblankett!$D$40=$A$14),AH28,IF(AND(Avropsblankett!$G$40=$B$10,Avropsblankett!$C$40=$B$7,Avropsblankett!$D$40=$A$15),AH29,IF(AND(Avropsblankett!$G$40=$B$10,Avropsblankett!$C$40=$B$7,Avropsblankett!$D$40=$A$16),AH30,0)))))) -> 0 | AI32: =Avropsblankett!$F$40*IF(AND(Avropsblankett!$G$40=$C$10,Avropsblankett!$C$40=$B$7,Avropsblankett!$D$40=$A$11),AI25,IF(AND(Avropsblankett!$G$40=$C$10,Avropsblankett!$C$40=$B$7,Avropsblankett!$D$40=$A$12),AI26,IF(AND(Avropsblankett!$G$40=$C$10,Avropsblankett!$C$40=$B$7,Avropsblankett!$D$40=$A$13),AI27,IF(AND(Avropsblankett!$G$40=$C$10,Avropsblankett!$C$40=$B$7,Avropsblankett!$D$40=$A$14),AI28,IF(AND(Avropsblankett!$G$40=$C$10,Avropsblankett!$C$40=$B$7,Avropsblankett!$D$40=$A$15),AI29,IF(AND(Avropsblankett!$G$40=$C$10,Avropsblankett!$C$40=$B$7,Avropsblankett!$D$40=$A$16),AI30,0)))))) -> 0 | AJ32: =Avropsblankett!$F$40*IF(AND(Avropsblankett!$G$40=$D$10,Avropsblankett!$C$40=$B$7,Avropsblankett!$D$40=$A$11),AJ25,IF(AND(Avropsblankett!$G$40=$D$10,Avropsblankett!$C$40=$B$7,Avropsblankett!$D$40=$A$12),AJ26,IF(AND(Avropsblankett!$G$40=$D$10,Avropsblankett!$C$40=$B$7,Avropsblankett!$D$40=$A$13),AJ27,IF(AND(Avropsblankett!$G$40=$D$10,Avropsblankett!$C$40=$B$7,Avropsblankett!$D$40=$A$14),AJ28,IF(AND(Avropsblankett!$G$40=$D$10,Avropsblankett!$C$40=$B$7,Avropsblankett!$D$40=$A$15),AJ29,IF(AND(Avropsblankett!$G$40=$D$10,Avropsblankett!$C$40=$B$7,Avropsblankett!$D$40=$A$16),AJ30,0)))))) -> 0 | AL32: =Avropsblankett!$F$40*IF(AND(Avropsblankett!$G$40=$B$10,Avropsblankett!$C$40=$B$7,Avropsblankett!$D$40=$A$11),AL25,IF(AND(Avropsblankett!$G$40=$B$10,Avropsblankett!$C$40=$B$7,Avropsblankett!$D$40=$A$12),AL26,IF(AND(Avropsblankett!$G$40=$B$10,Avropsblankett!$C$40=$B$7,Avropsblankett!$D$40=$A$13),AL27,IF(AND(Avropsblankett!$G$40=$B$10,Avropsblankett!$C$40=$B$7,Avropsblankett!$D$40=$A$14),AL28,IF(AND(Avropsblankett!$G$40=$B$10,Avropsblankett!$C$40=$B$7,Avropsblankett!$D$40=$A$15),AL29,IF(AND(Avropsblankett!$G$40=$B$10,Avropsblankett!$C$40=$B$7,Avropsblankett!$D$40=$A$16),AL30,0)))))) -> 0 | AM32: =Avropsblankett!$F$40*IF(AND(Avropsblankett!$G$40=$C$10,Avropsblankett!$C$40=$B$7,Avropsblankett!$D$40=$A$11),AM25,IF(AND(Avropsblankett!$G$40=$C$10,Avropsblankett!$C$40=$B$7,Avropsblankett!$D$40=$A$12),AM26,IF(AND(Avropsblankett!$G$40=$C$10,Avropsblankett!$C$40=$B$7,Avropsblankett!$D$40=$A$13),AM27,IF(AND(Avropsblankett!$G$40=$C$10,Avropsblankett!$C$40=$B$7,Avropsblankett!$D$40=$A$14),AM28,IF(AND(Avropsblankett!$G$40=$C$10,Avropsblankett!$C$40=$B$7,Avropsblankett!$D$40=$A$15),AM29,IF(AND(Avropsblankett!$G$40=$C$10,Avropsblankett!$C$40=$B$7,Avropsblankett!$D$40=$A$16),AM30,0)))))) -> 0 | AN32: =Avropsblankett!$F$40*IF(AND(Avropsblankett!$G$40=$D$10,Avropsblankett!$C$40=$B$7,Avropsblankett!$D$40=$A$11),AN25,IF(AND(Avropsblankett!$G$40=$D$10,Avropsblankett!$C$40=$B$7,Avropsblankett!$D$40=$A$12),AN26,IF(AND(Avropsblankett!$G$40=$D$10,Avropsblankett!$C$40=$B$7,Avropsblankett!$D$40=$A$13),AN27,IF(AND(Avropsblankett!$G$40=$D$10,Avropsblankett!$C$40=$B$7,Avropsblankett!$D$40=$A$14),AN28,IF(AND(Avropsblankett!$G$40=$D$10,Avropsblankett!$C$40=$B$7,Avropsblankett!$D$40=$A$15),AN29,IF(AND(Avropsblankett!$G$40=$D$10,Avropsblankett!$C$40=$B$7,Avropsblankett!$D$40=$A$16),AN30,0)))))) -> 0 | AP32: =Avropsblankett!$F$40*IF(AND(Avropsblankett!$G$40=$B$10,Avropsblankett!$C$40=$B$7,Avropsblankett!$D$40=$A$11),AP25,IF(AND(Avropsblankett!$G$40=$B$10,Avropsblankett!$C$40=$B$7,Avropsblankett!$D$40=$A$12),AP26,IF(AND(Avropsblankett!$G$40=$B$10,Avropsblankett!$C$40=$B$7,Avropsblankett!$D$40=$A$13),AP27,IF(AND(Avropsblankett!$G$40=$B$10,Avropsblankett!$C$40=$B$7,Avropsblankett!$D$40=$A$14),AP28,IF(AND(Avropsblankett!$G$40=$B$10,Avropsblankett!$C$40=$B$7,Avropsblankett!$D$40=$A$15),AP29,IF(AND(Avropsblankett!$G$40=$B$10,Avropsblankett!$C$40=$B$7,Avropsblankett!$D$40=$A$16),AP30,0)))))) -> 0 | AQ32: =Avropsblankett!$F$40*IF(AND(Avropsblankett!$G$40=$C$10,Avropsblankett!$C$40=$B$7,Avropsblankett!$D$40=$A$11),AQ25,IF(AND(Avropsblankett!$G$40=$C$10,Avropsblankett!$C$40=$B$7,Avropsblankett!$D$40=$A$12),AQ26,IF(AND(Avropsblankett!$G$40=$C$10,Avropsblankett!$C$40=$B$7,Avropsblankett!$D$40=$A$13),AQ27,IF(AND(Avropsblankett!$G$40=$C$10,Avropsblankett!$C$40=$B$7,Avropsblankett!$D$40=$A$14),AQ28,IF(AND(Avropsblankett!$G$40=$C$10,Avropsblankett!$C$40=$B$7,Avropsblankett!$D$40=$A$15),AQ29,IF(AND(Avropsblankett!$G$40=$C$10,Avropsblankett!$C$40=$B$7,Avropsblankett!$D$40=$A$16),AQ30,0)))))) -> 0 | AR32: =Avropsblankett!$F$40*IF(AND(Avropsblankett!$G$40=$D$10,Avropsblankett!$C$40=$B$7,Avropsblankett!$D$40=$A$11),AR25,IF(AND(Avropsblankett!$G$40=$D$10,Avropsblankett!$C$40=$B$7,Avropsblankett!$D$40=$A$12),AR26,IF(AND(Avropsblankett!$G$40=$D$10,Avropsblankett!$C$40=$B$7,Avropsblankett!$D$40=$A$13),AR27,IF(AND(Avropsblankett!$G$40=$D$10,Avropsblankett!$C$40=$B$7,Avropsblankett!$D$40=$A$14),AR28,IF(AND(Avropsblankett!$G$40=$D$10,Avropsblankett!$C$40=$B$7,Avropsblankett!$D$40=$A$15),AR29,IF(AND(Avropsblankett!$G$40=$D$10,Avropsblankett!$C$40=$B$7,Avropsblankett!$D$40=$A$16),AR30,0)))))) -> 0
B33: =Avropsblankett!$F$52*IF(AND(Avropsblankett!$G$52=$B$10,Avropsblankett!$C$52=$B$7,Avropsblankett!$D$52=$A$11),B25,IF(AND(Avropsblankett!$G$52=$B$10,Avropsblankett!$C$52=$B$7,Avropsblankett!$D$52=$A$12),B26,IF(AND(Avropsblankett!$G$52=$B$10,Avropsblankett!$C$52=$B$7,Avropsblankett!$D$52=$A$13),B27,IF(AND(Avropsblankett!$G$52=$B$10,Avropsblankett!$C$52=$B$7,Avropsblankett!$D$52=$A$14),B28,IF(AND(Avropsblankett!$G$52=$B$10,Avropsblankett!$C$52=$B$7,Avropsblankett!$D$52=$A$15),B29,IF(AND(Avropsblankett!$G$52=$B$10,Avropsblankett!$C$52=$B$7,Avropsblankett!$D$52=$A$16),B30,0)))))) -> 0 | C33: =Avropsblankett!$F$52*IF(AND(Avropsblankett!$G$52=$C$10,Avropsblankett!$C$52=$B$7,Avropsblankett!$D$52=$A$11),C25,IF(AND(Avropsblankett!$G$52=$C$10,Avropsblankett!$C$52=$B$7,Avropsblankett!$D$52=$A$12),C26,IF(AND(Avropsblankett!$G$52=$C$10,Avropsblankett!$C$52=$B$7,Avropsblankett!$D$52=$A$13),C27,IF(AND(Avropsblankett!$G$52=$C$10,Avropsblankett!$C$52=$B$7,Avropsblankett!$D$52=$A$14),C28,IF(AND(Avropsblankett!$G$52=$C$10,Avropsblankett!$C$52=$B$7,Avropsblankett!$D$52=$A$15),C29,IF(AND(Avropsblankett!$G$52=$C$10,Avropsblankett!$C$52=$B$7,Avropsblankett!$D$52=$A$16),C30,0)))))) -> 0 | D33: =Avropsblankett!$F$52*IF(AND(Avropsblankett!$G$52=$D$10,Avropsblankett!$C$52=$B$7,Avropsblankett!$D$52=$A$11),D25,IF(AND(Avropsblankett!$G$52=$D$10,Avropsblankett!$C$52=$B$7,Avropsblankett!$D$52=$A$12),D26,IF(AND(Avropsblankett!$G$52=$D$10,Avropsblankett!$C$52=$B$7,Avropsblankett!$D$52=$A$13),D27,IF(AND(Avropsblankett!$G$52=$D$10,Avropsblankett!$C$52=$B$7,Avropsblankett!$D$52=$A$14),D28,IF(AND(Avropsblankett!$G$52=$D$10,Avropsblankett!$C$52=$B$7,Avropsblankett!$D$52=$A$15),D29,IF(AND(Avropsblankett!$G$52=$D$10,Avropsblankett!$C$52=$B$7,Avropsblankett!$D$52=$A$16),D30,0)))))) -> 0 | F33: =Avropsblankett!$F$52*IF(AND(Avropsblankett!$G$52=$B$10,Avropsblankett!$C$52=$B$7,Avropsblankett!$D$52=$A$11),F25,IF(AND(Avropsblankett!$G$52=$B$10,Avropsblankett!$C$52=$B$7,Avropsblankett!$D$52=$A$12),F26,IF(AND(Avropsblankett!$G$52=$B$10,Avropsblankett!$C$52=$B$7,Avropsblankett!$D$52=$A$13),F27,IF(AND(Avropsblankett!$G$52=$B$10,Avropsblankett!$C$52=$B$7,Avropsblankett!$D$52=$A$14),F28,IF(AND(Avropsblankett!$G$52=$B$10,Avropsblankett!$C$52=$B$7,Avropsblankett!$D$52=$A$15),F29,IF(AND(Avropsblankett!$G$52=$B$10,Avropsblankett!$C$52=$B$7,Avropsblankett!$D$52=$A$16),F30,0)))))) -> 0 | G33: =Avropsblankett!$F$52*IF(AND(Avropsblankett!$G$52=$C$10,Avropsblankett!$C$52=$B$7,Avropsblankett!$D$52=$A$11),G25,IF(AND(Avropsblankett!$G$52=$C$10,Avropsblankett!$C$52=$B$7,Avropsblankett!$D$52=$A$12),G26,IF(AND(Avropsblankett!$G$52=$C$10,Avropsblankett!$C$52=$B$7,Avropsblankett!$D$52=$A$13),G27,IF(AND(Avropsblankett!$G$52=$C$10,Avropsblankett!$C$52=$B$7,Avropsblankett!$D$52=$A$14),G28,IF(AND(Avropsblankett!$G$52=$C$10,Avropsblankett!$C$52=$B$7,Avropsblankett!$D$52=$A$15),G29,IF(AND(Avropsblankett!$G$52=$C$10,Avropsblankett!$C$52=$B$7,Avropsblankett!$D$52=$A$16),G30,0)))))) -> 0 | H33: =Avropsblankett!$F$52*IF(AND(Avropsblankett!$G$52=$D$10,Avropsblankett!$C$52=$B$7,Avropsblankett!$D$52=$A$11),H25,IF(AND(Avropsblankett!$G$52=$D$10,Avropsblankett!$C$52=$B$7,Avropsblankett!$D$52=$A$12),H26,IF(AND(Avropsblankett!$G$52=$D$10,Avropsblankett!$C$52=$B$7,Avropsblankett!$D$52=$A$13),H27,IF(AND(Avropsblankett!$G$52=$D$10,Avropsblankett!$C$52=$B$7,Avropsblankett!$D$52=$A$14),H28,IF(AND(Avropsblankett!$G$52=$D$10,Avropsblankett!$C$52=$B$7,Avropsblankett!$D$52=$A$15),H29,IF(AND(Avropsblankett!$G$52=$D$10,Avropsblankett!$C$52=$B$7,Avropsblankett!$D$52=$A$16),H30,0)))))) -> 0 | J33: =Avropsblankett!$F$52*IF(AND(Avropsblankett!$G$52=$B$10,Avropsblankett!$C$52=$B$7,Avropsblankett!$D$52=$A$11),J25,IF(AND(Avropsblankett!$G$52=$B$10,Avropsblankett!$C$52=$B$7,Avropsblankett!$D$52=$A$12),J26,IF(AND(Avropsblankett!$G$52=$B$10,Avropsblankett!$C$52=$B$7,Avropsblankett!$D$52=$A$13),J27,IF(AND(Avropsblankett!$G$52=$B$10,Avropsblankett!$C$52=$B$7,Avropsblankett!$D$52=$A$14),J28,IF(AND(Avropsblankett!$G$52=$B$10,Avropsblankett!$C$52=$B$7,Avropsblankett!$D$52=$A$15),J29,IF(AND(Avropsblankett!$G$52=$B$10,Avropsblankett!$C$52=$B$7,Avropsblankett!$D$52=$A$16),J30,0)))))) -> 0 | K33: =Avropsblankett!$F$52*IF(AND(Avropsblankett!$G$52=$C$10,Avropsblankett!$C$52=$B$7,Avropsblankett!$D$52=$A$11),K25,IF(AND(Avropsblankett!$G$52=$C$10,Avropsblankett!$C$52=$B$7,Avropsblankett!$D$52=$A$12),K26,IF(AND(Avropsblankett!$G$52=$C$10,Avropsblankett!$C$52=$B$7,Avropsblankett!$D$52=$A$13),K27,IF(AND(Avropsblankett!$G$52=$C$10,Avropsblankett!$C$52=$B$7,Avropsblankett!$D$52=$A$14),K28,IF(AND(Avropsblankett!$G$52=$C$10,Avropsblankett!$C$52=$B$7,Avropsblankett!$D$52=$A$15),K29,IF(AND(Avropsblankett!$G$52=$C$10,Avropsblankett!$C$52=$B$7,Avropsblankett!$D$52=$A$16),K30,0)))))) -> 0 | L33: =Avropsblankett!$F$52*IF(AND(Avropsblankett!$G$52=$D$10,Avropsblankett!$C$52=$B$7,Avropsblankett!$D$52=$A$11),L25,IF(AND(Avropsblankett!$G$52=$D$10,Avropsblankett!$C$52=$B$7,Avropsblankett!$D$52=$A$12),L26,IF(AND(Avropsblankett!$G$52=$D$10,Avropsblankett!$C$52=$B$7,Avropsblankett!$D$52=$A$13),L27,IF(AND(Avropsblankett!$G$52=$D$10,Avropsblankett!$C$52=$B$7,Avropsblankett!$D$52=$A$14),L28,IF(AND(Avropsblankett!$G$52=$D$10,Avropsblankett!$C$52=$B$7,Avropsblankett!$D$52=$A$15),L29,IF(AND(Avropsblankett!$G$52=$D$10,Avropsblankett!$C$52=$B$7,Avropsblankett!$D$52=$A$16),L30,0)))))) -> 0 | N33: =Avropsblankett!$F$52*IF(AND(Avropsblankett!$G$52=$B$10,Avropsblankett!$C$52=$B$7,Avropsblankett!$D$52=$A$11),N25,IF(AND(Avropsblankett!$G$52=$B$10,Avropsblankett!$C$52=$B$7,Avropsblankett!$D$52=$A$12),N26,IF(AND(Avropsblankett!$G$52=$B$10,Avropsblankett!$C$52=$B$7,Avropsblankett!$D$52=$A$13),N27,IF(AND(Avropsblankett!$G$52=$B$10,Avropsblankett!$C$52=$B$7,Avropsblankett!$D$52=$A$14),N28,IF(AND(Avropsblankett!$G$52=$B$10,Avropsblankett!$C$52=$B$7,Avropsblankett!$D$52=$A$15),N29,IF(AND(Avropsblankett!$G$52=$B$10,Avropsblankett!$C$52=$B$7,Avropsblankett!$D$52=$A$16),N30,0)))))) -> 0 | O33: =Avropsblankett!$F$52*IF(AND(Avropsblankett!$G$52=$C$10,Avropsblankett!$C$52=$B$7,Avropsblankett!$D$52=$A$11),O25,IF(AND(Avropsblankett!$G$52=$C$10,Avropsblankett!$C$52=$B$7,Avropsblankett!$D$52=$A$12),O26,IF(AND(Avropsblankett!$G$52=$C$10,Avropsblankett!$C$52=$B$7,Avropsblankett!$D$52=$A$13),O27,IF(AND(Avropsblankett!$G$52=$C$10,Avropsblankett!$C$52=$B$7,Avropsblankett!$D$52=$A$14),O28,IF(AND(Avropsblankett!$G$52=$C$10,Avropsblankett!$C$52=$B$7,Avropsblankett!$D$52=$A$15),O29,IF(AND(Avropsblankett!$G$52=$C$10,Avropsblankett!$C$52=$B$7,Avropsblankett!$D$52=$A$16),O30,0)))))) -> 0 | P33: =Avropsblankett!$F$52*IF(AND(Avropsblankett!$G$52=$D$10,Avropsblankett!$C$52=$B$7,Avropsblankett!$D$52=$A$11),P25,IF(AND(Avropsblankett!$G$52=$D$10,Avropsblankett!$C$52=$B$7,Avropsblankett!$D$52=$A$12),P26,IF(AND(Avropsblankett!$G$52=$D$10,Avropsblankett!$C$52=$B$7,Avropsblankett!$D$52=$A$13),P27,IF(AND(Avropsblankett!$G$52=$D$10,Avropsblankett!$C$52=$B$7,Avropsblankett!$D$52=$A$14),P28,IF(AND(Avropsblankett!$G$52=$D$10,Avropsblankett!$C$52=$B$7,Avropsblankett!$D$52=$A$15),P29,IF(AND(Avropsblankett!$G$52=$D$10,Avropsblankett!$C$52=$B$7,Avropsblankett!$D$52=$A$16),P30,0)))))) -> 0 | R33: =Avropsblankett!$F$52*IF(AND(Avropsblankett!$G$52=$B$10,Avropsblankett!$C$52=$B$7,Avropsblankett!$D$52=$A$11),R25,IF(AND(Avropsblankett!$G$52=$B$10,Avropsblankett!$C$52=$B$7,Avropsblankett!$D$52=$A$12),R26,IF(AND(Avropsblankett!$G$52=$B$10,Avropsblankett!$C$52=$B$7,Avropsblankett!$D$52=$A$13),R27,IF(AND(Avropsblankett!$G$52=$B$10,Avropsblankett!$C$52=$B$7,Avropsblankett!$D$52=$A$14),R28,IF(AND(Avropsblankett!$G$52=$B$10,Avropsblankett!$C$52=$B$7,Avropsblankett!$D$52=$A$15),R29,IF(AND(Avropsblankett!$G$52=$B$10,Avropsblankett!$C$52=$B$7,Avropsblankett!$D$52=$A$16),R30,0)))))) -> 0 | S33: =Avropsblankett!$F$52*IF(AND(Avropsblankett!$G$52=$C$10,Avropsblankett!$C$52=$B$7,Avropsblankett!$D$52=$A$11),S25,IF(AND(Avropsblankett!$G$52=$C$10,Avropsblankett!$C$52=$B$7,Avropsblankett!$D$52=$A$12),S26,IF(AND(Avropsblankett!$G$52=$C$10,Avropsblankett!$C$52=$B$7,Avropsblankett!$D$52=$A$13),S27,IF(AND(Avropsblankett!$G$52=$C$10,Avropsblankett!$C$52=$B$7,Avropsblankett!$D$52=$A$14),S28,IF(AND(Avropsblankett!$G$52=$C$10,Avropsblankett!$C$52=$B$7,Avropsblankett!$D$52=$A$15),S29,IF(AND(Avropsblankett!$G$52=$C$10,Avropsblankett!$C$52=$B$7,Avropsblankett!$D$52=$A$16),S30,0)))))) -> 0 | T33: =Avropsblankett!$F$52*IF(AND(Avropsblankett!$G$52=$D$10,Avropsblankett!$C$52=$B$7,Avropsblankett!$D$52=$A$11),T25,IF(AND(Avropsblankett!$G$52=$D$10,Avropsblankett!$C$52=$B$7,Avropsblankett!$D$52=$A$12),T26,IF(AND(Avropsblankett!$G$52=$D$10,Avropsblankett!$C$52=$B$7,Avropsblankett!$D$52=$A$13),T27,IF(AND(Avropsblankett!$G$52=$D$10,Avropsblankett!$C$52=$B$7,Avropsblankett!$D$52=$A$14),T28,IF(AND(Avropsblankett!$G$52=$D$10,Avropsblankett!$C$52=$B$7,Avropsblankett!$D$52=$A$15),T29,IF(AND(Avropsblankett!$G$52=$D$10,Avropsblankett!$C$52=$B$7,Avropsblankett!$D$52=$A$16),T30,0)))))) -> 0 | V33: =Avropsblankett!$F$52*IF(AND(Avropsblankett!$G$52=$B$10,Avropsblankett!$C$52=$B$7,Avropsblankett!$D$52=$A$11),V25,IF(AND(Avropsblankett!$G$52=$B$10,Avropsblankett!$C$52=$B$7,Avropsblankett!$D$52=$A$12),V26,IF(AND(Avropsblankett!$G$52=$B$10,Avropsblankett!$C$52=$B$7,Avropsblankett!$D$52=$A$13),V27,IF(AND(Avropsblankett!$G$52=$B$10,Avropsblankett!$C$52=$B$7,Avropsblankett!$D$52=$A$14),V28,IF(AND(Avropsblankett!$G$52=$B$10,Avropsblankett!$C$52=$B$7,Avropsblankett!$D$52=$A$15),V29,IF(AND(Avropsblankett!$G$52=$B$10,Avropsblankett!$C$52=$B$7,Avropsblankett!$D$52=$A$16),V30,0)))))) -> 0 | W33: =Avropsblankett!$F$52*IF(AND(Avropsblankett!$G$52=$C$10,Avropsblankett!$C$52=$B$7,Avropsblankett!$D$52=$A$11),W25,IF(AND(Avropsblankett!$G$52=$C$10,Avropsblankett!$C$52=$B$7,Avropsblankett!$D$52=$A$12),W26,IF(AND(Avropsblankett!$G$52=$C$10,Avropsblankett!$C$52=$B$7,Avropsblankett!$D$52=$A$13),W27,IF(AND(Avropsblankett!$G$52=$C$10,Avropsblankett!$C$52=$B$7,Avropsblankett!$D$52=$A$14),W28,IF(AND(Avropsblankett!$G$52=$C$10,Avropsblankett!$C$52=$B$7,Avropsblankett!$D$52=$A$15),W29,IF(AND(Avropsblankett!$G$52=$C$10,Avropsblankett!$C$52=$B$7,Avropsblankett!$D$52=$A$16),W30,0)))))) -> 0 | X33: =Avropsblankett!$F$52*IF(AND(Avropsblankett!$G$52=$D$10,Avropsblankett!$C$52=$B$7,Avropsblankett!$D$52=$A$11),X25,IF(AND(Avropsblankett!$G$52=$D$10,Avropsblankett!$C$52=$B$7,Avropsblankett!$D$52=$A$12),X26,IF(AND(Avropsblankett!$G$52=$D$10,Avropsblankett!$C$52=$B$7,Avropsblankett!$D$52=$A$13),X27,IF(AND(Avropsblankett!$G$52=$D$10,Avropsblankett!$C$52=$B$7,Avropsblankett!$D$52=$A$14),X28,IF(AND(Avropsblankett!$G$52=$D$10,Avropsblankett!$C$52=$B$7,Avropsblankett!$D$52=$A$15),X29,IF(AND(Avropsblankett!$G$52=$D$10,Avropsblankett!$C$52=$B$7,Avropsblankett!$D$52=$A$16),X30,0)))))) -> 0 | Z33: =Avropsblankett!$F$52*IF(AND(Avropsblankett!$G$52=$B$10,Avropsblankett!$C$52=$B$7,Avropsblankett!$D$52=$A$11),Z25,IF(AND(Avropsblankett!$G$52=$B$10,Avropsblankett!$C$52=$B$7,Avropsblankett!$D$52=$A$12),Z26,IF(AND(Avropsblankett!$G$52=$B$10,Avropsblankett!$C$52=$B$7,Avropsblankett!$D$52=$A$13),Z27,IF(AND(Avropsblankett!$G$52=$B$10,Avropsblankett!$C$52=$B$7,Avropsblankett!$D$52=$A$14),Z28,IF(AND(Avropsblankett!$G$52=$B$10,Avropsblankett!$C$52=$B$7,Avropsblankett!$D$52=$A$15),Z29,IF(AND(Avropsblankett!$G$52=$B$10,Avropsblankett!$C$52=$B$7,Avropsblankett!$D$52=$A$16),Z30,0)))))) -> 0 | AA33: =Avropsblankett!$F$52*IF(AND(Avropsblankett!$G$52=$C$10,Avropsblankett!$C$52=$B$7,Avropsblankett!$D$52=$A$11),AA25,IF(AND(Avropsblankett!$G$52=$C$10,Avropsblankett!$C$52=$B$7,Avropsblankett!$D$52=$A$12),AA26,IF(AND(Avropsblankett!$G$52=$C$10,Avropsblankett!$C$52=$B$7,Avropsblankett!$D$52=$A$13),AA27,IF(AND(Avropsblankett!$G$52=$C$10,Avropsblankett!$C$52=$B$7,Avropsblankett!$D$52=$A$14),AA28,IF(AND(Avropsblankett!$G$52=$C$10,Avropsblankett!$C$52=$B$7,Avropsblankett!$D$52=$A$15),AA29,IF(AND(Avropsblankett!$G$52=$C$10,Avropsblankett!$C$52=$B$7,Avropsblankett!$D$52=$A$16),AA30,0)))))) -> 0 | AB33: =Avropsblankett!$F$52*IF(AND(Avropsblankett!$G$52=$D$10,Avropsblankett!$C$52=$B$7,Avropsblankett!$D$52=$A$11),AB25,IF(AND(Avropsblankett!$G$52=$D$10,Avropsblankett!$C$52=$B$7,Avropsblankett!$D$52=$A$12),AB26,IF(AND(Avropsblankett!$G$52=$D$10,Avropsblankett!$C$52=$B$7,Avropsblankett!$D$52=$A$13),AB27,IF(AND(Avropsblankett!$G$52=$D$10,Avropsblankett!$C$52=$B$7,Avropsblankett!$D$52=$A$14),AB28,IF(AND(Avropsblankett!$G$52=$D$10,Avropsblankett!$C$52=$B$7,Avropsblankett!$D$52=$A$15),AB29,IF(AND(Avropsblankett!$G$52=$D$10,Avropsblankett!$C$52=$B$7,Avropsblankett!$D$52=$A$16),AB30,0)))))) -> 0 | AD33: =Avropsblankett!$F$52*IF(AND(Avropsblankett!$G$52=$B$10,Avropsblankett!$C$52=$B$7,Avropsblankett!$D$52=$A$11),AD25,IF(AND(Avropsblankett!$G$52=$B$10,Avropsblankett!$C$52=$B$7,Avropsblankett!$D$52=$A$12),AD26,IF(AND(Avropsblankett!$G$52=$B$10,Avropsblankett!$C$52=$B$7,Avropsblankett!$D$52=$A$13),AD27,IF(AND(Avropsblankett!$G$52=$B$10,Avropsblankett!$C$52=$B$7,Avropsblankett!$D$52=$A$14),AD28,IF(AND(Avropsblankett!$G$52=$B$10,Avropsblankett!$C$52=$B$7,Avropsblankett!$D$52=$A$15),AD29,IF(AND(Avropsblankett!$G$52=$B$10,Avropsblankett!$C$52=$B$7,Avropsblankett!$D$52=$A$16),AD30,0)))))) -> 0 | AE33: =Avropsblankett!$F$52*IF(AND(Avropsblankett!$G$52=$C$10,Avropsblankett!$C$52=$B$7,Avropsblankett!$D$52=$A$11),AE25,IF(AND(Avropsblankett!$G$52=$C$10,Avropsblankett!$C$52=$B$7,Avropsblankett!$D$52=$A$12),AE26,IF(AND(Avropsblankett!$G$52=$C$10,Avropsblankett!$C$52=$B$7,Avropsblankett!$D$52=$A$13),AE27,IF(AND(Avropsblankett!$G$52=$C$10,Avropsblankett!$C$52=$B$7,Avropsblankett!$D$52=$A$14),AE28,IF(AND(Avropsblankett!$G$52=$C$10,Avropsblankett!$C$52=$B$7,Avropsblankett!$D$52=$A$15),AE29,IF(AND(Avropsblankett!$G$52=$C$10,Avropsblankett!$C$52=$B$7,Avropsblankett!$D$52=$A$16),AE30,0)))))) -> 0 | AF33: =Avropsblankett!$F$52*IF(AND(Avropsblankett!$G$52=$D$10,Avropsblankett!$C$52=$B$7,Avropsblankett!$D$52=$A$11),AF25,IF(AND(Avropsblankett!$G$52=$D$10,Avropsblankett!$C$52=$B$7,Avropsblankett!$D$52=$A$12),AF26,IF(AND(Avropsblankett!$G$52=$D$10,Avropsblankett!$C$52=$B$7,Avropsblankett!$D$52=$A$13),AF27,IF(AND(Avropsblankett!$G$52=$D$10,Avropsblankett!$C$52=$B$7,Avropsblankett!$D$52=$A$14),AF28,IF(AND(Avropsblankett!$G$52=$D$10,Avropsblankett!$C$52=$B$7,Avropsblankett!$D$52=$A$15),AF29,IF(AND(Avropsblankett!$G$52=$D$10,Avropsblankett!$C$52=$B$7,Avropsblankett!$D$52=$A$16),AF30,0)))))) -> 0 | AH33: =Avropsblankett!$F$52*IF(AND(Avropsblankett!$G$52=$B$10,Avropsblankett!$C$52=$B$7,Avropsblankett!$D$52=$A$11),AH25,IF(AND(Avropsblankett!$G$52=$B$10,Avropsblankett!$C$52=$B$7,Avropsblankett!$D$52=$A$12),AH26,IF(AND(Avropsblankett!$G$52=$B$10,Avropsblankett!$C$52=$B$7,Avropsblankett!$D$52=$A$13),AH27,IF(AND(Avropsblankett!$G$52=$B$10,Avropsblankett!$C$52=$B$7,Avropsblankett!$D$52=$A$14),AH28,IF(AND(Avropsblankett!$G$52=$B$10,Avropsblankett!$C$52=$B$7,Avropsblankett!$D$52=$A$15),AH29,IF(AND(Avropsblankett!$G$52=$B$10,Avropsblankett!$C$52=$B$7,Avropsblankett!$D$52=$A$16),AH30,0)))))) -> 0 | AI33: =Avropsblankett!$F$52*IF(AND(Avropsblankett!$G$52=$C$10,Avropsblankett!$C$52=$B$7,Avropsblankett!$D$52=$A$11),AI25,IF(AND(Avropsblankett!$G$52=$C$10,Avropsblankett!$C$52=$B$7,Avropsblankett!$D$52=$A$12),AI26,IF(AND(Avropsblankett!$G$52=$C$10,Avropsblankett!$C$52=$B$7,Avropsblankett!$D$52=$A$13),AI27,IF(AND(Avropsblankett!$G$52=$C$10,Avropsblankett!$C$52=$B$7,Avropsblankett!$D$52=$A$14),AI28,IF(AND(Avropsblankett!$G$52=$C$10,Avropsblankett!$C$52=$B$7,Avropsblankett!$D$52=$A$15),AI29,IF(AND(Avropsblankett!$G$52=$C$10,Avropsblankett!$C$52=$B$7,Avropsblankett!$D$52=$A$16),AI30,0)))))) -> 0 | AJ33: =Avropsblankett!$F$52*IF(AND(Avropsblankett!$G$52=$D$10,Avropsblankett!$C$52=$B$7,Avropsblankett!$D$52=$A$11),AJ25,IF(AND(Avropsblankett!$G$52=$D$10,Avropsblankett!$C$52=$B$7,Avropsblankett!$D$52=$A$12),AJ26,IF(AND(Avropsblankett!$G$52=$D$10,Avropsblankett!$C$52=$B$7,Avropsblankett!$D$52=$A$13),AJ27,IF(AND(Avropsblankett!$G$52=$D$10,Avropsblankett!$C$52=$B$7,Avropsblankett!$D$52=$A$14),AJ28,IF(AND(Avropsblankett!$G$52=$D$10,Avropsblankett!$C$52=$B$7,Avropsblankett!$D$52=$A$15),AJ29,IF(AND(Avropsblankett!$G$52=$D$10,Avropsblankett!$C$52=$B$7,Avropsblankett!$D$52=$A$16),AJ30,0)))))) -> 0 | AL33: =Avropsblankett!$F$52*IF(AND(Avropsblankett!$G$52=$B$10,Avropsblankett!$C$52=$B$7,Avropsblankett!$D$52=$A$11),AL25,IF(AND(Avropsblankett!$G$52=$B$10,Avropsblankett!$C$52=$B$7,Avropsblankett!$D$52=$A$12),AL26,IF(AND(Avropsblankett!$G$52=$B$10,Avropsblankett!$C$52=$B$7,Avropsblankett!$D$52=$A$13),AL27,IF(AND(Avropsblankett!$G$52=$B$10,Avropsblankett!$C$52=$B$7,Avropsblankett!$D$52=$A$14),AL28,IF(AND(Avropsblankett!$G$52=$B$10,Avropsblankett!$C$52=$B$7,Avropsblankett!$D$52=$A$15),AL29,IF(AND(Avropsblankett!$G$52=$B$10,Avropsblankett!$C$52=$B$7,Avropsblankett!$D$52=$A$16),AL30,0)))))) -> 0 | AM33: =Avropsblankett!$F$52*IF(AND(Avropsblankett!$G$52=$C$10,Avropsblankett!$C$52=$B$7,Avropsblankett!$D$52=$A$11),AM25,IF(AND(Avropsblankett!$G$52=$C$10,Avropsblankett!$C$52=$B$7,Avropsblankett!$D$52=$A$12),AM26,IF(AND(Avropsblankett!$G$52=$C$10,Avropsblankett!$C$52=$B$7,Avropsblankett!$D$52=$A$13),AM27,IF(AND(Avropsblankett!$G$52=$C$10,Avropsblankett!$C$52=$B$7,Avropsblankett!$D$52=$A$14),AM28,IF(AND(Avropsblankett!$G$52=$C$10,Avropsblankett!$C$52=$B$7,Avropsblankett!$D$52=$A$15),AM29,IF(AND(Avropsblankett!$G$52=$C$10,Avropsblankett!$C$52=$B$7,Avropsblankett!$D$52=$A$16),AM30,0)))))) -> 0 | AN33: =Avropsblankett!$F$52*IF(AND(Avropsblankett!$G$52=$D$10,Avropsblankett!$C$52=$B$7,Avropsblankett!$D$52=$A$11),AN25,IF(AND(Avropsblankett!$G$52=$D$10,Avropsblankett!$C$52=$B$7,Avropsblankett!$D$52=$A$12),AN26,IF(AND(Avropsblankett!$G$52=$D$10,Avropsblankett!$C$52=$B$7,Avropsblankett!$D$52=$A$13),AN27,IF(AND(Avropsblankett!$G$52=$D$10,Avropsblankett!$C$52=$B$7,Avropsblankett!$D$52=$A$14),AN28,IF(AND(Avropsblankett!$G$52=$D$10,Avropsblankett!$C$52=$B$7,Avropsblankett!$D$52=$A$15),AN29,IF(AND(Avropsblankett!$G$52=$D$10,Avropsblankett!$C$52=$B$7,Avropsblankett!$D$52=$A$16),AN30,0)))))) -> 0 | AP33: =Avropsblankett!$F$52*IF(AND(Avropsblankett!$G$52=$B$10,Avropsblankett!$C$52=$B$7,Avropsblankett!$D$52=$A$11),AP25,IF(AND(Avropsblankett!$G$52=$B$10,Avropsblankett!$C$52=$B$7,Avropsblankett!$D$52=$A$12),AP26,IF(AND(Avropsblankett!$G$52=$B$10,Avropsblankett!$C$52=$B$7,Avropsblankett!$D$52=$A$13),AP27,IF(AND(Avropsblankett!$G$52=$B$10,Avropsblankett!$C$52=$B$7,Avropsblankett!$D$52=$A$14),AP28,IF(AND(Avropsblankett!$G$52=$B$10,Avropsblankett!$C$52=$B$7,Avropsblankett!$D$52=$A$15),AP29,IF(AND(Avropsblankett!$G$52=$B$10,Avropsblankett!$C$52=$B$7,Avropsblankett!$D$52=$A$16),AP30,0)))))) -> 0 | AQ33: =Avropsblankett!$F$52*IF(AND(Avropsblankett!$G$52=$C$10,Avropsblankett!$C$52=$B$7,Avropsblankett!$D$52=$A$11),AQ25,IF(AND(Avropsblankett!$G$52=$C$10,Avropsblankett!$C$52=$B$7,Avropsblankett!$D$52=$A$12),AQ26,IF(AND(Avropsblankett!$G$52=$C$10,Avropsblankett!$C$52=$B$7,Avropsblankett!$D$52=$A$13),AQ27,IF(AND(Avropsblankett!$G$52=$C$10,Avropsblankett!$C$52=$B$7,Avropsblankett!$D$52=$A$14),AQ28,IF(AND(Avropsblankett!$G$52=$C$10,Avropsblankett!$C$52=$B$7,Avropsblankett!$D$52=$A$15),AQ29,IF(AND(Avropsblankett!$G$52=$C$10,Avropsblankett!$C$52=$B$7,Avropsblankett!$D$52=$A$16),AQ30,0)))))) -> 0 | AR33: =Avropsblankett!$F$52*IF(AND(Avropsblankett!$G$52=$D$10,Avropsblankett!$C$52=$B$7,Avropsblankett!$D$52=$A$11),AR25,IF(AND(Avropsblankett!$G$52=$D$10,Avropsblankett!$C$52=$B$7,Avropsblankett!$D$52=$A$12),AR26,IF(AND(Avropsblankett!$G$52=$D$10,Avropsblankett!$C$52=$B$7,Avropsblankett!$D$52=$A$13),AR27,IF(AND(Avropsblankett!$G$52=$D$10,Avropsblankett!$C$52=$B$7,Avropsblankett!$D$52=$A$14),AR28,IF(AND(Avropsblankett!$G$52=$D$10,Avropsblankett!$C$52=$B$7,Avropsblankett!$D$52=$A$15),AR29,IF(AND(Avropsblankett!$G$52=$D$10,Avropsblankett!$C$52=$B$7,Avropsblankett!$D$52=$A$16),AR30,0)))))) -> 0
B34: =Avropsblankett!$H$64*IF(AND(Avropsblankett!$G$64=$B$10,Avropsblankett!$C$64=$B$7,Avropsblankett!$D$64=$A$11),B25,IF(AND(Avropsblankett!$G$64=$B$10,Avropsblankett!$C$64=$B$7,Avropsblankett!$D$64=$A$12),B26,IF(AND(Avropsblankett!$G$64=$B$10,Avropsblankett!$C$64=$B$7,Avropsblankett!$D$64=$A$13),B27,IF(AND(Avropsblankett!$G$64=$B$10,Avropsblankett!$C$64=$B$7,Avropsblankett!$D$64=$A$14),B28,IF(AND(Avropsblankett!$G$64=$B$10,Avropsblankett!$C$64=$B$7,Avropsblankett!$D$64=$A$15),B29,IF(AND(Avropsblankett!$G$64=$B$10,Avropsblankett!$C$64=$B$7,Avropsblankett!$D$64=$A$16),B30,0)))))) -> 0 | C34: =Avropsblankett!$F$64*IF(AND(Avropsblankett!$G$64=$C$10,Avropsblankett!$C$64=$B$7,Avropsblankett!$D$64=$A$11),C25,IF(AND(Avropsblankett!$G$64=$C$10,Avropsblankett!$C$64=$B$7,Avropsblankett!$D$64=$A$12),C26,IF(AND(Avropsblankett!$G$64=$C$10,Avropsblankett!$C$64=$B$7,Avropsblankett!$D$64=$A$13),C27,IF(AND(Avropsblankett!$G$64=$C$10,Avropsblankett!$C$64=$B$7,Avropsblankett!$D$64=$A$14),C28,IF(AND(Avropsblankett!$G$64=$C$10,Avropsblankett!$C$64=$B$7,Avropsblankett!$D$64=$A$15),C29,IF(AND(Avropsblankett!$G$64=$C$10,Avropsblankett!$C$64=$B$7,Avropsblankett!$D$64=$A$16),C30,0)))))) -> 0 | D34: =Avropsblankett!$F$64*IF(AND(Avropsblankett!$G$64=$D$10,Avropsblankett!$C$64=$B$7,Avropsblankett!$D$64=$A$11),D25,IF(AND(Avropsblankett!$G$64=$D$10,Avropsblankett!$C$64=$B$7,Avropsblankett!$D$64=$A$12),D26,IF(AND(Avropsblankett!$G$64=$D$10,Avropsblankett!$C$64=$B$7,Avropsblankett!$D$64=$A$13),D27,IF(AND(Avropsblankett!$G$64=$D$10,Avropsblankett!$C$64=$B$7,Avropsblankett!$D$64=$A$14),D28,IF(AND(Avropsblankett!$G$64=$D$10,Avropsblankett!$C$64=$B$7,Avropsblankett!$D$64=$A$15),D29,IF(AND(Avropsblankett!$G$64=$D$10,Avropsblankett!$C$64=$B$7,Avropsblankett!$D$64=$A$16),D30,0)))))) -> 0 | F34: =Avropsblankett!$H$64*IF(AND(Avropsblankett!$G$64=$B$10,Avropsblankett!$C$64=$B$7,Avropsblankett!$D$64=$A$11),F25,IF(AND(Avropsblankett!$G$64=$B$10,Avropsblankett!$C$64=$B$7,Avropsblankett!$D$64=$A$12),F26,IF(AND(Avropsblankett!$G$64=$B$10,Avropsblankett!$C$64=$B$7,Avropsblankett!$D$64=$A$13),F27,IF(AND(Avropsblankett!$G$64=$B$10,Avropsblankett!$C$64=$B$7,Avropsblankett!$D$64=$A$14),F28,IF(AND(Avropsblankett!$G$64=$B$10,Avropsblankett!$C$64=$B$7,Avropsblankett!$D$64=$A$15),F29,IF(AND(Avropsblankett!$G$64=$B$10,Avropsblankett!$C$64=$B$7,Avropsblankett!$D$64=$A$16),F30,0)))))) -> 0 | G34: =Avropsblankett!$F$64*IF(AND(Avropsblankett!$G$64=$C$10,Avropsblankett!$C$64=$B$7,Avropsblankett!$D$64=$A$11),G25,IF(AND(Avropsblankett!$G$64=$C$10,Avropsblankett!$C$64=$B$7,Avropsblankett!$D$64=$A$12),G26,IF(AND(Avropsblankett!$G$64=$C$10,Avropsblankett!$C$64=$B$7,Avropsblankett!$D$64=$A$13),G27,IF(AND(Avropsblankett!$G$64=$C$10,Avropsblankett!$C$64=$B$7,Avropsblankett!$D$64=$A$14),G28,IF(AND(Avropsblankett!$G$64=$C$10,Avropsblankett!$C$64=$B$7,Avropsblankett!$D$64=$A$15),G29,IF(AND(Avropsblankett!$G$64=$C$10,Avropsblankett!$C$64=$B$7,Avropsblankett!$D$64=$A$16),G30,0)))))) -> 0 | H34: =Avropsblankett!$F$64*IF(AND(Avropsblankett!$G$64=$D$10,Avropsblankett!$C$64=$B$7,Avropsblankett!$D$64=$A$11),H25,IF(AND(Avropsblankett!$G$64=$D$10,Avropsblankett!$C$64=$B$7,Avropsblankett!$D$64=$A$12),H26,IF(AND(Avropsblankett!$G$64=$D$10,Avropsblankett!$C$64=$B$7,Avropsblankett!$D$64=$A$13),H27,IF(AND(Avropsblankett!$G$64=$D$10,Avropsblankett!$C$64=$B$7,Avropsblankett!$D$64=$A$14),H28,IF(AND(Avropsblankett!$G$64=$D$10,Avropsblankett!$C$64=$B$7,Avropsblankett!$D$64=$A$15),H29,IF(AND(Avropsblankett!$G$64=$D$10,Avropsblankett!$C$64=$B$7,Avropsblankett!$D$64=$A$16),H30,0)))))) -> 0 | J34: =Avropsblankett!$H$64*IF(AND(Avropsblankett!$G$64=$B$10,Avropsblankett!$C$64=$B$7,Avropsblankett!$D$64=$A$11),J25,IF(AND(Avropsblankett!$G$64=$B$10,Avropsblankett!$C$64=$B$7,Avropsblankett!$D$64=$A$12),J26,IF(AND(Avropsblankett!$G$64=$B$10,Avropsblankett!$C$64=$B$7,Avropsblankett!$D$64=$A$13),J27,IF(AND(Avropsblankett!$G$64=$B$10,Avropsblankett!$C$64=$B$7,Avropsblankett!$D$64=$A$14),J28,IF(AND(Avropsblankett!$G$64=$B$10,Avropsblankett!$C$64=$B$7,Avropsblankett!$D$64=$A$15),J29,IF(AND(Avropsblankett!$G$64=$B$10,Avropsblankett!$C$64=$B$7,Avropsblankett!$D$64=$A$16),J30,0)))))) -> 0 | K34: =Avropsblankett!$F$64*IF(AND(Avropsblankett!$G$64=$C$10,Avropsblankett!$C$64=$B$7,Avropsblankett!$D$64=$A$11),K25,IF(AND(Avropsblankett!$G$64=$C$10,Avropsblankett!$C$64=$B$7,Avropsblankett!$D$64=$A$12),K26,IF(AND(Avropsblankett!$G$64=$C$10,Avropsblankett!$C$64=$B$7,Avropsblankett!$D$64=$A$13),K27,IF(AND(Avropsblankett!$G$64=$C$10,Avropsblankett!$C$64=$B$7,Avropsblankett!$D$64=$A$14),K28,IF(AND(Avropsblankett!$G$64=$C$10,Avropsblankett!$C$64=$B$7,Avropsblankett!$D$64=$A$15),K29,IF(AND(Avropsblankett!$G$64=$C$10,Avropsblankett!$C$64=$B$7,Avropsblankett!$D$64=$A$16),K30,0)))))) -> 0 | L34: =Avropsblankett!$F$64*IF(AND(Avropsblankett!$G$64=$D$10,Avropsblankett!$C$64=$B$7,Avropsblankett!$D$64=$A$11),L25,IF(AND(Avropsblankett!$G$64=$D$10,Avropsblankett!$C$64=$B$7,Avropsblankett!$D$64=$A$12),L26,IF(AND(Avropsblankett!$G$64=$D$10,Avropsblankett!$C$64=$B$7,Avropsblankett!$D$64=$A$13),L27,IF(AND(Avropsblankett!$G$64=$D$10,Avropsblankett!$C$64=$B$7,Avropsblankett!$D$64=$A$14),L28,IF(AND(Avropsblankett!$G$64=$D$10,Avropsblankett!$C$64=$B$7,Avropsblankett!$D$64=$A$15),L29,IF(AND(Avropsblankett!$G$64=$D$10,Avropsblankett!$C$64=$B$7,Avropsblankett!$D$64=$A$16),L30,0)))))) -> 0 | N34: =Avropsblankett!$H$64*IF(AND(Avropsblankett!$G$64=$B$10,Avropsblankett!$C$64=$B$7,Avropsblankett!$D$64=$A$11),N25,IF(AND(Avropsblankett!$G$64=$B$10,Avropsblankett!$C$64=$B$7,Avropsblankett!$D$64=$A$12),N26,IF(AND(Avropsblankett!$G$64=$B$10,Avropsblankett!$C$64=$B$7,Avropsblankett!$D$64=$A$13),N27,IF(AND(Avropsblankett!$G$64=$B$10,Avropsblankett!$C$64=$B$7,Avropsblankett!$D$64=$A$14),N28,IF(AND(Avropsblankett!$G$64=$B$10,Avropsblankett!$C$64=$B$7,Avropsblankett!$D$64=$A$15),N29,IF(AND(Avropsblankett!$G$64=$B$10,Avropsblankett!$C$64=$B$7,Avropsblankett!$D$64=$A$16),N30,0)))))) -> 0 | O34: =Avropsblankett!$F$64*IF(AND(Avropsblankett!$G$64=$C$10,Avropsblankett!$C$64=$B$7,Avropsblankett!$D$64=$A$11),O25,IF(AND(Avropsblankett!$G$64=$C$10,Avropsblankett!$C$64=$B$7,Avropsblankett!$D$64=$A$12),O26,IF(AND(Avropsblankett!$G$64=$C$10,Avropsblankett!$C$64=$B$7,Avropsblankett!$D$64=$A$13),O27,IF(AND(Avropsblankett!$G$64=$C$10,Avropsblankett!$C$64=$B$7,Avropsblankett!$D$64=$A$14),O28,IF(AND(Avropsblankett!$G$64=$C$10,Avropsblankett!$C$64=$B$7,Avropsblankett!$D$64=$A$15),O29,IF(AND(Avropsblankett!$G$64=$C$10,Avropsblankett!$C$64=$B$7,Avropsblankett!$D$64=$A$16),O30,0)))))) -> 0 | P34: =Avropsblankett!$F$64*IF(AND(Avropsblankett!$G$64=$D$10,Avropsblankett!$C$64=$B$7,Avropsblankett!$D$64=$A$11),P25,IF(AND(Avropsblankett!$G$64=$D$10,Avropsblankett!$C$64=$B$7,Avropsblankett!$D$64=$A$12),P26,IF(AND(Avropsblankett!$G$64=$D$10,Avropsblankett!$C$64=$B$7,Avropsblankett!$D$64=$A$13),P27,IF(AND(Avropsblankett!$G$64=$D$10,Avropsblankett!$C$64=$B$7,Avropsblankett!$D$64=$A$14),P28,IF(AND(Avropsblankett!$G$64=$D$10,Avropsblankett!$C$64=$B$7,Avropsblankett!$D$64=$A$15),P29,IF(AND(Avropsblankett!$G$64=$D$10,Avropsblankett!$C$64=$B$7,Avropsblankett!$D$64=$A$16),P30,0)))))) -> 0 | R34: =Avropsblankett!$H$64*IF(AND(Avropsblankett!$G$64=$B$10,Avropsblankett!$C$64=$B$7,Avropsblankett!$D$64=$A$11),R25,IF(AND(Avropsblankett!$G$64=$B$10,Avropsblankett!$C$64=$B$7,Avropsblankett!$D$64=$A$12),R26,IF(AND(Avropsblankett!$G$64=$B$10,Avropsblankett!$C$64=$B$7,Avropsblankett!$D$64=$A$13),R27,IF(AND(Avropsblankett!$G$64=$B$10,Avropsblankett!$C$64=$B$7,Avropsblankett!$D$64=$A$14),R28,IF(AND(Avropsblankett!$G$64=$B$10,Avropsblankett!$C$64=$B$7,Avropsblankett!$D$64=$A$15),R29,IF(AND(Avropsblankett!$G$64=$B$10,Avropsblankett!$C$64=$B$7,Avropsblankett!$D$64=$A$16),R30,0)))))) -> 0 | S34: =Avropsblankett!$F$64*IF(AND(Avropsblankett!$G$64=$C$10,Avropsblankett!$C$64=$B$7,Avropsblankett!$D$64=$A$11),S25,IF(AND(Avropsblankett!$G$64=$C$10,Avropsblankett!$C$64=$B$7,Avropsblankett!$D$64=$A$12),S26,IF(AND(Avropsblankett!$G$64=$C$10,Avropsblankett!$C$64=$B$7,Avropsblankett!$D$64=$A$13),S27,IF(AND(Avropsblankett!$G$64=$C$10,Avropsblankett!$C$64=$B$7,Avropsblankett!$D$64=$A$14),S28,IF(AND(Avropsblankett!$G$64=$C$10,Avropsblankett!$C$64=$B$7,Avropsblankett!$D$64=$A$15),S29,IF(AND(Avropsblankett!$G$64=$C$10,Avropsblankett!$C$64=$B$7,Avropsblankett!$D$64=$A$16),S30,0)))))) -> 0 | T34: =Avropsblankett!$F$64*IF(AND(Avropsblankett!$G$64=$D$10,Avropsblankett!$C$64=$B$7,Avropsblankett!$D$64=$A$11),T25,IF(AND(Avropsblankett!$G$64=$D$10,Avropsblankett!$C$64=$B$7,Avropsblankett!$D$64=$A$12),T26,IF(AND(Avropsblankett!$G$64=$D$10,Avropsblankett!$C$64=$B$7,Avropsblankett!$D$64=$A$13),T27,IF(AND(Avropsblankett!$G$64=$D$10,Avropsblankett!$C$64=$B$7,Avropsblankett!$D$64=$A$14),T28,IF(AND(Avropsblankett!$G$64=$D$10,Avropsblankett!$C$64=$B$7,Avropsblankett!$D$64=$A$15),T29,IF(AND(Avropsblankett!$G$64=$D$10,Avropsblankett!$C$64=$B$7,Avropsblankett!$D$64=$A$16),T30,0)))))) -> 0 | V34: =Avropsblankett!$H$64*IF(AND(Avropsblankett!$G$64=$B$10,Avropsblankett!$C$64=$B$7,Avropsblankett!$D$64=$A$11),V25,IF(AND(Avropsblankett!$G$64=$B$10,Avropsblankett!$C$64=$B$7,Avropsblankett!$D$64=$A$12),V26,IF(AND(Avropsblankett!$G$64=$B$10,Avropsblankett!$C$64=$B$7,Avropsblankett!$D$64=$A$13),V27,IF(AND(Avropsblankett!$G$64=$B$10,Avropsblankett!$C$64=$B$7,Avropsblankett!$D$64=$A$14),V28,IF(AND(Avropsblankett!$G$64=$B$10,Avropsblankett!$C$64=$B$7,Avropsblankett!$D$64=$A$15),V29,IF(AND(Avropsblankett!$G$64=$B$10,Avropsblankett!$C$64=$B$7,Avropsblankett!$D$64=$A$16),V30,0)))))) -> 0 | W34: =Avropsblankett!$F$64*IF(AND(Avropsblankett!$G$64=$C$10,Avropsblankett!$C$64=$B$7,Avropsblankett!$D$64=$A$11),W25,IF(AND(Avropsblankett!$G$64=$C$10,Avropsblankett!$C$64=$B$7,Avropsblankett!$D$64=$A$12),W26,IF(AND(Avropsblankett!$G$64=$C$10,Avropsblankett!$C$64=$B$7,Avropsblankett!$D$64=$A$13),W27,IF(AND(Avropsblankett!$G$64=$C$10,Avropsblankett!$C$64=$B$7,Avropsblankett!$D$64=$A$14),W28,IF(AND(Avropsblankett!$G$64=$C$10,Avropsblankett!$C$64=$B$7,Avropsblankett!$D$64=$A$15),W29,IF(AND(Avropsblankett!$G$64=$C$10,Avropsblankett!$C$64=$B$7,Avropsblankett!$D$64=$A$16),W30,0)))))) -> 0 | X34: =Avropsblankett!$F$64*IF(AND(Avropsblankett!$G$64=$D$10,Avropsblankett!$C$64=$B$7,Avropsblankett!$D$64=$A$11),X25,IF(AND(Avropsblankett!$G$64=$D$10,Avropsblankett!$C$64=$B$7,Avropsblankett!$D$64=$A$12),X26,IF(AND(Avropsblankett!$G$64=$D$10,Avropsblankett!$C$64=$B$7,Avropsblankett!$D$64=$A$13),X27,IF(AND(Avropsblankett!$G$64=$D$10,Avropsblankett!$C$64=$B$7,Avropsblankett!$D$64=$A$14),X28,IF(AND(Avropsblankett!$G$64=$D$10,Avropsblankett!$C$64=$B$7,Avropsblankett!$D$64=$A$15),X29,IF(AND(Avropsblankett!$G$64=$D$10,Avropsblankett!$C$64=$B$7,Avropsblankett!$D$64=$A$16),X30,0)))))) -> 0 | Z34: =Avropsblankett!$H$64*IF(AND(Avropsblankett!$G$64=$B$10,Avropsblankett!$C$64=$B$7,Avropsblankett!$D$64=$A$11),Z25,IF(AND(Avropsblankett!$G$64=$B$10,Avropsblankett!$C$64=$B$7,Avropsblankett!$D$64=$A$12),Z26,IF(AND(Avropsblankett!$G$64=$B$10,Avropsblankett!$C$64=$B$7,Avropsblankett!$D$64=$A$13),Z27,IF(AND(Avropsblankett!$G$64=$B$10,Avropsblankett!$C$64=$B$7,Avropsblankett!$D$64=$A$14),Z28,IF(AND(Avropsblankett!$G$64=$B$10,Avropsblankett!$C$64=$B$7,Avropsblankett!$D$64=$A$15),Z29,IF(AND(Avropsblankett!$G$64=$B$10,Avropsblankett!$C$64=$B$7,Avropsblankett!$D$64=$A$16),Z30,0)))))) -> 0 | AA34: =Avropsblankett!$F$64*IF(AND(Avropsblankett!$G$64=$C$10,Avropsblankett!$C$64=$B$7,Avropsblankett!$D$64=$A$11),AA25,IF(AND(Avropsblankett!$G$64=$C$10,Avropsblankett!$C$64=$B$7,Avropsblankett!$D$64=$A$12),AA26,IF(AND(Avropsblankett!$G$64=$C$10,Avropsblankett!$C$64=$B$7,Avropsblankett!$D$64=$A$13),AA27,IF(AND(Avropsblankett!$G$64=$C$10,Avropsblankett!$C$64=$B$7,Avropsblankett!$D$64=$A$14),AA28,IF(AND(Avropsblankett!$G$64=$C$10,Avropsblankett!$C$64=$B$7,Avropsblankett!$D$64=$A$15),AA29,IF(AND(Avropsblankett!$G$64=$C$10,Avropsblankett!$C$64=$B$7,Avropsblankett!$D$64=$A$16),AA30,0)))))) -> 0 | AB34: =Avropsblankett!$F$64*IF(AND(Avropsblankett!$G$64=$D$10,Avropsblankett!$C$64=$B$7,Avropsblankett!$D$64=$A$11),AB25,IF(AND(Avropsblankett!$G$64=$D$10,Avropsblankett!$C$64=$B$7,Avropsblankett!$D$64=$A$12),AB26,IF(AND(Avropsblankett!$G$64=$D$10,Avropsblankett!$C$64=$B$7,Avropsblankett!$D$64=$A$13),AB27,IF(AND(Avropsblankett!$G$64=$D$10,Avropsblankett!$C$64=$B$7,Avropsblankett!$D$64=$A$14),AB28,IF(AND(Avropsblankett!$G$64=$D$10,Avropsblankett!$C$64=$B$7,Avropsblankett!$D$64=$A$15),AB29,IF(AND(Avropsblankett!$G$64=$D$10,Avropsblankett!$C$64=$B$7,Avropsblankett!$D$64=$A$16),AB30,0)))))) -> 0 | AD34: =Avropsblankett!$H$64*IF(AND(Avropsblankett!$G$64=$B$10,Avropsblankett!$C$64=$B$7,Avropsblankett!$D$64=$A$11),AD25,IF(AND(Avropsblankett!$G$64=$B$10,Avropsblankett!$C$64=$B$7,Avropsblankett!$D$64=$A$12),AD26,IF(AND(Avropsblankett!$G$64=$B$10,Avropsblankett!$C$64=$B$7,Avropsblankett!$D$64=$A$13),AD27,IF(AND(Avropsblankett!$G$64=$B$10,Avropsblankett!$C$64=$B$7,Avropsblankett!$D$64=$A$14),AD28,IF(AND(Avropsblankett!$G$64=$B$10,Avropsblankett!$C$64=$B$7,Avropsblankett!$D$64=$A$15),AD29,IF(AND(Avropsblankett!$G$64=$B$10,Avropsblankett!$C$64=$B$7,Avropsblankett!$D$64=$A$16),AD30,0)))))) -> 0 | AE34: =Avropsblankett!$F$64*IF(AND(Avropsblankett!$G$64=$C$10,Avropsblankett!$C$64=$B$7,Avropsblankett!$D$64=$A$11),AE25,IF(AND(Avropsblankett!$G$64=$C$10,Avropsblankett!$C$64=$B$7,Avropsblankett!$D$64=$A$12),AE26,IF(AND(Avropsblankett!$G$64=$C$10,Avropsblankett!$C$64=$B$7,Avropsblankett!$D$64=$A$13),AE27,IF(AND(Avropsblankett!$G$64=$C$10,Avropsblankett!$C$64=$B$7,Avropsblankett!$D$64=$A$14),AE28,IF(AND(Avropsblankett!$G$64=$C$10,Avropsblankett!$C$64=$B$7,Avropsblankett!$D$64=$A$15),AE29,IF(AND(Avropsblankett!$G$64=$C$10,Avropsblankett!$C$64=$B$7,Avropsblankett!$D$64=$A$16),AE30,0)))))) -> 0 | AF34: =Avropsblankett!$F$64*IF(AND(Avropsblankett!$G$64=$D$10,Avropsblankett!$C$64=$B$7,Avropsblankett!$D$64=$A$11),AF25,IF(AND(Avropsblankett!$G$64=$D$10,Avropsblankett!$C$64=$B$7,Avropsblankett!$D$64=$A$12),AF26,IF(AND(Avropsblankett!$G$64=$D$10,Avropsblankett!$C$64=$B$7,Avropsblankett!$D$64=$A$13),AF27,IF(AND(Avropsblankett!$G$64=$D$10,Avropsblankett!$C$64=$B$7,Avropsblankett!$D$64=$A$14),AF28,IF(AND(Avropsblankett!$G$64=$D$10,Avropsblankett!$C$64=$B$7,Avropsblankett!$D$64=$A$15),AF29,IF(AND(Avropsblankett!$G$64=$D$10,Avropsblankett!$C$64=$B$7,Avropsblankett!$D$64=$A$16),AF30,0)))))) -> 0 | AH34: =Avropsblankett!$H$64*IF(AND(Avropsblankett!$G$64=$B$10,Avropsblankett!$C$64=$B$7,Avropsblankett!$D$64=$A$11),AH25,IF(AND(Avropsblankett!$G$64=$B$10,Avropsblankett!$C$64=$B$7,Avropsblankett!$D$64=$A$12),AH26,IF(AND(Avropsblankett!$G$64=$B$10,Avropsblankett!$C$64=$B$7,Avropsblankett!$D$64=$A$13),AH27,IF(AND(Avropsblankett!$G$64=$B$10,Avropsblankett!$C$64=$B$7,Avropsblankett!$D$64=$A$14),AH28,IF(AND(Avropsblankett!$G$64=$B$10,Avropsblankett!$C$64=$B$7,Avropsblankett!$D$64=$A$15),AH29,IF(AND(Avropsblankett!$G$64=$B$10,Avropsblankett!$C$64=$B$7,Avropsblankett!$D$64=$A$16),AH30,0)))))) -> 0 | AI34: =Avropsblankett!$F$64*IF(AND(Avropsblankett!$G$64=$C$10,Avropsblankett!$C$64=$B$7,Avropsblankett!$D$64=$A$11),AI25,IF(AND(Avropsblankett!$G$64=$C$10,Avropsblankett!$C$64=$B$7,Avropsblankett!$D$64=$A$12),AI26,IF(AND(Avropsblankett!$G$64=$C$10,Avropsblankett!$C$64=$B$7,Avropsblankett!$D$64=$A$13),AI27,IF(AND(Avropsblankett!$G$64=$C$10,Avropsblankett!$C$64=$B$7,Avropsblankett!$D$64=$A$14),AI28,IF(AND(Avropsblankett!$G$64=$C$10,Avropsblankett!$C$64=$B$7,Avropsblankett!$D$64=$A$15),AI29,IF(AND(Avropsblankett!$G$64=$C$10,Avropsblankett!$C$64=$B$7,Avropsblankett!$D$64=$A$16),AI30,0)))))) -> 0 | AJ34: =Avropsblankett!$F$64*IF(AND(Avropsblankett!$G$64=$D$10,Avropsblankett!$C$64=$B$7,Avropsblankett!$D$64=$A$11),AJ25,IF(AND(Avropsblankett!$G$64=$D$10,Avropsblankett!$C$64=$B$7,Avropsblankett!$D$64=$A$12),AJ26,IF(AND(Avropsblankett!$G$64=$D$10,Avropsblankett!$C$64=$B$7,Avropsblankett!$D$64=$A$13),AJ27,IF(AND(Avropsblankett!$G$64=$D$10,Avropsblankett!$C$64=$B$7,Avropsblankett!$D$64=$A$14),AJ28,IF(AND(Avropsblankett!$G$64=$D$10,Avropsblankett!$C$64=$B$7,Avropsblankett!$D$64=$A$15),AJ29,IF(AND(Avropsblankett!$G$64=$D$10,Avropsblankett!$C$64=$B$7,Avropsblankett!$D$64=$A$16),AJ30,0)))))) -> 0 | AL34: =Avropsblankett!$H$64*IF(AND(Avropsblankett!$G$64=$B$10,Avropsblankett!$C$64=$B$7,Avropsblankett!$D$64=$A$11),AL25,IF(AND(Avropsblankett!$G$64=$B$10,Avropsblankett!$C$64=$B$7,Avropsblankett!$D$64=$A$12),AL26,IF(AND(Avropsblankett!$G$64=$B$10,Avropsblankett!$C$64=$B$7,Avropsblankett!$D$64=$A$13),AL27,IF(AND(Avropsblankett!$G$64=$B$10,Avropsblankett!$C$64=$B$7,Avropsblankett!$D$64=$A$14),AL28,IF(AND(Avropsblankett!$G$64=$B$10,Avropsblankett!$C$64=$B$7,Avropsblankett!$D$64=$A$15),AL29,IF(AND(Avropsblankett!$G$64=$B$10,Avropsblankett!$C$64=$B$7,Avropsblankett!$D$64=$A$16),AL30,0)))))) -> 0 | AM34: =Avropsblankett!$F$64*IF(AND(Avropsblankett!$G$64=$C$10,Avropsblankett!$C$64=$B$7,Avropsblankett!$D$64=$A$11),AM25,IF(AND(Avropsblankett!$G$64=$C$10,Avropsblankett!$C$64=$B$7,Avropsblankett!$D$64=$A$12),AM26,IF(AND(Avropsblankett!$G$64=$C$10,Avropsblankett!$C$64=$B$7,Avropsblankett!$D$64=$A$13),AM27,IF(AND(Avropsblankett!$G$64=$C$10,Avropsblankett!$C$64=$B$7,Avropsblankett!$D$64=$A$14),AM28,IF(AND(Avropsblankett!$G$64=$C$10,Avropsblankett!$C$64=$B$7,Avropsblankett!$D$64=$A$15),AM29,IF(AND(Avropsblankett!$G$64=$C$10,Avropsblankett!$C$64=$B$7,Avropsblankett!$D$64=$A$16),AM30,0)))))) -> 0 | AN34: =Avropsblankett!$F$64*IF(AND(Avropsblankett!$G$64=$D$10,Avropsblankett!$C$64=$B$7,Avropsblankett!$D$64=$A$11),AN25,IF(AND(Avropsblankett!$G$64=$D$10,Avropsblankett!$C$64=$B$7,Avropsblankett!$D$64=$A$12),AN26,IF(AND(Avropsblankett!$G$64=$D$10,Avropsblankett!$C$64=$B$7,Avropsblankett!$D$64=$A$13),AN27,IF(AND(Avropsblankett!$G$64=$D$10,Avropsblankett!$C$64=$B$7,Avropsblankett!$D$64=$A$14),AN28,IF(AND(Avropsblankett!$G$64=$D$10,Avropsblankett!$C$64=$B$7,Avropsblankett!$D$64=$A$15),AN29,IF(AND(Avropsblankett!$G$64=$D$10,Avropsblankett!$C$64=$B$7,Avropsblankett!$D$64=$A$16),AN30,0)))))) -> 0 | AP34: =Avropsblankett!$H$64*IF(AND(Avropsblankett!$G$64=$B$10,Avropsblankett!$C$64=$B$7,Avropsblankett!$D$64=$A$11),AP25,IF(AND(Avropsblankett!$G$64=$B$10,Avropsblankett!$C$64=$B$7,Avropsblankett!$D$64=$A$12),AP26,IF(AND(Avropsblankett!$G$64=$B$10,Avropsblankett!$C$64=$B$7,Avropsblankett!$D$64=$A$13),AP27,IF(AND(Avropsblankett!$G$64=$B$10,Avropsblankett!$C$64=$B$7,Avropsblankett!$D$64=$A$14),AP28,IF(AND(Avropsblankett!$G$64=$B$10,Avropsblankett!$C$64=$B$7,Avropsblankett!$D$64=$A$15),AP29,IF(AND(Avropsblankett!$G$64=$B$10,Avropsblankett!$C$64=$B$7,Avropsblankett!$D$64=$A$16),AP30,0)))))) -> 0 | AQ34: =Avropsblankett!$F$64*IF(AND(Avropsblankett!$G$64=$C$10,Avropsblankett!$C$64=$B$7,Avropsblankett!$D$64=$A$11),AQ25,IF(AND(Avropsblankett!$G$64=$C$10,Avropsblankett!$C$64=$B$7,Avropsblankett!$D$64=$A$12),AQ26,IF(AND(Avropsblankett!$G$64=$C$10,Avropsblankett!$C$64=$B$7,Avropsblankett!$D$64=$A$13),AQ27,IF(AND(Avropsblankett!$G$64=$C$10,Avropsblankett!$C$64=$B$7,Avropsblankett!$D$64=$A$14),AQ28,IF(AND(Avropsblankett!$G$64=$C$10,Avropsblankett!$C$64=$B$7,Avropsblankett!$D$64=$A$15),AQ29,IF(AND(Avropsblankett!$G$64=$C$10,Avropsblankett!$C$64=$B$7,Avropsblankett!$D$64=$A$16),AQ30,0)))))) -> 0 | AR34: =Avropsblankett!$F$64*IF(AND(Avropsblankett!$G$64=$D$10,Avropsblankett!$C$64=$B$7,Avropsblankett!$D$64=$A$11),AR25,IF(AND(Avropsblankett!$G$64=$D$10,Avropsblankett!$C$64=$B$7,Avropsblankett!$D$64=$A$12),AR26,IF(AND(Avropsblankett!$G$64=$D$10,Avropsblankett!$C$64=$B$7,Avropsblankett!$D$64=$A$13),AR27,IF(AND(Avropsblankett!$G$64=$D$10,Avropsblankett!$C$64=$B$7,Avropsblankett!$D$64=$A$14),AR28,IF(AND(Avropsblankett!$G$64=$D$10,Avropsblankett!$C$64=$B$7,Avropsblankett!$D$64=$A$15),AR29,IF(AND(Avropsblankett!$G$64=$D$10,Avropsblankett!$C$64=$B$7,Avropsblankett!$D$64=$A$16),AR30,0)))))) -> 0
B35: =Avropsblankett!$F$76*IF(AND(Avropsblankett!$G$76=$B$10,Avropsblankett!$C$76=$B$7,Avropsblankett!$D$76=$A$11),B25,IF(AND(Avropsblankett!$G$76=$B$10,Avropsblankett!$C$76=$B$7,Avropsblankett!$D$76=$A$12),B26,IF(AND(Avropsblankett!$G$76=$B$10,Avropsblankett!$C$76=$B$7,Avropsblankett!$D$76=$A$13),B27,IF(AND(Avropsblankett!$G$76=$B$10,Avropsblankett!$C$76=$B$7,Avropsblankett!$D$76=$A$14),B28,IF(AND(Avropsblankett!$G$76=$B$10,Avropsblankett!$C$76=$B$7,Avropsblankett!$D$76=$A$15),B29,IF(AND(Avropsblankett!$G$76=$B$10,Avropsblankett!$C$76=$B$7,Avropsblankett!$D$76=$A$16),B30,0)))))) -> 0 | C35: =Avropsblankett!$F$76*IF(AND(Avropsblankett!$G$76=$C$10,Avropsblankett!$C$76=$B$7,Avropsblankett!$D$76=$A$11),C25,IF(AND(Avropsblankett!$G$76=$C$10,Avropsblankett!$C$76=$B$7,Avropsblankett!$D$76=$A$12),C26,IF(AND(Avropsblankett!$G$76=$C$10,Avropsblankett!$C$76=$B$7,Avropsblankett!$D$76=$A$13),C27,IF(AND(Avropsblankett!$G$76=$C$10,Avropsblankett!$C$76=$B$7,Avropsblankett!$D$76=$A$14),C28,IF(AND(Avropsblankett!$G$76=$C$10,Avropsblankett!$C$76=$B$7,Avropsblankett!$D$76=$A$15),C29,IF(AND(Avropsblankett!$G$76=$C$10,Avropsblankett!$C$76=$B$7,Avropsblankett!$D$76=$A$16),C30,0)))))) -> 0 | D35: =Avropsblankett!$F$76*IF(AND(Avropsblankett!$G$76=$D$10,Avropsblankett!$C$76=$B$7,Avropsblankett!$D$76=$A$11),D25,IF(AND(Avropsblankett!$G$76=$D$10,Avropsblankett!$C$76=$B$7,Avropsblankett!$D$76=$A$12),D26,IF(AND(Avropsblankett!$G$76=$D$10,Avropsblankett!$C$76=$B$7,Avropsblankett!$D$76=$A$13),D27,IF(AND(Avropsblankett!$G$76=$D$10,Avropsblankett!$C$76=$B$7,Avropsblankett!$D$76=$A$14),D28,IF(AND(Avropsblankett!$G$76=$D$10,Avropsblankett!$C$76=$B$7,Avropsblankett!$D$76=$A$15),D29,IF(AND(Avropsblankett!$G$76=$D$10,Avropsblankett!$C$76=$B$7,Avropsblankett!$D$76=$A$16),D30,0)))))) -> 0 | F35: =Avropsblankett!$F$76*IF(AND(Avropsblankett!$G$76=$B$10,Avropsblankett!$C$76=$B$7,Avropsblankett!$D$76=$A$11),F25,IF(AND(Avropsblankett!$G$76=$B$10,Avropsblankett!$C$76=$B$7,Avropsblankett!$D$76=$A$12),F26,IF(AND(Avropsblankett!$G$76=$B$10,Avropsblankett!$C$76=$B$7,Avropsblankett!$D$76=$A$13),F27,IF(AND(Avropsblankett!$G$76=$B$10,Avropsblankett!$C$76=$B$7,Avropsblankett!$D$76=$A$14),F28,IF(AND(Avropsblankett!$G$76=$B$10,Avropsblankett!$C$76=$B$7,Avropsblankett!$D$76=$A$15),F29,IF(AND(Avropsblankett!$G$76=$B$10,Avropsblankett!$C$76=$B$7,Avropsblankett!$D$76=$A$16),F30,0)))))) -> 0 | G35: =Avropsblankett!$F$76*IF(AND(Avropsblankett!$G$76=$C$10,Avropsblankett!$C$76=$B$7,Avropsblankett!$D$76=$A$11),G25,IF(AND(Avropsblankett!$G$76=$C$10,Avropsblankett!$C$76=$B$7,Avropsblankett!$D$76=$A$12),G26,IF(AND(Avropsblankett!$G$76=$C$10,Avropsblankett!$C$76=$B$7,Avropsblankett!$D$76=$A$13),G27,IF(AND(Avropsblankett!$G$76=$C$10,Avropsblankett!$C$76=$B$7,Avropsblankett!$D$76=$A$14),G28,IF(AND(Avropsblankett!$G$76=$C$10,Avropsblankett!$C$76=$B$7,Avropsblankett!$D$76=$A$15),G29,IF(AND(Avropsblankett!$G$76=$C$10,Avropsblankett!$C$76=$B$7,Avropsblankett!$D$76=$A$16),G30,0)))))) -> 0 | H35: =Avropsblankett!$F$76*IF(AND(Avropsblankett!$G$76=$D$10,Avropsblankett!$C$76=$B$7,Avropsblankett!$D$76=$A$11),H25,IF(AND(Avropsblankett!$G$76=$D$10,Avropsblankett!$C$76=$B$7,Avropsblankett!$D$76=$A$12),H26,IF(AND(Avropsblankett!$G$76=$D$10,Avropsblankett!$C$76=$B$7,Avropsblankett!$D$76=$A$13),H27,IF(AND(Avropsblankett!$G$76=$D$10,Avropsblankett!$C$76=$B$7,Avropsblankett!$D$76=$A$14),H28,IF(AND(Avropsblankett!$G$76=$D$10,Avropsblankett!$C$76=$B$7,Avropsblankett!$D$76=$A$15),H29,IF(AND(Avropsblankett!$G$76=$D$10,Avropsblankett!$C$76=$B$7,Avropsblankett!$D$76=$A$16),H30,0)))))) -> 0 | J35: =Avropsblankett!$F$76*IF(AND(Avropsblankett!$G$76=$B$10,Avropsblankett!$C$76=$B$7,Avropsblankett!$D$76=$A$11),J25,IF(AND(Avropsblankett!$G$76=$B$10,Avropsblankett!$C$76=$B$7,Avropsblankett!$D$76=$A$12),J26,IF(AND(Avropsblankett!$G$76=$B$10,Avropsblankett!$C$76=$B$7,Avropsblankett!$D$76=$A$13),J27,IF(AND(Avropsblankett!$G$76=$B$10,Avropsblankett!$C$76=$B$7,Avropsblankett!$D$76=$A$14),J28,IF(AND(Avropsblankett!$G$76=$B$10,Avropsblankett!$C$76=$B$7,Avropsblankett!$D$76=$A$15),J29,IF(AND(Avropsblankett!$G$76=$B$10,Avropsblankett!$C$76=$B$7,Avropsblankett!$D$76=$A$16),J30,0)))))) -> 0 | K35: =Avropsblankett!$F$76*IF(AND(Avropsblankett!$G$76=$C$10,Avropsblankett!$C$76=$B$7,Avropsblankett!$D$76=$A$11),K25,IF(AND(Avropsblankett!$G$76=$C$10,Avropsblankett!$C$76=$B$7,Avropsblankett!$D$76=$A$12),K26,IF(AND(Avropsblankett!$G$76=$C$10,Avropsblankett!$C$76=$B$7,Avropsblankett!$D$76=$A$13),K27,IF(AND(Avropsblankett!$G$76=$C$10,Avropsblankett!$C$76=$B$7,Avropsblankett!$D$76=$A$14),K28,IF(AND(Avropsblankett!$G$76=$C$10,Avropsblankett!$C$76=$B$7,Avropsblankett!$D$76=$A$15),K29,IF(AND(Avropsblankett!$G$76=$C$10,Avropsblankett!$C$76=$B$7,Avropsblankett!$D$76=$A$16),K30,0)))))) -> 0 | L35: =Avropsblankett!$F$76*IF(AND(Avropsblankett!$G$76=$D$10,Avropsblankett!$C$76=$B$7,Avropsblankett!$D$76=$A$11),L25,IF(AND(Avropsblankett!$G$76=$D$10,Avropsblankett!$C$76=$B$7,Avropsblankett!$D$76=$A$12),L26,IF(AND(Avropsblankett!$G$76=$D$10,Avropsblankett!$C$76=$B$7,Avropsblankett!$D$76=$A$13),L27,IF(AND(Avropsblankett!$G$76=$D$10,Avropsblankett!$C$76=$B$7,Avropsblankett!$D$76=$A$14),L28,IF(AND(Avropsblankett!$G$76=$D$10,Avropsblankett!$C$76=$B$7,Avropsblankett!$D$76=$A$15),L29,IF(AND(Avropsblankett!$G$76=$D$10,Avropsblankett!$C$76=$B$7,Avropsblankett!$D$76=$A$16),L30,0)))))) -> 0 | N35: =Avropsblankett!$F$76*IF(AND(Avropsblankett!$G$76=$B$10,Avropsblankett!$C$76=$B$7,Avropsblankett!$D$76=$A$11),N25,IF(AND(Avropsblankett!$G$76=$B$10,Avropsblankett!$C$76=$B$7,Avropsblankett!$D$76=$A$12),N26,IF(AND(Avropsblankett!$G$76=$B$10,Avropsblankett!$C$76=$B$7,Avropsblankett!$D$76=$A$13),N27,IF(AND(Avropsblankett!$G$76=$B$10,Avropsblankett!$C$76=$B$7,Avropsblankett!$D$76=$A$14),N28,IF(AND(Avropsblankett!$G$76=$B$10,Avropsblankett!$C$76=$B$7,Avropsblankett!$D$76=$A$15),N29,IF(AND(Avropsblankett!$G$76=$B$10,Avropsblankett!$C$76=$B$7,Avropsblankett!$D$76=$A$16),N30,0)))))) -> 0 | O35: =Avropsblankett!$F$76*IF(AND(Avropsblankett!$G$76=$C$10,Avropsblankett!$C$76=$B$7,Avropsblankett!$D$76=$A$11),O25,IF(AND(Avropsblankett!$G$76=$C$10,Avropsblankett!$C$76=$B$7,Avropsblankett!$D$76=$A$12),O26,IF(AND(Avropsblankett!$G$76=$C$10,Avropsblankett!$C$76=$B$7,Avropsblankett!$D$76=$A$13),O27,IF(AND(Avropsblankett!$G$76=$C$10,Avropsblankett!$C$76=$B$7,Avropsblankett!$D$76=$A$14),O28,IF(AND(Avropsblankett!$G$76=$C$10,Avropsblankett!$C$76=$B$7,Avropsblankett!$D$76=$A$15),O29,IF(AND(Avropsblankett!$G$76=$C$10,Avropsblankett!$C$76=$B$7,Avropsblankett!$D$76=$A$16),O30,0)))))) -> 0 | P35: =Avropsblankett!$F$76*IF(AND(Avropsblankett!$G$76=$D$10,Avropsblankett!$C$76=$B$7,Avropsblankett!$D$76=$A$11),P25,IF(AND(Avropsblankett!$G$76=$D$10,Avropsblankett!$C$76=$B$7,Avropsblankett!$D$76=$A$12),P26,IF(AND(Avropsblankett!$G$76=$D$10,Avropsblankett!$C$76=$B$7,Avropsblankett!$D$76=$A$13),P27,IF(AND(Avropsblankett!$G$76=$D$10,Avropsblankett!$C$76=$B$7,Avropsblankett!$D$76=$A$14),P28,IF(AND(Avropsblankett!$G$76=$D$10,Avropsblankett!$C$76=$B$7,Avropsblankett!$D$76=$A$15),P29,IF(AND(Avropsblankett!$G$76=$D$10,Avropsblankett!$C$76=$B$7,Avropsblankett!$D$76=$A$16),P30,0)))))) -> 0 | R35: =Avropsblankett!$F$76*IF(AND(Avropsblankett!$G$76=$B$10,Avropsblankett!$C$76=$B$7,Avropsblankett!$D$76=$A$11),R25,IF(AND(Avropsblankett!$G$76=$B$10,Avropsblankett!$C$76=$B$7,Avropsblankett!$D$76=$A$12),R26,IF(AND(Avropsblankett!$G$76=$B$10,Avropsblankett!$C$76=$B$7,Avropsblankett!$D$76=$A$13),R27,IF(AND(Avropsblankett!$G$76=$B$10,Avropsblankett!$C$76=$B$7,Avropsblankett!$D$76=$A$14),R28,IF(AND(Avropsblankett!$G$76=$B$10,Avropsblankett!$C$76=$B$7,Avropsblankett!$D$76=$A$15),R29,IF(AND(Avropsblankett!$G$76=$B$10,Avropsblankett!$C$76=$B$7,Avropsblankett!$D$76=$A$16),R30,0)))))) -> 0 | S35: =Avropsblankett!$F$76*IF(AND(Avropsblankett!$G$76=$C$10,Avropsblankett!$C$76=$B$7,Avropsblankett!$D$76=$A$11),S25,IF(AND(Avropsblankett!$G$76=$C$10,Avropsblankett!$C$76=$B$7,Avropsblankett!$D$76=$A$12),S26,IF(AND(Avropsblankett!$G$76=$C$10,Avropsblankett!$C$76=$B$7,Avropsblankett!$D$76=$A$13),S27,IF(AND(Avropsblankett!$G$76=$C$10,Avropsblankett!$C$76=$B$7,Avropsblankett!$D$76=$A$14),S28,IF(AND(Avropsblankett!$G$76=$C$10,Avropsblankett!$C$76=$B$7,Avropsblankett!$D$76=$A$15),S29,IF(AND(Avropsblankett!$G$76=$C$10,Avropsblankett!$C$76=$B$7,Avropsblankett!$D$76=$A$16),S30,0)))))) -> 0 | T35: =Avropsblankett!$F$76*IF(AND(Avropsblankett!$G$76=$D$10,Avropsblankett!$C$76=$B$7,Avropsblankett!$D$76=$A$11),T25,IF(AND(Avropsblankett!$G$76=$D$10,Avropsblankett!$C$76=$B$7,Avropsblankett!$D$76=$A$12),T26,IF(AND(Avropsblankett!$G$76=$D$10,Avropsblankett!$C$76=$B$7,Avropsblankett!$D$76=$A$13),T27,IF(AND(Avropsblankett!$G$76=$D$10,Avropsblankett!$C$76=$B$7,Avropsblankett!$D$76=$A$14),T28,IF(AND(Avropsblankett!$G$76=$D$10,Avropsblankett!$C$76=$B$7,Avropsblankett!$D$76=$A$15),T29,IF(AND(Avropsblankett!$G$76=$D$10,Avropsblankett!$C$76=$B$7,Avropsblankett!$D$76=$A$16),T30,0)))))) -> 0 | V35: =Avropsblankett!$F$76*IF(AND(Avropsblankett!$G$76=$B$10,Avropsblankett!$C$76=$B$7,Avropsblankett!$D$76=$A$11),V25,IF(AND(Avropsblankett!$G$76=$B$10,Avropsblankett!$C$76=$B$7,Avropsblankett!$D$76=$A$12),V26,IF(AND(Avropsblankett!$G$76=$B$10,Avropsblankett!$C$76=$B$7,Avropsblankett!$D$76=$A$13),V27,IF(AND(Avropsblankett!$G$76=$B$10,Avropsblankett!$C$76=$B$7,Avropsblankett!$D$76=$A$14),V28,IF(AND(Avropsblankett!$G$76=$B$10,Avropsblankett!$C$76=$B$7,Avropsblankett!$D$76=$A$15),V29,IF(AND(Avropsblankett!$G$76=$B$10,Avropsblankett!$C$76=$B$7,Avropsblankett!$D$76=$A$16),V30,0)))))) -> 0 | W35: =Avropsblankett!$F$76*IF(AND(Avropsblankett!$G$76=$C$10,Avropsblankett!$C$76=$B$7,Avropsblankett!$D$76=$A$11),W25,IF(AND(Avropsblankett!$G$76=$C$10,Avropsblankett!$C$76=$B$7,Avropsblankett!$D$76=$A$12),W26,IF(AND(Avropsblankett!$G$76=$C$10,Avropsblankett!$C$76=$B$7,Avropsblankett!$D$76=$A$13),W27,IF(AND(Avropsblankett!$G$76=$C$10,Avropsblankett!$C$76=$B$7,Avropsblankett!$D$76=$A$14),W28,IF(AND(Avropsblankett!$G$76=$C$10,Avropsblankett!$C$76=$B$7,Avropsblankett!$D$76=$A$15),W29,IF(AND(Avropsblankett!$G$76=$C$10,Avropsblankett!$C$76=$B$7,Avropsblankett!$D$76=$A$16),W30,0)))))) -> 0 | X35: =Avropsblankett!$F$76*IF(AND(Avropsblankett!$G$76=$D$10,Avropsblankett!$C$76=$B$7,Avropsblankett!$D$76=$A$11),X25,IF(AND(Avropsblankett!$G$76=$D$10,Avropsblankett!$C$76=$B$7,Avropsblankett!$D$76=$A$12),X26,IF(AND(Avropsblankett!$G$76=$D$10,Avropsblankett!$C$76=$B$7,Avropsblankett!$D$76=$A$13),X27,IF(AND(Avropsblankett!$G$76=$D$10,Avropsblankett!$C$76=$B$7,Avropsblankett!$D$76=$A$14),X28,IF(AND(Avropsblankett!$G$76=$D$10,Avropsblankett!$C$76=$B$7,Avropsblankett!$D$76=$A$15),X29,IF(AND(Avropsblankett!$G$76=$D$10,Avropsblankett!$C$76=$B$7,Avropsblankett!$D$76=$A$16),X30,0)))))) -> 0 | Z35: =Avropsblankett!$F$76*IF(AND(Avropsblankett!$G$76=$B$10,Avropsblankett!$C$76=$B$7,Avropsblankett!$D$76=$A$11),Z25,IF(AND(Avropsblankett!$G$76=$B$10,Avropsblankett!$C$76=$B$7,Avropsblankett!$D$76=$A$12),Z26,IF(AND(Avropsblankett!$G$76=$B$10,Avropsblankett!$C$76=$B$7,Avropsblankett!$D$76=$A$13),Z27,IF(AND(Avropsblankett!$G$76=$B$10,Avropsblankett!$C$76=$B$7,Avropsblankett!$D$76=$A$14),Z28,IF(AND(Avropsblankett!$G$76=$B$10,Avropsblankett!$C$76=$B$7,Avropsblankett!$D$76=$A$15),Z29,IF(AND(Avropsblankett!$G$76=$B$10,Avropsblankett!$C$76=$B$7,Avropsblankett!$D$76=$A$16),Z30,0)))))) -> 0 | AA35: =Avropsblankett!$F$76*IF(AND(Avropsblankett!$G$76=$C$10,Avropsblankett!$C$76=$B$7,Avropsblankett!$D$76=$A$11),AA25,IF(AND(Avropsblankett!$G$76=$C$10,Avropsblankett!$C$76=$B$7,Avropsblankett!$D$76=$A$12),AA26,IF(AND(Avropsblankett!$G$76=$C$10,Avropsblankett!$C$76=$B$7,Avropsblankett!$D$76=$A$13),AA27,IF(AND(Avropsblankett!$G$76=$C$10,Avropsblankett!$C$76=$B$7,Avropsblankett!$D$76=$A$14),AA28,IF(AND(Avropsblankett!$G$76=$C$10,Avropsblankett!$C$76=$B$7,Avropsblankett!$D$76=$A$15),AA29,IF(AND(Avropsblankett!$G$76=$C$10,Avropsblankett!$C$76=$B$7,Avropsblankett!$D$76=$A$16),AA30,0)))))) -> 0 | AB35: =Avropsblankett!$F$76*IF(AND(Avropsblankett!$G$76=$D$10,Avropsblankett!$C$76=$B$7,Avropsblankett!$D$76=$A$11),AB25,IF(AND(Avropsblankett!$G$76=$D$10,Avropsblankett!$C$76=$B$7,Avropsblankett!$D$76=$A$12),AB26,IF(AND(Avropsblankett!$G$76=$D$10,Avropsblankett!$C$76=$B$7,Avropsblankett!$D$76=$A$13),AB27,IF(AND(Avropsblankett!$G$76=$D$10,Avropsblankett!$C$76=$B$7,Avropsblankett!$D$76=$A$14),AB28,IF(AND(Avropsblankett!$G$76=$D$10,Avropsblankett!$C$76=$B$7,Avropsblankett!$D$76=$A$15),AB29,IF(AND(Avropsblankett!$G$76=$D$10,Avropsblankett!$C$76=$B$7,Avropsblankett!$D$76=$A$16),AB30,0)))))) -> 0 | AD35: =Avropsblankett!$F$76*IF(AND(Avropsblankett!$G$76=$B$10,Avropsblankett!$C$76=$B$7,Avropsblankett!$D$76=$A$11),AD25,IF(AND(Avropsblankett!$G$76=$B$10,Avropsblankett!$C$76=$B$7,Avropsblankett!$D$76=$A$12),AD26,IF(AND(Avropsblankett!$G$76=$B$10,Avropsblankett!$C$76=$B$7,Avropsblankett!$D$76=$A$13),AD27,IF(AND(Avropsblankett!$G$76=$B$10,Avropsblankett!$C$76=$B$7,Avropsblankett!$D$76=$A$14),AD28,IF(AND(Avropsblankett!$G$76=$B$10,Avropsblankett!$C$76=$B$7,Avropsblankett!$D$76=$A$15),AD29,IF(AND(Avropsblankett!$G$76=$B$10,Avropsblankett!$C$76=$B$7,Avropsblankett!$D$76=$A$16),AD30,0)))))) -> 0 | AE35: =Avropsblankett!$F$76*IF(AND(Avropsblankett!$G$76=$C$10,Avropsblankett!$C$76=$B$7,Avropsblankett!$D$76=$A$11),AE25,IF(AND(Avropsblankett!$G$76=$C$10,Avropsblankett!$C$76=$B$7,Avropsblankett!$D$76=$A$12),AE26,IF(AND(Avropsblankett!$G$76=$C$10,Avropsblankett!$C$76=$B$7,Avropsblankett!$D$76=$A$13),AE27,IF(AND(Avropsblankett!$G$76=$C$10,Avropsblankett!$C$76=$B$7,Avropsblankett!$D$76=$A$14),AE28,IF(AND(Avropsblankett!$G$76=$C$10,Avropsblankett!$C$76=$B$7,Avropsblankett!$D$76=$A$15),AE29,IF(AND(Avropsblankett!$G$76=$C$10,Avropsblankett!$C$76=$B$7,Avropsblankett!$D$76=$A$16),AE30,0)))))) -> 0 | AF35: =Avropsblankett!$F$76*IF(AND(Avropsblankett!$G$76=$D$10,Avropsblankett!$C$76=$B$7,Avropsblankett!$D$76=$A$11),AF25,IF(AND(Avropsblankett!$G$76=$D$10,Avropsblankett!$C$76=$B$7,Avropsblankett!$D$76=$A$12),AF26,IF(AND(Avropsblankett!$G$76=$D$10,Avropsblankett!$C$76=$B$7,Avropsblankett!$D$76=$A$13),AF27,IF(AND(Avropsblankett!$G$76=$D$10,Avropsblankett!$C$76=$B$7,Avropsblankett!$D$76=$A$14),AF28,IF(AND(Avropsblankett!$G$76=$D$10,Avropsblankett!$C$76=$B$7,Avropsblankett!$D$76=$A$15),AF29,IF(AND(Avropsblankett!$G$76=$D$10,Avropsblankett!$C$76=$B$7,Avropsblankett!$D$76=$A$16),AF30,0)))))) -> 0 | AH35: =Avropsblankett!$F$76*IF(AND(Avropsblankett!$G$76=$B$10,Avropsblankett!$C$76=$B$7,Avropsblankett!$D$76=$A$11),AH25,IF(AND(Avropsblankett!$G$76=$B$10,Avropsblankett!$C$76=$B$7,Avropsblankett!$D$76=$A$12),AH26,IF(AND(Avropsblankett!$G$76=$B$10,Avropsblankett!$C$76=$B$7,Avropsblankett!$D$76=$A$13),AH27,IF(AND(Avropsblankett!$G$76=$B$10,Avropsblankett!$C$76=$B$7,Avropsblankett!$D$76=$A$14),AH28,IF(AND(Avropsblankett!$G$76=$B$10,Avropsblankett!$C$76=$B$7,Avropsblankett!$D$76=$A$15),AH29,IF(AND(Avropsblankett!$G$76=$B$10,Avropsblankett!$C$76=$B$7,Avropsblankett!$D$76=$A$16),AH30,0)))))) -> 0 | AI35: =Avropsblankett!$F$76*IF(AND(Avropsblankett!$G$76=$C$10,Avropsblankett!$C$76=$B$7,Avropsblankett!$D$76=$A$11),AI25,IF(AND(Avropsblankett!$G$76=$C$10,Avropsblankett!$C$76=$B$7,Avropsblankett!$D$76=$A$12),AI26,IF(AND(Avropsblankett!$G$76=$C$10,Avropsblankett!$C$76=$B$7,Avropsblankett!$D$76=$A$13),AI27,IF(AND(Avropsblankett!$G$76=$C$10,Avropsblankett!$C$76=$B$7,Avropsblankett!$D$76=$A$14),AI28,IF(AND(Avropsblankett!$G$76=$C$10,Avropsblankett!$C$76=$B$7,Avropsblankett!$D$76=$A$15),AI29,IF(AND(Avropsblankett!$G$76=$C$10,Avropsblankett!$C$76=$B$7,Avropsblankett!$D$76=$A$16),AI30,0)))))) -> 0 | AJ35: =Avropsblankett!$F$76*IF(AND(Avropsblankett!$G$76=$D$10,Avropsblankett!$C$76=$B$7,Avropsblankett!$D$76=$A$11),AJ25,IF(AND(Avropsblankett!$G$76=$D$10,Avropsblankett!$C$76=$B$7,Avropsblankett!$D$76=$A$12),AJ26,IF(AND(Avropsblankett!$G$76=$D$10,Avropsblankett!$C$76=$B$7,Avropsblankett!$D$76=$A$13),AJ27,IF(AND(Avropsblankett!$G$76=$D$10,Avropsblankett!$C$76=$B$7,Avropsblankett!$D$76=$A$14),AJ28,IF(AND(Avropsblankett!$G$76=$D$10,Avropsblankett!$C$76=$B$7,Avropsblankett!$D$76=$A$15),AJ29,IF(AND(Avropsblankett!$G$76=$D$10,Avropsblankett!$C$76=$B$7,Avropsblankett!$D$76=$A$16),AJ30,0)))))) -> 0 | AL35: =Avropsblankett!$F$76*IF(AND(Avropsblankett!$G$76=$B$10,Avropsblankett!$C$76=$B$7,Avropsblankett!$D$76=$A$11),AL25,IF(AND(Avropsblankett!$G$76=$B$10,Avropsblankett!$C$76=$B$7,Avropsblankett!$D$76=$A$12),AL26,IF(AND(Avropsblankett!$G$76=$B$10,Avropsblankett!$C$76=$B$7,Avropsblankett!$D$76=$A$13),AL27,IF(AND(Avropsblankett!$G$76=$B$10,Avropsblankett!$C$76=$B$7,Avropsblankett!$D$76=$A$14),AL28,IF(AND(Avropsblankett!$G$76=$B$10,Avropsblankett!$C$76=$B$7,Avropsblankett!$D$76=$A$15),AL29,IF(AND(Avropsblankett!$G$76=$B$10,Avropsblankett!$C$76=$B$7,Avropsblankett!$D$76=$A$16),AL30,0)))))) -> 0 | AM35: =Avropsblankett!$F$76*IF(AND(Avropsblankett!$G$76=$C$10,Avropsblankett!$C$76=$B$7,Avropsblankett!$D$76=$A$11),AM25,IF(AND(Avropsblankett!$G$76=$C$10,Avropsblankett!$C$76=$B$7,Avropsblankett!$D$76=$A$12),AM26,IF(AND(Avropsblankett!$G$76=$C$10,Avropsblankett!$C$76=$B$7,Avropsblankett!$D$76=$A$13),AM27,IF(AND(Avropsblankett!$G$76=$C$10,Avropsblankett!$C$76=$B$7,Avropsblankett!$D$76=$A$14),AM28,IF(AND(Avropsblankett!$G$76=$C$10,Avropsblankett!$C$76=$B$7,Avropsblankett!$D$76=$A$15),AM29,IF(AND(Avropsblankett!$G$76=$C$10,Avropsblankett!$C$76=$B$7,Avropsblankett!$D$76=$A$16),AM30,0)))))) -> 0 | AN35: =Avropsblankett!$F$76*IF(AND(Avropsblankett!$G$76=$D$10,Avropsblankett!$C$76=$B$7,Avropsblankett!$D$76=$A$11),AN25,IF(AND(Avropsblankett!$G$76=$D$10,Avropsblankett!$C$76=$B$7,Avropsblankett!$D$76=$A$12),AN26,IF(AND(Avropsblankett!$G$76=$D$10,Avropsblankett!$C$76=$B$7,Avropsblankett!$D$76=$A$13),AN27,IF(AND(Avropsblankett!$G$76=$D$10,Avropsblankett!$C$76=$B$7,Avropsblankett!$D$76=$A$14),AN28,IF(AND(Avropsblankett!$G$76=$D$10,Avropsblankett!$C$76=$B$7,Avropsblankett!$D$76=$A$15),AN29,IF(AND(Avropsblankett!$G$76=$D$10,Avropsblankett!$C$76=$B$7,Avropsblankett!$D$76=$A$16),AN30,0)))))) -> 0 | AP35: =Avropsblankett!$F$76*IF(AND(Avropsblankett!$G$76=$B$10,Avropsblankett!$C$76=$B$7,Avropsblankett!$D$76=$A$11),AP25,IF(AND(Avropsblankett!$G$76=$B$10,Avropsblankett!$C$76=$B$7,Avropsblankett!$D$76=$A$12),AP26,IF(AND(Avropsblankett!$G$76=$B$10,Avropsblankett!$C$76=$B$7,Avropsblankett!$D$76=$A$13),AP27,IF(AND(Avropsblankett!$G$76=$B$10,Avropsblankett!$C$76=$B$7,Avropsblankett!$D$76=$A$14),AP28,IF(AND(Avropsblankett!$G$76=$B$10,Avropsblankett!$C$76=$B$7,Avropsblankett!$D$76=$A$15),AP29,IF(AND(Avropsblankett!$G$76=$B$10,Avropsblankett!$C$76=$B$7,Avropsblankett!$D$76=$A$16),AP30,0)))))) -> 0 | AQ35: =Avropsblankett!$F$76*IF(AND(Avropsblankett!$G$76=$C$10,Avropsblankett!$C$76=$B$7,Avropsblankett!$D$76=$A$11),AQ25,IF(AND(Avropsblankett!$G$76=$C$10,Avropsblankett!$C$76=$B$7,Avropsblankett!$D$76=$A$12),AQ26,IF(AND(Avropsblankett!$G$76=$C$10,Avropsblankett!$C$76=$B$7,Avropsblankett!$D$76=$A$13),AQ27,IF(AND(Avropsblankett!$G$76=$C$10,Avropsblankett!$C$76=$B$7,Avropsblankett!$D$76=$A$14),AQ28,IF(AND(Avropsblankett!$G$76=$C$10,Avropsblankett!$C$76=$B$7,Avropsblankett!$D$76=$A$15),AQ29,IF(AND(Avropsblankett!$G$76=$C$10,Avropsblankett!$C$76=$B$7,Avropsblankett!$D$76=$A$16),AQ30,0)))))) -> 0 | AR35: =Avropsblankett!$F$76*IF(AND(Avropsblankett!$G$76=$D$10,Avropsblankett!$C$76=$B$7,Avropsblankett!$D$76=$A$11),AR25,IF(AND(Avropsblankett!$G$76=$D$10,Avropsblankett!$C$76=$B$7,Avropsblankett!$D$76=$A$12),AR26,IF(AND(Avropsblankett!$G$76=$D$10,Avropsblankett!$C$76=$B$7,Avropsblankett!$D$76=$A$13),AR27,IF(AND(Avropsblankett!$G$76=$D$10,Avropsblankett!$C$76=$B$7,Avropsblankett!$D$76=$A$14),AR28,IF(AND(Avropsblankett!$G$76=$D$10,Avropsblankett!$C$76=$B$7,Avropsblankett!$D$76=$A$15),AR29,IF(AND(Avropsblankett!$G$76=$D$10,Avropsblankett!$C$76=$B$7,Avropsblankett!$D$76=$A$16),AR30,0)))))) -> 0
B36: =SUM(B31:B35) -> 0 | C36: =SUM(C31:C35) -> 0 | D36: =SUM(D31:D35) -> 0 | F36: =SUM(F31:F35) -> 0 | G36: =SUM(G31:G35) -> 0 | H36: =SUM(H31:H35) -> 0 | J36: =SUM(J31:J35) -> 0 | K36: =SUM(K31:K35) -> 0 | L36: =SUM(L31:L35) -> 0 | N36: =SUM(N31:N35) -> 0 | O36: =SUM(O31:O35) -> 0 | P36: =SUM(P31:P35) -> 0 | R36: =SUM(R31:R35) -> 0 | S36: =SUM(S31:S35) -> 0 | T36: =SUM(T31:T35) -> 0 | V36: =SUM(V31:V35) -> 0 | W36: =SUM(W31:W35) -> 0 | X36: =SUM(X31:X35) -> 0 | Z36: =SUM(Z31:Z35) -> 0 | AA36: =SUM(AA31:AA35) -> 0 | AB36: =SUM(AB31:AB35) -> 0 | AD36: =SUM(AD31:AD35) -> 0 | AE36: =SUM(AE31:AE35) -> 0 | AF36: =SUM(AF31:AF35) -> 0 | AH36: =SUM(AH31:AH35) -> 0 | AI36: =SUM(AI31:AI35) -> 0 | AJ36: =SUM(AJ31:AJ35) -> 0 | AL36: =SUM(AL31:AL35) -> 0 | AM36: =SUM(AM31:AM35) -> 0 | AN36: =SUM(AN31:AN35) -> 0 | AP36: =SUM(AP31:AP35) -> 0 | AQ36: =SUM(AQ31:AQ35) -> 0 | AR36: =SUM(AR31:AR35) -> 0
A37: Summa | B37: =SUM(B22,B36) -> 0 | C37: =SUM(C22,C36) -> 0 | D37: =SUM(D22,D36) -> 0 | F37: =SUM(F22,F36) -> 0 | G37: =SUM(G22,G36) -> 0 | H37: =SUM(H22,H36) -> 0 | J37: =SUM(J22,J36) -> 0 | K37: =SUM(K22,K36) -> 0 | L37: =SUM(L22,L36) -> 0 | N37: =SUM(N22,N36) -> 0 | O37: =SUM(O22,O36) -> 0 | P37: =SUM(P22,P36) -> 0 | R37: =SUM(R22,R36) -> 0 | S37: =SUM(S22,S36) -> 0 | T37: =SUM(T22,T36) -> 0 | V37: =SUM(V22,V36) -> 0 | W37: =SUM(W22,W36) -> 0 | X37: =SUM(X22,X36) -> 0 | Z37: =SUM(Z22,Z36) -> 0 | AA37: =SUM(AA22,AA36) -> 0 | AB37: =SUM(AB22,AB36) -> 0 | AD37: =SUM(AD22,AD36) -> 0 | AE37: =SUM(AE22,AE36) -> 0 | AF37: =SUM(AF22,AF36) -> 0 | AH37: =SUM(AH22,AH36) -> 0 | AI37: =SUM(AI22,AI36) -> 0 | AJ37: =SUM(AJ22,AJ36) -> 0 | AL37: =SUM(AL22,AL36) -> 0 | AM37: =SUM(AM22,AM36) -> 0 | AN37: =SUM(AN22,AN36) -> 0 | AP37: =SUM(AP22,AP36) -> 0 | AQ37: =SUM(AQ22,AQ36) -> 0 | AR37: =SUM(AR22,AR36) -> 0
A38: Totalsumma | B38: =SUM(B37:D37) -> 0 | F38: =SUM(F37:H37) -> 0 | J38: =SUM(J37:L37) -> 0 | N38: =SUM(N37:P37) -> 0 | R38: =SUM(R37:T37) -> 0 | V38: =SUM(V37:X37) -> 0 | Z38: =SUM(Z37:AB37) -> 0 | AD38: =SUM(AD37:AF37) -> 0 | AH38: =SUM(AH37:AJ37) -> 0 | AL38: =SUM(AL37:AN37) -> 0 | AP38: =SUM(AP37:AR37) -> 0

Sheet Kollegieblock
A1: Kollegieblock | D1: =Uträkningsblad!C4 -> Åtta.45 Tryckeri AB | I1: Elanders Sverige AB | N1: Ljungbergs Tryckeri i Klippan AB | S1: =Uträkningsblad!F4 -> Scandinavian Print Group Sweden AB | X1: Taberg Media Group AB | AC1: Stema Specialtryck AB | AH1: Kalmar Kuvert Sweden AB | AR1: Exakta Print AB | AW1: Stibo Graphic AS | BB1: Arkitektkopia Aktiebolag
A2: Underlag: | B2: A: Öppna filer. B: PDF. C: PDFx enligt gällande ISO-standard. (Avser inte variabeldata)
D3: Ange totalt pris i gulmarkerade fält nedan | I3: Ange totalt pris i gulmarkerade fält nedan | N3: Ange totalt pris i gulmarkerade fält nedan | S3: Ange totalt pris i gulmarkerade fält nedan | X3: Ange totalt pris i gulmarkerade fält nedan | AC3: Ange totalt pris i gulmarkerade fält nedan | AH3: Ange totalt pris i gulmarkerade fält nedan | AM3: Ange totalt pris i gulmarkerade fält nedan | AR3: Ange totalt pris i gulmarkerade fält nedan | AW3: Ange totalt pris i gulmarkerade fält nedan | BB3: Ange totalt pris i gulmarkerade fält nedan
A4: Kollegieblock_Variant_1 | C4: Antal blad inlaga | D4: Upplaga | E4: Ange totalt pris | F4: Följandeupplaga | G4: Ange totalt pris | I4: Upplaga | J4: Ange totalt pris | K4: Följandeupplaga | L4: Ange totalt pris | N4: Upplaga | O4: Ange totalt pris | P4: Följandeupplaga | Q4: Ange totalt pris | S4: Upplaga | T4: Ange totalt pris | U4: Följandeupplaga | V4: Ange totalt pris | X4: Upplaga | Y4: Ange totalt pris | Z4: Följandeupplaga | AA4: Ange totalt pris | AC4: Upplaga | AD4: Ange totalt pris | AE4: Följandeupplaga | AF4: Ange totalt pris | AH4: Upplaga | AI4: Ange totalt pris | AJ4: Följandeupplaga | AK4: Ange totalt pris | AM4: Upplaga | AN4: Ange totalt pris | AO4: Följandeupplaga | AP4: Ange totalt pris | AR4: Upplaga | AS4: Ange totalt pris | AT4: Följandeupplaga | AU4: Ange totalt pris | AW4: Upplaga | AX4: Ange totalt pris | AY4: Följandeupplaga | AZ4: Ange totalt pris | BB4: Upplaga | BC4: Ange totalt pris | BD4: Följandeupplaga | BE4: Ange totalt pris
A5: Format: | B5: A4 Inlaga linjerat ´(1+1) | C5: 70 | D5: 100 | E5: 2000 | F5: 100 | G5: 575 | I5: 100 | J5: 2720 | K5: 100 | L5: 1360 | N5: 100 | O5: 2810 | P5: 100 | Q5: 2000 | S5: 100 | T5: 3320 | U5: 100 | V5: 1557 | X5: 100 | Y5: 3520 | Z5: 100 | AA5: 1760 | AC5: 100 | AD5: 3440 | AE5: 100 | AF5: 1720 | AH5: 100 | AI5: 3520 | AJ5: 100 | AK5: 1760 | AM5: 100 | AN5: 3500 | AO5: 100 | AP5: 3100 | AR5: 100 | AS5: 4600 | AT5: 100 | AU5: 3000 | AW5: 100 | AX5: 2240 | AY5: 100 | AZ5: 1120 | BB5: 100 | BC5: 3520 | BD5: 100 | BE5: 1760
A6: Omslag,framsida | B6: Oliksidig kartong, högbestruket semimatt framsida och mattbestruken baksida. Ytvikt 250 g. (4+0) | C6: 70 | D6: 500 | E6: 4200 | F6: 100 | G6: 575 | I6: 500 | J6: 8160 | K6: 100 | L6: 1275 | N6: 500 | O6: 10810 | P6: 100 | Q6: 1980 | S6: 500 | T6: 10113 | U6: 100 | V6: 1764 | X6: 500 | Y6: 10560 | Z6: 100 | AA6: 1650 | AC6: 500 | AD6: 10322 | AE6: 100 | AF6: 1612 | AH6: 500 | AI6: 10560 | AJ6: 100 | AK6: 1650 | AM6: 500 | AN6: 13500 | AO6: 100 | AP6: 3000 | AR6: 500 | AS6: 13000 | AT6: 100 | AU6: 2100 | AW6: 500 | AX6: 6720 | AY6: 100 | AZ6: 1050 | BB6: 500 | BC6: 10560 | BD6: 100 | BE6: 1650
A7: Omslag, baksida | B7: Grå board, returfiber, Ytvikt 300g (ska ej tryckas) | C7: 100 | D7: 100 | E7: 600 | F7: 100 | G7: 600 | I7: 100 | J7: 3825 | K7: 100 | L7: 1915 | N7: 100 | O7: 3350 | P7: 100 | Q7: 2500 | S7: 100 | T7: 2766 | U7: 100 | V7: 1272 | X7: 100 | Y7: 4950 | Z7: 100 | AA7: 2475 | AC7: 100 | AD7: 4838 | AE7: 100 | AF7: 2419 | AH7: 100 | AI7: 4950 | AJ7: 100 | AK7: 2475 | AM7: 100 | AN7: 4000 | AO7: 100 | AP7: 3500 | AR7: 100 | AS7: 5600 | AT7: 100 | AU7: 3500 | AW7: 100 | AX7: 3150 | AY7: 100 | AZ7: 1575 | BB7: 100 | BC7: 4950 | BD7: 100 | BE7: 2475
A8: Papper, inlaga | B8: 80 gr, obestruket. | C8: 100 | D8: 500 | E8: 5000 | F8: 100 | G8: 600 | I8: 500 | J8: 11425 | K8: 100 | L8: 1785 | N8: 500 | O8: 13350 | P8: 100 | Q8: 2480 | S8: 500 | T8: 11754 | U8: 100 | V8: 1261 | X8: 500 | Y8: 14784 | Z8: 100 | AA8: 2310 | AC8: 500 | AD8: 14451 | AE8: 100 | AF8: 2258 | AH8: 500 | AI8: 14785 | AJ8: 100 | AK8: 2310 | AM8: 500 | AN8: 14500 | AO8: 100 | AP8: 2400 | AR8: 500 | AS8: 15001 | AT8: 100 | AU8: 2000 | AW8: 500 | AX8: 9408 | AY8: 100 | AZ8: 1470 | BB8: 500 | BC8: 14784 | BD8: 100 | BE8: 2310
A9: Binderi | B9: Spiralbunden och perforerad t.v. och triohålad
